Workbook

Sheet 単振動
A1: 振動の運動方程式
A2: mx''+cx'+kx=-sign(x')μ'mg+fsinΩt | F2: 単振動 | J2: マクロで計算➡ | L2: =exe("ルンゲ･クッタ･ギル法","ForcedOscillation",C8:C18,J8:L8) -> ルンゲ･クッタ･ギル法
A3: x''=-(c/m)x'-(k/m)x-sign(x')(μ'g)+(f/m)sinΩt | J3: マクロは標準モジュール-Module6 の中。 実行させるには =exe(･･･ と先頭に＝を付加する。
A4: ダンパ＋バネ＋動摩擦＋外力 | G4: 解析解 | K4: 数値積分 | O4: 理論値との差
E5: 時間 | F5: 加速度 | G5: 速度 | H5: 変位 | J5: 加速度 | K5: 速度 | L5: 変位 | N5: 加速度 | O5: 速度 | P5: 変位
E6: t | F6: 理論値x'' | G6: 理論値x' | H6: 理論値x | J6: x'' | K6: x' | L6: x | N6: x'' | O6: x' | P6: x
E7: [s] | F7: [m/s^2] | G7: [m/s] | H7: [m] | J7: [m/s^2] | K7: [m/s] | L7: [m] | N7: [m/s^2] | O7: [m/s] | P7: [m]
A8: 時間間隔 | B8: Δt | C8: =C9/500 -> 0.012 | D8: [s] | E8: 0 | F8: =-($C$25^2)*H8 -> -100 | G8: =-$C$31*$C$25*SIN($C$25*E8+$C$32) -> 0 | H8: =$C$31*COS($C$25*E8+$C$32) -> 1 | J8: -100 | K8: 0 | L8: 1 | N8: =J8-F8 -> 0 | O8: =K8-G8 -> 0 | P8: 0
A9: 終了時間 | B9: TL | C9: 6 | D9: [s] | E9: =E8+$C$8 -> 0.012 | F9: -99.28086359 | G9: -1.197122073 | H9: 0.9928086359 | J9: -99.280864 | K9: -1.19712 | L9: 0.99280864 | N9: =J9-F9 -> -4.146133676e-07 | O9: =K9-G9 -> 2.072889193e-06 | P9: =L9-H9 -> 4.146133659e-09
A10: 重力加速度 | B10: g | C10: 9.8 | D10: [m/s^2] | E10: 0.024 | F10: -97.13379749 | G10: -2.377026264 | H10: 0.9713379749 | J10: -97.13380327 | K10: -2.377022158 | L10: 0.9713380327 | N10: -5.786261994e-06 | O10: 4.106037744e-06 | P10: 5.786261992e-08
A11: 質量 | B11: m | C11: 10 | D11: [kg] | E11: 0.036 | F11: -93.58968237 | G11: -3.522742333 | H11: 0.9358968237 | J11: -93.58969836 | K11: -3.522736322 | L11: 0.9358969836 | N11: -1.599011259e-05 | O11: 6.010861771e-06 | P11: 1.599011259e-07
A12: 粘性係数 | B12: c | C12: 0 | D12: [Ns/m] | E12: 0.048 | F12: -88.69949228 | G12: -4.617791755 | H12: 0.8869949228 | J12: -88.69952304 | K12: -4.617784054 | L12: 0.8869952304 | N12: -3.076113462e-05 | O12: 7.701619316e-06 | P12: 3.076113463e-07
A13: バネ定数 | B13: k | C13: 1000 | D13: [N/m] | E13: 0.06 | F13: -82.53356149 | G13: -5.646424734 | H13: 0.8253356149 | J13: -82.53361119 | K13: -5.646415636 | L13: 0.8253361119 | N13: =J13-F13 -> -4.969961331e-05 | O13: =K13-G13 -> 9.097482711e-06 | P13: =L13-H13 -> 4.969961331e-07
A14: 動摩擦係数 | B14: μ' | C14: 0 | D14: [ND] | E14: 0.072 | F14: -75.18057291 | G14: -6.59384672 | H14: 0.7518057291 | J14: -75.18064519 | K14: -6.593836595 | L14: 0.7518064519 | N14: =J14-F14 -> -7.227959199e-05 | O14: =K14-G14 -> 1.012451387e-05 | P14: =L14-H14 -> 7.2279592e-07
A15: 強制力 | B15: f | C15: 0 | D15: [N] | E15: 0.084 | F15: -66.74628258 | G15: -7.4464312 | H15: 0.6674628258 | J15: -66.74638044 | K15: -7.446420482 | L15: 0.6674638044 | N15: -9.786008378e-05 | O15: 1.071750239e-05 | P15: 9.786008379e-07
A16: 強制力角速度 | B16: Ω | C16: 0 | D16: [rad/s] | E16: 0.096 | F16: -57.35199861 | G16: -8.191915683 | H16: 0.5735199861 | J16: -57.35212431 | K16: -8.191904861 | L16: 0.5735212431 | N16: -0.0001256988389 | O16: 1.082162892e-05 | P16: 1.256988389e-06
A17: 初期位置 | B17: x0 | C17: 1 | D17: [m] | E17: 0.108 | F17: -47.13283642 | G17: -8.819578069 | H17: 0.4713283642 | J17: -47.13299139 | K17: -8.819567675 | L17: 0.4713299139 | N17: -0.0001549684043 | O17: 1.039391935e-05 | P17: 1.549684043e-06
A18: 初期速度 | B18: x'0 | C18: 0 | D18: [m/s] | E18: 0.12 | F18: -36.23577545 | G18: -9.32039086 | H18: 0.3623577545 | J18: -36.23596022 | K18: -9.320381455 | L18: 0.3623596022 | N18: -0.0001847741665 | O18: 9.404459497e-06 | P18: 1.847741665e-06
E19: 0.132 | F19: -24.81754517 | G19: -9.687151001 | H19: 0.2481754517 | J19: -24.81775934 | K19: -9.687143164 | L19: 0.2481775934 | N19: -0.0002141740314 | O19: 7.837344027e-06 | P19: 2.141740314e-06
B20: c/m | C20: =C12/C11 -> 0 | D20: [1/s] | E20: 0.144 | F20: -13.04237087 | G20: -9.914583482 | H20: 0.1304237087 | J20: -13.04261307 | K20: -9.914577791 | L20: 0.1304261307 | N20: -0.0002421993576 | O20: 5.691338687e-06 | P20: 2.421993576e-06
B21: k/m | C21: =C13/C11 -> 100 | D21: [1/s^2] | E21: 0.156 | F21: -1.079611706 | G21: -9.999417202 | H21: 0.01079611706 | J21: -1.079879583 | K21: -9.999414222 | L21: 0.01079879583 | N21: -0.0002678767386 | O21: 2.980239978e-06 | P21: 2.678767386e-06
B22: μ'g | C22: =C14*C10 -> 0 | D22: [s^2/m] | E22: 0.168 | F22: 10.89867522 | G22: -9.940432022 | H22: -0.1089867522 | J22: 10.89838497 | K22: -9.940432289 | L22: -0.1089838497 | N22: -0.0002902502055 | O22: -2.670777803e-07 | P22: 2.902502055e-06
B23: f/m | C23: =C15/C11 -> 0 | D23: [N/m] | E23: 0.18 | F23: 22.72020947 | G23: -9.738476309 | H23: -0.2272020947 | J23: 22.71990107 | K23: -9.738480316 | L23: -0.2271990107 | N23: -0.0003084034144 | O23: -4.006932212e-06 | P23: 3.084034144e-06
A24: 振動中心 | B24: p＝mg/k | C24: =C11*C10/C13 -> 0.098 | D24: [m] | E24: 0.192 | F24: 34.21496512 | G24: -9.396454737 | H24: -0.3421496512 | J24: 34.21464363 | K24: -9.396462918 | L24: -0.3421464363 | N24: -0.000321481377 | O24: -8.181417668e-06 | P24: 3.21481377e-06
A25: 固有角振動数 | B25: ω＝√(k/m) | C25: =SQRT(C13/C11) -> 10 | D25: ［rad/s］ | E25: 0.204 | F25: 45.21761621 | G25: -8.91928651 | H25: -0.4521761621 | J25: 45.2172875 | K25: -8.919299229 | L25: -0.452172875 | N25: -0.0003287112996 | O25: -1.271929728e-05 | P25: 3.287112996e-06
A26: 〝 | B26: 〝 | C26: =DEGREES(C25) -> 572.9577951 | D26: [deg/s] | E26: 0.216 | F26: 55.56991463 | G26: -8.313834608 | H26: -0.5556991463 | J26: 55.5695852 | K26: -8.313852145 | L26: -0.555695852 | N26: -0.0003294221075 | O26: -1.753718858e-05 | P26: 3.294221075e-06
A27: 減衰固有角振動数 | B27: ωd＝ω√(1-ζ^2) | C27: =C25*SQRT(1-C29^2) -> 10 | D27: ［rad/s］ | E27: 0.228 | F27: 65.12296605 | G27: -7.588807082 | H27: -0.6512296605 | J27: 65.12264299 | K27: -7.588829623 | L27: -0.6512264299 | N27: -0.000323062253 | O27: -2.25410233e-05 | P27: 3.23062253e-06
A28: 〝 | B28: 〝 | C28: =DEGREES(C27) -> 572.9577951 | D28: [deg/s] | E28: 0.24 | F28: 73.73937155 | G28: -6.754631806 | H28: -0.7373937155 | J28: 73.73906234 | K28: -6.754659433 | L28: -0.7373906234 | N28: -0.0003092154338 | O28: -2.762775667e-05 | P28: 3.092154338e-06
A29: 減衰比 | B29: ζ＝c/{2√(mk)} | C29: =C12/(2*SQRT(C11*C13)) -> 0 | D29: [ND] | E29: 0.252 | F29: 81.29520371 | G29: -5.823306495 | H29: -0.8129520371 | J29: 81.2949161 | K29: -5.823339183 | L29: -0.812949161 | N29: -0.0002876138843 | O29: -3.268729639e-05 | P29: 2.876138843e-06
A30: 減衰率 | B30: γ＝ζω | C30: =C29*C25 -> 0 | E30: 0.264 | F30: 87.68178904 | G30: -4.80822615 | H30: -0.8768178904 | J30: 87.68153089 | K30: -4.808263755 | L30: -0.8768153089 | N30: -0.0002581489413 | O30: -3.760461731e-05 | P30: 2.581489413e-06
A31: 振幅 | B31: A | C31: =SQRT($C$17^2+($C$18/$C$25)^2) -> 1 | D31: [m] | E31: 0.276 | F31: 92.80727102 | G31: -3.723990394 | H31: -0.9280727102 | J31: 92.80705014 | K31: -3.724032656 | L31: -0.9280705014 | N31: -0.0002208786395 | O31: -4.226202345e-05 | P31: 2.208786395e-06
A32: 初期位相 | B32: α | C32: =ATAN2($C$17,-$C$18/$C$25) -> 0 | D32: [rad] | E32: 0.288 | F32: 96.59793124 | G32: -2.586193497 | H32: -0.9659793124 | J32: 96.59775521 | K32: -2.586240038 | L32: -0.9659775521 | N32: -0.0001760321362 | O32: -4.654151645e-05 | P32: 1.760321362e-06
A33: 〝 | B33: 〝 | C33: =DEGREES(C32) -> 0 | D33: [deg] | E33: 0.3 | F33: 98.99924966 | G33: -1.411200081 | H33: -0.9899924966 | J33: 98.99912565 | K33: -1.411250408 | L33: -0.9899912565 | N33: -0.0001240108302 | O33: -5.032722634e-05 | P33: 1.240108302e-06
A34: A^2＝x0^2＋(x'0/ω)^2 | E34: 0.312 | F34: 99.97668877 | G34: -0.2159097573 | H34: -0.9997668877 | J34: 99.97662339 | K34: -0.2159632651 | L34: -0.9997662339 | N34: -6.538609175e-05 | O34: -5.350785936e-05 | P34: 6.538609175e-07
A35: α＝atan2(x0,－x'0/ω) | E35: 0.324 | F35: 99.51619033 | G35: 0.9824859375 | H35: -0.9951619033 | J35: 99.51618944 | K35: 0.9824299583 | L35: -0.9951618944 | N35: -8.935884921e-07 | O35: -5.597911623e-05 | P35: 8.935885032e-09
E36: 0.336 | F36: 97.62437757 | G36: 2.166750804 | H36: -0.9762437757 | J36: 97.62444614 | K36: 2.166693158 | L36: -0.9762444614 | N36: 6.857574917e-05 | O36: -5.764603442e-05 | P36: -6.857574917e-07
A37: 単振動解析解 | E37: 0.348 | F37: 94.3284599 | G37: 3.319851882 | H37: -0.943284599 | J37: 94.32860189 | K37: 3.319793457 | L37: -0.9432860189 | N37: 0.0001419880151 | O37: -5.842520856e-05 | P37: -1.419880151e-06
A38: x''+ω^2x=0 | C38: 運動方程式 | E38: 0.36 | F38: 89.67584163 | G38: 4.425204433 | H38: -0.8967584163 | J38: 89.67605982 | K38: 4.425146186 | L38: -0.8967605982 | N38: 0.0002181816973 | O38: -5.824684483e-05 | P38: -2.181816973e-06
A39: x＝Acos{ωt＋α} | C39: 解析解 | E39: 0.372 | F39: 83.7334401 | G39: 5.466910471 | H39: -0.837334401 | J39: 83.73373598 | K39: 5.466853414 | L39: -0.8373373598 | N39: 0.0002958859035 | O39: -5.70566074e-05 | P39: -2.958859035e-06
A40: x'＝－Aωsin{ωt＋α} | E40: 0.384 | F40: 76.58672324 | G40: 6.429987421 | H40: -0.7658672324 | J40: 76.58709698 | K40: 6.429932603 | L40: -0.7658709698 | N40: 0.000373741157 | O40: -5.481721836e-05 | P40: -3.73741157e-06
A41: x''＝－ω^2x | E41: 0.396 | F41: 68.33848036 | G41: 7.300583608 | H41: -0.6833848036 | J41: 68.33893068 | K41: 7.300532099 | L41: -0.6833893068 | N41: 0.0004503224285 | O41: -5.150977619e-05 | P41: -4.503224285e-06
E42: 0.408 | F42: =-($C$25^2)*H42 -> 59.10734368 | G42: =-$C$31*$C$25*SIN($C$25*E42+$C$32) -> 8.066177486 | H42: =$C$31*COS($C$25*E42+$C$32) -> -0.5910734368 | J42: 59.10786784 | K42: 8.066130351 | L42: -0.5910786784 | N42: 0.0005241640224 | O42: -4.713476277e-05 | P42: -5.241640224e-06
E43: 0.42 | F43: 49.02608213 | G43: 8.715757724 | H43: -0.4902608213 | J43: 49.02667592 | K43: 8.715716011 | L43: -0.4902667592 | N43: 0.0005937858966 | O43: -4.171271367e-05 | P43: -5.937858966e-06
E44: 0.432 | F44: 38.23969177 | G44: 9.239981587 | H44: -0.3823969177 | J44: 38.24034949 | K44: 9.239946303 | L44: -0.3824034949 | N44: 0.0006577209609 | O44: -3.528453247e-05 | P44: -6.577209609e-06
E45: 0.444 | F45: 26.90331031 | G45: 9.631309306 | H45: -0.2690331031 | J45: 26.90402485 | K45: 9.631281394 | L45: -0.2690402485 | N45: 0.0007145428771 | O45: -2.791143576e-05 | P45: -7.145428771e-06
E46: 0.456 | F46: 15.17998585 | G46: 9.884112519 | H46: -0.1517998585 | J46: 15.18074874 | K46: 9.884092845 | L46: -0.1518074874 | N46: 0.0007628938617 | O46: -1.9674522e-05 | P46: -7.628938617e-06
E47: 0.468 | F47: 3.238331776 | G47: 9.994755228 | H47: -0.03238331776 | J47: 3.239133288 | K47: 9.994744554 | L47: -0.03239133288 | N47: 0.0008015119894 | O47: -1.067396387e-05 | P47: -8.015119894e-06
E48: 0.48 | F48: -8.749898344 | G48: 9.961646088 | H48: 0.08749898344 | J48: -8.749069086 | K48: 9.961645061 | L48: 0.08749069086 | N48: 0.0008292574904 | O48: -1.027830663e-06 | P48: -8.292574904e-06
E49: 0.492 | F49: -20.61228105 | G49: 9.785261299 | H49: 0.2061228105 | J49: -20.61143592 | K49: 9.785270429 | L49: 0.2061143592 | N49: 0.0008451375482 | O49: 9.129446122e-06 | P49: -8.451375482e-06
E50: 0.504 | F50: -32.17820292 | G50: 9.468137756 | H50: 0.3217820292 | J50: -32.1773546 | K50: 9.468157405 | L50: 0.321773546 | N50: 0.0008483291184 | O50: 1.964894435e-05 | P50: -8.483291184e-06
E51: 0.516 | F51: -43.28131445 | G51: 9.01483656 | H51: 0.4328131445 | J51: -43.28047625 | K51: 9.014866929 | L51: 0.4328047625 | N51: 0.0008381993193 | O51: 3.036943391e-05 | P51: -8.381993193e-06
E52: 0.528 | F52: -53.76192258 | G52: 8.431877419 | H52: 0.5376192258 | J52: -53.76110826 | K52: 8.431918538 | L52: 0.5376110826 | N52: 0.0008143229767 | O52: 4.111983849e-05 | P52: -8.143229767e-06
E53: 0.54 | F53: -63.46928759 | G53: 7.727644876 | H53: 0.6346928759 | J53: -63.4685111 | K53: 7.727696597 | L53: 0.634685111 | N53: 0.0007764969494 | O53: 5.172193891e-05 | P53: -7.764969494e-06
E54: 0.552 | F54: -72.26379109 | G54: 6.912267716 | H54: 0.7226379109 | J54: -72.26306634 | K54: 6.912329709 | L54: 0.7226306634 | N54: 0.0007247509123 | O54: 6.199327597e-05 | P54: -7.247509123e-06
E55: 0.564 | F55: -80.01894411 | G55: 5.997473288 | H55: 0.8001894411 | J55: -80.01828475 | K55: 5.997545038 | L55: 0.8001828475 | N55: 0.0006593543267 | O55: 7.175020562e-05 | P55: -6.593543267e-06
E56: 0.576 | F56: -86.6232064 | G56: 4.996418831 | H56: 0.866232064 | J56: -86.62262558 | K56: 4.996499642 | L56: 0.8662262558 | N56: 0.0005808193946 | O56: 8.081105696e-05 | P56: -5.808193946e-06
E57: 0.588 | F57: -91.98159064 | G57: 3.92350224 | H57: 0.9198159064 | J57: -91.98110074 | K57: 3.923591239 | L57: 0.9198110074 | N57: 0.0004898998518 | O57: 8.899933959e-05 | P57: -4.898998519e-06
E58: 0.6 | F58: -96.01702867 | G58: 2.794154982 | H58: 0.9601702867 | J58: -96.01664108 | K58: 2.794251129 | L58: 0.9601664108 | N58: 0.0003875855337 | O58: 9.614694623e-05 | P58: -3.875855337e-06
E59: 0.612 | F59: -98.67147985 | G59: 1.624620152 | H59: 0.9867147985 | J59: -98.67120476 | K59: 1.624722249 | L59: 0.9867120476 | N59: 0.0002750927085 | O59: 0.0001020972944 | P59: -2.750927085e-06
E60: 0.624 | F60: -99.90676595 | G60: 0.4317188521 | H60: 0.9990676595 | J60: -99.9066121 | K60: 0.4318255604 | L60: 0.999066121 | N60: 0.0001538502571 | O60: 0.0001067083522 | P60: -1.538502571e-06
E61: 0.636 | F61: -99.70512019 | G61: -0.7673917429 | H61: 0.9970512019 | J61: -99.7050947 | K61: -0.7672818874 | L61: 0.997050947 | N61: 2.54818405e-05 | O61: 0.0001098554927 | P61: -2.54818405e-07
E62: 0.648 | F62: -98.06944277 | G62: -1.955465151 | H62: 0.9806944277 | J62: -98.06955098 | K62: -1.955353717 | L62: 0.9806955098 | N62: -0.0001082157249 | O62: 0.0001114341255 | P62: 1.082157249e-06
E63: 0.66 | F63: -95.0232592 | G63: -3.115413635 | H63: 0.950232592 | J63: -95.02350449 | K63: -3.115302273 | L63: 0.9502350449 | N63: -0.0002452975985 | O63: 0.0001113620538 | P63: 2.452975985e-06
E64: 0.672 | F64: -90.61038191 | G64: -4.230553971 | H64: 0.9061038191 | J64: -90.61076561 | K64: -4.23044439 | L64: 0.9061076561 | N64: -0.0003836992034 | O64: 0.0001095815125 | P64: 3.836992034e-06
E65: 0.684 | F65: -84.89428012 | G65: -5.284847399 | H65: 0.8489428012 | J65: -84.89480138 | K65: -5.284741339 | L65: 0.8489480138 | N65: -0.0005212672569 | O65: 0.0001060608448 | P65: 5.212672569e-06
E66: 0.696 | F66: -77.95716696 | G66: -6.263130303 | H66: 0.7795716696 | J66: -77.95782275 | K66: -6.263029507 | L66: 0.7795782275 | N66: -0.0006557930811 | O66: 0.0001007957812 | P66: 6.557930811e-06
E67: 0.708 | F67: -69.89881705 | G67: -7.151332306 | H67: 0.6989881705 | J67: -69.8996021 | K67: -7.151238495 | L67: 0.698996021 | N67: -0.0007850476785 | O67: 9.381029024e-05 | P67: 7.850476785e-06
E68: 0.72 | F68: -60.83513145 | G68: -7.936678638 | H68: 0.6083513145 | J68: -60.83603827 | K68: -7.936593482 | L68: 0.6083603827 | N68: -0.000906818022 | O68: 8.515697855e-05 | P68: 9.06818022e-06
E69: 0.732 | F69: -50.89647069 | G69: -8.607873879 | H69: 0.5089647069 | J69: -50.89748963 | K69: -8.607798962 | L69: 0.5089748963 | N69: -0.001018943975 | O69: 7.491702249e-05 | P69: 1.018943975e-05
E70: 0.744 | F70: -40.22577981 | G70: -9.155264408 | H70: 0.4022577981 | J70: -40.22689917 | K70: -9.155201209 | L70: 0.4022689917 | N70: -0.001119355241 | O70: 6.319962314e-05 | P70: 1.119355241e-05
E71: 0.756 | F71: -28.97653247 | G71: -9.570977257 | H71: 0.2897653247 | J71: -28.97773858 | K71: -9.570927116 | L71: 0.2897773858 | N71: -0.001206107717 | O71: 5.014098333e-05 | P71: 1.206107717e-05
E72: 0.768 | F72: -17.31052354 | G72: -9.849033341 | H72: 0.1731052354 | J72: -17.31180096 | K72: -9.848997438 | L72: 0.1731180096 | N72: -0.001277418652 | O72: 3.590281363e-05 | P72: 1.277418652e-05
E73: =E72+$C$8 -> 0.78 | F73: -5.395542056 | G73: -9.985433454 | H73: 0.05395542056 | J73: -5.396873756 | K73: -9.985412783 | L73: 0.05396873756 | N73: -0.001331699978 | O73: 2.067038196e-05 | P73: 1.331699978e-05
E74: 0.792 | F74: 6.597042046 | G74: -9.978215791 | H74: -0.06597042046 | J74: 6.595674457 | K74: -9.97821114 | L74: -0.06595674457 | N74: -0.001367589239 | O74: 4.650129696e-06 | P74: 1.367589239e-05
E75: 0.804 | F75: 18.49474269 | G75: -9.827484161 | H75: -0.1849474269 | J75: 18.49335871 | K75: -9.827496094 | L75: -0.1849335871 | N75: -0.001383977559 | O75: -1.193311575e-05 | P75: 1.383977559e-05
E76: 0.816 | F76: 30.12643847 | G76: -9.535406497 | H76: -0.3012643847 | J76: 30.12505843 | K76: -9.535435336 | L76: -0.3012505843 | N76: -0.001380034111 | O76: -2.883929416e-05 | P76: 1.380034111e-05
E77: 0.828 | F77: 41.32483387 | G77: -9.106183671 | H77: -0.4132483387 | J77: 41.32347864 | K77: -9.106229488 | L77: -0.4132347864 | N77: -0.001355226626 | O77: -4.581658752e-05 | P77: 1.355226626e-05
E78: 0.84 | F78: 51.92886541 | G78: -8.545989081 | H78: -0.5192886541 | J78: 51.92755607 | K78: -8.546051686 | L78: -0.5192755607 | N78: =J78-F78 -> -0.001309337521 | O78: =K78-G78 -> -6.26051664e-05 | P78: =L78-H78 -> 1.309337521e-05
E79: 0.852 | F79: 61.78601819 | G79: -7.862879851 | H79: -0.6178601819 | J79: 61.78477572 | K79: -7.862958793 | L79: -0.6178477572 | N79: -0.001242475291 | O79: -7.894115209e-05 | P79: 1.242475291e-05
E80: 0.864 | F80: 70.75451946 | G80: -7.066680957 | H80: -0.7075451946 | J80: 70.75336438 | K80: -7.066775518 | L80: -0.7075336438 | N80: -0.001155080878 | O80: -9.456073431e-05 | P80: 1.155080878e-05
E81: 0.876 | F81: 78.70537771 | G81: -6.168843911 | H81: -0.7870537771 | J81: 78.70432978 | K81: -6.168953116 | L81: -0.7870432978 | N81: -0.001047928818 | O81: -0.0001092043804 | P81: 1.047928818e-05
E82: 0.888 | F82: 85.52423789 | G82: -5.182282059 | H82: -0.8552423789 | J82: 85.52331576 | K82: -5.18240468 | L82: -0.8552331576 | N82: -0.0009221230438 | O82: -0.00012262107 | P82: 9.221230438e-06
E83: 0.9 | F83: 91.11302619 | G83: -4.121184852 | H83: -0.9111302619 | J83: 91.1122471 | K83: -4.121319425 | L83: -0.911122471 | N83: -0.0007790872912 | O83: -0.0001345724862 | P83: 7.790872912e-06
E84: 0.912 | F84: 95.39136059 | G84: -3.000813764 | H84: -0.9539136059 | J84: 95.39074004 | K84: -3.000958601 | L84: -0.9539074004 | N84: -0.0006205501721 | O84: -0.0001448370959 | P84: 6.205501721e-06
E85: 0.924 | F85: 98.29770697 | G85: -1.837282786 | H85: -0.9829770697 | J85: 98.29725845 | K85: -1.837436 | L85: -0.9829725845 | N85: -0.0004485250372 | O85: -0.0001532140494 | P85: 4.485250372e-06
E86: 0.936 | F86: 99.79026415 | G86: -0.647326669 | H86: -0.9979026415 | J86: 99.78999886 | K86: -0.6474861958 | L86: -0.9978999886 | N86: -0.0002652848576 | O86: -0.0001595268351 | P86: 2.652848576e-06
E87: 0.948 | F87: 99.84756506 | G87: 0.5519397715 | H87: -0.9984756506 | J87: 99.84749173 | K87: 0.5517761449 | L87: -0.9984749173 | N87: -7.33324265e-05 | O87: -0.0001636266238 | P87: 7.333242651e-07
E88: 0.96 | F88: 98.46878558 | G88: 1.743267812 | H88: -0.9846878558 | J88: 98.46891021 | K88: 1.743102417 | L88: -0.9846891021 | N88: 0.0001246337286 | O88: -0.0001653952439 | P88: -1.246337286e-06
E89: 0.972 | F89: 95.67375631 | G89: 2.909522906 | H89: -0.9567375631 | J89: 95.67408207 | K89: 2.909358158 | L89: -0.9567408207 | N89: 0.0003257572628 | O89: -0.0001647477329 | P89: -3.257572628e-06
E90: 0.984 | F90: 91.5026774 | G90: 4.033931122 | H90: -0.915026774 | J90: 91.50320446 | K90: 4.033769487 | L90: -0.9150320446 | N90: 0.0005270652258 | O90: -0.000161634415 | P90: -5.270652258e-06
E91: 0.996 | F91: 86.01554034 | G91: 5.100320402 | H91: -0.8601554034 | J91: 86.01626585 | K91: 5.10016436 | L91: -0.8601626585 | N91: 0.0007255119754 | O91: -0.0001560424644 | P91: -7.255119754e-06
E92: 1.008 | F92: 79.29126513 | G92: 6.093353161 | H92: -0.7929126513 | J92: 79.29218316 | K92: 6.093205164 | L92: -0.7929218316 | N92: 0.0009180251436 | O92: -0.0001479969181 | P92: -9.180251436e-06
E93: 1.02 | F93: 71.4265652 | G93: 6.998746876 | H93: -0.714265652 | J93: 71.42766676 | K93: 6.998609315 | L93: -0.7142766676 | N93: 0.001101552963 | O93: -0.0001375611126 | P93: -1.101552963e-05
E94: 1.032 | F94: 62.53455639 | G94: 7.803479517 | H94: -0.6253455639 | J94: 62.53582951 | K94: 7.80335468 | L94: -0.6253582951 | N94: 0.001273112229 | O94: -0.0001248365261 | P94: -1.273112229e-05
E95: 1.044 | F95: 52.74313005 | G95: 8.495976832 | H95: -0.5274313005 | J95: 52.74455989 | K95: 8.495866869 | L95: -0.5274455989 | N95: 0.001429836148 | O95: -0.0001099620184 | P95: -1.429836148e-05
E96: 1.056 | F96: 42.1931136 | G96: 9.06627882 | H96: -0.421931136 | J96: 42.19468262 | K96: 9.066185708 | L96: -0.4219468262 | N96: 0.001569021312 | O96: -9.311246862e-05 | P96: -1.569021312e-05
E97: 1.068 | F97: 31.03624506 | G97: 9.506182984 | H97: -0.3103624506 | J97: 31.03793324 | K97: 9.506108487 | L97: -0.3103793324 | N97: 0.001688173042 | O97: -7.449682189e-05 | P97: -1.688173042e-05
E98: 1.08 | F98: 19.43299065 | G98: 9.809362301 | H98: -0.1943299065 | J98: 19.43477569 | K98: 9.809307945 | L98: -0.1943477569 | N98: 0.001785048362 | O98: -5.435556437e-05 | P98: -1.785048362e-05
E99: 1.092 | F99: 7.550236802 | G99: 9.971456225 | H99: -0.07550236802 | J99: 7.552094498 | K99: 9.971423267 | L99: -0.07552094498 | N99: 0.001857695863 | O99: -3.295765642e-05 | P99: -1.857695863e-05
E100: 1.104 | F100: -4.441110045 | G100: 9.990133403 | H100: 0.04441110045 | J100: -4.439205554 | K100: 9.990122806 | L100: 0.04439205554 | N100: 0.001904491801 | O100: -1.059696238e-05 | P100: -1.904491801e-05
E101: 1.116 | F101: -16.36858161 | G101: 9.865125207 | H101: 0.1636858161 | J101: -16.36665744 | K101: 9.865137619 | L101: 0.1636665744 | N101: 0.001924171777 | O101: 1.241177615e-05 | P101: -1.924171777e-05
E102: 1.128 | F102: -28.06062832 | G102: 9.598229596 | H102: 0.2806062832 | J102: -28.05871246 | K102: 9.598265334 | L102: 0.2805871246 | N102: 0.001915857424 | O102: 3.573736847e-05 | P102: -1.915857424e-05
E103: 1.14 | F103: -39.34908663 | G103: 9.193285257 | H103: 0.3934908663 | J103: -39.34720756 | K103: 9.193344294 | L103: 0.3934720756 | N103: 0.001879077609 | O103: 5.903694185e-05 | P103: -1.879077609e-05
E104: 1.152 | F104: -50.07159773 | G104: 8.656116393 | H104: 0.5007159773 | J104: -50.06978394 | K104: 8.656198354 | L104: 0.5006978394 | N104: 0.001813783696 | O104: 8.196097938e-05 | P104: -1.813783696e-05
E105: 1.164 | F105: -60.07394263 | G105: 7.994448959 | H105: 0.6007394263 | J105: -60.07222228 | K105: 7.994553118 | L105: 0.6007222228 | N105: 0.001720358564 | O105: 0.000104158554 | P105: -1.720358564e-05
E106: 1.176 | F106: =-($C$25^2)*H106 -> -69.21226035 | G106: =-$C$31*$C$25*SIN($C$25*E106+$C$32) -> 7.217799538 | H106: =$C$31*COS($C$25*E106+$C$32) -> 0.6921226035 | J106: -69.21066073 | K106: 7.217924821 | L106: 0.6921066073 | N106: 0.00159961909 | O106: 0.0001252826811 | P106: -1.59961909e-05
E107: 1.188 | F107: -77.35511692 | G107: 6.337338468 | H107: 0.7735511692 | J107: -77.35366411 | K107: 6.337483464 | L107: 0.7735366411 | N107: 0.001452811985 | O107: 0.0001449957077 | P107: -1.452811985e-05
E108: 1.2 | F108: -84.38539587 | G108: 5.36572918 | H108: 0.8438539587 | J108: -84.38411427 | K108: 5.365892155 | L108: 0.8438411427 | N108: 0.001281602906 | O108: 0.0001629746556 | P108: -1.281602906e-05
E109: 1.212 | F109: -90.2019826 | G109: 4.316946067 | H109: 0.902019826 | J109: -90.20089454 | K109: 4.317124984 | L109: 0.9020089454 | N109: 0.001088058907 | O109: 0.0001789164336 | P109: -1.088058907e-05
E110: 1.224 | F110: -94.72121872 | G110: 3.206073492 | H110: 0.9472121872 | J110: -94.7203441 | K110: 3.206266035 | L110: 0.947203441 | N110: 0.0008746244041 | O110: 0.0001925428377 | P110: -8.746244041e-06
E111: 1.236 | F111: -97.87810529 | G111: 2.049088833 | H111: 0.9787810529 | J111: -97.8774612 | K111: 2.049292438 | L111: 0.978774612 | N111: 0.0006440908915 | O111: 0.0002036052552 | P111: -6.440908915e-06
E112: 1.248 | F112: -99.62723767 | G112: 0.8626326863 | H112: 0.9962723767 | J112: -99.6268381 | K112: 0.8628445753 | L112: 0.996268381 | N112: 0.0003995607972 | O112: 0.0002118889979 | P112: -3.995607972e-06
E113: 1.26 | F113: -99.94345855 | G113: -0.3362304722 | H113: 0.9994345855 | J113: -99.94331414 | K113: -0.336013255 | L113: 0.9994331414 | N113: 0.0001444059287 | O113: 0.0002172171889 | P113: -1.444059287e-06
E114: 1.272 | F114: -98.82221983 | G114: -1.530257719 | H114: 0.9882221983 | J114: -98.8223376 | K114: -1.530038265 | L114: 0.988223376 | N114: -0.0001177789349 | O114: 0.0002194541372 | P114: 1.177789349e-06
E115: 1.284 | F115: -96.27964796 | G115: -2.702275685 | H115: 0.9627964796 | J115: -96.28003119 | K115: -2.702057177 | L115: 0.9628003119 | N115: -0.0003832266657 | O115: 0.0002185081388 | P115: 3.832266658e-06
E116: 1.296 | F116: -92.35231209 | G116: -3.835427554 | H116: 0.9235231209 | J116: -92.35296014 | K116: -3.83521322 | L116: 0.9235296014 | N116: -0.0006480519143 | O116: 0.0002143336515 | P116: 6.480519143e-06
E117: 1.308 | F117: -87.096698 | G117: -4.913415511 | H117: 0.87096698 | J117: -87.0976063 | K117: -4.913208578 | L117: 0.870976063 | N117: -0.0009083079619 | O117: 0.0002069328008 | P117: 9.083079619e-06
E118: 1.32 | F118: -80.58839576 | G118: -5.920735147 | H118: 0.8058839576 | J118: -80.58955581 | K118: -5.920538791 | L118: 0.8058955581 | N118: -0.001160045467 | O118: 0.0001963561827 | P118: 1.160045467e-05
E119: 1.332 | F119: -72.92101253 | G119: -6.842898458 | H119: 0.7292101253 | J119: -72.9224119 | K119: -6.842715756 | L119: 0.729224119 | N119: -0.001399372234 | O119: 0.0001827029383 | P119: 1.399372234e-05
E120: 1.344 | F120: -64.20482619 | G120: -7.666642221 | H120: 0.6420482619 | J120: -64.2064487 | K120: -7.666476101 | L120: 0.642064487 | N120: -0.001622513097 | O120: 0.0001661200911 | P120: 1.622513097e-05
E121: 1.356 | F121: -54.56519928 | G121: -8.380118751 | H121: 0.5456519928 | J121: -54.56702515 | K121: -8.37997195 | L121: 0.5456702515 | N121: -0.001825869006 | O121: 0.0001468011409 | P121: 1.825869006e-05
E122: 1.368 | F122: -44.14077593 | G122: -8.97306631 | H122: 0.4414077593 | J122: -44.142782 | K122: -8.972941326 | L122: 0.44142782 | N122: -0.002006074399 | O122: 0.000124983929 | P122: 2.006074399e-05
E123: 1.38 | F123: -33.08148779 | G123: -9.436956694 | H123: 0.3308148779 | J123: -33.08364785 | K123: -9.436855747 | L123: 0.3308364785 | N123: -0.002160051942 | O123: 0.0001009477926 | P123: 2.160051942e-05
E124: 1.392 | F124: -21.54639761 | G124: -9.765117895 | H124: 0.2154639761 | J124: -21.54868267 | K124: -9.765042885 | L124: 0.2154868267 | N124: -0.002285063779 | O124: 7.501004256e-05 | P124: 2.285063779e-05
E125: 1.404 | F125: -9.701411442 | G125: -9.952830058 | H125: 0.09701411442 | J125: -9.703790201 | K125: -9.952782536 | L125: 0.09703790201 | N125: -0.002378758426 | O125: 4.752180829e-05 | P125: 2.378758426e-05
E126: 1.416 | F126: 2.28310749 | G126: -9.99739337 | H126: -0.0228310749 | J126: 2.280668277 | K126: -9.997374507 | L126: -0.02280668277 | N126: -0.002439212562 | O126: 1.886330273e-05 | P126: 2.439212562e-05
E127: 1.428 | F127: 14.23478911 | G127: -9.89816689 | H127: -0.1423478911 | J127: 14.23232414 | K127: -9.898177452 | L127: -0.1423232414 | N127: -0.002464966966 | O127: -1.056142831e-05 | P127: 2.464966966e-05
E128: 1.44 | F128: 25.98173562 | G128: -9.656577765 | H128: -0.2598173562 | J128: 25.97928057 | K128: -9.656618096 | L128: -0.2597928057 | N128: -0.002455055988 | O128: -4.033020036e-05 | P128: 2.455055988e-05
E129: 1.452 | F129: 37.35499389 | G129: -9.276100706 | H129: -0.3735499389 | J129: 37.35258486 | K129: -9.276170715 | L129: -0.3735258486 | N129: -0.002409029999 | O129: -7.000874766e-05 | P129: 2.409029999e-05
E130: 1.464 | F130: 48.19098543 | G130: -8.762208011 | H130: -0.4819098543 | J130: 48.18865846 | K130: -8.762307168 | L130: -0.4818865846 | N130: -0.002326970375 | O130: -9.915705707e-05 | P130: 2.326970375e-05
E131: 1.476 | F131: 58.33385913 | G131: -8.122290859 | H131: -0.5833385913 | J131: 58.33164963 | K131: -8.122418195 | L131: -0.5833164963 | N131: -0.002209496678 | O131: -0.0001273358857 | P131: 2.209496678e-05
E132: 1.488 | F132: 67.63773277 | G132: -7.365553004 | H132: -0.6763773277 | J132: 67.63567501 | K132: -7.365707117 | L132: -0.6763567501 | N132: -0.002057765805 | O132: -0.0001541133666 | P132: 2.057765805e-05
E133: 1.5 | F133: 75.96879129 | G133: -6.502878402 | H133: -0.7596879129 | J133: 75.96691782 | K133: -6.503057473 | L133: -0.7596691782 | N133: -0.001873463017 | O133: -0.0001790716017 | P133: 1.873463017e-05
E134: 1.512 | F134: 83.20721132 | G134: -5.546674666 | H134: -0.8320721132 | J134: 83.20555253 | K134: -5.546876479 | L134: -0.8320555253 | N134: -0.001658784844 | O134: -0.0002018131445 | P134: 1.658784844e-05
E135: 1.524 | F135: 89.24888463 | G135: -4.510694616 | H135: -0.8924888463 | J135: 89.24746822 | K135: -4.510916583 | L135: -0.8924746822 | N135: -0.001416414027 | O135: -0.0002219672692 | P135: 1.416414027e-05
E136: 1.536 | F136: 94.00691549 | G136: -3.40983847 | H136: -0.9400691549 | J136: 94.00576601 | K136: -3.410077666 | L136: -0.9400576601 | N136: -0.001149486759 | O136: -0.0002391959306 | P136: 1.149486759e-05
E137: =E136+$C$8 -> 1.548 | F137: 97.41287043 | G137: -2.259939545 | H137: -0.9741287043 | J137: 97.41200888 | K137: -2.260192744 | L137: -0.9741200888 | N137: -0.0008615526055 | O137: -0.0002531993193 | P137: 8.615526055e-06
E138: 1.56 | F138: 99.41776252 | G138: -1.077536523 | H138: -0.9941776252 | J138: 99.41720599 | K138: -1.077800244 | L138: -0.9941720599 | N138: -0.0005565276189 | O138: -0.0002637209213 | P138: 5.565276189e-06
E139: 1.572 | F139: 99.99275594 | G139: 0.120364414 | H139: -0.9999275594 | J139: 99.9925173 | K139: 0.120093862 | L139: -0.999925173 | N139: -0.0002386412536 | O139: -0.0002705520003 | P139: 2.386412536e-06
E140: 1.584 | F140: 99.12958072 | G140: 1.316534182 | H140: -0.9912958072 | J140: 99.12966835 | K140: 1.316260647 | L140: -0.9912966835 | N140: 8.762219761e-05 | O140: -0.0002735354256 | P140: -8.762219761e-07
E141: 1.596 | F141: 96.84065168 | G141: 2.493768597 | H141: -0.9684065168 | J141: 96.84106927 | K141: 2.493496028 | L141: -0.9684106927 | N141: 0.0004175868375 | O141: -0.0002725687789 | P141: -4.175868375e-06
E142: 1.608 | F142: 93.15888986 | G142: 3.635135816 | H142: -0.9315888986 | J142: 93.15963631 | K142: 3.634868209 | L142: -0.9315963631 | N142: =J142-F142 -> 0.0007464521772 | O142: =K142-G142 -> -0.0002676066831 | P142: =L142-H142 -> -7.464521772e-06
E143: 1.62 | F143: 88.13724904 | G143: 4.724219864 | H143: -0.8813724904 | J143: 88.1383184 | K143: 4.723961202 | L143: -0.881383184 | N143: 0.001069362966 | O143: -0.0002586623076 | P143: -1.069362966e-05
E144: 1.632 | F144: 81.84795411 | G144: 5.745356741 | H144: -0.8184795411 | J144: 81.84933559 | K144: 5.745110933 | L144: -0.8184933559 | N144: 0.001381480827 | O144: -0.0002458080161 | P144: -1.381480827e-05
E145: 1.644 | F145: 74.38146229 | G145: 6.683859714 | H145: -0.7438146229 | J145: 74.38314035 | K145: 6.683630539 | L145: -0.7438314035 | N145: 0.001678056634 | O145: -0.0002291751353 | P145: -1.678056634e-05
E146: 1.656 | F146: 65.84516212 | G146: 7.526230548 | H146: -0.6584516212 | J146: 65.84711662 | K146: 7.526021595 | L146: -0.6584711662 | N146: 0.001954502558 | O146: -0.0002089528359 | P146: -1.954502558e-05
E147: 1.668 | F147: 56.36182886 | G147: 8.260353653 | H147: -0.5636182886 | J147: 56.36403533 | K147: 8.260168267 | L147: -0.5636403533 | N147: 0.002206462691 | O147: -0.0001853861323 | P147: -2.206462691e-05
E148: 1.68 | F148: 46.06785874 | G148: 8.875670336 | H148: -0.4606785874 | J148: 46.07028862 | K148: 8.875511563 | L148: -0.4607028862 | N148: 0.002429881151 | O148: -0.0001587730175 | P148: -2.429881151e-05
E149: 1.692 | F149: 35.11130712 | G149: 9.363330664 | H149: -0.3511130712 | J149: 35.11392819 | K149: 9.363201203 | L149: -0.3511392819 | N149: 0.00262106664 | O149: -0.0001294607663 | P149: -2.62106664e-05
E150: 1.704 | F150: 23.64975911 | G150: 9.716320751 | H150: -0.2364975911 | J150: 23.65253587 | K150: 9.71622291 | L150: -0.2365253587 | N150: 0.002776752402 | O150: -9.784145118e-05 | P150: -2.776752402e-05
E151: 1.716 | F151: 11.84806305 | G151: 9.929563637 | H151: -0.1184806305 | J151: 11.8509572 | K151: 9.92949929 | L151: -0.118509572 | N151: 0.002894150646 | O151: -6.434672786e-05 | P151: -2.894150646e-05
E152: 1.728 | F152: -0.1240404938 | G152: 9.999992307 | H152: 0.001240404938 | J152: -0.1210694933 | K152: 9.999962865 | L152: 0.001210694933 | N152: 0.00297100053 | O152: -2.944195909e-05 | P152: -2.97100053e-05
E153: 1.74 | F153: -12.09435999 | G153: 9.926593805 | H153: 0.1209435999 | J153: -12.09135438 | K153: 9.926600185 | L153: 0.1209135438 | N153: 0.003005608915 | O153: 6.380242709e-06 | P153: -3.005608915e-05
E154: 1.752 | F154: -23.8907296 | G154: 9.710423801 | H154: 0.238907296 | J154: -23.88773272 | K154: 9.710466408 | L154: 0.2388773272 | N154: 0.002996883168 | O154: 4.26069652e-05 | P154: -2.996883168e-05
E155: 1.764 | F155: -35.34348533 | G155: 9.35459141 | H155: 0.3534348533 | J155: -35.34054098 | K155: 9.354670122 | L155: 0.3534054098 | N155: 0.00294435543 | O155: 7.871234003e-05 | P155: -2.94435543e-05
E156: 1.776 | F156: -46.28790532 | G156: 8.864214472 | H156: 0.4628790532 | J156: -46.28505712 | K156: 8.864328638 | L156: 0.4628505712 | N156: 0.002848197886 | O156: 0.0001141651756 | P156: -2.848197886e-05
E157: 1.788 | F157: -56.56657894 | G157: 8.246345947 | H157: 0.5656657894 | J157: -56.56386971 | K157: 8.246494383 | L157: 0.5656386971 | N157: 0.002709228673 | O157: 0.0001484367685 | P157: -2.709228673e-05
E158: 1.8 | F158: -66.03167082 | G158: 7.509872468 | H158: 0.6603167082 | J158: -66.02914192 | K158: 7.510053476 | L158: 0.6602914192 | N158: 0.002528908239 | O158: 0.0001810087775 | P158: -2.528908239e-05
E159: 1.812 | F159: -74.54704713 | G159: 6.665386534 | H159: 0.7454704713 | J159: -74.5447378 | K159: 6.665597915 | L159: 0.745447378 | N159: 0.002309326079 | O159: 0.0002113810449 | P159: -2.309326079e-05
E160: 1.824 | F160: -81.99023351 | G160: 5.725034156 | H160: 0.8199023351 | J160: -81.98818033 | K160: 5.725273235 | L160: 0.8198818033 | N160: 0.002053177933 | O160: 0.0002390792453 | P160: -2.053177933e-05
E161: 1.836 | F161: -88.25417664 | G161: 4.702340168 | H161: 0.8825417664 | J161: -88.25241291 | K161: 4.70260383 | L161: 0.8825241291 | N161: 0.001763733665 | O161: 0.0002636622475 | P161: -1.763733665e-05
E162: 1.848 | F162: -93.24878393 | G162: 3.612013698 | H162: 0.9324878393 | J162: -93.24733913 | K162: 3.612298427 | L162: 0.9324733913 | N162: 0.001444796188 | O162: 0.0002847290736 | P162: -1.444796188e-05
E163: 1.86 | F163: -96.90221929 | G163: 2.469736617 | H163: 0.9690221929 | J163: -96.90111864 | K163: 2.470038543 | L163: 0.9690111864 | N163: 0.001100651952 | O163: 0.0003019253484 | P163: -1.100651952e-05
E164: 1.872 | F164: -99.16193637 | G164: 1.291937986 | H164: 0.9916193637 | J164: -99.16120035 | K164: 1.292252935 | L164: 0.9916120035 | N164: 0.000736013615 | O164: 0.0003149491346 | P164: -7.36013615e-06
E165: 1.884 | F165: -99.99543425 | G165: 0.09555776105 | H165: 0.9999543425 | J165: -99.9950783 | K165: 0.09588131711 | L165: 0.999950783 | N165: 0.0003559556738 | O165: 0.0003235560618 | P165: -3.559556738e-06
E166: 1.896 | F166: -99.39072498 | G166: -1.102196845 | H166: 0.9939072498 | J166: -99.39075913 | K166: -1.101869281 | L166: 0.9939075913 | N166: -3.415607809e-05 | O166: 0.000327563661 | P166: 3.415607809e-07
E167: 1.908 | F167: -97.35650591 | G167: -2.284098853 | H167: 0.9735650591 | J167: -97.35693465 | K167: -2.283771998 | L167: 0.9735693465 | N167: -0.0004287402785 | O167: 0.0003268548333 | P167: 4.287402785e-06
E168: 1.92 | F168: -93.92203467 | G168: -3.433149288 | H168: 0.9392203467 | J168: -93.92285675 | K168: -3.432827908 | L168: 0.9392285675 | N168: -0.0008220798476 | O168: 0.0003213803892 | P168: 8.220798476e-06
E169: 1.932 | F169: -89.13670832 | G169: -4.53282167 | H169: 0.8913670832 | J169: -89.13791673 | K169: -4.532510509 | L169: 0.8913791673 | N169: -0.001208404818 | O169: 0.0003111606102 | P169: 1.208404818e-05
E170: 1.944 | F170: =-($C$25^2)*H170 -> -83.06935292 | G170: =-$C$31*$C$25*SIN($C$25*E170+$C$32) -> -5.567299709 | H170: =$C$31*COS($C$25*E170+$C$32) -> 0.8306935292 | J170: -83.0709349 | K170: -5.567003423 | L170: 0.830709349 | N170: -0.001581976944 | O170: 0.000296285798 | P170: 1.581976944e-05
E171: 1.956 | F171: -75.80723359 | G171: -6.521704789 | H171: 0.7580723359 | J171: -75.80917076 | K171: -6.521427873 | L171: 0.7580917076 | N171: -0.001937174845 | O171: 0.0002769157907 | P171: 1.937174845e-05
E172: 1.968 | F172: -67.45479941 | G172: -7.382309961 | H172: 0.6745479941 | J172: -67.45706799 | K172: -7.382056683 | L172: 0.6745706799 | N172: -0.002268578433 | O172: 0.0002532784421 | P172: 2.268578433e-05
E173: 1.98 | F173: -58.13218118 | G173: -8.136737375 | H173: 0.5813218118 | J173: -58.13475223 | K173: -8.136511708 | L173: 0.5813475223 | N173: -0.002571051344 | O173: 0.0002256670747 | P173: 2.571051344e-05
E174: 1.992 | F174: -47.97346358 | G174: -8.774136306 | H174: 0.4797346358 | J174: -47.97630341 | K174: -8.773941869 | L174: 0.4797630341 | N174: -0.002839820136 | O174: 0.0001944369314 | P174: 2.839820136e-05
E175: 2.004 | F175: -37.1247567 | G175: -9.285339218 | H175: 0.371247567 | J175: -37.12782725 | K175: -9.285179218 | L175: 0.3712782725 | N175: -0.003070549023 | O175: 0.0001600006686 | P175: 3.070549023e-05
E176: 2.016 | F176: -25.74209452 | G176: -9.66299362 | H176: 0.2574209452 | J176: -25.74535393 | K176: -9.662870797 | L176: 0.2574535393 | N176: -0.003259409003 | O176: 0.0001228229466 | P176: 3.259409003e-05
E177: 2.028 | F177: -13.98919079 | G177: -9.90166781 | H177: 0.1398919079 | J177: -13.99259393 | K177: -9.901584395 | L177: 0.1399259393 | N177: -0.003403140271 | O177: 8.341418651e-05 | P177: 3.403140271e-05
E178: 2.04 | F178: -2.035084333 | G178: -9.997929001 | H178: 0.02035084333 | J178: -2.03858344 | K178: -9.997886678 | L178: 0.0203858344 | N178: -0.003499106916 | O178: 4.232357904e-05 | P178: 3.499106916e-05
E179: 2.052 | F179: 9.94829219 | G179: -9.950392697 | H179: -0.0994829219 | J179: 9.944746847 | K179: -9.950392566 | L179: -0.09944746847 | N179: -0.003545343018 | O179: 1.314385258e-07 | P179: 3.545343018e-05
E180: 2.064 | F180: 21.78858513 | G180: -9.759742598 | H180: -0.2178858513 | J180: 21.78504454 | K180: -9.759785157 | L180: -0.2178504454 | N180: -0.003540589343 | O180: -4.255898977e-05 | P180: 3.540589343e-05
E181: 2.076 | F181: 33.31549877 | G181: -9.428720773 | H181: -0.3331549877 | J181: 33.31201445 | K181: -9.428805903 | L181: -0.3331201445 | N181: -0.003484319999 | O181: -8.513015431e-05 | P181: 3.484319999e-05
E182: 2.088 | F182: 44.36324464 | G182: -8.962088219 | H182: -0.4436324464 | J182: 44.35986788 | K182: -8.962215178 | L182: -0.4435986788 | N182: -0.003376758552 | O182: -0.0001269591304 | P182: 3.376758552e-05
E183: 2.1 | F183: 54.77292602 | G183: -8.366556385 | H183: -0.5477292602 | J183: 54.76970714 | K183: -8.366723812 | L183: -0.5476970714 | N183: -0.003218883231 | O183: -0.0001674267325 | P183: 3.218883231e-05
E184: 2.112 | F184: 64.39482329 | G184: -7.650690644 | H184: -0.6439482329 | J184: 64.39181087 | K184: -7.650896571 | L184: -0.6439181087 | N184: -0.003012421041 | O184: -0.0002059266725 | P184: 3.012421041e-05
E185: 2.124 | F185: 73.09054731 | G185: -6.824787099 | H185: -0.7309054731 | J185: 73.08778748 | K185: -6.825028973 | L185: -0.7308778748 | N185: -0.002759830744 | O185: -0.0002418746285 | P185: 2.759830744e-05
E186: 2.136 | F186: 80.73502985 | G186: -5.900724494 | H186: -0.8073502985 | J186: 80.73256557 | K186: -5.900999211 | L186: -0.8073256557 | N186: -0.002464274836 | O186: -0.0002747170893 | P186: 2.464274836e-05
E187: 2.148 | F187: 87.21832239 | G187: -4.891793373 | H187: -0.8721832239 | J187: 87.2161928 | K187: -4.892097313 | L187: -0.872161928 | N187: -0.002129580836 | O187: -0.0003039398396 | P187: 2.129580836e-05
E188: 2.16 | F188: 92.44717749 | G188: -3.812504917 | H188: -0.9244717749 | J188: 92.4454173 | K188: -3.812833993 | L188: -0.924454173 | N188: -0.00176019232 | O188: -0.0003290759582 | P188: 1.76019232e-05
E189: 2.172 | F189: 96.34638996 | G189: -2.678382238 | H189: -0.9634638996 | J189: 96.34502885 | K189: -2.678731951 | L189: -0.9634502885 | N189: -0.001361110334 | O189: -0.0003497132035 | P189: 1.361110334e-05
E190: 2.184 | F190: 98.85987848 | G190: -1.505737115 | H190: -0.9885987848 | J190: 98.85894066 | K190: -1.506102616 | L190: -0.9885894066 | N190: -0.0009378259542 | O190: -0.0003655006728 | P190: 9.378259542e-06
E191: 2.196 | F191: 99.95149224 | G191: -0.3114353847 | H191: -0.9995149224 | J191: 99.95099599 | K191: -0.3118115394 | L191: -0.9995099599 | N191: -0.0004962448846 | O191: -0.0003761546267 | P191: 4.962448846e-06
E192: 2.208 | F192: 99.60553083 | G192: 0.8873456363 | H192: -0.9960553083 | J192: 99.60548823 | K192: 0.8869641729 | L192: -0.9960548823 | N192: -4.260514108e-05 | O192: -0.000381463385 | P192: 4.260514107e-07
E193: 2.22 | F193: 97.82697014 | G193: 2.073364206 | H193: -0.9782697014 | J193: 97.82738675 | K193: 2.072982915 | L193: -0.9782738675 | N193: 0.0004166110424 | O193: -0.0003812912124 | P193: -4.166110424e-06
E194: 2.232 | F194: 94.64139072 | G194: 3.229562142 | H194: -0.9464139072 | J194: 94.64226549 | K194: 3.229186561 | L194: -0.9464226549 | N194: 0.0008747698365 | O194: -0.0003755811242 | P194: -8.747698365e-06
E195: 2.244 | F195: 90.09460989 | G195: 4.339310163 | H195: -0.9009460989 | J195: 90.09593507 | K195: 4.338945806 | L195: -0.9009593507 | N195: 0.001325181647 | O195: -0.0003643565614 | P195: -1.325181647e-05
E196: 2.256 | F196: 84.25202276 | G196: 5.386647065 | H196: -0.8425202276 | J196: 84.25378396 | K196: 5.386299343 | L196: -0.8425378396 | N196: 0.001761198769 | O196: -0.0003477218977 | P196: -1.761198769e-05
E197: 2.268 | F197: 77.19766169 | G197: 6.356509286 | H197: -0.7719766169 | J197: 77.199838 | K197: 6.356183424 | L197: -0.77199838 | N197: 0.002176313436 | O197: -0.000325861759 | P197: -2.176313436e-05
E198: 2.28 | F198: 69.03298762 | G198: 7.23494756 | H198: -0.6903298762 | J198: 69.03555187 | K198: 7.234648521 | L198: -0.6903555187 | N198: 0.002564254822 | O198: -0.0002990391534 | P198: -2.564254822e-05
E199: 2.292 | F199: 59.87543085 | G199: 8.00932755 | H199: -0.5987543085 | J199: 59.87834993 | K199: 8.009059958 | L199: -0.5987834993 | N199: 0.002919083559 | O199: -0.0002675924282 | P199: -2.919083559e-05
E200: 2.304 | F200: 49.85670202 | G200: 8.668511558 | H200: -0.4985670202 | J200: 49.8599373 | K200: 8.668279627 | L200: -0.498599373 | N200: 0.003235282326 | O200: -0.0002319310852 | P200: -3.235282326e-05
... 308 more rows

Sheet 単振動＋外力
A1: 振動の運動方程式
A2: mx''+cx'+kx=-sign(x')μ'mg+fsinΩt | F2: 単振動 | J2: マクロで計算➡ | L2: =exe("ルンゲ･クッタ･ギル法","ForcedOscillation",C8:C18,J8:L8) -> ルンゲ･クッタ･ギル法
A3: x''=-(c/m)x'-(k/m)x-sign(x')(μ'g)+(f/m)sinΩt | J3: マクロは標準モジュール-Module6 の中。 実行させるには =exe(･･･ と先頭に＝を付加する。
A4: ダンパ＋バネ＋動摩擦＋外力 | G4: 解析解 | K4: 数値積分 | O4: 理論値との差
E5: 時間 | F5: 加速度 | G5: 速度 | H5: 変位 | J5: 加速度 | K5: 速度 | L5: 変位 | N5: 加速度 | O5: 速度 | P5: 変位
E6: t | F6: 理論値x'' | G6: 理論値x' | H6: 理論値x | J6: x'' | K6: x' | L6: x | N6: x'' | O6: x' | P6: x
E7: [s] | F7: [m/s^2] | G7: [m/s] | H7: [m] | J7: [m/s^2] | K7: [m/s] | L7: [m] | N7: [m/s^2] | O7: [m/s] | P7: [m]
A8: 時間間隔 | B8: Δt | C8: =C9/500 -> 0.012 | D8: [s] | E8: 0 | F8: =-($C$25^2)*H8-$C$34*$C$16^2*SIN($C$16*E8+$C$35) -> -100 | G8: =-$C$31*$C$25*SIN($C$25*E8+$C$32)+$C$34*$C$16*COS($C$16*E8+$C$35) -> 2400 | H8: =$C$31*COS($C$25*E8+$C$32)+$C$34*SIN($C$16*E8+$C$35) -> 1 | J8: -100 | K8: 0 | L8: 1 | N8: =J8-F8 -> 0 | O8: =K8-G8 -> -2400 | P8: 0
A9: 終了時間 | B9: TL | C9: 6 | D9: [s] | E9: =E8+$C$8 -> 0.012 | F9: -28281.21953 | G9: 2244.955255 | H9: 29.1747473 | J9: -95.76671509 | K9: -1.17577793 | L9: 0.9928945742 | N9: =J9-F9 -> 28185.45281 | O9: -2246.131033 | P9: -28.18185272
A10: 重力加速度 | B10: g | C10: 9.8 | D10: [m/s^2] | E10: 0.024 | F10: -52847.90756 | G10: 1801.956724 | H10: 53.72211173 | J10: -90.60713986 | K10: -2.294697146 | L10: 0.9720098658 | N10: 52757.30042 | O10: -1804.251421 | P10: -52.75010187
A11: 質量 | B11: m | C11: 10 | D11: [kg] | E11: 0.036 | F11: -70650.21423 | G11: 1127.665332 | H11: 71.49252137 | J11: -84.98874133 | K11: -3.348522351 | L11: 0.938083194 | N11: 70565.22549 | O11: -1131.013854 | P11: -70.55443818
A12: 粘性係数 | B12: c | C12: 0 | D12: [Ns/m] | E12: 0.048 | F12: -79405.36735 | G12: 308.3991092 | H12: 80.20366278 | J12: -79.27733457 | K12: -4.334068627 | L12: 0.8919191805 | N12: 79326.09001 | O12: -312.7331778 | P12: -79.3117436
A13: バネ定数 | B13: k | C13: 1000 | D13: [N/m] | E13: 0.06 | F13: -77990.34403 | G13: -550.931452 | H13: 78.73314609 | J13: -73.69528156 | K13: -5.251712365 | L13: 0.8343375787 | N13: =J13-F13 -> 77916.64875 | O13: =K13-G13 -> 545.6797396 | P13: =L13-H13 -> -77.89880851
A14: 動摩擦係数 | B14: μ' | C14: 0 | D14: [ND] | E14: 0.072 | F14: -66585.85744 | G14: -1340.271798 | H14: 67.26248259 | J14: -68.30031639 | K14: -6.1035203 | L14: 0.76614151 | N14: =J14-F14 -> 66517.55712 | O14: 1334.168277 | P14: -66.49634108
A15: 強制力 | B15: f | C15: 100 | D15: [N] | E15: 0.084 | F15: -46653.19824 | G15: -1958.53132 | H15: 47.25391479 | J15: -62.98760602 | K15: -6.891262726 | L15: 0.6881091252 | N15: 46590.21064 | O15: 1951.640058 | P15: -46.56580566
A16: 強制力角速度 | B16: Ω | C16: 30 | D16: [rad/s] | E16: 0.096 | F16: -20746.89997 | G16: -2326.542265 | H16: 21.26306796 | J16: -57.5146464 | K16: -7.614590378 | L16: 0.601008399 | N16: 20689.38533 | O16: 2318.927675 | P16: -20.66205956
A17: 初期位置 | B17: x0 | C17: 1 | D17: [m] | E17: 0.108 | F17: 7812.754663 | G17: -2397.208146 | H17: -7.388559135 | J17: -51.54563725 | K17: -8.269631682 | L17: 0.5056315131 | N17: -7864.3003 | O17: 2388.938514 | P17: 7.894190649
A18: 初期速度 | B18: x'0 | C18: 0 | D18: [m/s] | E18: 0.12 | F18: 35365.39969 | G18: -2161.54059 | H18: -35.03927771 | J18: -44.70945538 | K18: -8.848211013 | L18: 0.4028425095 | N18: -35410.10914 | O18: 2152.692379 | P18: 35.44212022
E19: 0.132 | F19: 58379.85132 | G19: -1649.81068 | H19: -58.15649342 | J19: -36.66357935 | K19: -9.337806586 | L19: 0.2936299574 | N19: -58416.5149 | O19: 1640.472873 | P19: 58.45012337
B20: c/m | C20: =C12/C11 -> 0 | D20: [1/s] | E20: 0.144 | F20: 73906.81033 | G20: -927.667186 | H20: -73.78942899 | J20: -27.15553486 | K20: -9.722269058 | L20: 0.1791555328 | N20: -73933.96586 | O20: 917.9449169 | P20: 73.96858452
B21: k/m | C21: =C13/C11 -> 100 | D21: [1/s^2] | E21: 0.156 | F21: 79956.96221 | G21: -87.71937983 | H21: -79.94724571 | J21: -16.07373101 | K21: -9.983221456 | L21: 0.0607897578 | N21: -79973.03595 | O21: 77.73615837 | P21: 80.00803547
B22: μ'g | C22: =C14*C10 -> 0 | D22: [s^2/m] | E22: 0.168 | F22: 75756.00072 | G22: 762.3364382 | H22: -75.8540888 | J22: -3.480904293 | K22: -10.1019706 | L22: -0.05987233463 | N22: -75759.48163 | O22: -772.4384088 | P22: 75.79421647
B23: f/m | C23: =C15/C11 -> 10 | D23: [N/m] | E23: 0.18 | F23: 61843.87921 | G23: 1513.524426 | H23: -62.0483611 | J23: 10.3743926 | K23: -10.06169137 | L23: -0.1810203748 | N23: -61833.50482 | O23: -1523.586117 | P23: 61.86734072
A24: 振動中心 | B24: p＝mg/k | C24: =C11*C10/C13 -> 0.098 | D24: [m] | E24: 0.192 | F24: 40005.56561 | G24: 2069.560499 | H24: -40.3135003 | J24: 25.07001116 | K24: -9.849606795 | L24: -0.3006642999 | N24: -39980.4956 | O24: -2079.410106 | P24: 40.012836
A25: 固有角振動数 | B25: ω＝√(k/m) | C25: =SQRT(C13/C11) -> 10 | D25: ［rad/s］ | E25: 0.204 | F25: 13042.17883 | G25: 2359.19623 | H25: -13.44913738 | J25: 40.04485228 | K25: -9.458884224 | L25: -0.4166947243 | N25: -13002.13398 | O25: -2368.655114 | P25: 13.03244266
A26: 〝 | B26: 〝 | C26: =DEGREES(C25) -> 572.9577951 | D26: [deg/s] | E26: 0.216 | F26: -15588.15129 | G26: 2345.352792 | H26: 15.08802206 | J26: 54.65177487 | K26: -8.890000618 | L26: -0.5269630972 | N26: 15642.80307 | O26: -2354.242792 | P26: -15.61498516
A27: 減衰固有角振動数 | B27: ωd＝ω√(1-ζ^2) | C27: =C25*SQRT(1-C29^2) -> 10 | D27: ［rad/s］ | E27: 0.228 | F27: -42213.65623 | G27: 2029.873916 | H27: 41.62754953 | J27: 68.2222582 | K27: -8.15139504 | L27: -0.629374108 | N27: 42281.87849 | O27: -2038.025311 | P27: -42.25692364
A28: 〝 | B28: 〝 | C28: =DEGREES(C27) -> 572.9577951 | D28: [deg/s] | E28: 0.24 | F28: -63419.68974 | G28: 1453.288523 | H28: 62.75603539 | J28: 80.13479117 | K28: -7.259314319 | L28: -0.7219811253 | N28: 63499.82453 | O28: -1460.547837 | P28: -63.47801652
A29: 減衰比 | B29: ζ＝c/{2√(mk)} | C29: =C12/(2*SQRT(C11*C13)) -> 0 | D29: [ND] | E29: 0.252 | F29: -76486.52285 | G29: 689.6134729 | H29: 75.75486602 | J29: 89.87846969 | K29: -6.236858394 | L29: -0.8030749243 | N29: 76576.40132 | O29: -695.8503313 | P29: -76.55794094
A30: 減衰率 | B30: γ＝ζω | C30: =C29*C25 -> 0 | E30: 0.264 | F30: -79738.04454 | G30: -163.1372353 | H30: 78.94890843 | J30: 97.10387987 | K30: -5.112331458 | L30: -0.8712566408 | N30: 79835.14842 | O30: 158.0249038 | P30: -79.82016507
A31: 振幅 | B31: A | C31: =SQRT($C$17^2+($C$18/$C$25)^2) -> 1 | D31: [m] | E31: 0.276 | F31: -72756.6621 | G31: -995.5200032 | H31: 71.92139666 | J31: 101.6549538 | K31: -3.917091459 | L31: -0.9254877008 | N31: 72858.31705 | O31: 991.6029118 | P31: -72.84688436
A32: 初期位相 | B32: α | C32: =ATAN2($C$17,-$C$18/$C$25) -> 0 | D32: [rad] | E32: 0.288 | F32: -56436.84973 | G32: -1700.694661 | H32: 55.56746835 | J32: 103.5778996 | K32: -2.683152367 | L32: -0.9651121864 | N32: 56540.42763 | O32: 1698.011508 | P32: -56.53258053
A33: 〝 | B33: 〝 | C33: =DEGREES(C32) -> 0 | D33: [deg] | E33: 0.3 | F33: -32870.47957 | G33: -2188.123829 | H33: 31.97948632 | J33: 103.1062211 | K33: -1.440823301 | L33: -0.989850363 | N33: 32973.58579 | O33: 2186.683005 | P33: -32.96933669
A34: 強制振動振幅 | B34: B | C34: =(1/$C$11)*($C$16^2-$C$25^2) -> 80 | D34: [m] | E34: 0.312 | F34: -5078.636663 | G34: -2395.182249 | H34: 4.178846464 | J34: 100.6238767 | K34: -0.2166621021 | L34: -0.9997655006 | N34: 5179.26054 | O34: 2394.965587 | P34: -5.178611965
A35: 初期位相 | B35: β | C35: 0 | D35: [rad] | E35: 0.324 | F35: 23375.69944 | G35: -2295.187665 | H35: -24.27134515 | J35: 96.61140076 | K35: 0.9680207298 | L35: -0.9952092367 | N35: -23279.08803 | O35: 2296.155686 | P35: 23.27613591
A36: 〝 | B36: 〝 | C36: =DEGREES(C35) -> 0 | D36: [deg] | E36: 0.336 | F36: 48844.44966 | G36: -1900.823612 | H36: -49.72306906 | J36: 91.58196218 | K36: 2.097943384 | L36: -0.9767531534 | N36: -48752.8677 | O36: 1902.921556 | P36: 48.74631591
A37: A^2＝x0^2＋(x'0/ω)^2 | E37: 0.348 | F37: 68062.14311 | G37: -1262.515269 | H37: -68.91109925 | J37: 86.01559095 | K37: 3.163847264 | L37: -0.9451156779 | N37: -67976.12752 | O37: 1265.679117 | P37: 67.96598357
A38: α＝atan2(x0,－x'0/ω) | E38: 0.36 | F38: 78564.57425 | G38: -461.9665711 | H38: -79.37165682 | J38: 80.30000514 | K38: 4.161733636 | L38: -0.9010936744 | N38: -78484.27424 | O38: 466.1283047 | P38: 78.47056315
A39: B＝(1/m)/(Ω^2－ω^2) | E39: 0.372 | F39: 79004.7351 | G39: 398.3128692 | H39: -79.75833606 | J39: 74.68559066 | K39: 5.091468336 | L39: -0.8455071587 | N39: -78930.04951 | O39: -393.2214009 | P39: 78.9128289
A40: β＝0 | E40: 0.384 | F40: 69325.51787 | G40: 1208.148333 | H40: -70.01479838 | J40: 69.26023827 | K40: 5.954960839 | L40: -0.7791635466 | N40: -69256.25763 | O40: -1202.193372 | P40: 69.23563483
E41: 0.396 | F41: 50767.04622 | G41: 1863.82339 | H41: -51.38209255 | J41: 63.94716402 | K41: 6.754177614 | L41: -0.7028450249 | N41: -50703.09906 | O41: -1857.069212 | P41: 50.67924752
A42: 単振動解析解 | E42: 0.408 | F42: 25707.69528 | G42: 2281.375427 | H42: -26.23966137 | J42: 58.5258619 | K42: 7.489269482 | L42: -0.6173193539 | N42: -25649.16942 | O42: -2273.886157 | P42: 25.62234202
A43: x''+ω^2x=0 | C43: 運動方程式 | E43: 0.42 | F43: -2640.817696 | G43: 2407.358763 | H43: 2.199582956 | J43: 52.67334262 | K43: 8.157076395 | L43: -0.5233711214 | N43: 2693.491038 | O43: -2399.201687 | P43: -2.722954078
A44: x＝Acos{ωt＋α} | C44: 解析解 | E44: 0.432 | F44: -30645.18074 | G44: 2225.695472 | H44: 30.30102352 | J44: 46.02018495 | K44: 8.750222558 | L44: -0.4218475739 | N44: 30691.20093 | O44: -2216.945249 | P44: -30.72287109
A45: x'＝－Aωsin{ωt＋α} | E45: 0.444 | F45: -54716.28436 | G45: 1759.73561 | H45: 54.47415456 | J45: 38.21400292 | K45: 9.256936726 | L45: -0.3137110446 | N45: 54754.49836 | O45: -1750.478673 | P45: -54.78786561
A46: x''＝－ω^2x | E46: 0.456 | F46: -71769.35049 | G46: 1069.262735 | H46: 71.63273062 | J46: 28.98196029 | K46: 9.661636928 | L46: -0.2000889398 | N46: 71798.33245 | O46: -1059.601098 | P46: -71.83281956
E47: 0.468 | F47: -79619.40213 | G47: 242.8286298 | H47: 79.59025714 | J47: 18.18406819 | K47: 9.946217928 | L47: -0.08231238131 | N47: 79637.5862 | O47: -232.8824119 | P47: -79.67256953
A48: 強制振動成分 | E48: 0.48 | F48: -77261.37202 | G48: -613.6000088 | H48: 77.34012111 | J48: 5.850169472 | K48: 10.09188659 | L48: 0.03806408294 | N48: 77267.22219 | O48: 623.6918954 | P48: -77.30205702
A49: x2＝Bsin(Ωt＋β) | E49: 0.492 | F49: -64998.93915 | G49: -1390.227358 | H49: 65.18444968 | J49: -7.804405789 | K49: 10.0813168 | L49: 0.1592669665 | N49: 64991.13475 | O49: 1400.308675 | P49: -65.02518271
A50: x2'＝BΩcos(Ωt＋β) | E50: 0.504 | F50: =-($C$25^2)*H50-$C$34*$C$16^2*SIN($C$16*E50+$C$35) -> -44405.57553 | G50: =-$C$31*$C$25*SIN($C$25*E50+$C$32)+$C$34*$C$16*COS($C$16*E50+$C$35) -> -1987.504934 | H50: =$C$31*COS($C$25*E50+$C$32)+$C$34*SIN($C$16*E50+$C$35) -> 44.69517936 | J50: -22.3868009 | K50: 9.900851415 | L50: 0.2793347556 | N50: 44383.18873 | O50: 1997.405785 | P50: -44.4158446
A51: x2''＝－BΩ^2sin(Ωt＋β) | E51: 0.516 | F51: -18122.79767 | G51: -2328.894054 | H51: 18.5123295 | J51: -37.35747123 | K51: 9.542469077 | L51: 0.3961741077 | N51: 18085.4402 | O51: 2338.436523 | P51: -18.1161554
E52: 0.528 | F52: 10478.51154 | G52: -2370.67806 | H52: -9.994654233 | J52: -52.08022816 | K52: 9.005260753 | L52: 0.5076369398 | N52: -10530.59176 | O52: 2379.683321 | P52: 10.50229117
E53: 0.54 | F53: 37730.28962 | G53: -2107.566332 | H53: -37.15906604 | J53: -65.8853474 | K53: 8.296220193 | L53: 0.6116112754 | N53: -37796.17497 | O53: 2115.862552 | P53: 37.77067731
E54: 0.552 | F54: 60137.58059 | G54: -1573.371623 | H54: -59.48720647 | J54: -78.13791631 | K54: 7.430237286 | L54: 0.7061168576 | N54: -60215.71851 | O54: 1580.80186 | P54: 60.19332333
E55: 0.564 | F55: 74826.62637 | G55: -836.6738977 | H55: -74.10645587 | J55: -88.30290951 | K55: 6.429282359 | L55: 0.7893957885 | N55: -74914.92928 | O55: 843.10318 | P55: 74.89585166
E56: 0.576 | F56: 79913.31525 | G56: 7.973390683 | H56: -79.13370639 | J56: -95.99888451 | K56: 5.32087028 | L56: 0.859988922 | N56: -80009.31413 | O56: -2.652520403 | P56: 79.99369531
E57: 0.588 | F57: 74744.74969 | G57: 852.1671502 | H57: -73.91691537 | J57: -101.0336275 | K57: 4.135982852 | L57: 0.9167903605 | N57: -74845.78332 | O57: -848.0311673 | P57: 74.83370573
E58: 0.6 | F58: 59982.96271 | G58: 1587.554255 | H58: -59.11880946 | J58: -103.4173698 | K58: 2.906695008 | L58: 0.9590749732 | N58: -60086.38008 | O58: -1584.64756 | P58: 60.07788443
E59: 0.612 | F59: 37520.04986 | G59: 2119.72486 | H59: -36.63200654 | J59: -103.3520455 | K59: 1.663786147 | L59: 0.9864970529 | N59: -37623.40191 | O59: -2118.061073 | P59: 37.6185036
E60: 0.624 | F60: 10235.59712 | G60: 2380.318192 | H60: -9.336436226 | J60: -101.1981019 | K60: 0.4346180788 | L60: 0.9990616391 | N60: -10336.79522 | O60: -2379.883574 | P60: 10.33549787
E61: 0.636 | F61: -18372.49595 | G61: 2335.78875 | H61: 19.26984203 | J61: -97.42322466 | K61: -0.7584746058 | L61: 0.9970732352 | N61: 18275.07272 | O61: -2336.547225 | P61: -18.27276879
E62: 0.648 | F62: -44636.46711 | G62: 1991.709005 | H62: 45.5190921 | J62: -92.53962233 | K62: -1.89910268 | L62: 0.9810692204 | N62: 44543.92749 | O62: -1993.608108 | P62: -44.53802288
E63: 0.66 | F63: -65188.92226 | G63: 1392.056935 | H63: 66.04413159 | J63: -87.03795187 | K63: -2.976959201 | L63: 0.9517468925 | N63: 65101.88431 | O63: -1395.033894 | P63: -65.0923847
E64: 0.672 | F64: -77394.55934 | G64: 613.5797145 | H64: 78.21005278 | J64: -81.32636152 | K64: -3.987185899 | L64: 0.9098935514 | N64: 77313.23298 | O64: -617.5669004 | P64: -77.30015923
E65: 0.684 | F65: -79688.03586 | G65: -244.04386 | H65: 80.45208438 | J65: -75.68243808 | K65: -4.929078409 | L65: 0.8563283077 | N65: 79612.35342 | O65: 239.1147816 | P65: -79.59575607
E66: 0.696 | F66: -71774.66292 | G66: -1070.981002 | H66: 72.47627742 | J66: -70.224158 | K66: -5.804323887 | L66: 0.7918624622 | N66: 71704.43876 | O66: 1065.176678 | P66: -71.68441496
E67: 0.708 | F67: -54668.19561 | G67: -1761.324468 | H67: 55.29728496 | J67: -64.90347237 | K67: -6.615023645 | L67: 0.7172825947 | N67: 54603.29213 | O67: 1754.709444 | P67: -54.58000236
E68: 0.72 | F68: -30560.87446 | G68: -2226.668938 | H68: 31.10839065 | J68: -59.52322297 | K68: -7.361779613 | L68: 0.6333572789 | N68: 30501.35124 | O68: 2219.307159 | P68: -30.47503337
E69: 0.732 | F69: -2542.379549 | G69: -2407.443688 | H69: 3.000447785 | J69: -53.77506593 | K69: -8.042113622 | L69: 0.5408650132 | N69: 2488.604483 | O69: 2399.401574 | P69: -2.459582772
E70: 0.744 | F70: 25796.27135 | G70: -2280.548642 | H70: -25.43423934 | J70: -47.29335914 | K70: -8.649443784 | L70: 0.44063797 | N70: -25843.56471 | O70: 2271.899198 | P70: 25.87487731
E71: 0.756 | F71: 50823.09775 | G71: -1862.314858 | H71: -50.56230896 | J71: -39.71789809 | K71: -9.172768492 | L71: 0.3336138881 | N71: -50862.81565 | O71: 1853.142089 | P71: 50.89592285
E72: 0.768 | F72: 69330.78194 | G72: -1206.409882 | H72: -69.17498723 | J72: -30.75722908 | K72: -9.597115244 | L72: 0.2208871752 | N72: -69361.53917 | O72: 1196.812767 | P72: 69.39587441
E73: =E72+$C$8 -> 0.78 | F73: 78947.84911 | G73: -396.9565478 | H73: -78.89928923 | J73: -20.24417604 | K73: -9.904710576 | L73: 0.1037502046 | N73: -78968.09328 | O73: 387.0518373 | P73: 79.00303943
E74: 0.792 | F74: 78442.68635 | G74: 462.2525591 | H74: -78.50205973 | J74: -8.17620111 | K74: -10.07673188 | L74: -0.01628310054 | N74: -78450.86255 | O74: -472.329291 | P74: 78.48577663
E75: 0.804 | F75: 67881.42378 | G75: 1261.062195 | H75: -68.04787647 | J75: 5.264847994 | K75: -10.09542413 | L75: -0.1374771412 | N75: -67876.15893 | O75: -1271.157619 | P75: 67.91039932
E76: 0.816 | F76: 48619.4366 | G76: 1897.077046 | H76: -48.89057454 | J76: 19.71641469 | K76: -9.946314333 | L76: -0.2579007846 | N76: -48599.72018 | O76: -1907.02336 | P76: 48.63267376
E77: 0.828 | F77: 23127.55788 | G77: 2288.789214 | H77: -23.49948138 | J77: 34.66214549 | K77: -9.620240762 | L77: -0.3754792462 | N77: -23092.89573 | O77: -2298.409455 | P77: 23.12400214
E78: 0.84 | F78: -5324.716937 | G78: 2386.027566 | H78: 4.857357148 | J78: 49.47886838 | K78: -9.114934277 | L78: -0.4880678766 | N78: =J78-F78 -> 5374.195805 | O78: -2395.142501 | P78: -5.345425025
E79: 0.852 | F79: -33088.41848 | G79: 2176.389291 | H79: 32.53234432 | J79: 63.49789112 | K79: -8.435943134 | L79: -0.5935411556 | N79: 33151.91638 | O79: -2184.825234 | P79: -33.12588548
E80: 0.864 | F80: -56602.94187 | G80: 1686.829102 | H80: 55.9661512 | J80: 76.07302809 | K80: -7.596773629 | L80: -0.6898881604 | N80: 56679.0149 | O80: -1694.425876 | P80: -56.65603936
E81: 0.876 | F81: -72852.555 | G81: 980.2023506 | H81: 72.1442066 | J81: 86.64688894 | K81: -6.618216274 | L81: -0.7753048139 | N81: 72939.20189 | O81: -986.8205669 | P81: -72.91951142
E82: 0.888 | F82: -79753.04924 | G82: 147.2052709 | H82: 78.9833311 | J82: 94.80716836 | K82: -5.526928687 | L82: -0.8482734668 | N82: 79847.85641 | O82: -152.7321996 | P82: -79.83160457
E83: 0.9 | F83: -76418.96125 | G83: -705.2543258 | H83: 75.59894401 | J83: 100.3259387 | K83: -4.353438919 | L83: -0.9076217937 | N83: 76519.28718 | O83: 700.9008869 | P83: -76.5065658
E84: 0.912 | F84: -63277.10614 | G84: -1467.764926 | H84: 62.4185839 | J84: 103.1771026 | K84: -3.129804773 | L84: -0.9525554037 | N84: 63380.28324 | O84: 1464.635121 | P84: -63.3711393
E85: 0.924 | F85: -42011.86626 | G85: -2042.440302 | H85: 41.1271869 | J85: 103.5299381 | K85: -1.887206565 | L85: -0.9826616761 | N85: 42115.3962 | O85: 2040.553095 | P85: -42.10984858
E86: 0.936 | F86: -15349.24964 | G86: -2355.470982 | H86: 14.45113726 | J86: 101.719704 | K86: -0.6537574791 | L86: -0.9978857405 | N86: 15450.96934 | O86: 2354.817225 | P86: -15.449023
E87: 0.948 | F87: 13292.59678 | G87: -2366.589001 | H87: -14.19122487 | J87: 98.19918496 | K87: 0.5472137756 | L87: -0.9984827861 | N87: -13194.3976 | O87: 2367.136214 | P87: 13.19274208
E88: 0.96 | F88: 40241.61287 | G88: -2074.232451 | H88: -41.12783194 | J88: 93.47746723 | K88: 1.698214964 | L88: -0.9849536024 | N88: -40148.1354 | O88: 2075.930666 | P88: 40.14287833
E89: 0.972 | F89: 62042.60662 | G89: -1515.747699 | H89: -62.90367042 | J89: 88.0538405 | K89: 2.787869993 | L89: -0.9579720711 | N89: -61954.55278 | O89: 1518.535569 | P89: 61.94569835
E90: 0.984 | F90: 75900.234 | G90: -762.603291 | H90: -76.72375809 | J90: 82.35531109 | K90: 3.810418629 | L90: -0.9183140251 | N90: -75817.87868 | O90: 766.4137097 | P90: 75.80544407
E91: 0.996 | F91: 80037.38438 | G91: 88.77086028 | H91: -80.81152424 | J91: 76.68571651 | K91: 4.764528573 | L91: -0.8667963761 | N91: -79960.69866 | O91: -84.00633171 | P91: 79.94472786
E92: 1.008 | F92: 73923.02423 | G92: 929.3445603 | H92: -74.63664562 | J92: 71.19290933 | K92: 5.651599903 | L92: -0.8042337595 | N92: -73851.83132 | O92: -923.6929604 | P92: 73.83241186
E93: 1.02 | F93: 58340.28799 | G93: 1651.463952 | H93: -58.98312708 | J93: 65.85812955 | K93: 6.473806107 | L93: -0.7314173722 | N93: -58274.42986 | O93: -1644.990145 | P93: 58.25170971
E94: 1.032 | F94: 35286.08625 | G94: 2162.651796 | H94: -35.84889726 | J94: 60.50880797 | K94: 7.232148452 | L94: -0.6491175194 | N94: -35225.57744 | O94: -2155.419647 | P94: 35.19977974
E95: 1.044 | F95: 7715.101997 | G95: 2397.462161 | H95: -8.189790167 | J95: 54.85300982 | K95: 7.924797106 | L95: -0.5581080468 | N95: -7660.248987 | O95: -2389.537364 | P95: 7.631682121
E96: 1.056 | F96: -20839.00393 | G96: 2325.869691 | H96: 20.4592659 | J96: 48.53092527 | K96: 8.545953708 | L96: -0.4592077564 | N96: 20887.53485 | O96: -2317.323737 | P96: -20.91847366
E97: 1.068 | F97: -46716.61459 | G97: 1957.117907 | H97: 46.43728839 | J97: 41.17660343 | K97: 9.085400939 | L97: -0.3533314707 | N97: 46757.7912 | O97: -1948.032506 | P97: -46.79061986
E98: 1.08 | F98: -66601.32583 | G98: 1338.533203 | H98: 66.42642892 | J98: 32.48179053 | K98: 9.528814022 | L98: -0.2415419568 | N98: 66633.80762 | O98: -1329.004389 | P98: -66.66797087
E99: 1.092 | F99: -77945.11208 | G99: 549.456576 | H99: 77.87715994 | J99: 22.25344457 | K99: 9.858808557 | L99: -0.1250936178 | N99: 77967.36552 | O99: -539.5977675 | P99: -78.00225356
E100: 1.104 | F100: -79294.9804 | G100: -308.928887 | H100: 79.33495039 | J100: 10.45729374 | K100: 10.05660173 | L100: -0.005459763278 | N100: 79305.43769 | O100: 318.9854887 | P100: -79.34041015
E101: 1.116 | F101: -70479.234 | G101: -1126.570591 | H101: 70.62655124 | J101: -2.758416172 | K101: 10.10408201 | L101: 0.1156627435 | N101: 70476.47559 | O101: 1136.674673 | P101: -70.51088849
E102: 1.128 | F102: -52629.46521 | G102: -1798.655904 | H102: 52.88201086 | J102: -17.0623085 | K102: 9.986026985 | L102: 0.2363748408 | N102: 52612.4029 | O102: 1808.641931 | P102: -52.64563602
E103: 1.14 | F103: -28035.4586 | G103: -2239.049599 | H103: 28.38960038 | J103: -31.96275728 | K103: 9.692186316 | L103: 0.3546227097 | N103: 28003.49585 | O103: 2248.741785 | P103: -28.03497767
E104: 1.152 | F104: 148.3930397 | G104: -2391.336498 | H104: 0.3022513399 | J104: -46.85161201 | K104: 9.218961029 | L104: 0.4682680393 | N104: -195.2446517 | O104: 2400.555459 | P104: 0.1660166995
E105: 1.164 | F105: 28307.52042 | G105: -2236.053597 | H105: -27.76685494 | J105: -61.06343758 | K105: 8.570458521 | L105: 0.5751748828 | N105: -28368.58386 | O105: 2244.624055 | P105: 28.34202982
E106: 1.176 | F106: 52830.60602 | G106: -1793.184462 | H106: -52.20769568 | J106: -73.94294368 | K106: 7.758779485 | L106: 0.6733046639 | N106: -52904.54897 | O106: 1800.943241 | P106: 52.88100034
E107: 1.188 | F107: 70572.59433 | G107: -1119.596132 | H107: -69.87639828 | J107: -84.91221614 | K107: 6.8034883 | L107: 0.7608097246 | N107: -70657.50655 | O107: 1126.39962 | P107: 70.637208
E108: 1.2 | F108: 79257.92288 | G108: -301.7471259 | H108: -78.49845432 | J108: -93.52937195 | K108: 5.730320058 | L108: 0.8361158342 | N108: -79351.45225 | O108: 307.477446 | P108: 79.33457015
E109: 1.212 | F109: 77772.27717 | G109: 555.3985249 | H109: -76.96045932 | J109: -99.53134015 | K109: 4.569272531 | L109: 0.8979853026 | N109: -77871.80851 | O109: -550.8292524 | P109: 77.85844463
E110: 1.224 | F110: 66305.46435 | G110: 1341.829927 | H110: -65.45297338 | J110: -102.8554833 | K110: 3.352307691 | L110: 0.9455546007 | N110: -66408.31983 | O110: -1338.477619 | P110: 66.39852798
E111: 1.236 | F111: 46327.08827 | G111: 1956.595135 | H111: -45.44618532 | J111: -103.6374614 | K111: 2.110935196 | L111: 0.9783434058 | N111: -46430.72573 | O111: -1954.4842 | P111: 46.42452873
E112: 1.248 | F112: 20398.14434 | G112: 2320.745652 | H112: -19.5014992 | J112: -102.1857589 | K112: 0.8739634843 | L112: 0.996235375 | N112: -20500.33009 | O112: -2319.871689 | P112: 20.49773457
E113: 1.26 | F113: -8157.311218 | G113: 2387.460022 | H113: 9.056802345 | J113: -98.93625637 | K113: -0.3343189662 | L113: 0.9994342734 | N113: 8058.374962 | O113: -2387.794341 | P113: -8.057368072
E114: 1.272 | F114: =-($C$25^2)*H114-$C$34*$C$16^2*SIN($C$16*E114+$C$35) -> -35678.32358 | G114: =-$C$31*$C$25*SIN($C$25*E114+$C$32)+$C$34*$C$16*COS($C$16*E114+$C$35) -> 2148.048579 | H114: =$C$31*COS($C$25*E114+$C$32)+$C$34*SIN($C$16*E114+$C$35) -> 36.56772356 | J114: -94.39275513 | K114: -1.495325991 | L114: 0.988401928 | N114: 35583.93082 | O114: -2149.543905 | P114: -35.57932163
E115: 1.284 | F115: -58636.39651 | G115: 1633.069483 | H115: 59.50291334 | J115: -89.06113312 | K115: -2.596595909 | L115: 0.9637864773 | N115: 58547.33538 | O115: -1635.666079 | P115: -58.53912686
E116: 1.296 | F116: -74087.86981 | G116: 908.4129221 | H116: 74.91904062 | J116: -83.38559003 | K116: -3.631427583 | L116: 0.9263502972 | N116: 74004.48422 | O116: -912.0443496 | P116: -73.99269032
E117: 1.308 | F117: -80051.31942 | G117: 66.85549153 | H117: 80.8351897 | J117: -77.69514058 | K117: -4.59780524 | L117: 0.8769066842 | N117: 79973.62428 | O117: -71.45329677 | P117: -79.95828302
E118: 1.32 | F118: -75761.59501 | G118: -783.8325005 | H118: 76.48689057 | J118: -72.16716608 | K118: -5.496777718 | L118: 0.8162729191 | N118: 75689.42784 | O118: 778.3357228 | P118: -75.67061765
E119: 1.332 | F119: -61767.92569 | G119: -1534.702106 | H119: 62.4242148 | J119: -66.81261469 | K119: -6.330526965 | L119: 0.7452449027 | N119: 61701.11307 | O119: 1528.371579 | P119: -61.6789699
E120: 1.344 | F120: -39863.51604 | G120: -2089.592036 | H120: 40.44135948 | J120: -61.48463367 | K120: -7.100399254 | L120: 0.6645954757 | N120: 39802.03141 | O120: 2082.491636 | P120: -39.776764
E121: 1.356 | F121: -12855.65843 | G121: -2377.455637 | H121: 13.34674522 | J121: -55.9093825 | K121: -7.805175823 | L121: 0.5750951915 | N121: 12799.74904 | O121: 2369.650461 | P121: -12.77165003
E122: 1.368 | F122: 15794.16546 | G122: -2361.468178 | H122: -15.39689847 | J122: -49.73490407 | K122: -8.439827061 | L122: 0.4775511579 | N122: -15843.90036 | O122: 2353.028351 | P122: 15.87444963
E123: 1.38 | F123: 42414.05273 | G123: -2043.746844 | H123: -42.11631934 | J123: -42.5915904 | K123: -8.994930092 | L123: 0.3728569863 | N123: -42456.64432 | O123: 2034.751914 | P123: 42.48917633
E124: 1.392 | F124: 63592.42355 | G124: -1465.07833 | H124: -63.39850597 | J124: -34.15627014 | K124: -9.456842116 | L124: 0.262045239 | N124: -63626.57982 | O124: 1455.621488 | P124: 63.66055121
E125: 1.404 | F125: 76615.3892 | G125: -699.6889678 | H125: -76.5280765 | J125: -24.21146113 | K125: -9.808622135 | L125: 0.1463332481 | N125: -76639.60066 | O125: 689.8803457 | P125: 76.67440975
E126: 1.416 | F126: 79814.671 | G126: 154.2720975 | H126: -79.83521896 | J126: -12.69193535 | K126: -10.03159482 | L126: 0.02715386866 | N126: -79827.36293 | O126: -164.3036923 | P126: 79.86237283
E127: 1.428 | F127: 72781.46481 | G127: 987.3165603 | H127: -72.90957791 | J127: 0.2876425783 | K127: -10.10736472 | L127: -0.0938354633 | N127: -72781.17716 | O127: -997.423925 | P127: 72.81574244
E128: 1.44 | F128: 56418.83273 | G128: 1692.654123 | H128: -56.65266835 | J128: 14.42782386 | K128: -10.02002815 | L128: -0.2147693024 | N128: -56404.4049 | O128: -1702.674151 | P128: 56.43789905
E129: 1.452 | F129: 32825.90522 | G129: 2179.883527 | H129: -33.16210017 | J129: 29.26313994 | K129: -9.758301107 | L129: -0.3336170872 | N129: -32796.64208 | O129: -2189.641828 | P129: 32.82848308
E130: 1.464 | F130: 5028.740016 | G130: 2386.582176 | H130: -5.462458885 | J130: 44.20239941 | K130: -9.317289333 | L130: -0.4482496804 | N130: -4984.537616 | O130: -2395.899465 | P130: 5.014209204
E131: 1.476 | F131: -23407.65633 | G131: 2286.308483 | H131: 22.8826516 | J131: 58.58562982 | K131: -8.699668777 | L131: -0.5565238105 | N131: 23466.24196 | O131: -2295.008151 | P131: -23.43917541
E132: 1.488 | F132: -48836.40267 | G132: 1891.991009 | H132: 48.22766308 | J132: 71.75063528 | K132: -7.916117245 | L132: -0.6563763023 | N132: 48908.15331 | O132: -1899.907126 | P132: -48.88403938
E133: 1.5 | F133: -67996.31317 | G133: 1254.269895 | H133: 67.31259405 | J133: 83.10089635 | K133: -6.98493072 | L133: -0.7459186111 | N133: 68079.41407 | O133: -1261.254825 | P133: -68.05851266
E134: 1.512 | F134: -78430.01732 | G134: 455.003231 | H134: 77.68115242 | J134: 92.16635154 | K134: -5.930859389 | L134: -0.8235219847 | N134: 78522.18368 | O134: -460.9340904 | P134: -78.50467441
E135: 1.524 | F135: -78799.02407 | G135: -403.22908 | H135: 77.99578411 | J135: 98.64949362 | K135: -4.7832956 | L135: -0.887884595 | N135: 78897.67357 | O135: 398.4457844 | P135: -78.88366871
E136: 1.536 | F136: -69055.33672 | G136: -1210.278285 | H136: 68.20927448 | J136: 102.4510746 | K136: -3.574026492 | L136: -0.9380740668 | N136: 69157.7878 | O136: 1206.704258 | P136: -69.14734855
E137: =E136+$C$8 -> 1.548 | F137: -50447.61631 | G137: -1862.550246 | H137: 49.57090048 | J137: 103.672303 | K137: -2.33481755 | L137: -0.9735417434 | N137: 50551.28861 | O137: 1860.215428 | P137: -50.54444222
E138: 1.56 | F138: -25361.10313 | G138: -2276.288667 | H138: 24.46634326 | J138: 102.5934023 | K138: -1.095113024 | L138: -0.9941083718 | N138: 25463.69653 | O138: 2275.193554 | P138: -25.46045163
E139: 1.572 | F139: 2988.180679 | G139: -2398.31507 | H139: -3.888115483 | J139: 99.63140271 | K139: 0.119877451 | L139: -0.9999242621 | N139: -2888.549276 | O139: 2398.434948 | P139: 2.88819122
E140: 1.584 | F140: 30965.74228 | G140: -2212.848545 | H140: -31.8579085 | J140: 95.28266646 | K140: 1.290487524 | L140: -0.9914099305 | N140: -30870.45961 | O140: 2214.139033 | P140: 30.86649857
E141: 1.596 | F141: 54984.58229 | G141: -1743.530927 | H141: -55.85614815 | J141: 90.05757377 | K141: 2.403157947 | L141: -0.9691854147 | N141: -54894.52471 | O141: 1745.934085 | P141: 54.88696274
E142: 1.608 | F142: 71965.0723 | G142: -1050.397718 | H142: -72.80350231 | J142: 84.41576715 | K142: 3.450211431 | L142: -0.9339975633 | N142: =J142-F142 -> -71880.65654 | O142: 1053.847929 | P142: 71.86950475
E143: 1.62 | F143: 79729.78657 | G143: -222.1830838 | H143: -80.52302181 | J143: 78.71024623 | K143: 4.428895632 | L143: -0.886654524 | N143: -79651.07632 | O143: 226.6119795 | P143: 79.63636728
E144: 1.632 | F144: 77282.6678 | G144: 635.0545604 | H144: -78.01929939 | J144: 73.1474371 | K144: 5.339844888 | L144: -0.8279753958 | N144: -77209.52036 | O144: -629.7147156 | P144: 77.19132399
E145: 1.644 | F145: 64936.7363 | G145: 1411.528133 | H145: -65.60616946 | J145: 67.76827889 | K145: 6.18518513 | L145: -0.7587607324 | N145: -64868.96802 | O145: -1405.342948 | P145: 64.84740873
E146: 1.656 | F146: 44273.96905 | G146: 2007.795613 | H146: -44.86657551 | J146: 62.45264391 | K146: 6.966550997 | L146: -0.6797865939 | N146: -44211.51641 | O146: -2000.829062 | P146: 44.18678892
E147: 1.668 | F147: 17942.49245 | G147: 2347.507604 | H147: -18.44974891 | J147: 56.9463854 | K147: 7.68329399 | L147: -0.5918215173 | N147: -17885.54607 | O147: -2339.82431 | P147: 17.8579274
E148: 1.68 | F148: -10682.91035 | G148: 2387.19443 | H148: 10.26829962 | J148: 50.90737787 | K148: 8.331134144 | L148: -0.495662556 | N148: 10733.81773 | O148: -2378.863296 | P148: -10.76396218
E149: 1.692 | F149: -37933.45258 | G149: 2121.838027 | H149: 37.61745081 | J149: 43.96445371 | K149: 8.901448661 | L149: -0.3921838323 | N149: 37977.41703 | O149: -2112.936578 | P149: -38.00963465
E150: 1.704 | F150: -60316.68871 | G150: 1585.514277 | H150: 60.10384088 | J150: 35.78146325 | K150: 9.381306847 | L150: -0.2823892094 | N150: 60352.47017 | O150: -1576.13297 | P150: -60.38623008
E151: 1.716 | F151: -74964.25027 | G151: 847.0234714 | H151: 74.85761771 | J151: 26.11800843 | K151: 9.75426225 | L151: -0.1674599614 | N151: 74990.36828 | O151: -837.2692092 | P151: -75.02507767
E152: 1.728 | F152: -79999.57014 | G152: 1.069095074 | H152: 80.00068651 | J152: 14.87880999 | K152: 10.00181292 | L152: -0.04878879227 | N152: 80014.44895 | O152: 8.932717841 | P152: -80.0494753
E153: 1.74 | F153: -74778.45103 | G153: -843.8841107 | H153: 74.88730027 | J153: 2.145112129 | K153: 10.10535185 | L153: 0.07200682455 | N153: 74780.59614 | O153: 853.9894625 | P153: -74.81529345
E154: 1.752 | F154: -59971.63608 | G154: -1579.516132 | H154: 60.18665265 | J154: -11.81617745 | K154: 10.04836369 | L154: 0.1930964561 | N154: 59959.8199 | O154: 1589.564495 | P154: -59.99355619
E155: 1.764 | F155: -37478.79573 | G155: -2111.538875 | H155: 37.7968871 | J155: -26.56706534 | K155: 9.81858872 | L155: 0.3124749688 | N155: 37452.22867 | O155: 2121.357464 | P155: -37.48441213
E156: 1.776 | F156: -10184.95861 | G156: -2371.784147 | H156: 10.60154976 | J156: -41.53518161 | K156: 9.409876034 | L156: 0.4280251545 | N156: 10143.42343 | O156: 2381.194023 | P156: -10.1735246
E157: 1.788 | F157: 18409.38625 | G157: -2326.942667 | H157: -17.90028704 | J157: -56.0681935 | K157: 8.823484287 | L157: 0.5375994939 | N157: -18465.45445 | O157: 2335.766152 | P157: 18.43788654
E158: 1.8 | F158: 44637.09224 | G158: -1982.833726 | H158: -44.0428072 | J158: -69.49922047 | K158: 8.068655877 | L158: 0.6391132999 | N158: -44706.59146 | O158: 1990.902382 | P158: 44.6819205
E159: 1.812 | F159: 65134.52347 | G159: -1383.658105 | H159: -64.46360004 | J159: -81.21512594 | K159: 7.162380351 | L159: 0.7306399213 | N159: -65215.73859 | O159: 1390.820485 | P159: 65.19423997
E160: 1.824 | F160: 77272.8098 | G160: -606.3300456 | H160: -76.5348977 | J160: -90.71917763 | K160: 6.128363756 | L160: 0.8104982763 | N160: -77363.52898 | O160: 612.4584094 | P160: 77.34539597
E161: 1.836 | F161: 79494.8986 | G161: 249.3850213 | H161: -78.70061101 | J161: -97.68027262 | K161: 4.995319539 | L161: 0.8773237853 | N161: -79592.57887 | O161: -244.3897017 | P161: 79.5779348
E162: 1.848 | F162: 71515.19099 | G162: 1073.662582 | H162: -70.67595194 | J162: -101.962624 | K162: 3.794781005 | L162: 0.9301156902 | N162: -71617.15361 | O162: -1069.867801 | P162: 71.60606763
E163: 1.86 | F163: 54356.16767 | G163: 1760.700911 | H163: -53.4840477 | J163: -103.6322866 | K163: 2.558694288 | L163: 0.9682565289 | N163: -54459.79996 | O163: -1758.142216 | P163: 54.45230422
E164: 1.872 | F164: 30217.30859 | G164: 2222.287312 | H164: -29.32485116 | J164: -102.9398421 | K164: 1.31707692 | L164: 0.9915028328 | N164: -30320.24843 | O164: -2220.970236 | P164: 30.31635399
E165: 1.884 | F165: 2193.11161 | G165: 2399.109416 | H165: -1.293152702 | J165: -100.2815897 | K165: 0.09601694023 | L165: 0.999949513 | N165: -2293.3932 | O165: -2399.013399 | P165: 2.293102215
E166: 1.896 | F166: -26123.63805 | G166: 2268.361329 | H166: 27.01815457 | J166: -96.14431529 | K166: -1.083757487 | L166: 0.993973462 | N166: 26027.49373 | O166: -2269.445087 | P166: -26.02418111
E167: 1.908 | F167: -51102.48437 | G167: 1846.669453 | H167: 51.97869292 | J167: -91.04078282 | K167: -2.207582111 | L167: 0.974164238 | N167: 51011.44358 | O167: -1848.877036 | P167: -51.00452868
E168: 1.92 | F168: -69540.74903 | G168: 1187.962838 | H168: 70.38604734 | J168: -85.4442486 | K168: -3.266772108 | L168: 0.9412510198 | N168: 69455.30478 | O168: -1191.22961 | P168: -69.44479632
E169: 1.932 | F169: -79074.13844 | G169: 376.5610668 | H169: 79.87636881 | J169: -79.73039088 | K169: -4.257788164 | L169: 0.896035161 | N169: 78994.40805 | O169: -380.8188549 | P169: -78.98033365
E170: 1.944 | F170: -78479.86683 | G170: -483.6341677 | H170: 79.22749101 | J170: -74.13406198 | K170: -5.18078805 | L170: 0.8393366167 | N170: 78405.73277 | O170: 478.4533797 | P170: -78.38815439
E171: 1.956 | F171: -67833.433 | G171: -1282.45812 | H171: 68.51569811 | J171: -68.726337 | K171: -6.037776738 | L171: 0.7719604022 | N171: 67764.70667 | O171: 1276.420343 | P171: -67.7437377
E172: 1.968 | F172: -48498.95079 | G172: -1917.605118 | H172: 49.10604399 | J172: -63.41469867 | K172: -6.830618552 | L172: 0.6946863567 | N172: 48435.53609 | O172: 1910.774499 | P172: -48.41135763
E173: 1.98 | F173: -22954.27295 | G173: -2307.743239 | H173: 23.47746258 | J173: -57.96620085 | K173: -7.559191087 | L173: 0.6082821845 | N173: 22896.30674 | O173: 2300.184048 | P173: -22.86918039
E174: 1.992 | F174: 5526.671699 | G174: -2402.94017 | H174: -5.094910526 | J174: -52.05047854 | K174: -8.219940704 | L174: 0.513536479 | N174: -5578.722177 | O174: 2394.72023 | P174: 5.608447005
E175: 2.004 | F175: 33293.60141 | G175: -2191.06361 | H175: -32.9594786 | J175: -45.29690103 | K175: -8.80504579 | L175: 0.4113056026 | N175: -33338.89831 | O175: 2182.258564 | P175: 33.3707842
E176: 2.016 | F176: 56787.85424 | G176: -1699.335667 | H176: -56.55617539 | J176: -37.35832811 | K176: -9.302313641 | L176: 0.3025662857 | N176: -56825.21257 | O176: 1690.033354 | P176: 56.85874168
E177: 2.028 | F177: 72998.61335 | G177: -990.8419735 | H177: -72.87271063 | J177: -27.9730617 | K177: -9.695840107 | L177: 0.1884648638 | N177: -73026.58641 | O177: 981.1461334 | P177: 73.0611755
E178: 2.04 | F178: =-($C$25^2)*H178-$C$34*$C$16^2*SIN($C$16*E178+$C$35) -> 79848.89419 | G178: =-$C$31*$C$25*SIN($C$25*E178+$C$32)+$C$34*$C$16*COS($C$16*E178+$C$35) -> -156.443088 | H178: =$C$31*COS($C$25*E178+$C$32)+$C$34*SIN($C$16*E178+$C$35) -> -79.83057843 | J178: -17.0167995 | K178: -9.967360412 | L178: 0.07035433339 | N178: -79865.91099 | O178: 146.4757275 | P178: 79.90093276
E179: 2.052 | F179: 76461.8079 | G179: 696.8747948 | H179: -76.55134253 | J179: -4.537665061 | K179: -10.09812786 | L179: -0.05018817391 | N179: -76466.34557 | O179: -706.9729227 | P179: 76.50115436
E180: 2.064 | F180: 63272.96446 | G180: 1459.716312 | H180: -63.46906173 | J180: 9.230451258 | K180: -10.07108627 | L180: -0.1713684824 | N180: -63263.73401 | O180: -1469.787398 | P180: 63.29769324
E181: 2.076 | F181: 41974.60508 | G181: 2034.302036 | H181: -42.27444457 | J181: 23.8782316 | K181: -9.873060805 | L181: -0.291208928 | N181: -41950.72685 | O181: -2044.175097 | P181: 41.98323564
E182: 2.088 | F182: 15298.62677 | G182: 2347.004104 | H182: -15.69789597 | J182: 38.85390711 | K182: -9.49668651 | L182: -0.4076069006 | N182: -15259.77286 | O182: -2356.500791 | P182: 15.29028907
E183: 2.1 | F183: -13333.6831 | G183: 2357.785239 | H183: 12.84072676 | J183: 53.51492436 | K183: -8.941823557 | L183: -0.5184136735 | N183: 13387.19802 | O183: -2366.727063 | P183: -13.35914044
E184: 2.112 | F184: -40250.29563 | G184: 2065.331017 | H184: 39.67074222 | J184: 67.19195195 | K184: -8.216271227 | L184: -0.6215261564 | N184: 40317.48758 | O184: -2073.547288 | P184: -40.29226838
E185: 2.124 | F185: -61999.23492 | G185: 1507.217408 | H185: 61.34141999 | J185: 79.25728572 | K185: -7.335678956 | L185: -0.7149824504 | N185: 62078.49221 | O185: -1514.553087 | P185: -62.05640244
E186: 2.136 | F186: -75791.159 | G186: 755.0921314 | H186: 75.06454373 | J186: 89.18913266 | K186: -6.322652777 | L186: -0.7970514591 | N186: 75880.34813 | O186: -761.4147842 | P186: -75.86159519
E187: 2.148 | F187: -79856.98547 | G187: -94.51239557 | H187: 79.07202057 | J187: 96.62376499 | K187: -5.205155719 | L187: -0.8663073952 | N187: 79953.60923 | O187: 89.30723985 | P187: -79.93832796
E188: 2.16 | F188: -73674.71159 | G188: -932.5566347 | H188: 72.84268699 | J188: 101.38907 | K188: -4.014388557 | L188: -0.9216817511 | N188: 73776.10066 | O188: 928.5422461 | P188: -73.76436874
E189: 2.172 | F189: -58036.34899 | G189: -1651.475142 | H189: 57.16923148 | J189: 103.5153821 | K189: -2.78240153 | L189: -0.9624879518 | N189: 58139.86437 | O189: 1648.692741 | P189: -58.13171943
E190: 2.184 | F190: -34946.39126 | G190: -2158.968908 | H190: 34.05665235 | J190: 103.2223709 | K190: -1.539720052 | L190: -0.9884171451 | N190: 35049.61363 | O190: 2157.429188 | P190: -35.0450695
E191: 2.196 | F191: -7364.831584 | G191: -2389.840534 | H191: 6.465268154 | J191: 100.8837976 | K191: -0.3132638395 | L191: -0.9995069967 | N191: 7465.715382 | O191: 2389.52727 | P191: -7.464775151
E192: 2.208 | F192: 21172.32313 | G192: -2314.35487 | H192: -22.06877291 | J192: 96.97476096 | K192: 0.875200098 | L192: -0.9960885066 | N192: -21075.34837 | O192: 2315.23007 | P192: 21.0726844
E193: 2.22 | F193: 47006.38898 | G193: -1942.053208 | H193: -47.88683171 | J193: 92.00826611 | K193: 2.00989967 | L193: -0.9787183636 | N193: -46914.38071 | O193: 1944.063108 | P193: 46.90811335
E194: 2.232 | F194: 66825.07217 | G194: -1320.53199 | H194: -67.67684468 | J194: 86.46928326 | K194: 3.081115162 | L194: -0.9481058711 | N194: -66738.60288 | O194: 1323.613105 | P194: 66.72873881
E195: 2.244 | F195: 78087.12901 | G195: -529.342582 | H195: -78.8979805 | J195: 80.75475446 | K195: 4.084472834 | L195: -0.9050438376 | N195: -78006.37426 | O195: 533.4270548 | P195: 77.99293666
E196: 2.256 | F196: 79348.17475 | G196: 330.2058241 | H196: -80.10644296 | J196: 75.1272076 | K196: 5.019593295 | L196: -0.8503519794 | N196: -79273.04755 | O196: -325.1862308 | P196: 79.25609098
E197: 2.268 | F197: 70445.87029 | G197: 1148.032874 | H197: -71.14064925 | J197: 69.68786013 | K197: 5.888295458 | L197: -0.784839442 | N197: -70376.18243 | O197: -1142.144578 | P197: 70.35580981
E198: 2.28 | F198: 52520.74466 | G198: 1819.398337 | H198: -53.14204155 | J198: 64.37256348 | K198: 6.692612873 | L198: -0.7092902744 | N198: -52456.3721 | O198: -1812.705724 | P198: 52.43275128
E199: 2.292 | F199: 27869.9835 | G199: 2258.328883 | H199: -28.40886238 | J199: 58.97097986 | K199: 7.432901913 | L199: -0.6244724337 | N199: -27811.01252 | O199: -2250.895981 | P199: 27.78438995
E200: 2.304 | F200: -347.0713514 | G200: 2408.63897 | H200: -0.1016389668 | J200: 53.16637523 | K200: 8.106307845 | L200: -0.5311675922 | N200: 400.2377266 | O200: -2400.532663 | P200: -0.4295286254
... 308 more rows

Sheet 減衰振動
A1: 振動の運動方程式
A2: mx''+cx'+kx=-sign(x')μ'mg+fsinΩt | F2: 単振動 | J2: マクロで計算➡ | L2: =exe("ルンゲ･クッタ･ギル法","ForcedOscillation",C8:C18,J8:L8) -> ルンゲ･クッタ･ギル法
A3: x''=-(c/m)x'-(k/m)x-sign(x')(μ'g)+(f/m)sinΩt | J3: マクロは標準モジュール-Module6 の中。 実行させるには =exe(･･･ と先頭に＝を付加する。
A4: ダンパ＋バネ＋動摩擦＋外力 | G4: 解析解 | K4: 数値積分 | O4: 理論値との差
E5: 時間 | F5: 加速度 | G5: 速度 | H5: 変位 | J5: 加速度 | K5: 速度 | L5: 変位 | N5: 加速度 | O5: 速度 | P5: 変位
E6: t | F6: 理論値x'' | G6: 理論値x' | H6: 理論値x | J6: x'' | K6: x' | L6: x | N6: x'' | O6: x' | P6: x
E7: [s] | F7: [m/s^2] | G7: [m/s] | H7: [m] | J7: [m/s^2] | K7: [m/s] | L7: [m] | N7: [m/s^2] | O7: [m/s] | P7: [m]
A8: 時間間隔 | B8: Δt | C8: =C9/500 -> 0.012 | D8: [s] | E8: 0 | F8: =-2*$C$30*G8-$C$25^2*H8 -> -100 | G8: =-$C$30*H8-$C$31*$C$27*EXP(-$C$30*E8)*SIN($C$27*E8+$C$32) -> 0 | H8: =$C$31*EXP(-$C$30*E8)*COS($C$27*E8+$C$32) -> 1 | J8: -100 | K8: 0 | L8: 1 | N8: =J8-F8 -> 0 | O8: =K8-G8 -> 0 | P8: 0
A9: 終了時間 | B9: TL | C9: 6 | D9: [s] | E9: =E8+$C$8 -> 0.012 | F9: -96.9208392 | G9: -1.182870873 | H9: 0.9928658095 | J9: -96.9208513 | K9: -1.182869069 | L9: 0.9928658944 | N9: =J9-F9 -> -1.209796426e-05 | O9: 1.803978215e-06 | P9: 8.49000783e-08
A10: 重力加速度 | B10: g | C10: 9.8 | D10: [m/s^2] | E10: 0.024 | F10: -92.53730722 | G10: -2.320880423 | H10: 0.9717906807 | J10: -92.53733494 | K10: -2.320877127 | L10: 0.9717908919 | N10: -2.771864176e-05 | O10: 3.296010361e-06 | P10: 2.112662103e-07
A11: 質量 | B11: m | C11: 10 | D11: [kg] | E11: 0.036 | F11: -86.94263288 | G11: -3.398919674 | H11: 0.9374047223 | J11: -86.94267903 | K11: -3.398915257 | L11: 0.9374050954 | N11: -4.614584034e-05 | O11: 4.416930969e-06 | P11: 3.731197841e-07
A12: 粘性係数 | B12: c | C12: 20 | D12: [Ns/m] | E12: 0.048 | F12: -80.24504633 | G12: -4.403090214 | H12: 0.8905122676 | J12: -80.24511293 | K12: -4.403085094 | L12: 0.8905128312 | N12: -6.659945802e-05 | O12: 5.119432855e-06 | P12: 5.63605923e-07
A13: バネ定数 | B13: k | C13: 1000 | D13: [N/m] | E13: 0.06 | F13: -72.56588516 | G13: -5.320873009 | H13: 0.8320763118 | J13: -72.56597342 | K13: -5.32086764 | L13: 0.832077087 | N13: =J13-F13 -> -8.825547629e-05 | O13: =K13-G13 -> 5.368906343e-06 | P13: =L13-H13 -> 7.75176636e-07
A14: 動摩擦係数 | B14: μ' | C14: 0 | D14: [ND] | E14: 0.072 | F14: -64.03755918 | G14: -6.141273607 | H14: 0.7632010639 | J14: -64.03766944 | K14: -6.141268463 | L14: 0.7632020637 | N14: =J14-F14 -> -0.000110266406 | O14: 5.14398749e-06 | P14: 9.997843105e-07
A15: 強制力 | B15: f | C15: 0 | D15: [N] | E15: 0.084 | F15: -54.80140609 | G15: -6.854942226 | H15: 0.6851129054 | J15: -54.80153787 | K15: -6.854937789 | L15: 0.6851141345 | N15: -0.0001317817679 | O15: 4.436811536e-06 | P15: 1.229081449e-06
A16: 強制力角速度 | B16: Ω | C16: 0 | D16: [rad/s] | E16: 0.096 | F16: -45.00547118 | G16: -7.454267633 | H16: 0.5991400645 | J16: -45.00562315 | K16: -7.45426438 | L16: 0.5991415191 | N16: -0.0001519681994 | O16: 3.25297338e-06 | P16: 1.454622527e-06
A17: 初期位置 | B17: x0 | C17: 1 | D17: [m] | E17: 0.108 | F17: -34.8022443 | G17: -7.933444077 | H17: 0.5066913245 | J17: -34.80241433 | K17: -7.933442466 | L17: 0.5066929926 | N17: -0.0001700287965 | O17: 1.61120249e-06 | P17: 1.668063915e-06
A18: 初期速度 | B18: x'0 | C18: 0 | D18: [m/s] | E18: 0.12 | F18: -24.34638732 | G18: -8.288510987 | H18: 0.4092340929 | J18: -24.34657254 | K18: -8.288511444 | L18: 0.4092359543 | N18: -0.0001852213219 | O18: -4.572351635e-07 | P18: 1.861357922e-06
E19: 0.132 | F19: -13.79248468 | G19: -8.517365495 | H19: 0.3082721567 | J19: -13.79268155 | K19: -8.517368404 | L19: 0.3082741836 | N19: -0.0001968749431 | O19: -2.909390631e-06 | P19: 2.026937244e-06
B20: c/m | C20: =C12/C11 -> 2 | D20: [1/s] | E20: 0.144 | F20: -3.29284834 | G20: -8.61974827 | H20: 0.2053234488 | J20: -3.293052745 | K20: -8.619753962 | L20: 0.2053256067 | N20: -0.0002044051944 | O20: -5.691719116e-06 | P20: 2.157886326e-06
B21: k/m | C21: =C13/C11 -> 100 | D21: [1/s^2] | E21: 0.156 | F21: 7.004592915 | G21: -8.597203488 | H21: 0.1018981406 | J21: 7.004385588 | K21: -8.59721223 | L21: 0.1019003887 | N21: -0.0002073269017 | O21: -8.74137465e-06 | P21: 2.24809651e-06
B22: μ'g | C22: =C14*C10 -> 0 | D22: [s^2/m] | E22: 0.168 | F22: 16.95829183 | G22: -8.453014111 | H22: -0.0005226360668 | J22: 16.95808656 | K22: -8.453026099 | L22: -0.0005203436647 | N22: -0.0002052648511 | O22: -1.198768313e-05 | P22: 2.292402174e-06
B23: f/m | C23: =C15/C11 -> 0 | D23: [N/m] | E23: 0.18 | F23: 26.43494294 | G23: -8.192114004 | H23: -0.1005071493 | J23: 26.43474497 | K23: -8.192129358 | L23: -0.1005048626 | N23: -0.0001979620268 | O23: -1.535376162e-05 | P23: 2.2866955e-06
A24: 振動中心 | B24: p＝mg/k | C24: =C11*C10/C13 -> 0.098 | D24: [m] | E24: 0.192 | F24: 35.31118158 | G24: -7.820978662 | H24: -0.1966922425 | J24: 35.31099629 | K24: -7.82099742 | L24: -0.1966900145 | N24: -0.0001852852971 | O24: -1.875824958e-05 | P24: 2.228017963e-06
A25: 固有角振動数 | B25: ω＝√(k/m) | C25: =SQRT(C13/C11) -> 10 | D25: ［rad/s］ | E25: 0.204 | F25: 43.47510137 | G25: -7.347496628 | H25: -0.2878010812 | J25: 43.47493415 | K25: -7.347518745 | L25: -0.2877989665 | N25: -0.0001672284751 | O25: -2.211711644e-05 | P25: 2.11462708e-06
A26: 〝 | B26: 〝 | C26: =DEGREES(C25) -> 572.9577951 | D26: [deg/s] | E26: 0.216 | F26: 50.82757285 | G26: -6.780823877 | H26: -0.3726592509 | J26: 50.82742893 | K26: -6.780849222 | L26: -0.3726573049 | N26: -0.0001439127304 | O26: -2.534550889e-05 | P26: 1.946037482e-06
A27: 減衰固有角振動数 | B27: ωd＝ω√(1-ζ^2) | C27: =C25*SQRT(1-C29^2) -> 9.949874371 | D27: ［rad/s］ | E27: 0.228 | F27: 57.28334921 | G27: -6.131223633 | H27: -0.4502090194 | J27: 57.28323362 | K27: -6.131251992 | L27: -0.4502072964 | N27: -0.0001155843819 | O27: -2.835960135e-05 | P27: 1.723035846e-06
A28: 〝 | B28: 〝 | C28: =DEGREES(C27) -> 570.0858081 | D28: [deg/s] | E28: 0.24 | F28: 62.77194862 | G28: -5.409894263 | H28: -0.519521601 | J28: 62.77186601 | K28: -5.409925341 | L28: -0.5195201533 | N28: -8.261014646e-05 | O28: -3.107841337e-05 | P28: 1.447669732e-06
A29: 減衰比 | B29: ζ＝c/{2√(mk)} | C29: =C12/(2*SQRT(C11*C13)) -> 0.1 | D29: [ND] | E29: 0.252 | F29: 67.23830574 | G29: -4.62878795 | H29: -0.5798072984 | J29: 67.23826027 | K29: -4.628821375 | L29: -0.5798061752 | N29: -4.546996678e-05 | O29: -3.342555928e-05 | P29: 1.123210853e-06
A30: 減衰率 | B30: γ＝ζω | C30: =C29*C25 -> 1 | E30: 0.264 | F30: 70.64318863 | G30: -3.800422961 | H30: -0.6304234271 | J30: 70.64318389 | K30: -3.800458292 | L30: -0.630422673 | N30: -4.747585137e-06 | O30: -3.533089683e-05 | P30: 7.540937881e-07
A31: 振幅 | B31: A＝x0 | C31: =SQRT(($C$17^2+2*$C$17*$C$29*($C$18/$C$25)+($C$18/$C$25)^2)/(1-$C$29^2)) -> 1.005037815 | D31: [m] | E31: 0.276 | F31: 72.96338089 | G31: -2.937692318 | H31: -0.6708799625 | J31: 72.96341977 | K31: -2.93772905 | L31: -0.6708796167 | N31: 3.888093256e-05 | O31: -3.673204414e-05 | P31: 3.458315573e-07
A32: 初期位相 | B32: α＝0 | C32: =ATAN2($C$17,-($C$18+$C$29*$C$25*$C$17)/($C$25*SQRT(1-$C$29^2))) -> -0.1001674212 | D32: [rad] | E32: 0.288 | F32: 74.19163174 | G32: -2.053671681 | H32: -0.7008428838 | J32: 74.1917164 | K32: -2.053709256 | L32: -0.7008429789 | N32: 8.466048048e-05 | O32: -3.757573714e-05 | P32: -9.509006205e-08
A33: 〝 | B33: 〝 | C33: =DEGREES(C32) -> -5.739170477 | D33: [deg] | E33: 0.3 | F33: 74.33638052 | G33: -1.161429194 | H33: -0.7201352213 | J33: 74.33651229 | K33: -1.161467013 | L33: -0.7201357827 | N33: 0.0001317717337 | O33: -3.781900299e-05 | P33: -5.613372775e-07
A34: A^2＝{x0^2＋2x0ζ(x'0/ω)＋(x'0/ω)^2}/(1－ζ^2) | E34: 0.312 | F34: 73.4212646 | G34: -0.2738399435 | H34: -0.7287358471 | J34: 73.42144394 | K34: -0.2738773737 | L34: -0.728736892 | N34: 0.0001793472107 | O34: -3.743012869e-05 | P34: -1.044869534e-06
A35: α＝atan2[x0,－(x'0+ζωx0)/{ω√(1－ζ^2)}] | E35: 0.324 | F35: 71.4844231 | G35: 0.5965924361 | H35: -0.7267760797 | J35: 71.48464958 | K35: 0.5965560467 | L35: -0.7267776168 | N35: 0.000226488262 | O35: -3.638940816e-05 | P35: -1.537094456e-06
E36: 0.336 | F36: 68.57761095 | G36: 1.437904651 | H36: -0.7145342025 | J36: 68.57788323 | K36: 1.437869962 | L36: -0.7145362316 | N36: 0.0002722826567 | O36: -3.468965536e-05 | P36: -2.029033459e-06
A37: 減衰振動理論値 | E37: 0.348 | F37: 64.76514051 | G37: 2.238830951 | H37: -0.6924280241 | J37: 64.76545633 | K37: 2.238798614 | L37: -0.6924305356 | N37: 0.0003158224327 | O37: -3.233647532e-05 | P37: -2.51149482e-06
A38: x''+2ζωx'+ω^2x=0 | C38: 運動方程式 | E38: 0.36 | F38: 60.12266977 | G38: 2.988946687 | H38: -0.6610056315 | J38: 60.12302599 | K38: 2.988917339 | L38: -0.6610086067 | N38: 0.0003562216726 | O38: -2.934828973e-05 | P38: -2.975250932e-06
A39: x＝Ae^(－ζωt)cos{ω√(1－ζ^2)t＋α} | C39: 解析解 | E39: 0.372 | F39: 54.73585812 | G39: 3.678796521 | H39: -0.6209345116 | J39: 54.73625075 | K39: 3.678770765 | L39: -0.6209379228 | N39: 0.0003926338756 | O39: -2.5756118e-05 | P39: -3.411216396e-06
A40: x'＝－ζωx－Aω√(1－ζ^2)e^(－ζωt)sin{ω√(1－ζ^2)t＋α} | E40: 0.384 | F40: 48.69891178 | G40: 4.300005808 | H40: -0.572989234 | J40: 48.69933605 | K40: 4.299984205 | L40: -0.5729930446 | N40: 0.0004242686034 | O40: -2.160311931e-05 | P40: -3.810623647e-06
A41: x''＝－2ζωx'－ω^2x | E41: 0.396 | F41: 42.11304236 | G41: 4.84537399 | H41: -0.5180379034 | J41: 42.11349277 | K41: 4.845357047 | L41: -0.5180420686 | N41: 0.0004504070976 | O41: -1.694390523e-05 | P41: -4.165192871e-06
E42: 0.408 | F42: 35.08486231 | G42: 5.308949081 | H42: -0.4570276047 | J42: 35.08533273 | K42: 5.308937237 | L42: -0.457032072 | N42: 0.0004704165847 | O42: -1.184363686e-05 | P42: -4.467293109e-06
A43: 計算用 | E43: 0.42 | F43: 27.72474175 | G43: 5.686082644 | H43: -0.3909690704 | J43: 27.72522551 | K43: 5.686076267 | L43: -0.3909737805 | N43: 0.0004837630128 | O43: -6.376923912e-06 | P43: -4.71009165e-06
A44: x＝Ae^(－γt)cos(ωdt＋α) | E44: 0.432 | F44: 20.14515083 | G44: 5.973464942 | H44: -0.3209208072 | J44: 20.14564085 | K44: 5.973464315 | L44: -0.3209256948 | N44: 0.0004900219949 | O44: -6.265466572e-07 | P44: -4.887689016e-06
A45: x'＝－γx－Aωde^(－γt)sin(ωdt＋α) | E45: 0.444 | F45: 12.45901156 | G45: 6.169140227 | H45: -0.2479729201 | J45: 12.45950044 | K45: 6.169145545 | L45: -0.2479779153 | N45: 0.0004888877655 | O45: 5.317975309e-06 | P45: -4.995237161e-06
A46: x''＝－2γx'－ω^2x | E46: 0.456 | F46: 4.778082272 | G46: 6.272502424 | H46: -0.1732308712 | J46: 4.778562452 | K46: 6.272513786 | L46: -0.1732359002 | N46: 0.0004801799971 | O46: 1.136194111e-05 | P46: -5.029038793e-06
E47: 0.468 | F47: -2.78860298 | G47: 6.28427174 | H47: -0.097799405 | J47: -2.788139132 | K47: 6.284289147 | L47: -0.09780439162 | N47: 0.0004638483607 | O47: 1.740712486e-05 | P47: -4.986626104e-06
A48: 1－ζ^2＜0 | B48: 過減衰 | C48: ζ>1 | E48: 0.48 | F48: -10.13621941 | G48: 6.206452976 | H48: -0.02276686543 | J48: -10.13577943 | K48: 6.206476329 | L48: -0.02277173225 | N48: 0.0004399747555 | O48: 2.335350033e-05 | P48: -4.866817561e-06
A49: 1－ζ^2=0 | B49: 臨界減衰 | C49: ζ=1 | E49: 0.492 | F49: -17.16554136 | G49: 6.042276571 | H49: 0.05080988221 | J49: -17.16513259 | K49: 6.042305672 | L49: 0.05080521245 | N49: 0.0004087731751 | O49: 2.910100282e-05 | P49: -4.669751807e-06
A50: 1－ζ^2＞0 | B50: 減衰振動 | C50: 0<ζ<1 | E50: 0.504 | F50: -23.7842197 | G50: 5.79612363 | H50: 0.1219197244 | J50: -23.78384912 | K50: 5.796158181 | L50: 0.1219153275 | N50: 0.0003705872193 | O50: 3.455129702e-05 | P50: -4.396898134e-06
B51: 単振動 | C51: ζ=0 | E51: 0.516 | F51: -29.90793115 | G51: 5.473436373 | H51: 0.1896105841 | J51: -29.90760527 | K51: 5.473475982 | L51: 0.189606533 | N51: 0.0003258853016 | O51: 3.96095195e-05 | P51: -4.051043406e-06
E52: 0.528 | F52: -35.46138632 | G52: 5.080615629 | H52: 0.2530015506 | J52: -35.46111107 | K52: 5.080659815 | L52: 0.2529979144 | N52: 0.0002752536423 | O52: 4.418596518e-05 | P52: -3.636255726e-06
E53: 0.54 | F53: -40.37918546 | G53: 4.624907139 | H53: 0.3112937118 | J53: -40.37896607 | K53: 4.624955337 | L53: 0.311290554 | N53: 0.0002193871759 | O53: 4.819768838e-05 | P53: -3.157825527e-06
E54: 0.552 | F54: -44.60651335 | G54: 4.114278547 | H54: 0.3637795626 | J54: -44.60635428 | K54: 4.114330117 | L54: 0.3637769404 | N54: 0.0001590785361 | O54: 5.156999072e-05 | P54: -2.622185175e-06
E55: 0.564 | F55: -48.09966734 | G55: 3.557289046 | H55: 0.4098508925 | J55: -48.09957213 | K55: 3.557343284 | L55: 0.4098488556 | N55: 9.520531334e-05 | O55: 5.423777011e-05 | P55: -2.036808536e-06
E56: 0.576 | F56: -50.82641484 | G56: 2.962953714 | H56: 0.4490050741 | J56: -50.82638612 | K56: 2.96300986 | L56: 0.449003664 | N56: 2.871581093e-05 | O56: 5.614670797e-05 | P56: -1.410092269e-06
E57: 0.588 | F57: -52.76617944 | G57: 2.340604581 | H57: 0.4808497028 | J57: -52.76621883 | K57: 2.340661835 | L57: 0.4808489516 | N57: -3.938645332e-05 | O57: 5.725427433e-05 | P57: -7.512209534e-07
E58: 0.6 | F58: -53.91005692 | G58: 1.699750494 | H58: 0.5051055593 | J58: -53.91016497 | K58: 1.699808025 | L58: 0.5051054892 | N58: -0.0001080592299 | O58: 5.753053401e-05 | P58: -7.001838132e-08
E59: 0.612 | F59: -54.26066493 | G59: 1.04993779 | H59: 0.5216078935 | J59: -54.26084117 | K59: 1.049994748 | L59: 0.5216085167 | N59: -0.0001762387213 | O59: 5.695874053e-05 | P59: 6.23212402e-07
E60: 0.624 | F60: -53.83183264 | G60: 0.4006137327 | H60: 0.5303060517 | J60: -53.83207549 | K60: 0.4006692684 | L60: 0.5303073696 | N60: -0.0002428571723 | O60: 5.553570792e-05 | P60: 1.317857565e-06
E61: 0.636 | F61: -52.64813827 | G61: -0.2390053905 | H61: 0.5312614905 | J61: -52.64844513 | K61: -0.2389521185 | L61: 0.5312634936 | N61: -0.0003068605674 | O61: 5.327195461e-05 | P61: 2.003166582e-06
E62: 0.648 | F62: -50.74430492 | G62: -0.8600597731 | H62: 0.5246442446 | J62: -50.74467214 | K62: -0.8600095815 | L62: 0.5246469131 | N62: -0.000367226135 | O62: 5.019161749e-05 | P62: 2.668429e-06
E63: 0.66 | F63: -48.16446652 | G63: -1.454163545 | H63: 0.5107279361 | J63: -48.1648895 | K63: -1.454117213 | L63: 0.5107312393 | N63: -0.0004229793651 | O63: 4.633213789e-05 | P63: 3.303150893e-06
E64: 0.672 | F64: -44.96131745 | G64: -2.013512711 | H64: 0.4898834287 | J64: -44.96179066 | K64: -2.013470967 | L64: 0.4898873259 | N64: -0.0004732102536 | O64: 4.174372534e-05 | P64: 3.897228029e-06
E65: 0.684 | F65: -41.19516065 | G65: -2.530982256 | H65: 0.4625712516 | J65: -41.19567774 | K65: -2.530945767 | L65: 0.4625756927 | N65: -0.000517088505 | O65: 3.648860846e-05 | P65: 4.44111288e-06
E66: 0.696 | F66: -36.93287022 | G66: -3.000211303 | H66: 0.4293329283 | J66: -36.9334241 | K66: -3.000180663 | L66: 0.4293378543 | N66: -0.00055387744 | O66: 3.064008602e-05 | P66: 4.925972679e-06
E67: 0.708 | F67: -32.2467852 | G67: -3.415675388 | H67: 0.3907813598 | J67: -32.24736815 | K67: -3.415651107 | L67: 0.3907867036 | N67: -0.0005829463813 | O67: 2.428139426e-05 | P67: 5.343835928e-06
E68: 0.72 | F68: -27.21355191 | G68: -3.772745139 | H68: 0.3475904218 | J68: -27.21415569 | K68: -3.772727634 | L68: 0.3475961096 | N68: -0.0006037813141 | O68: 1.750440967e-05 | P68: 5.687724948e-06
E69: 0.732 | F69: -21.91293255 | G69: -4.067730835 | H69: 0.3004839422 | J69: -21.91354854 | K69: -4.067720427 | L69: 0.300489894 | N69: -0.0006159936502 | O69: 1.040820914e-05 | P69: 5.95177232e-06
E70: 0.744 | F70: -16.4265978 | G70: -4.297912565 | H70: 0.2502242293 | J70: -16.42721712 | K70: -4.297909467 | L70: 0.2502303606 | N70: -0.000619326955 | O70: 3.097511387e-06 | P70: 6.131319322e-06
E71: 0.756 | F71: -10.83692085 | G71: -4.461555879 | H71: 0.1976003261 | J71: -10.83753451 | K71: -4.461560198 | L71: 0.1976065491 | N71: -0.0006136615321 | O71: -4.318974439e-06 | P71: 6.22299481e-06
E72: 0.768 | F72: =-2*$C$30*G72-$C$25^2*H72 -> -5.225790137 | G72: =-$C$30*H72-$C$31*$C$27*EXP(-$C$30*E72)*SIN($C$27*E72+$C$32) -> -4.557913069 | H72: =$C$31*EXP(-$C$30*E72)*COS($C$27*E72+$C$32) -> 0.1434161628 | J72: -5.226389154 | K72: -4.5579248 | L72: 0.1434223875 | N72: -0.0005990167962 | O72: -1.173026562e-05 | P72: 6.224773274e-06
E73: =E72+$C$8 -> 0.78 | F73: 0.3265429544 | G73: -4.587210399 | H73: 0.08847877843 | J73: 0.325967403 | K73: -4.587229424 | L73: 0.08848491444 | N73: -0.0005755514 | O73: -1.902486013e-05 | P73: 6.136011203e-06
E74: 0.792 | F74: 5.74256574 | G74: -4.550621784 | H74: 0.03358677829 | J74: 5.742022179 | K74: -4.550647877 | L74: 0.03359273575 | N74: -0.0005435611206 | O74: -2.609249954e-05 | P74: 5.957461197e-06
E75: 0.804 | F75: 10.94854087 | G75: -4.450229644 | H75: -0.0204808158 | J75: 10.94803739 | K75: -4.45026247 | L75: -0.02047512454 | N75: -0.0005034745438 | O75: -3.282591204e-05 | P75: 5.691263679e-06
E76: 0.816 | F76: 15.87546471 | G76: -4.288973757 | H76: -0.07297517199 | J76: 15.87500887 | K76: -4.28901288 | L76: -0.07296983108 | N76: -0.0004558466247 | O76: -3.91225073e-05 | P76: 5.340916393e-06
E77: 0.828 | F77: 20.45993576 | G77: -4.070589153 | H77: -0.1231875745 | J77: 20.45953441 | K77: -4.070634039 | L77: -0.1231826633 | N77: -0.0004013502327 | O77: -4.488599606e-05 | P77: 4.911222249e-06
E78: 0.84 | F78: 24.64492278 | G78: -3.799534174 | H78: -0.1704585443 | J78: 24.64458202 | K78: -3.799584202 | L78: -0.1704541361 | N78: =J78-F78 -> -0.0003407658243 | O78: -5.002790851e-05 | P78: 4.408216413e-06
E79: 0.852 | F79: 28.38042429 | G79: -3.48090996 | H79: -0.2141860437 | J79: 28.38014932 | K79: -3.480964429 | L79: -0.2141822046 | N79: -0.0002749694153 | O79: -5.446898745e-05 | P79: 3.839073902e-06
E80: 0.864 | F80: 31.62401239 | G80: -3.120372713 | H80: -0.2538326697 | J80: 31.62380747 | K80: -3.120430854 | L80: -0.2538294577 | N80: -0.0002049190498 | O80: -5.81404343e-05 | P80: 3.211999184e-06
E81: 0.876 | F81: 34.3412562 | G81: -2.724040148 | H81: -0.288931759 | J81: 34.34112456 | K81: -2.724101133 | L81: -0.2889292229 | N81: -0.0001316399889 | O81: -6.098498854e-05 | P81: 2.536099659e-06
E82: 0.888 | F82: 36.50602145 | G82: -2.29839361 | H82: -0.3190923423 | J82: 36.50596524 | K82: -2.298456568 | L82: -0.319090521 | N82: -5.62088574e-05 | O82: -6.29578239e-05 | P82: 1.821245052e-06
E83: 0.9 | F83: 38.1006452 | G83: -1.850177338 | H83: -0.3440029053 | J83: 38.10066546 | K83: -1.850241365 | L83: -0.3440018273 | N83: 2.026299285e-05 | O83: -6.40272478e-05 | P83: 1.077915028e-06
E84: 0.912 | F84: 39.11598595 | G84: -1.386296386 | H84: -0.3634339318 | J84: 39.1160826 | K84: -1.386360561 | L84: -0.3634336148 | N84: 9.664663899e-05 | O84: -6.417519352e-05 | P84: 3.170374805e-07
E85: 0.924 | F85: 39.55135146 | G85: -0.9137146788 | H85: -0.3772392211 | J85: 39.55152328 | K85: -0.9137780763 | L85: -0.3772396712 | N85: 0.0001718129862 | O85: -6.339749825e-05 | P85: -4.501798967e-07
E86: 0.936 | F86: 39.41430824 | G86: -0.439354648 | H86: -0.3853559894 | J86: 39.41455289 | K86: -0.4394163519 | L86: -0.3853572018 | N86: 0.0002446501356 | O86: -6.170396335e-05 | P86: -1.212422089e-06
E87: 0.948 | F87: 38.72037812 | G87: 0.03000016362 | H87: -0.3878037845 | J87: 38.72069221 | K87: 0.02994104542 | L87: -0.387805743 | N87: 0.0003140804465 | O87: -5.911819675e-05 | P87: -1.95844053e-06
E88: 0.96 | F88: 37.4926291 | G88: 0.4877982114 | H88: -0.3846822552 | J88: 37.49300818 | K88: 0.4877425342 | L88: -0.3846849325 | N88: 0.000379077026 | O88: -5.567724102e-05 | P88: -2.67722544e-06
E89: 0.972 | F89: 35.76116847 | G89: 0.9278075551 | H89: -0.3761678358 | J89: 35.76160715 | K89: 0.9277561241 | L89: -0.376171194 | N89: 0.0004386793891 | O89: -5.143099356e-05 | P89: -3.35817402e-06
E90: 0.984 | F90: 33.56254806 | G90: 1.344196845 | H90: -0.3625094175 | J90: 33.56304007 | K90: 1.344150403 | L90: -0.3625134087 | N90: 0.0004920080479 | O90: -4.644142938e-05 | P90: -3.991251892e-06
E91: 0.996 | F91: 30.93909194 | G91: 1.731608694 | H91: -0.3440230933 | J91: 30.93963022 | K91: 1.731567912 | L91: -0.3440276604 | N91: 0.0005382778057 | O91: -4.078163894e-05 | P91: -4.567145278e-06
E92: 1.008 | F92: 27.93815806 | G92: 2.085224574 | H92: -0.3210860721 | J92: 27.93873487 | K92: 2.08519004 | L92: -0.3210911495 | N92: 0.0005768095556 | O92: -3.453469752e-05 | P92: -5.077401606e-06
E93: 1.02 | F93: 24.61134584 | G93: 2.400820519 | H93: -0.2941298688 | J93: 24.61195288 | K93: 2.400792727 | L93: -0.2941353834 | N93: 0.0006070404052 | O93: -2.779238407e-05 | P93: -5.514556371e-06
E94: 1.032 | F94: 21.01366227 | G94: 2.674813049 | H94: -0.2636328837 | J94: 21.0142908 | K94: 2.674792396 | L94: -0.2636387559 | N94: 0.0006285319797 | O94: -2.065377055e-05 | P94: -5.872244386e-06
E95: 1.044 | F95: 17.20265937 | G95: 2.904294914 | H95: -0.230112492 | J95: 17.20330035 | K95: 2.90428169 | L95: -0.2301186373 | N95: 0.0006409767816 | O95: -1.322370404e-05 | P95: -6.145293735e-06
E96: 1.056 | F96: 13.23755597 | G96: 3.087060368 | H96: -0.194116767 | J96: 13.23820017 | K96: 3.087054756 | L96: -0.1941230968 | N96: 0.0006442025202 | O96: -5.611206018e-06 | P96: -6.329801082e-06
E97: 1.068 | F97: 9.178356543 | G97: 3.221619885 | H97: -0.1562159631 | J97: 9.178994717 | K97: 3.221621957 | L97: -0.1562223863 | N97: 0.0006381743532 | O97: 2.072186313e-06 | P97: -6.423187258e-06
E98: 1.08 | F98: 5.084979861 | G98: 3.307204341 | H98: -0.1169938854 | J98: 5.085602856 | K98: 3.307214055 | L98: -0.1170003097 | N98: 0.0006229950172 | O98: 9.714110373e-06 | P98: -6.42423238e-06
E99: 1.092 | F99: 1.01640947 | G99: 3.343758861 | H99: -0.07703927191 | J99: 1.017008373 | K99: 3.343776064 | L99: -0.077045605 | N99: 0.0005989028572 | O99: 1.720307422e-05 | P99: -6.333090057e-06
E100: 1.104 | F100: -2.970122374 | G100: 3.33192666 | H100: -0.03693730945 | J100: -2.969556106 | K100: 3.33195109 | L100: -0.03694346073 | N100: 0.0005662677963 | O100: 2.443013191e-05 | P100: -6.151280601e-06
E101: 1.116 | F101: -6.819906526 | G101: 3.273023348 | H101: 0.002738598308 | J101: -6.819380941 | K101: 3.273054638 | L101: 0.002732716645 | N101: 0.0005255853202 | O101: 3.129051257e-05 | P101: -5.881663454e-06
E102: 1.128 | F102: -10.48147462 | G102: 3.169002288 | H102: 0.04143470047 | J102: -10.48099715 | K102: 3.169039973 | L102: 0.04142917208 | N102: 0.0004774685802 | O102: 3.76851785e-05 | P102: -5.528389372e-06
E103: 1.14 | F103: -13.90725367 | G103: 3.022411711 | H103: 0.07862430244 | J103: -13.90683103 | K103: 3.022455234 | L103: 0.07861920561 | N103: 0.0004226387467 | O103: 4.352228867e-05 | P103: -5.09683324e-06
E104: 1.152 | F104: -17.05414974 | G104: 2.836344398 | H104: 0.1138146095 | J104: -17.05378783 | K104: 2.836393116 | L104: 0.113810016 | N104: 0.0003619137724 | O104: 4.871854589e-05 | P104: -4.593508642e-06
E105: 1.164 | F105: -19.88405422 | G105: 2.614380806 | H105: 0.1465529261 | J105: -19.88375803 | K105: 2.614434007 | L105: 0.1465489001 | N105: 0.0002961957468 | O105: 5.320040771e-05 | P105: -4.025965622e-06
E106: 1.176 | F106: -22.36426713 | G106: 2.36052663 | H106: 0.1764321387 | J106: -22.36404067 | K106: 2.360583535 | L106: 0.176428736 | N106: 0.0002264570428 | O106: 5.69051434e-05 | P106: -3.402673296e-06
E107: 1.188 | F107: -24.46783358 | G107: 2.079145782 | H107: 0.2030954201 | J107: -24.46767985 | K107: 2.079205563 | L107: 0.2030926872 | N107: 0.0001537254773 | O107: 5.978172181e-05 | P107: -2.73288921e-06
E108: 1.2 | F108: -26.17379062 | G108: 1.774889883 | H108: 0.2262401086 | J108: -26.17371155 | K108: 1.774951674 | L108: 0.2262380821 | N108: 7.90687156e-05 | O108: 6.179151784e-05 | P108: -2.026517513e-06
E109: 1.212 | F109: -27.46732307 | G109: 1.452625335 | H109: 0.245620724 | J109: -27.46731949 | K109: 1.452688244 | L109: 0.24561943 | N109: 3.578163955e-06 | O109: 6.290882778e-05 | P109: -1.293958195e-06
E110: 1.224 | F110: -28.33982822 | G110: 1.117359065 | H110: 0.2610511009 | J110: -28.33989987 | K110: 1.117422186 | L110: 0.261050555 | N110: -7.164740206e-05 | O110: 6.312118708e-05 | P110: -5.459497211e-07
E111: 1.236 | F111: -28.78889083 | G111: 0.774164039 | H111: 0.2724056276 | J111: -28.78903635 | K111: 0.7742264685 | L111: 0.2724058342 | N111: -0.0001455182227 | O111: 6.242948711e-05 | P111: 2.065924843e-07
E112: 1.248 | F112: -28.81817069 | G112: 0.428105601 | H112: 0.2796195949 | J112: -28.81838766 | K112: 0.4281664489 | L112: 0.2796205476 | N112: -0.0002169697042 | O112: 6.084789042e-05 | P112: 9.527392331e-07
E113: 1.26 | F113: -28.43720652 | G113: 0.08416966694 | H113: 0.2826886719 | J113: -28.4374915 | K113: 0.08422807049 | L113: 0.2826903536 | N113: -0.0002849780906 | O113: 5.840354735e-05 | P113: 1.681709959e-06
E114: 1.272 | F114: -27.66114105 | G114: -0.2528062484 | H114: 0.2816675355 | J114: -27.66148963 | K114: -0.2527511123 | L114: 0.2816699185 | N114: -0.000348575424 | O114: 5.513611961e-05 | P114: 2.383031848e-06
E115: 1.284 | F115: -26.51037289 | G115: -0.5781982611 | H115: 0.2766676942 | J115: -26.51077976 | K115: -0.578147164 | L115: 0.2766707408 | N115: -0.0004068635707 | O115: 5.109711953e-05 | P115: 3.046693317e-06
E116: 1.296 | F116: -25.010142 | G116: -0.8876567638 | H116: 0.2678545553 | J116: -25.01060103 | K116: -0.8876104147 | L116: 0.2678582186 | N116: -0.0004590271111 | O116: 4.634907623e-05 | P116: 3.663289586e-06
E117: 1.308 | F117: -23.19005618 | G117: -1.177161736 | H117: 0.2554437966 | J117: -23.19056053 | K117: -1.177120772 | L117: 0.2554480207 | N117: -0.0005043449039 | O117: 4.096454269e-05 | P117: 4.224158185e-06
E118: 1.32 | F118: -21.08356674 | G118: -1.44307206 | H118: 0.2396971086 | J118: -21.08410894 | K118: -1.443037035 | L118: 0.2397018301 | N118: -0.0005422001637 | O118: 3.502495989e-05 | P118: 4.721502439e-06
E119: 1.332 | F119: -18.72740191 | G119: -1.682168279 | H119: 0.2209173847 | J119: -18.727974 | K119: -1.68213966 | L119: 0.2209225332 | N119: -0.000572088909 | O119: 2.861939612e-05 | P119: 5.148501168e-06
E120: 1.344 | F120: -16.16096723 | G120: -1.891688353 | H120: 0.1994434393 | J120: -16.16156086 | K120: -1.891666509 | L120: 0.1994489387 | N120: -0.0005936266686 | O120: 2.18431816e-05 | P120: 5.499403054e-06
E121: 1.356 | F121: -13.42572201 | G121: -2.069356062 | H121: 0.1756443413 | J121: -13.42632856 | K121: -2.069341265 | L121: 0.1756501109 | N121: -0.0006065533572 | O121: 1.479645963e-05 | P121: 5.76960438e-06
E122: 1.368 | F122: -10.56454143 | G122: -2.213401836 | H122: 0.149913451 | J122: -10.56515217 | K122: -2.213394254 | L122: 0.1499194067 | N122: -0.0006107362642 | O122: 7.582676687e-06 | P122: 5.955709108e-06
E123: 1.38 | F123: -7.62107365 | G123: -2.322575889 | H123: 0.1226622543 | J123: -7.621679821 | K123: -2.322575582 | L123: 0.1226683099 | N123: -0.0006061711233 | O123: 3.070347447e-07 | P123: 6.055570538e-06
E124: 1.392 | F124: -4.639101169 | G124: -2.396153651 | H124: 0.09431408471 | J124: -4.63969415 | K124: -2.396160576 | L124: 0.09432015302 | N124: -0.000592981266 | O124: -6.92507076e-06 | P124: 6.068314076e-06
E125: 1.404 | F125: -1.661915424 | G125: -2.433933611 | H125: 0.06529782646 | J125: -1.662486839 | K125: -2.43394762 | L125: 0.0653038208 | N125: -0.0005714148849 | O125: -1.400960381e-05 | P125: 5.994340925e-06
E126: 1.416 | F126: 1.268286799 | G126: -2.436227778 | H126: 0.03604168758 | J126: 1.267744958 | K126: -2.436248624 | L126: 0.03604752289 | N126: -0.000541840465 | O126: -2.084540831e-05 | P126: 5.835312817e-06
E127: 1.428 | F127: 4.110977087 | G127: -2.40384507 | H127: 0.006967130529 | J127: 4.110472347 | K127: -2.403872406 | L127: 0.006972724647 | N127: -0.0005047404677 | O127: -2.733567378e-05 | P127: 5.594118152e-06
E128: 1.44 | F128: 6.827831808 | G128: -2.338068031 | H128: -0.02151695747 | J128: 6.827371105 | K128: -2.33810142 | L128: -0.02151168265 | N128: -0.0004607033747 | O128: -3.338932483e-05 | P128: 5.274820244e-06
E129: 1.452 | F129: 9.38322446 | G129: -2.240623374 | H129: -0.04901977712 | J129: 9.382814046 | K129: -2.240662297 | L129: -0.04901489453 | N129: -0.0004104142284 | O129: -3.892231434e-05 | P129: 4.88258857e-06
E130: 1.464 | F130: 11.74466802 | G130: -2.113646911 | H130: -0.07517374195 | J130: 11.74431337 | K130: -2.11369077 | L130: -0.07516931834 | N130: -0.0003546438189 | O130: -4.385880182e-05 | P130: 4.423614225e-06
E131: 1.476 | F131: 13.88320217 | G131: -1.959643495 | H131: -0.09963915182 | J131: 13.88290793 | K131: -1.959691627 | L131: -0.09963524681 | N131: -0.0002942366956 | O131: -4.813220058e-05 | P131: 3.905010967e-06
E132: 1.488 | F132: 15.77372126 | G132: -1.78144267 | H132: -0.1221083592 | J132: 15.77349117 | K132: -1.781494356 | L132: -0.1221050245 | N132: -0.0002300981882 | O132: -5.168607906e-05 | P132: 3.334703463e-06
E133: 1.5 | F133: 17.39523967 | G133: -1.582150764 | H133: -0.1423093814 | J133: 17.39507649 | K133: -1.582205239 | L133: -0.1423066601 | N133: -0.0001631806433 | O133: -5.447490453e-05 | P133: 2.721304523e-06
E134: 1.512 | F134: 18.73109232 | G134: -1.365100176 | H134: -0.1600089197 | J134: 18.73099785 | K134: -1.36515664 | L134: -0.1600068457 | N134: -9.446908463e-05 | O134: -5.646461922e-05 | P134: 2.073983231e-06
E135: 1.524 | F135: 19.76906911 | G135: -1.133796656 | H135: -0.175014758 | J135: 19.76904414 | K135: -1.133854289 | L135: -0.1750133556 | N135: -2.496651961e-05 | O135: -5.763304219e-05 | P135: 1.40232604e-06
E136: 1.536 | F136: =-2*$C$30*G136-$C$25^2*H136 -> 20.50148272 | G136: =-$C$30*H136-$C$31*$C$27*EXP(-$C$30*E136)*SIN($C$27*E136+$C$32) -> -0.8918653743 | H136: =$C$31*EXP(-$C$30*E136)*COS($C$27*E136+$C$32) -> -0.1871775197 | J136: 20.50152704 | K136: -0.8919233443 | L136: -0.1871768035 | N136: 4.432089004e-05 | O136: -5.797009234e-05 | P136: 7.161929464e-07
E137: =E136+$C$8 -> 1.548 | F137: 20.92517068 | G137: -0.6429965692 | H137: -0.1963917754 | J137: 20.92528308 | K137: -0.643054047 | L137: -0.1963917498 | N137: 0.0001123985694 | O137: -5.74778312e-05 | P137: 2.55709299e-08
E138: 1.56 | F138: 21.04143294 | G138: -0.3908915601 | H138: -0.2025964982 | J138: 21.04161124 | K138: -0.3909477304 | L138: -0.2025971578 | N138: 0.0001782979669 | O138: -5.617032635e-05 | P138: -6.595731417e-07
E139: 1.572 | F139: 20.85590763 | G139: -0.1392098838 | H139: -0.2057748786 | J139: 20.85614872 | K139: -0.1392639572 | L139: -0.205776208 | N139: 0.0002410904742 | O139: -5.407333941e-05 | P139: -1.329437953e-06
E140: 1.584 | F140: 20.37838801 | G140: 0.1084817226 | H140: -0.2059535146 | J140: 20.37868791 | K140: 0.1084304987 | L140: -0.2059554891 | N140: 0.0002999006292 | O140: -5.12238448e-05 | P140: -1.974529396e-06
E141: 1.596 | F141: 19.62258481 | G141: 0.3487578094 | H141: -0.2032010043 | J141: 19.62293873 | K141: 0.34871014 | L141: -0.2032035901 | N141: 0.0003539184133 | O141: -4.766938828e-05 | P141: -2.585796367e-06
E142: 1.608 | F142: 18.60583841 | G142: 0.5783795449 | H142: -0.197625975 | J142: 18.60624082 | K142: 0.5783360777 | L142: -0.1976291298 | N142: =J142-F142 -> 0.0004024104688 | O142: -4.346729598e-05 | P142: -3.154758768e-06
E143: 1.62 | F143: 17.34878641 | G143: 0.7943363183 | H143: -0.1893745905 | J143: 17.34923115 | K143: 0.7942976346 | L143: -0.1893782641 | N143: 0.0004447300838 | O143: -3.868374754e-05 | P143: -3.673625887e-06
E144: 1.632 | F144: 15.87499209 | G144: 0.993883113 | H144: -0.1786275832 | J144: 15.87547242 | K144: 0.9938497203 | L144: -0.1786317186 | N144: 0.000480325807 | O144: -3.339272811e-05 | P144: -4.135403508e-06
E145: 1.644 | F145: 14.21054017 | G145: 1.174573219 | H145: -0.1655968661 | J145: 14.21104892 | K145: 1.174545544 | L145: -0.1656014001 | N145: 0.0005087485808 | O145: -2.767487611e-05 | P145: -4.533988285e-06
E146: 1.656 | F146: 12.38360634 | G146: 1.334285931 | H146: -0.150521782 | J146: 12.384136 | K146: 1.334264314 | L146: -0.1505266463 | N146: 0.0005296573009 | O146: -2.16162447e-05 | P146: -4.864248115e-06
E147: 1.668 | F147: 10.42400723 | G147: 1.471248953 | H147: -0.1336650513 | J147: 10.42455005 | K147: 1.471233646 | L147: -0.1336701734 | N147: 0.0005428227393 | O147: -1.530699633e-05 | P147: -5.122087467e-06
E148: 1.68 | F148: 8.362737751 | G148: 1.584055328 | H148: -0.1153084841 | J148: 8.363285881 | K148: 1.584046488 | L148: -0.1153137886 | N148: 0.0005481297862 | O148: -8.84004999e-06 | P148: -5.304496863e-06
E149: 1.692 | F149: 6.2315027 | G149: 1.671674764 | H149: -0.09574852229 | J149: 6.232048278 | K149: 1.671672455 | L149: -0.09575393188 | N149: 0.0005455779991 | O149: -2.309701988e-06 | P149: -5.409585951e-06
E150: 1.704 | F150: 4.062249325 | G150: 1.733459349 | H150: -0.07529168022 | J150: 4.062784605 | K150: 1.733463538 | L150: -0.07529711682 | N150: 0.0005352804661 | O150: 4.189759437e-06 | P150: -5.43659985e-06
E151: 1.716 | F151: 1.886707563 | G151: 1.769143683 | H151: -0.0542499493 | J151: 1.887225024 | K151: 1.769154249 | L151: -0.05425533522 | N151: 0.0005174610201 | O151: 1.056542506e-05 | P151: -5.385918702e-06
E152: 1.728 | F152: -0.2640557292 | G152: 1.77883959 | H152: -0.0329362345 | J152: -0.2635632793 | K152: 1.778856317 | L152: -0.03294149354 | N152: 0.0004924498613 | O152: 1.672710119e-05 | P152: -5.259040636e-06
E153: 1.74 | F153: -2.360062567 | G153: 1.763025571 | H153: -0.01165988575 | J153: -2.359601889 | K153: 1.763048159 | L153: -0.0116649443 | N153: 0.0004606776697 | O153: 2.25885925e-05 | P153: -5.058548547e-06
E154: 1.752 | F154: -4.372824041 | G154: 1.722531318 | H154: 0.009277614052 | J154: -4.372401373 | K154: 1.722559387 | L154: 0.009272825991 | N154: 0.000422668312 | O154: 2.806891278e-05 | P154: -4.788061375e-06
E155: 1.764 | F155: -6.275709881 | G155: 1.658517589 | H155: 0.02958674702 | J155: -6.27533085 | K155: 1.658550683 | L155: 0.02958229485 | N155: 0.0003790302637 | O155: 3.309340676e-05 | P155: -4.452170772e-06
E156: 1.776 | F156: -8.044282831 | G156: 1.572451865 | H156: 0.04899379101 | J156: -8.043952384 | K156: 1.572489459 | L156: 0.04898973465 | N156: 0.0003304468875 | O156: 3.759476736e-05 | P156: -4.056364223e-06
E157: 1.788 | F157: -9.656593937 | G157: 1.466080215 | H157: 0.06724433507 | J157: -9.656316271 | K157: 1.466121729 | L157: 0.06724072814 | N157: 0.0002776657235 | O157: 4.151393474e-05 | P157: -3.60693593e-06
E158: 1.8 | F158: -11.09343547 | G158: 1.341395882 | H158: 0.08410643701 | J158: -11.09321398 | K158: 1.341440683 | L158: 0.08410332612 | N158: 0.0002214869592 | O158: 4.480086508e-05 | P158: -3.110886893e-06
E159: 1.812 | F159: -12.33854887 | G159: 1.200605092 | H159: 0.09937338685 | J159: -12.33838612 | K159: 1.200652507 | L159: 0.09937081103 | N159: 0.0001627512578 | O159: 4.741515948e-05 | P159: -2.575815768e-06
E160: 1.824 | F160: -13.3787859 | G160: 1.046090646 | H160: 0.1128660461 | J160: -13.37868357 | K160: 1.046139972 | L160: 0.1128640363 | N160: 0.0001023271313 | O160: 4.932654522e-05 | P160: -2.009802217e-06
E161: 1.836 | F161: -14.20422173 | G161: 0.8803738742 | H161: 0.1244347398 | J161: -14.20418063 | K161: 0.8804243894 | L161: 0.1244333185 | N161: 4.109804613e-05 | O161: 5.051520398e-05 | P161: -1.421284541e-06
E162: 1.848 | F162: -14.80821951 | G162: 0.7060755177 | H162: 0.1339606848 | J162: -14.80823956 | K162: 0.7061264897 | L162: 0.1339598658 | N162: -2.005054249e-05 | O162: 5.097194414e-05 | P162: -8.189334579e-07
E163: 1.86 | F163: -15.18744679 | G163: 0.5258761251 | H163: 0.1413569454 | J163: -15.18752703 | K163: 0.5259268233 | L163: 0.1413567338 | N163: -8.024404082e-05 | O163: 5.069821616e-05 | P163: -2.115239149e-07
E164: 1.872 | F164: -15.34184443 | G164: 0.3424765403 | H164: 0.1465689135 | J164: -15.34198306 | K164: 0.3425262462 | L164: 0.1465693057 | N164: -0.000138631262 | O164: 4.970597295e-05 | P164: 3.921931614e-07
E165: 1.884 | F165: -15.2745499 | G165: 0.1585590383 | H165: 0.1495743182 | J165: -15.27474429 | K165: 0.1586070556 | L165: 0.1495753018 | N165: -0.0001943964879 | O165: 4.801737879e-05 | P165: 9.836173033e-07
E166: 1.896 | F166: -14.99177681 | G166: -0.02325035378 | H166: 0.1503827752 | J166: -14.99202358 | K166: -0.0232046894 | L166: 0.1503843296 | N166: -0.0002467708756 | O166: 4.566437304e-05 | P166: 1.554421296e-06
E167: 1.908 | F167: -14.50265373 | G167: -0.2004178425 | H167: 0.1490348942 | J167: -14.50294877 | K167: -0.2003751544 | L167: 0.1490369908 | N167: -0.0002950430508 | O167: 4.268809665e-05 | P167: 2.096668575e-06
E168: 1.92 | F168: -13.81902527 | G168: -0.3705356902 | H168: 0.1456009666 | J168: -13.81936384 | K168: -0.370496552 | L168: 0.1456035695 | N168: -0.0003385687409 | O168: 3.913819149e-05 | P168: 2.60292358e-06
E169: 1.932 | F169: -12.95521939 | G169: -0.5313534429 | H169: 0.1401792628 | J169: -12.95559617 | K169: -0.5313183709 | L169: 0.1401823291 | N169: -0.0003767793212 | O169: 3.507198429e-05 | P169: 3.066353526e-06
E170: 1.944 | F170: -11.92778484 | G170: -0.6808061829 | H170: 0.1328939721 | J170: -11.92819403 | K170: -0.6807756293 | L170: 0.1328974529 | N170: -0.0004091891588 | O170: 3.055356839e-05 | P170: 3.480820221e-06
E171: 1.956 | F171: -10.75520337 | G171: -0.8170394746 | H171: 0.1238928231 | J171: -10.75563877 | K171: -0.8170138218 | L171: 0.1238966641 | N171: -0.0004354016659 | O171: 2.565279815e-05 | P171: 3.840960695e-06
E172: 1.968 | F172: -9.457581163 | G172: -0.9384307272 | H172: 0.1133444262 | J172: -9.458036277 | K172: -0.938410283 | L172: 0.1133485684 | N172: -0.0004551139846 | O172: 2.044421156e-05 | P172: 4.142255615e-06
E173: 1.98 | F173: -8.056324658 | G173: -1.043606757 | H173: 0.1014353817 | J173: -8.056792779 | K173: -1.043591751 | L173: 0.1014397628 | N173: -0.0004681202572 | O173: 1.500589771e-05 | P173: 4.381084618e-06
E174: 1.992 | F174: -6.573805433 | G174: -1.131457385 | H174: 0.08836720203 | J174: -6.574279747 | K174: -1.131447967 | L174: 0.0883717568 | N174: -0.0004743134458 | O174: 9.418326369e-06 | P174: 4.55476793e-06
E175: 2.004 | F175: -5.033019409 | G175: -1.201144982 | H175: 0.07435309373 | J175: -5.033493095 | K175: -1.201141219 | L175: 0.07435775533 | N175: -0.0004736856975 | O175: 3.763157191e-06 | P175: 4.661593831e-06
E176: 2.016 | F176: -3.457245235 | G176: -1.252109906 | H176: 0.05961465046 | J176: -3.457711563 | K176: -1.252111784 | L176: 0.0596193513 | N176: -0.000466327265 | O176: -1.877953898e-06 | P176: 4.700831728e-06
E177: 2.028 | F177: -1.869706759 | G177: -1.284071862 | H177: 0.04437850482 | J177: -1.870159183 | K177: -1.284079286 | L177: 0.04438317755 | N177: -0.0004524240168 | O177: -7.424533632e-06 | P177: 4.672730841e-06
E178: 2.04 | F178: -0.2932442771 | G178: -1.297027265 | H178: 0.02887298808 | J178: -0.2936765307 | K178: -1.297040064 | L178: 0.02887756658 | N178: -0.0004322535915 | O178: -1.279843868e-05 | P178: 4.578504689e-06
E179: 2.052 | F179: 1.250000959 | G179: -1.291242727 | H179: 0.01332484495 | J179: 1.249594779 | K179: -1.291260652 | L179: 0.01332926525 | N179: -0.000406180269 | O179: -1.792495495e-05 | P179: 4.420301789e-06
E180: 2.064 | F180: 2.738884831 | G180: -1.267244858 | H180: -0.002043951148 | J180: 2.738510182 | K180: -1.267267592 | L180: -0.002039749985 | N180: -0.0003746486488 | O180: -2.273383355e-05 | P180: 4.201163159e-06
E181: 2.076 | F181: 4.153537194 | G181: -1.225806621 | H181: -0.01701923952 | J181: 4.153199018 | K181: -1.225833781 | L181: -0.01701531455 | N181: -0.0003381762441 | O181: -2.716024904e-05 | P181: 3.924967422e-06
E182: 2.088 | F182: 5.475614052 | G182: -1.167930501 | H182: -0.0313975305 | J182: 5.475316707 | K182: -1.167961647 | L182: -0.03139393413 | N182: -0.0002973451112 | O182: -3.114566713e-05 | P182: 3.596364455e-06
E183: 2.1 | F183: 6.688522062 | G183: -1.094828819 | H183: -0.04498864425 | J183: 6.68826927 | K183: -1.094863457 | L183: -0.04498542355 | N183: -0.0002527926502 | O183: -3.463861027e-05 | P183: 3.220698707e-06
E184: 2.112 | F184: 7.777612834 | G184: -1.007901522 | H184: -0.05761809789 | J184: 7.777407632 | K184: -1.007939117 | L184: -0.05761529397 | N184: -0.0002052017202 | O184: -3.759531137e-05 | P184: 2.80392343e-06
E185: 2.124 | F185: 8.730344982 | G185: -0.9087118439 | H185: -0.06912921294 | J185: 8.730189691 | K185: -0.9087518241 | L185: -0.06912686043 | N185: -0.0001552902228 | O185: -3.998024749e-05 | P185: 2.352507177e-06
E186: 2.136 | F186: 9.536412393 | G186: -0.7989602126 | H186: -0.07938491968 | J186: 9.536308593 | K186: -0.7990019791 | L186: -0.07938304635 | N186: -0.0001038003101 | O186: -4.176654742e-05 | P186: 1.873334049e-06
E187: 2.148 | F187: 10.18783769 | G187: -0.6804568337 | H187: -0.08826924018 | J187: 10.1877862 | K187: -0.68049977 | L187: -0.08826786658 | N187: -5.148738223e-05 | O187: -4.293626881e-05 | P187: 1.373599198e-06
E188: 2.16 | F188: 10.67903035 | G188: -0.5550933605 | H188: -0.0956884363 | J188: 10.67903124 | K188: -0.555136841 | L188: -0.09568757559 | N188: 8.909667866e-07 | O188: -4.348054246e-05 | P188: 8.607011814e-07
E189: 2.172 | F189: 11.0068096 | G189: -0.4248140792 | H189: -0.1015718144 | J189: 11.00686219 | K189: -0.4248574788 | L189: -0.1015714723 | N189: 5.258589031e-05 | O189: -4.339958356e-05 | P189: 3.421327681e-07
E190: 2.184 | F190: 11.17039244 | G190: -0.2915870298 | H190: -0.1058721838 | J190: 11.1704953 | K190: -0.2916297324 | L190: -0.1058723584 | N190: 0.0001028679621 | O190: -4.270257131e-05 | P190: -1.746281947e-07
E191: 2.196 | F191: 11.1713479 | G191: -0.1573754739 | H191: -0.1085659695 | J191: 11.17149893 | K191: -0.1574168813 | L191: -0.1085666517 | N191: 0.0001510374288 | O191: -4.140740056e-05 | P191: -6.822262766e-07
E192: 2.208 | F192: 11.013519 | G192: -0.0241101069 | H192: -0.1096529878 | J192: 11.01371543 | K192: -0.02414964721 | L192: -0.1096541614 | N192: 0.0001964338989 | O192: -3.954031064e-05 | P192: -1.173532776e-06
E193: 2.22 | F193: 10.70291418 | G193: 0.1063376075 | H193: -0.109155894 | J193: 10.70315263 | K193: 0.1063004721 | L193: -0.1091575357 | N193: 0.0002384453349 | O193: -3.713539849e-05 | P193: -1.641745379e-06
E194: 2.232 | F194: 10.24757058 | G194: 0.2321806291 | H194: -0.1071193184 | J194: 10.2478471 | K194: 0.2321463951 | L194: -0.1071213989 | N194: 0.0002765162282 | O194: -3.423402469e-05 | P194: -2.080481788e-06
E195: 2.244 | F195: 9.657391705 | G195: 0.3517397359 | H195: -0.1036087118 | J195: 9.65770186 | K195: 0.3517088517 | L195: -0.1036111956 | N195: 0.0003101548475 | O195: -3.08841224e-05 | P195: -2.483866027e-06
E196: 2.256 | F196: 8.943962397 | G196: 0.4634648311 | H196: -0.0987089206 | J196: 8.944301337 | K196: 0.4634376917 | L196: -0.0987117672 | N196: 0.0003389394703 | O196: -2.713942056e-05 | P196: -2.846606291e-06
E197: 2.268 | F197: 8.120344364 | G197: 0.5659539108 | H197: -0.09252252186 | J197: 8.120706888 | K197: 0.5659308522 | L197: -0.09252568592 | N197: 0.0003625235189 | O197: -2.305859385e-05 | P197: -3.164063312e-06
E198: 2.28 | F198: 7.200855508 | G198: 0.657969476 | H198: -0.0851679446 | J198: 7.201236147 | K198: 0.6579507717 | L198: -0.08517137691 | N198: 0.0003806395431 | O198: -1.870435255e-05 | P198: -3.43230838e-06
E199: 2.292 | F199: 6.20083666 | G199: 0.7384522188 | H199: -0.07677741097 | J199: 6.201229762 | K199: 0.7384380764 | L199: -0.07678105914 | N199: 0.0003931020051 | O199: -1.41424865e-05 | P199: -3.648170321e-06
E200: 2.304 | F200: =-2*$C$30*G200-$C$25^2*H200 -> 5.136409308 | G200: =-$C$30*H200-$C$31*$C$27*EXP(-$C$30*E200)*SIN($C$27*E200+$C$32) -> 0.8065318508 | H200: =$C$31*EXP(-$C$30*E200)*COS($C$27*E200+$C$32) -> -0.06749473009 | J200: 5.136809116 | K200: 0.8065224099 | L200: -0.06749853936 | N200: 0.0003998088464 | O200: -9.440877576e-06 | P200: -3.809270913e-06
... 308 more rows

Sheet 減衰振動＋外力
A1: 振動の運動方程式
A2: mx''+cx'+kx=-sign(x')μ'mg+fsinΩt | F2: 単振動 | J2: マクロで計算➡ | L2: =exe("ルンゲ･クッタ･ギル法","ForcedOscillation",C8:C18,J8:L8) -> ルンゲ･クッタ･ギル法
A3: x''=-(c/m)x'-(k/m)x-sign(x')(μ'g)+(f/m)sinΩt | J3: マクロは標準モジュール-Module6 の中。 実行させるには =exe(･･･ と先頭に＝を付加する。
A4: ダンパ＋バネ＋動摩擦＋外力 | G4: 解析解 | K4: 数値積分 | O4: 理論値との差
E5: 時間 | F5: 加速度 | G5: 速度 | H5: 変位 | J5: 加速度 | K5: 速度 | L5: 変位 | N5: 加速度 | O5: 速度 | P5: 変位
E6: t | F6: 理論値x'' | G6: 理論値x' | H6: 理論値x | J6: x'' | K6: x' | L6: x | N6: x'' | O6: x' | P6: x
E7: [s] | F7: [m/s^2] | G7: [m/s] | H7: [m] | J7: [m/s^2] | K7: [m/s] | L7: [m] | N7: [m/s^2] | O7: [m/s] | P7: [m]
A8: 時間間隔 | B8: Δt | C8: =C9/500 -> 0.012 | D8: [s] | E8: 0 | F8: =-2*$C$30*G8-$C$25^2*H8 -> -100 | G8: =-$C$30*H8-$C$31*$C$27*EXP(-$C$30*E8)*SIN($C$27*E8+$C$32) -> 0 | H8: =$C$31*EXP(-$C$30*E8)*COS($C$27*E8+$C$32) -> 1 | J8: -100 | K8: 0 | L8: 1 | N8: =J8-F8 -> 0 | O8: =K8-G8 -> 0 | P8: 0
A9: 終了時間 | B9: TL | C9: 6 | D9: [s] | E9: =E8+$C$8 -> 0.012 | F9: -96.9208392 | G9: -1.182870873 | H9: 0.9928658095 | J9: -96.9208513 | K9: -1.182869069 | L9: 0.9928658944 | N9: =J9-F9 -> -1.209796426e-05 | O9: 1.803978215e-06 | P9: 8.49000783e-08
A10: 重力加速度 | B10: g | C10: 9.8 | D10: [m/s^2] | E10: 0.024 | F10: -92.53730722 | G10: -2.320880423 | H10: 0.9717906807 | J10: -92.53733494 | K10: -2.320877127 | L10: 0.9717908919 | N10: -2.771864176e-05 | O10: 3.296010361e-06 | P10: 2.112662103e-07
A11: 質量 | B11: m | C11: 10 | D11: [kg] | E11: 0.036 | F11: -86.94263288 | G11: -3.398919674 | H11: 0.9374047223 | J11: -86.94267903 | K11: -3.398915257 | L11: 0.9374050954 | N11: -4.614584034e-05 | O11: 4.416930969e-06 | P11: 3.731197841e-07
A12: 粘性係数 | B12: c | C12: 20 | D12: [Ns/m] | E12: 0.048 | F12: -80.24504633 | G12: -4.403090214 | H12: 0.8905122676 | J12: -80.24511293 | K12: -4.403085094 | L12: 0.8905128312 | N12: -6.659945802e-05 | O12: 5.119432855e-06 | P12: 5.63605923e-07
A13: バネ定数 | B13: k | C13: 1000 | D13: [N/m] | E13: 0.06 | F13: -72.56588516 | G13: -5.320873009 | H13: 0.8320763118 | J13: -72.56597342 | K13: -5.32086764 | L13: 0.832077087 | N13: =J13-F13 -> -8.825547629e-05 | O13: =K13-G13 -> 5.368906343e-06 | P13: =L13-H13 -> 7.75176636e-07
A14: 動摩擦係数 | B14: μ' | C14: 0 | D14: [ND] | E14: 0.072 | F14: -64.03755918 | G14: -6.141273607 | H14: 0.7632010639 | J14: -64.03766944 | K14: -6.141268463 | L14: 0.7632020637 | N14: =J14-F14 -> -0.000110266406 | O14: 5.14398749e-06 | P14: 9.997843105e-07
A15: 強制力 | B15: f | C15: 0 | D15: [N] | E15: 0.084 | F15: -54.80140609 | G15: -6.854942226 | H15: 0.6851129054 | J15: -54.80153787 | K15: -6.854937789 | L15: 0.6851141345 | N15: -0.0001317817679 | O15: 4.436811536e-06 | P15: 1.229081449e-06
A16: 強制力角速度 | B16: Ω | C16: 0 | D16: [rad/s] | E16: 0.096 | F16: -45.00547118 | G16: -7.454267633 | H16: 0.5991400645 | J16: -45.00562315 | K16: -7.45426438 | L16: 0.5991415191 | N16: -0.0001519681994 | O16: 3.25297338e-06 | P16: 1.454622527e-06
A17: 初期位置 | B17: x0 | C17: 1 | D17: [m] | E17: 0.108 | F17: -34.8022443 | G17: -7.933444077 | H17: 0.5066913245 | J17: -34.80241433 | K17: -7.933442466 | L17: 0.5066929926 | N17: -0.0001700287965 | O17: 1.61120249e-06 | P17: 1.668063915e-06
A18: 初期速度 | B18: x'0 | C18: 0 | D18: [m/s] | E18: 0.12 | F18: -24.34638732 | G18: -8.288510987 | H18: 0.4092340929 | J18: -24.34657254 | K18: -8.288511444 | L18: 0.4092359543 | N18: -0.0001852213219 | O18: -4.572351635e-07 | P18: 1.861357922e-06
E19: 0.132 | F19: -13.79248468 | G19: -8.517365495 | H19: 0.3082721567 | J19: -13.79268155 | K19: -8.517368404 | L19: 0.3082741836 | N19: -0.0001968749431 | O19: -2.909390631e-06 | P19: 2.026937244e-06
B20: c/m | C20: =C12/C11 -> 2 | D20: [1/s] | E20: 0.144 | F20: -3.29284834 | G20: -8.61974827 | H20: 0.2053234488 | J20: -3.293052745 | K20: -8.619753962 | L20: 0.2053256067 | N20: -0.0002044051944 | O20: -5.691719116e-06 | P20: 2.157886326e-06
B21: k/m | C21: =C13/C11 -> 100 | D21: [1/s^2] | E21: 0.156 | F21: 7.004592915 | G21: -8.597203488 | H21: 0.1018981406 | J21: 7.004385588 | K21: -8.59721223 | L21: 0.1019003887 | N21: -0.0002073269017 | O21: -8.74137465e-06 | P21: 2.24809651e-06
B22: μ'g | C22: =C14*C10 -> 0 | D22: [s^2/m] | E22: 0.168 | F22: 16.95829183 | G22: -8.453014111 | H22: -0.0005226360668 | J22: 16.95808656 | K22: -8.453026099 | L22: -0.0005203436647 | N22: -0.0002052648511 | O22: -1.198768313e-05 | P22: 2.292402174e-06
B23: f/m | C23: =C15/C11 -> 0 | D23: [N/m] | E23: 0.18 | F23: 26.43494294 | G23: -8.192114004 | H23: -0.1005071493 | J23: 26.43474497 | K23: -8.192129358 | L23: -0.1005048626 | N23: -0.0001979620268 | O23: -1.535376162e-05 | P23: 2.2866955e-06
A24: 振動中心 | B24: p＝mg/k | C24: =C11*C10/C13 -> 0.098 | D24: [m] | E24: 0.192 | F24: 35.31118158 | G24: -7.820978662 | H24: -0.1966922425 | J24: 35.31099629 | K24: -7.82099742 | L24: -0.1966900145 | N24: -0.0001852852971 | O24: -1.875824958e-05 | P24: 2.228017963e-06
A25: 固有角振動数 | B25: ω＝√(k/m) | C25: =SQRT(C13/C11) -> 10 | D25: ［rad/s］ | E25: 0.204 | F25: 43.47510137 | G25: -7.347496628 | H25: -0.2878010812 | J25: 43.47493415 | K25: -7.347518745 | L25: -0.2877989665 | N25: -0.0001672284751 | O25: -2.211711644e-05 | P25: 2.11462708e-06
A26: 〝 | B26: 〝 | C26: =DEGREES(C25) -> 572.9577951 | D26: [deg/s] | E26: 0.216 | F26: 50.82757285 | G26: -6.780823877 | H26: -0.3726592509 | J26: 50.82742893 | K26: -6.780849222 | L26: -0.3726573049 | N26: -0.0001439127304 | O26: -2.534550889e-05 | P26: 1.946037482e-06
A27: 減衰固有角振動数 | B27: ωd＝ω√(1-ζ^2) | C27: =C25*SQRT(1-C29^2) -> 9.949874371 | D27: ［rad/s］ | E27: 0.228 | F27: 57.28334921 | G27: -6.131223633 | H27: -0.4502090194 | J27: 57.28323362 | K27: -6.131251992 | L27: -0.4502072964 | N27: -0.0001155843819 | O27: -2.835960135e-05 | P27: 1.723035846e-06
A28: 〝 | B28: 〝 | C28: =DEGREES(C27) -> 570.0858081 | D28: [deg/s] | E28: 0.24 | F28: 62.77194862 | G28: -5.409894263 | H28: -0.519521601 | J28: 62.77186601 | K28: -5.409925341 | L28: -0.5195201533 | N28: -8.261014646e-05 | O28: -3.107841337e-05 | P28: 1.447669732e-06
A29: 減衰比 | B29: ζ＝c/{2√(mk)} | C29: =C12/(2*SQRT(C11*C13)) -> 0.1 | D29: [ND] | E29: 0.252 | F29: 67.23830574 | G29: -4.62878795 | H29: -0.5798072984 | J29: 67.23826027 | K29: -4.628821375 | L29: -0.5798061752 | N29: -4.546996678e-05 | O29: -3.342555928e-05 | P29: 1.123210853e-06
A30: 減衰率 | B30: γ＝ζω | C30: =C29*C25 -> 1 | E30: 0.264 | F30: 70.64318863 | G30: -3.800422961 | H30: -0.6304234271 | J30: 70.64318389 | K30: -3.800458292 | L30: -0.630422673 | N30: -4.747585137e-06 | O30: -3.533089683e-05 | P30: 7.540937881e-07
A31: 振幅 | B31: A＝x0 | C31: =SQRT(($C$17^2+2*$C$17*$C$29*($C$18/$C$25)+($C$18/$C$25)^2)/(1-$C$29^2)) -> 1.005037815 | D31: [m] | E31: 0.276 | F31: 72.96338089 | G31: -2.937692318 | H31: -0.6708799625 | J31: 72.96341977 | K31: -2.93772905 | L31: -0.6708796167 | N31: 3.888093256e-05 | O31: -3.673204414e-05 | P31: 3.458315573e-07
A32: 初期位相 | B32: α＝0 | C32: =ATAN2($C$17,-($C$18+$C$29*$C$25*$C$17)/($C$25*SQRT(1-$C$29^2))) -> -0.1001674212 | D32: [rad] | E32: 0.288 | F32: 74.19163174 | G32: -2.053671681 | H32: -0.7008428838 | J32: 74.1917164 | K32: -2.053709256 | L32: -0.7008429789 | N32: 8.466048048e-05 | O32: -3.757573714e-05 | P32: -9.509006205e-08
A33: 〝 | B33: 〝 | C33: =DEGREES(C32) -> -5.739170477 | D33: [deg] | E33: 0.3 | F33: 74.33638052 | G33: -1.161429194 | H33: -0.7201352213 | J33: 74.33651229 | K33: -1.161467013 | L33: -0.7201357827 | N33: 0.0001317717337 | O33: -3.781900299e-05 | P33: -5.613372775e-07
A34: A^2＝{x0^2＋2x0ζ(x'0/ω)＋(x'0/ω)^2}/(1－ζ^2) | E34: 0.312 | F34: 73.4212646 | G34: -0.2738399435 | H34: -0.7287358471 | J34: 73.42144394 | K34: -0.2738773737 | L34: -0.728736892 | N34: 0.0001793472107 | O34: -3.743012869e-05 | P34: -1.044869534e-06
A35: α＝atan2[x0,－(x'0+ζωx0)/{ω√(1－ζ^2)}] | E35: 0.324 | F35: 71.4844231 | G35: 0.5965924361 | H35: -0.7267760797 | J35: 71.48464958 | K35: 0.5965560467 | L35: -0.7267776168 | N35: 0.000226488262 | O35: -3.638940816e-05 | P35: -1.537094456e-06
E36: 0.336 | F36: 68.57761095 | G36: 1.437904651 | H36: -0.7145342025 | J36: 68.57788323 | K36: 1.437869962 | L36: -0.7145362316 | N36: 0.0002722826567 | O36: -3.468965536e-05 | P36: -2.029033459e-06
A37: 減衰振動理論値 | E37: 0.348 | F37: 64.76514051 | G37: 2.238830951 | H37: -0.6924280241 | J37: 64.76545633 | K37: 2.238798614 | L37: -0.6924305356 | N37: 0.0003158224327 | O37: -3.233647532e-05 | P37: -2.51149482e-06
A38: x''+2ζωx'+ω^2x=0 | C38: 運動方程式 | E38: 0.36 | F38: 60.12266977 | G38: 2.988946687 | H38: -0.6610056315 | J38: 60.12302599 | K38: 2.988917339 | L38: -0.6610086067 | N38: 0.0003562216726 | O38: -2.934828973e-05 | P38: -2.975250932e-06
A39: x＝Ae^(－ζωt)cos{ω√(1－ζ^2)t＋α} | C39: 解析解 | E39: 0.372 | F39: 54.73585812 | G39: 3.678796521 | H39: -0.6209345116 | J39: 54.73625075 | K39: 3.678770765 | L39: -0.6209379228 | N39: 0.0003926338756 | O39: -2.5756118e-05 | P39: -3.411216396e-06
A40: x'＝－ζωx－Aω√(1－ζ^2)e^(－ζωt)sin{ω√(1－ζ^2)t＋α} | E40: 0.384 | F40: 48.69891178 | G40: 4.300005808 | H40: -0.572989234 | J40: 48.69933605 | K40: 4.299984205 | L40: -0.5729930446 | N40: 0.0004242686034 | O40: -2.160311931e-05 | P40: -3.810623647e-06
A41: x''＝－2ζωx'－ω^2x | E41: 0.396 | F41: 42.11304236 | G41: 4.84537399 | H41: -0.5180379034 | J41: 42.11349277 | K41: 4.845357047 | L41: -0.5180420686 | N41: 0.0004504070976 | O41: -1.694390523e-05 | P41: -4.165192871e-06
E42: 0.408 | F42: 35.08486231 | G42: 5.308949081 | H42: -0.4570276047 | J42: 35.08533273 | K42: 5.308937237 | L42: -0.457032072 | N42: 0.0004704165847 | O42: -1.184363686e-05 | P42: -4.467293109e-06
A43: 計算用 | E43: 0.42 | F43: 27.72474175 | G43: 5.686082644 | H43: -0.3909690704 | J43: 27.72522551 | K43: 5.686076267 | L43: -0.3909737805 | N43: 0.0004837630128 | O43: -6.376923912e-06 | P43: -4.71009165e-06
A44: x＝Ae^(－γt)cos(ωdt＋α) | E44: 0.432 | F44: 20.14515083 | G44: 5.973464942 | H44: -0.3209208072 | J44: 20.14564085 | K44: 5.973464315 | L44: -0.3209256948 | N44: 0.0004900219949 | O44: -6.265466572e-07 | P44: -4.887689016e-06
A45: x'＝－γx－Aωde^(－γt)sin(ωdt＋α) | E45: 0.444 | F45: 12.45901156 | G45: 6.169140227 | H45: -0.2479729201 | J45: 12.45950044 | K45: 6.169145545 | L45: -0.2479779153 | N45: 0.0004888877655 | O45: 5.317975309e-06 | P45: -4.995237161e-06
A46: x''＝－2γx'－ω^2x | E46: 0.456 | F46: 4.778082272 | G46: 6.272502424 | H46: -0.1732308712 | J46: 4.778562452 | K46: 6.272513786 | L46: -0.1732359002 | N46: 0.0004801799971 | O46: 1.136194111e-05 | P46: -5.029038793e-06
E47: 0.468 | F47: -2.78860298 | G47: 6.28427174 | H47: -0.097799405 | J47: -2.788139132 | K47: 6.284289147 | L47: -0.09780439162 | N47: 0.0004638483607 | O47: 1.740712486e-05 | P47: -4.986626104e-06
A48: 1－ζ^2＜0 | B48: 過減衰 | C48: ζ>1 | E48: 0.48 | F48: -10.13621941 | G48: 6.206452976 | H48: -0.02276686543 | J48: -10.13577943 | K48: 6.206476329 | L48: -0.02277173225 | N48: 0.0004399747555 | O48: 2.335350033e-05 | P48: -4.866817561e-06
A49: 1－ζ^2=0 | B49: 臨界減衰 | C49: ζ=1 | E49: 0.492 | F49: -17.16554136 | G49: 6.042276571 | H49: 0.05080988221 | J49: -17.16513259 | K49: 6.042305672 | L49: 0.05080521245 | N49: 0.0004087731751 | O49: 2.910100282e-05 | P49: -4.669751807e-06
A50: 1－ζ^2＞0 | B50: 減衰振動 | C50: 0<ζ<1 | E50: 0.504 | F50: -23.7842197 | G50: 5.79612363 | H50: 0.1219197244 | J50: -23.78384912 | K50: 5.796158181 | L50: 0.1219153275 | N50: 0.0003705872193 | O50: 3.455129702e-05 | P50: -4.396898134e-06
B51: 単振動 | C51: ζ=0 | E51: 0.516 | F51: -29.90793115 | G51: 5.473436373 | H51: 0.1896105841 | J51: -29.90760527 | K51: 5.473475982 | L51: 0.189606533 | N51: 0.0003258853016 | O51: 3.96095195e-05 | P51: -4.051043406e-06
E52: 0.528 | F52: -35.46138632 | G52: 5.080615629 | H52: 0.2530015506 | J52: -35.46111107 | K52: 5.080659815 | L52: 0.2529979144 | N52: 0.0002752536423 | O52: 4.418596518e-05 | P52: -3.636255726e-06
E53: 0.54 | F53: -40.37918546 | G53: 4.624907139 | H53: 0.3112937118 | J53: -40.37896607 | K53: 4.624955337 | L53: 0.311290554 | N53: 0.0002193871759 | O53: 4.819768838e-05 | P53: -3.157825527e-06
E54: 0.552 | F54: -44.60651335 | G54: 4.114278547 | H54: 0.3637795626 | J54: -44.60635428 | K54: 4.114330117 | L54: 0.3637769404 | N54: 0.0001590785361 | O54: 5.156999072e-05 | P54: -2.622185175e-06
E55: 0.564 | F55: -48.09966734 | G55: 3.557289046 | H55: 0.4098508925 | J55: -48.09957213 | K55: 3.557343284 | L55: 0.4098488556 | N55: 9.520531334e-05 | O55: 5.423777011e-05 | P55: -2.036808536e-06
E56: 0.576 | F56: -50.82641484 | G56: 2.962953714 | H56: 0.4490050741 | J56: -50.82638612 | K56: 2.96300986 | L56: 0.449003664 | N56: 2.871581093e-05 | O56: 5.614670797e-05 | P56: -1.410092269e-06
E57: 0.588 | F57: -52.76617944 | G57: 2.340604581 | H57: 0.4808497028 | J57: -52.76621883 | K57: 2.340661835 | L57: 0.4808489516 | N57: -3.938645332e-05 | O57: 5.725427433e-05 | P57: -7.512209534e-07
E58: 0.6 | F58: -53.91005692 | G58: 1.699750494 | H58: 0.5051055593 | J58: -53.91016497 | K58: 1.699808025 | L58: 0.5051054892 | N58: -0.0001080592299 | O58: 5.753053401e-05 | P58: -7.001838132e-08
E59: 0.612 | F59: -54.26066493 | G59: 1.04993779 | H59: 0.5216078935 | J59: -54.26084117 | K59: 1.049994748 | L59: 0.5216085167 | N59: -0.0001762387213 | O59: 5.695874053e-05 | P59: 6.23212402e-07
E60: 0.624 | F60: -53.83183264 | G60: 0.4006137327 | H60: 0.5303060517 | J60: -53.83207549 | K60: 0.4006692684 | L60: 0.5303073696 | N60: -0.0002428571723 | O60: 5.553570792e-05 | P60: 1.317857565e-06
E61: 0.636 | F61: -52.64813827 | G61: -0.2390053905 | H61: 0.5312614905 | J61: -52.64844513 | K61: -0.2389521185 | L61: 0.5312634936 | N61: -0.0003068605674 | O61: 5.327195461e-05 | P61: 2.003166582e-06
E62: 0.648 | F62: -50.74430492 | G62: -0.8600597731 | H62: 0.5246442446 | J62: -50.74467214 | K62: -0.8600095815 | L62: 0.5246469131 | N62: -0.000367226135 | O62: 5.019161749e-05 | P62: 2.668429e-06
E63: 0.66 | F63: -48.16446652 | G63: -1.454163545 | H63: 0.5107279361 | J63: -48.1648895 | K63: -1.454117213 | L63: 0.5107312393 | N63: -0.0004229793651 | O63: 4.633213789e-05 | P63: 3.303150893e-06
E64: 0.672 | F64: -44.96131745 | G64: -2.013512711 | H64: 0.4898834287 | J64: -44.96179066 | K64: -2.013470967 | L64: 0.4898873259 | N64: -0.0004732102536 | O64: 4.174372534e-05 | P64: 3.897228029e-06
E65: 0.684 | F65: -41.19516065 | G65: -2.530982256 | H65: 0.4625712516 | J65: -41.19567774 | K65: -2.530945767 | L65: 0.4625756927 | N65: -0.000517088505 | O65: 3.648860846e-05 | P65: 4.44111288e-06
E66: 0.696 | F66: -36.93287022 | G66: -3.000211303 | H66: 0.4293329283 | J66: -36.9334241 | K66: -3.000180663 | L66: 0.4293378543 | N66: -0.00055387744 | O66: 3.064008602e-05 | P66: 4.925972679e-06
E67: 0.708 | F67: -32.2467852 | G67: -3.415675388 | H67: 0.3907813598 | J67: -32.24736815 | K67: -3.415651107 | L67: 0.3907867036 | N67: -0.0005829463813 | O67: 2.428139426e-05 | P67: 5.343835928e-06
E68: 0.72 | F68: -27.21355191 | G68: -3.772745139 | H68: 0.3475904218 | J68: -27.21415569 | K68: -3.772727634 | L68: 0.3475961096 | N68: -0.0006037813141 | O68: 1.750440967e-05 | P68: 5.687724948e-06
E69: 0.732 | F69: -21.91293255 | G69: -4.067730835 | H69: 0.3004839422 | J69: -21.91354854 | K69: -4.067720427 | L69: 0.300489894 | N69: -0.0006159936502 | O69: 1.040820914e-05 | P69: 5.95177232e-06
E70: 0.744 | F70: -16.4265978 | G70: -4.297912565 | H70: 0.2502242293 | J70: -16.42721712 | K70: -4.297909467 | L70: 0.2502303606 | N70: -0.000619326955 | O70: 3.097511387e-06 | P70: 6.131319322e-06
E71: 0.756 | F71: -10.83692085 | G71: -4.461555879 | H71: 0.1976003261 | J71: -10.83753451 | K71: -4.461560198 | L71: 0.1976065491 | N71: -0.0006136615321 | O71: -4.318974439e-06 | P71: 6.22299481e-06
E72: 0.768 | F72: =-2*$C$30*G72-$C$25^2*H72 -> -5.225790137 | G72: =-$C$30*H72-$C$31*$C$27*EXP(-$C$30*E72)*SIN($C$27*E72+$C$32) -> -4.557913069 | H72: =$C$31*EXP(-$C$30*E72)*COS($C$27*E72+$C$32) -> 0.1434161628 | J72: -5.226389154 | K72: -4.5579248 | L72: 0.1434223875 | N72: -0.0005990167962 | O72: -1.173026562e-05 | P72: 6.224773274e-06
E73: =E72+$C$8 -> 0.78 | F73: 0.3265429544 | G73: -4.587210399 | H73: 0.08847877843 | J73: 0.325967403 | K73: -4.587229424 | L73: 0.08848491444 | N73: -0.0005755514 | O73: -1.902486013e-05 | P73: 6.136011203e-06
E74: 0.792 | F74: 5.74256574 | G74: -4.550621784 | H74: 0.03358677829 | J74: 5.742022179 | K74: -4.550647877 | L74: 0.03359273575 | N74: -0.0005435611206 | O74: -2.609249954e-05 | P74: 5.957461197e-06
E75: 0.804 | F75: 10.94854087 | G75: -4.450229644 | H75: -0.0204808158 | J75: 10.94803739 | K75: -4.45026247 | L75: -0.02047512454 | N75: -0.0005034745438 | O75: -3.282591204e-05 | P75: 5.691263679e-06
E76: 0.816 | F76: 15.87546471 | G76: -4.288973757 | H76: -0.07297517199 | J76: 15.87500887 | K76: -4.28901288 | L76: -0.07296983108 | N76: -0.0004558466247 | O76: -3.91225073e-05 | P76: 5.340916393e-06
E77: 0.828 | F77: 20.45993576 | G77: -4.070589153 | H77: -0.1231875745 | J77: 20.45953441 | K77: -4.070634039 | L77: -0.1231826633 | N77: -0.0004013502327 | O77: -4.488599606e-05 | P77: 4.911222249e-06
E78: 0.84 | F78: 24.64492278 | G78: -3.799534174 | H78: -0.1704585443 | J78: 24.64458202 | K78: -3.799584202 | L78: -0.1704541361 | N78: =J78-F78 -> -0.0003407658243 | O78: -5.002790851e-05 | P78: 4.408216413e-06
E79: 0.852 | F79: 28.38042429 | G79: -3.48090996 | H79: -0.2141860437 | J79: 28.38014932 | K79: -3.480964429 | L79: -0.2141822046 | N79: -0.0002749694153 | O79: -5.446898745e-05 | P79: 3.839073902e-06
E80: 0.864 | F80: 31.62401239 | G80: -3.120372713 | H80: -0.2538326697 | J80: 31.62380747 | K80: -3.120430854 | L80: -0.2538294577 | N80: -0.0002049190498 | O80: -5.81404343e-05 | P80: 3.211999184e-06
E81: 0.876 | F81: 34.3412562 | G81: -2.724040148 | H81: -0.288931759 | J81: 34.34112456 | K81: -2.724101133 | L81: -0.2889292229 | N81: -0.0001316399889 | O81: -6.098498854e-05 | P81: 2.536099659e-06
E82: 0.888 | F82: 36.50602145 | G82: -2.29839361 | H82: -0.3190923423 | J82: 36.50596524 | K82: -2.298456568 | L82: -0.319090521 | N82: -5.62088574e-05 | O82: -6.29578239e-05 | P82: 1.821245052e-06
E83: 0.9 | F83: 38.1006452 | G83: -1.850177338 | H83: -0.3440029053 | J83: 38.10066546 | K83: -1.850241365 | L83: -0.3440018273 | N83: 2.026299285e-05 | O83: -6.40272478e-05 | P83: 1.077915028e-06
E84: 0.912 | F84: 39.11598595 | G84: -1.386296386 | H84: -0.3634339318 | J84: 39.1160826 | K84: -1.386360561 | L84: -0.3634336148 | N84: 9.664663899e-05 | O84: -6.417519352e-05 | P84: 3.170374805e-07
E85: 0.924 | F85: 39.55135146 | G85: -0.9137146788 | H85: -0.3772392211 | J85: 39.55152328 | K85: -0.9137780763 | L85: -0.3772396712 | N85: 0.0001718129862 | O85: -6.339749825e-05 | P85: -4.501798967e-07
E86: 0.936 | F86: 39.41430824 | G86: -0.439354648 | H86: -0.3853559894 | J86: 39.41455289 | K86: -0.4394163519 | L86: -0.3853572018 | N86: 0.0002446501356 | O86: -6.170396335e-05 | P86: -1.212422089e-06
E87: 0.948 | F87: 38.72037812 | G87: 0.03000016362 | H87: -0.3878037845 | J87: 38.72069221 | K87: 0.02994104542 | L87: -0.387805743 | N87: 0.0003140804465 | O87: -5.911819675e-05 | P87: -1.95844053e-06
E88: 0.96 | F88: 37.4926291 | G88: 0.4877982114 | H88: -0.3846822552 | J88: 37.49300818 | K88: 0.4877425342 | L88: -0.3846849325 | N88: 0.000379077026 | O88: -5.567724102e-05 | P88: -2.67722544e-06
E89: 0.972 | F89: 35.76116847 | G89: 0.9278075551 | H89: -0.3761678358 | J89: 35.76160715 | K89: 0.9277561241 | L89: -0.376171194 | N89: 0.0004386793891 | O89: -5.143099356e-05 | P89: -3.35817402e-06
E90: 0.984 | F90: 33.56254806 | G90: 1.344196845 | H90: -0.3625094175 | J90: 33.56304007 | K90: 1.344150403 | L90: -0.3625134087 | N90: 0.0004920080479 | O90: -4.644142938e-05 | P90: -3.991251892e-06
E91: 0.996 | F91: 30.93909194 | G91: 1.731608694 | H91: -0.3440230933 | J91: 30.93963022 | K91: 1.731567912 | L91: -0.3440276604 | N91: 0.0005382778057 | O91: -4.078163894e-05 | P91: -4.567145278e-06
E92: 1.008 | F92: 27.93815806 | G92: 2.085224574 | H92: -0.3210860721 | J92: 27.93873487 | K92: 2.08519004 | L92: -0.3210911495 | N92: 0.0005768095556 | O92: -3.453469752e-05 | P92: -5.077401606e-06
E93: 1.02 | F93: 24.61134584 | G93: 2.400820519 | H93: -0.2941298688 | J93: 24.61195288 | K93: 2.400792727 | L93: -0.2941353834 | N93: 0.0006070404052 | O93: -2.779238407e-05 | P93: -5.514556371e-06
E94: 1.032 | F94: 21.01366227 | G94: 2.674813049 | H94: -0.2636328837 | J94: 21.0142908 | K94: 2.674792396 | L94: -0.2636387559 | N94: 0.0006285319797 | O94: -2.065377055e-05 | P94: -5.872244386e-06
E95: 1.044 | F95: 17.20265937 | G95: 2.904294914 | H95: -0.230112492 | J95: 17.20330035 | K95: 2.90428169 | L95: -0.2301186373 | N95: 0.0006409767816 | O95: -1.322370404e-05 | P95: -6.145293735e-06
E96: 1.056 | F96: 13.23755597 | G96: 3.087060368 | H96: -0.194116767 | J96: 13.23820017 | K96: 3.087054756 | L96: -0.1941230968 | N96: 0.0006442025202 | O96: -5.611206018e-06 | P96: -6.329801082e-06
E97: 1.068 | F97: 9.178356543 | G97: 3.221619885 | H97: -0.1562159631 | J97: 9.178994717 | K97: 3.221621957 | L97: -0.1562223863 | N97: 0.0006381743532 | O97: 2.072186313e-06 | P97: -6.423187258e-06
E98: 1.08 | F98: 5.084979861 | G98: 3.307204341 | H98: -0.1169938854 | J98: 5.085602856 | K98: 3.307214055 | L98: -0.1170003097 | N98: 0.0006229950172 | O98: 9.714110373e-06 | P98: -6.42423238e-06
E99: 1.092 | F99: 1.01640947 | G99: 3.343758861 | H99: -0.07703927191 | J99: 1.017008373 | K99: 3.343776064 | L99: -0.077045605 | N99: 0.0005989028572 | O99: 1.720307422e-05 | P99: -6.333090057e-06
E100: 1.104 | F100: -2.970122374 | G100: 3.33192666 | H100: -0.03693730945 | J100: -2.969556106 | K100: 3.33195109 | L100: -0.03694346073 | N100: 0.0005662677963 | O100: 2.443013191e-05 | P100: -6.151280601e-06
E101: 1.116 | F101: -6.819906526 | G101: 3.273023348 | H101: 0.002738598308 | J101: -6.819380941 | K101: 3.273054638 | L101: 0.002732716645 | N101: 0.0005255853202 | O101: 3.129051257e-05 | P101: -5.881663454e-06
E102: 1.128 | F102: -10.48147462 | G102: 3.169002288 | H102: 0.04143470047 | J102: -10.48099715 | K102: 3.169039973 | L102: 0.04142917208 | N102: 0.0004774685802 | O102: 3.76851785e-05 | P102: -5.528389372e-06
E103: 1.14 | F103: -13.90725367 | G103: 3.022411711 | H103: 0.07862430244 | J103: -13.90683103 | K103: 3.022455234 | L103: 0.07861920561 | N103: 0.0004226387467 | O103: 4.352228867e-05 | P103: -5.09683324e-06
E104: 1.152 | F104: -17.05414974 | G104: 2.836344398 | H104: 0.1138146095 | J104: -17.05378783 | K104: 2.836393116 | L104: 0.113810016 | N104: 0.0003619137724 | O104: 4.871854589e-05 | P104: -4.593508642e-06
E105: 1.164 | F105: -19.88405422 | G105: 2.614380806 | H105: 0.1465529261 | J105: -19.88375803 | K105: 2.614434007 | L105: 0.1465489001 | N105: 0.0002961957468 | O105: 5.320040771e-05 | P105: -4.025965622e-06
E106: 1.176 | F106: -22.36426713 | G106: 2.36052663 | H106: 0.1764321387 | J106: -22.36404067 | K106: 2.360583535 | L106: 0.176428736 | N106: 0.0002264570428 | O106: 5.69051434e-05 | P106: -3.402673296e-06
E107: 1.188 | F107: -24.46783358 | G107: 2.079145782 | H107: 0.2030954201 | J107: -24.46767985 | K107: 2.079205563 | L107: 0.2030926872 | N107: 0.0001537254773 | O107: 5.978172181e-05 | P107: -2.73288921e-06
E108: 1.2 | F108: -26.17379062 | G108: 1.774889883 | H108: 0.2262401086 | J108: -26.17371155 | K108: 1.774951674 | L108: 0.2262380821 | N108: 7.90687156e-05 | O108: 6.179151784e-05 | P108: -2.026517513e-06
E109: 1.212 | F109: -27.46732307 | G109: 1.452625335 | H109: 0.245620724 | J109: -27.46731949 | K109: 1.452688244 | L109: 0.24561943 | N109: 3.578163955e-06 | O109: 6.290882778e-05 | P109: -1.293958195e-06
E110: 1.224 | F110: -28.33982822 | G110: 1.117359065 | H110: 0.2610511009 | J110: -28.33989987 | K110: 1.117422186 | L110: 0.261050555 | N110: -7.164740206e-05 | O110: 6.312118708e-05 | P110: -5.459497211e-07
E111: 1.236 | F111: -28.78889083 | G111: 0.774164039 | H111: 0.2724056276 | J111: -28.78903635 | K111: 0.7742264685 | L111: 0.2724058342 | N111: -0.0001455182227 | O111: 6.242948711e-05 | P111: 2.065924843e-07
E112: 1.248 | F112: -28.81817069 | G112: 0.428105601 | H112: 0.2796195949 | J112: -28.81838766 | K112: 0.4281664489 | L112: 0.2796205476 | N112: -0.0002169697042 | O112: 6.084789042e-05 | P112: 9.527392331e-07
E113: 1.26 | F113: -28.43720652 | G113: 0.08416966694 | H113: 0.2826886719 | J113: -28.4374915 | K113: 0.08422807049 | L113: 0.2826903536 | N113: -0.0002849780906 | O113: 5.840354735e-05 | P113: 1.681709959e-06
E114: 1.272 | F114: -27.66114105 | G114: -0.2528062484 | H114: 0.2816675355 | J114: -27.66148963 | K114: -0.2527511123 | L114: 0.2816699185 | N114: -0.000348575424 | O114: 5.513611961e-05 | P114: 2.383031848e-06
E115: 1.284 | F115: -26.51037289 | G115: -0.5781982611 | H115: 0.2766676942 | J115: -26.51077976 | K115: -0.578147164 | L115: 0.2766707408 | N115: -0.0004068635707 | O115: 5.109711953e-05 | P115: 3.046693317e-06
E116: 1.296 | F116: -25.010142 | G116: -0.8876567638 | H116: 0.2678545553 | J116: -25.01060103 | K116: -0.8876104147 | L116: 0.2678582186 | N116: -0.0004590271111 | O116: 4.634907623e-05 | P116: 3.663289586e-06
E117: 1.308 | F117: -23.19005618 | G117: -1.177161736 | H117: 0.2554437966 | J117: -23.19056053 | K117: -1.177120772 | L117: 0.2554480207 | N117: -0.0005043449039 | O117: 4.096454269e-05 | P117: 4.224158185e-06
E118: 1.32 | F118: -21.08356674 | G118: -1.44307206 | H118: 0.2396971086 | J118: -21.08410894 | K118: -1.443037035 | L118: 0.2397018301 | N118: -0.0005422001637 | O118: 3.502495989e-05 | P118: 4.721502439e-06
E119: 1.332 | F119: -18.72740191 | G119: -1.682168279 | H119: 0.2209173847 | J119: -18.727974 | K119: -1.68213966 | L119: 0.2209225332 | N119: -0.000572088909 | O119: 2.861939612e-05 | P119: 5.148501168e-06
E120: 1.344 | F120: -16.16096723 | G120: -1.891688353 | H120: 0.1994434393 | J120: -16.16156086 | K120: -1.891666509 | L120: 0.1994489387 | N120: -0.0005936266686 | O120: 2.18431816e-05 | P120: 5.499403054e-06
E121: 1.356 | F121: -13.42572201 | G121: -2.069356062 | H121: 0.1756443413 | J121: -13.42632856 | K121: -2.069341265 | L121: 0.1756501109 | N121: -0.0006065533572 | O121: 1.479645963e-05 | P121: 5.76960438e-06
E122: 1.368 | F122: -10.56454143 | G122: -2.213401836 | H122: 0.149913451 | J122: -10.56515217 | K122: -2.213394254 | L122: 0.1499194067 | N122: -0.0006107362642 | O122: 7.582676687e-06 | P122: 5.955709108e-06
E123: 1.38 | F123: -7.62107365 | G123: -2.322575889 | H123: 0.1226622543 | J123: -7.621679821 | K123: -2.322575582 | L123: 0.1226683099 | N123: -0.0006061711233 | O123: 3.070347447e-07 | P123: 6.055570538e-06
E124: 1.392 | F124: -4.639101169 | G124: -2.396153651 | H124: 0.09431408471 | J124: -4.63969415 | K124: -2.396160576 | L124: 0.09432015302 | N124: -0.000592981266 | O124: -6.92507076e-06 | P124: 6.068314076e-06
E125: 1.404 | F125: -1.661915424 | G125: -2.433933611 | H125: 0.06529782646 | J125: -1.662486839 | K125: -2.43394762 | L125: 0.0653038208 | N125: -0.0005714148849 | O125: -1.400960381e-05 | P125: 5.994340925e-06
E126: 1.416 | F126: 1.268286799 | G126: -2.436227778 | H126: 0.03604168758 | J126: 1.267744958 | K126: -2.436248624 | L126: 0.03604752289 | N126: -0.000541840465 | O126: -2.084540831e-05 | P126: 5.835312817e-06
E127: 1.428 | F127: 4.110977087 | G127: -2.40384507 | H127: 0.006967130529 | J127: 4.110472347 | K127: -2.403872406 | L127: 0.006972724647 | N127: -0.0005047404677 | O127: -2.733567378e-05 | P127: 5.594118152e-06
E128: 1.44 | F128: 6.827831808 | G128: -2.338068031 | H128: -0.02151695747 | J128: 6.827371105 | K128: -2.33810142 | L128: -0.02151168265 | N128: -0.0004607033747 | O128: -3.338932483e-05 | P128: 5.274820244e-06
E129: 1.452 | F129: 9.38322446 | G129: -2.240623374 | H129: -0.04901977712 | J129: 9.382814046 | K129: -2.240662297 | L129: -0.04901489453 | N129: -0.0004104142284 | O129: -3.892231434e-05 | P129: 4.88258857e-06
E130: 1.464 | F130: 11.74466802 | G130: -2.113646911 | H130: -0.07517374195 | J130: 11.74431337 | K130: -2.11369077 | L130: -0.07516931834 | N130: -0.0003546438189 | O130: -4.385880182e-05 | P130: 4.423614225e-06
E131: 1.476 | F131: 13.88320217 | G131: -1.959643495 | H131: -0.09963915182 | J131: 13.88290793 | K131: -1.959691627 | L131: -0.09963524681 | N131: -0.0002942366956 | O131: -4.813220058e-05 | P131: 3.905010967e-06
E132: 1.488 | F132: 15.77372126 | G132: -1.78144267 | H132: -0.1221083592 | J132: 15.77349117 | K132: -1.781494356 | L132: -0.1221050245 | N132: -0.0002300981882 | O132: -5.168607906e-05 | P132: 3.334703463e-06
E133: 1.5 | F133: 17.39523967 | G133: -1.582150764 | H133: -0.1423093814 | J133: 17.39507649 | K133: -1.582205239 | L133: -0.1423066601 | N133: -0.0001631806433 | O133: -5.447490453e-05 | P133: 2.721304523e-06
E134: 1.512 | F134: 18.73109232 | G134: -1.365100176 | H134: -0.1600089197 | J134: 18.73099785 | K134: -1.36515664 | L134: -0.1600068457 | N134: -9.446908463e-05 | O134: -5.646461922e-05 | P134: 2.073983231e-06
E135: 1.524 | F135: 19.76906911 | G135: -1.133796656 | H135: -0.175014758 | J135: 19.76904414 | K135: -1.133854289 | L135: -0.1750133556 | N135: -2.496651961e-05 | O135: -5.763304219e-05 | P135: 1.40232604e-06
E136: 1.536 | F136: =-2*$C$30*G136-$C$25^2*H136 -> 20.50148272 | G136: =-$C$30*H136-$C$31*$C$27*EXP(-$C$30*E136)*SIN($C$27*E136+$C$32) -> -0.8918653743 | H136: =$C$31*EXP(-$C$30*E136)*COS($C$27*E136+$C$32) -> -0.1871775197 | J136: 20.50152704 | K136: -0.8919233443 | L136: -0.1871768035 | N136: 4.432089004e-05 | O136: -5.797009234e-05 | P136: 7.161929464e-07
E137: =E136+$C$8 -> 1.548 | F137: 20.92517068 | G137: -0.6429965692 | H137: -0.1963917754 | J137: 20.92528308 | K137: -0.643054047 | L137: -0.1963917498 | N137: 0.0001123985694 | O137: -5.74778312e-05 | P137: 2.55709299e-08
E138: 1.56 | F138: 21.04143294 | G138: -0.3908915601 | H138: -0.2025964982 | J138: 21.04161124 | K138: -0.3909477304 | L138: -0.2025971578 | N138: 0.0001782979669 | O138: -5.617032635e-05 | P138: -6.595731417e-07
E139: 1.572 | F139: 20.85590763 | G139: -0.1392098838 | H139: -0.2057748786 | J139: 20.85614872 | K139: -0.1392639572 | L139: -0.205776208 | N139: 0.0002410904742 | O139: -5.407333941e-05 | P139: -1.329437953e-06
E140: 1.584 | F140: 20.37838801 | G140: 0.1084817226 | H140: -0.2059535146 | J140: 20.37868791 | K140: 0.1084304987 | L140: -0.2059554891 | N140: 0.0002999006292 | O140: -5.12238448e-05 | P140: -1.974529396e-06
E141: 1.596 | F141: 19.62258481 | G141: 0.3487578094 | H141: -0.2032010043 | J141: 19.62293873 | K141: 0.34871014 | L141: -0.2032035901 | N141: 0.0003539184133 | O141: -4.766938828e-05 | P141: -2.585796367e-06
E142: 1.608 | F142: 18.60583841 | G142: 0.5783795449 | H142: -0.197625975 | J142: 18.60624082 | K142: 0.5783360777 | L142: -0.1976291298 | N142: =J142-F142 -> 0.0004024104688 | O142: -4.346729598e-05 | P142: -3.154758768e-06
E143: 1.62 | F143: 17.34878641 | G143: 0.7943363183 | H143: -0.1893745905 | J143: 17.34923115 | K143: 0.7942976346 | L143: -0.1893782641 | N143: 0.0004447300838 | O143: -3.868374754e-05 | P143: -3.673625887e-06
E144: 1.632 | F144: 15.87499209 | G144: 0.993883113 | H144: -0.1786275832 | J144: 15.87547242 | K144: 0.9938497203 | L144: -0.1786317186 | N144: 0.000480325807 | O144: -3.339272811e-05 | P144: -4.135403508e-06
E145: 1.644 | F145: 14.21054017 | G145: 1.174573219 | H145: -0.1655968661 | J145: 14.21104892 | K145: 1.174545544 | L145: -0.1656014001 | N145: 0.0005087485808 | O145: -2.767487611e-05 | P145: -4.533988285e-06
E146: 1.656 | F146: 12.38360634 | G146: 1.334285931 | H146: -0.150521782 | J146: 12.384136 | K146: 1.334264314 | L146: -0.1505266463 | N146: 0.0005296573009 | O146: -2.16162447e-05 | P146: -4.864248115e-06
E147: 1.668 | F147: 10.42400723 | G147: 1.471248953 | H147: -0.1336650513 | J147: 10.42455005 | K147: 1.471233646 | L147: -0.1336701734 | N147: 0.0005428227393 | O147: -1.530699633e-05 | P147: -5.122087467e-06
E148: 1.68 | F148: 8.362737751 | G148: 1.584055328 | H148: -0.1153084841 | J148: 8.363285881 | K148: 1.584046488 | L148: -0.1153137886 | N148: 0.0005481297862 | O148: -8.84004999e-06 | P148: -5.304496863e-06
E149: 1.692 | F149: 6.2315027 | G149: 1.671674764 | H149: -0.09574852229 | J149: 6.232048278 | K149: 1.671672455 | L149: -0.09575393188 | N149: 0.0005455779991 | O149: -2.309701988e-06 | P149: -5.409585951e-06
E150: 1.704 | F150: 4.062249325 | G150: 1.733459349 | H150: -0.07529168022 | J150: 4.062784605 | K150: 1.733463538 | L150: -0.07529711682 | N150: 0.0005352804661 | O150: 4.189759437e-06 | P150: -5.43659985e-06
E151: 1.716 | F151: 1.886707563 | G151: 1.769143683 | H151: -0.0542499493 | J151: 1.887225024 | K151: 1.769154249 | L151: -0.05425533522 | N151: 0.0005174610201 | O151: 1.056542506e-05 | P151: -5.385918702e-06
E152: 1.728 | F152: -0.2640557292 | G152: 1.77883959 | H152: -0.0329362345 | J152: -0.2635632793 | K152: 1.778856317 | L152: -0.03294149354 | N152: 0.0004924498613 | O152: 1.672710119e-05 | P152: -5.259040636e-06
E153: 1.74 | F153: -2.360062567 | G153: 1.763025571 | H153: -0.01165988575 | J153: -2.359601889 | K153: 1.763048159 | L153: -0.0116649443 | N153: 0.0004606776697 | O153: 2.25885925e-05 | P153: -5.058548547e-06
E154: 1.752 | F154: -4.372824041 | G154: 1.722531318 | H154: 0.009277614052 | J154: -4.372401373 | K154: 1.722559387 | L154: 0.009272825991 | N154: 0.000422668312 | O154: 2.806891278e-05 | P154: -4.788061375e-06
E155: 1.764 | F155: -6.275709881 | G155: 1.658517589 | H155: 0.02958674702 | J155: -6.27533085 | K155: 1.658550683 | L155: 0.02958229485 | N155: 0.0003790302637 | O155: 3.309340676e-05 | P155: -4.452170772e-06
E156: 1.776 | F156: -8.044282831 | G156: 1.572451865 | H156: 0.04899379101 | J156: -8.043952384 | K156: 1.572489459 | L156: 0.04898973465 | N156: 0.0003304468875 | O156: 3.759476736e-05 | P156: -4.056364223e-06
E157: 1.788 | F157: -9.656593937 | G157: 1.466080215 | H157: 0.06724433507 | J157: -9.656316271 | K157: 1.466121729 | L157: 0.06724072814 | N157: 0.0002776657235 | O157: 4.151393474e-05 | P157: -3.60693593e-06
E158: 1.8 | F158: -11.09343547 | G158: 1.341395882 | H158: 0.08410643701 | J158: -11.09321398 | K158: 1.341440683 | L158: 0.08410332612 | N158: 0.0002214869592 | O158: 4.480086508e-05 | P158: -3.110886893e-06
E159: 1.812 | F159: -12.33854887 | G159: 1.200605092 | H159: 0.09937338685 | J159: -12.33838612 | K159: 1.200652507 | L159: 0.09937081103 | N159: 0.0001627512578 | O159: 4.741515948e-05 | P159: -2.575815768e-06
E160: 1.824 | F160: -13.3787859 | G160: 1.046090646 | H160: 0.1128660461 | J160: -13.37868357 | K160: 1.046139972 | L160: 0.1128640363 | N160: 0.0001023271313 | O160: 4.932654522e-05 | P160: -2.009802217e-06
E161: 1.836 | F161: -14.20422173 | G161: 0.8803738742 | H161: 0.1244347398 | J161: -14.20418063 | K161: 0.8804243894 | L161: 0.1244333185 | N161: 4.109804613e-05 | O161: 5.051520398e-05 | P161: -1.421284541e-06
E162: 1.848 | F162: -14.80821951 | G162: 0.7060755177 | H162: 0.1339606848 | J162: -14.80823956 | K162: 0.7061264897 | L162: 0.1339598658 | N162: -2.005054249e-05 | O162: 5.097194414e-05 | P162: -8.189334579e-07
E163: 1.86 | F163: -15.18744679 | G163: 0.5258761251 | H163: 0.1413569454 | J163: -15.18752703 | K163: 0.5259268233 | L163: 0.1413567338 | N163: -8.024404082e-05 | O163: 5.069821616e-05 | P163: -2.115239149e-07
E164: 1.872 | F164: -15.34184443 | G164: 0.3424765403 | H164: 0.1465689135 | J164: -15.34198306 | K164: 0.3425262462 | L164: 0.1465693057 | N164: -0.000138631262 | O164: 4.970597295e-05 | P164: 3.921931614e-07
E165: 1.884 | F165: -15.2745499 | G165: 0.1585590383 | H165: 0.1495743182 | J165: -15.27474429 | K165: 0.1586070556 | L165: 0.1495753018 | N165: -0.0001943964879 | O165: 4.801737879e-05 | P165: 9.836173033e-07
E166: 1.896 | F166: -14.99177681 | G166: -0.02325035378 | H166: 0.1503827752 | J166: -14.99202358 | K166: -0.0232046894 | L166: 0.1503843296 | N166: -0.0002467708756 | O166: 4.566437304e-05 | P166: 1.554421296e-06
E167: 1.908 | F167: -14.50265373 | G167: -0.2004178425 | H167: 0.1490348942 | J167: -14.50294877 | K167: -0.2003751544 | L167: 0.1490369908 | N167: -0.0002950430508 | O167: 4.268809665e-05 | P167: 2.096668575e-06
E168: 1.92 | F168: -13.81902527 | G168: -0.3705356902 | H168: 0.1456009666 | J168: -13.81936384 | K168: -0.370496552 | L168: 0.1456035695 | N168: -0.0003385687409 | O168: 3.913819149e-05 | P168: 2.60292358e-06
E169: 1.932 | F169: -12.95521939 | G169: -0.5313534429 | H169: 0.1401792628 | J169: -12.95559617 | K169: -0.5313183709 | L169: 0.1401823291 | N169: -0.0003767793212 | O169: 3.507198429e-05 | P169: 3.066353526e-06
E170: 1.944 | F170: -11.92778484 | G170: -0.6808061829 | H170: 0.1328939721 | J170: -11.92819403 | K170: -0.6807756293 | L170: 0.1328974529 | N170: -0.0004091891588 | O170: 3.055356839e-05 | P170: 3.480820221e-06
E171: 1.956 | F171: -10.75520337 | G171: -0.8170394746 | H171: 0.1238928231 | J171: -10.75563877 | K171: -0.8170138218 | L171: 0.1238966641 | N171: -0.0004354016659 | O171: 2.565279815e-05 | P171: 3.840960695e-06
E172: 1.968 | F172: -9.457581163 | G172: -0.9384307272 | H172: 0.1133444262 | J172: -9.458036277 | K172: -0.938410283 | L172: 0.1133485684 | N172: -0.0004551139846 | O172: 2.044421156e-05 | P172: 4.142255615e-06
E173: 1.98 | F173: -8.056324658 | G173: -1.043606757 | H173: 0.1014353817 | J173: -8.056792779 | K173: -1.043591751 | L173: 0.1014397628 | N173: -0.0004681202572 | O173: 1.500589771e-05 | P173: 4.381084618e-06
E174: 1.992 | F174: -6.573805433 | G174: -1.131457385 | H174: 0.08836720203 | J174: -6.574279747 | K174: -1.131447967 | L174: 0.0883717568 | N174: -0.0004743134458 | O174: 9.418326369e-06 | P174: 4.55476793e-06
E175: 2.004 | F175: -5.033019409 | G175: -1.201144982 | H175: 0.07435309373 | J175: -5.033493095 | K175: -1.201141219 | L175: 0.07435775533 | N175: -0.0004736856975 | O175: 3.763157191e-06 | P175: 4.661593831e-06
E176: 2.016 | F176: -3.457245235 | G176: -1.252109906 | H176: 0.05961465046 | J176: -3.457711563 | K176: -1.252111784 | L176: 0.0596193513 | N176: -0.000466327265 | O176: -1.877953898e-06 | P176: 4.700831728e-06
E177: 2.028 | F177: -1.869706759 | G177: -1.284071862 | H177: 0.04437850482 | J177: -1.870159183 | K177: -1.284079286 | L177: 0.04438317755 | N177: -0.0004524240168 | O177: -7.424533632e-06 | P177: 4.672730841e-06
E178: 2.04 | F178: -0.2932442771 | G178: -1.297027265 | H178: 0.02887298808 | J178: -0.2936765307 | K178: -1.297040064 | L178: 0.02887756658 | N178: -0.0004322535915 | O178: -1.279843868e-05 | P178: 4.578504689e-06
E179: 2.052 | F179: 1.250000959 | G179: -1.291242727 | H179: 0.01332484495 | J179: 1.249594779 | K179: -1.291260652 | L179: 0.01332926525 | N179: -0.000406180269 | O179: -1.792495495e-05 | P179: 4.420301789e-06
E180: 2.064 | F180: 2.738884831 | G180: -1.267244858 | H180: -0.002043951148 | J180: 2.738510182 | K180: -1.267267592 | L180: -0.002039749985 | N180: -0.0003746486488 | O180: -2.273383355e-05 | P180: 4.201163159e-06
E181: 2.076 | F181: 4.153537194 | G181: -1.225806621 | H181: -0.01701923952 | J181: 4.153199018 | K181: -1.225833781 | L181: -0.01701531455 | N181: -0.0003381762441 | O181: -2.716024904e-05 | P181: 3.924967422e-06
E182: 2.088 | F182: 5.475614052 | G182: -1.167930501 | H182: -0.0313975305 | J182: 5.475316707 | K182: -1.167961647 | L182: -0.03139393413 | N182: -0.0002973451112 | O182: -3.114566713e-05 | P182: 3.596364455e-06
E183: 2.1 | F183: 6.688522062 | G183: -1.094828819 | H183: -0.04498864425 | J183: 6.68826927 | K183: -1.094863457 | L183: -0.04498542355 | N183: -0.0002527926502 | O183: -3.463861027e-05 | P183: 3.220698707e-06
E184: 2.112 | F184: 7.777612834 | G184: -1.007901522 | H184: -0.05761809789 | J184: 7.777407632 | K184: -1.007939117 | L184: -0.05761529397 | N184: -0.0002052017202 | O184: -3.759531137e-05 | P184: 2.80392343e-06
E185: 2.124 | F185: 8.730344982 | G185: -0.9087118439 | H185: -0.06912921294 | J185: 8.730189691 | K185: -0.9087518241 | L185: -0.06912686043 | N185: -0.0001552902228 | O185: -3.998024749e-05 | P185: 2.352507177e-06
E186: 2.136 | F186: 9.536412393 | G186: -0.7989602126 | H186: -0.07938491968 | J186: 9.536308593 | K186: -0.7990019791 | L186: -0.07938304635 | N186: -0.0001038003101 | O186: -4.176654742e-05 | P186: 1.873334049e-06
E187: 2.148 | F187: 10.18783769 | G187: -0.6804568337 | H187: -0.08826924018 | J187: 10.1877862 | K187: -0.68049977 | L187: -0.08826786658 | N187: -5.148738223e-05 | O187: -4.293626881e-05 | P187: 1.373599198e-06
E188: 2.16 | F188: 10.67903035 | G188: -0.5550933605 | H188: -0.0956884363 | J188: 10.67903124 | K188: -0.555136841 | L188: -0.09568757559 | N188: 8.909667866e-07 | O188: -4.348054246e-05 | P188: 8.607011814e-07
E189: 2.172 | F189: 11.0068096 | G189: -0.4248140792 | H189: -0.1015718144 | J189: 11.00686219 | K189: -0.4248574788 | L189: -0.1015714723 | N189: 5.258589031e-05 | O189: -4.339958356e-05 | P189: 3.421327681e-07
E190: 2.184 | F190: 11.17039244 | G190: -0.2915870298 | H190: -0.1058721838 | J190: 11.1704953 | K190: -0.2916297324 | L190: -0.1058723584 | N190: 0.0001028679621 | O190: -4.270257131e-05 | P190: -1.746281947e-07
E191: 2.196 | F191: 11.1713479 | G191: -0.1573754739 | H191: -0.1085659695 | J191: 11.17149893 | K191: -0.1574168813 | L191: -0.1085666517 | N191: 0.0001510374288 | O191: -4.140740056e-05 | P191: -6.822262766e-07
E192: 2.208 | F192: 11.013519 | G192: -0.0241101069 | H192: -0.1096529878 | J192: 11.01371543 | K192: -0.02414964721 | L192: -0.1096541614 | N192: 0.0001964338989 | O192: -3.954031064e-05 | P192: -1.173532776e-06
E193: 2.22 | F193: 10.70291418 | G193: 0.1063376075 | H193: -0.109155894 | J193: 10.70315263 | K193: 0.1063004721 | L193: -0.1091575357 | N193: 0.0002384453349 | O193: -3.713539849e-05 | P193: -1.641745379e-06
E194: 2.232 | F194: 10.24757058 | G194: 0.2321806291 | H194: -0.1071193184 | J194: 10.2478471 | K194: 0.2321463951 | L194: -0.1071213989 | N194: 0.0002765162282 | O194: -3.423402469e-05 | P194: -2.080481788e-06
E195: 2.244 | F195: 9.657391705 | G195: 0.3517397359 | H195: -0.1036087118 | J195: 9.65770186 | K195: 0.3517088517 | L195: -0.1036111956 | N195: 0.0003101548475 | O195: -3.08841224e-05 | P195: -2.483866027e-06
E196: 2.256 | F196: 8.943962397 | G196: 0.4634648311 | H196: -0.0987089206 | J196: 8.944301337 | K196: 0.4634376917 | L196: -0.0987117672 | N196: 0.0003389394703 | O196: -2.713942056e-05 | P196: -2.846606291e-06
E197: 2.268 | F197: 8.120344364 | G197: 0.5659539108 | H197: -0.09252252186 | J197: 8.120706888 | K197: 0.5659308522 | L197: -0.09252568592 | N197: 0.0003625235189 | O197: -2.305859385e-05 | P197: -3.164063312e-06
E198: 2.28 | F198: 7.200855508 | G198: 0.657969476 | H198: -0.0851679446 | J198: 7.201236147 | K198: 0.6579507717 | L198: -0.08517137691 | N198: 0.0003806395431 | O198: -1.870435255e-05 | P198: -3.43230838e-06
E199: 2.292 | F199: 6.20083666 | G199: 0.7384522188 | H199: -0.07677741097 | J199: 6.201229762 | K199: 0.7384380764 | L199: -0.07678105914 | N199: 0.0003931020051 | O199: -1.41424865e-05 | P199: -3.648170321e-06
E200: 2.304 | F200: =-2*$C$30*G200-$C$25^2*H200 -> 5.136409308 | G200: =-$C$30*H200-$C$31*$C$27*EXP(-$C$30*E200)*SIN($C$27*E200+$C$32) -> 0.8065318508 | H200: =$C$31*EXP(-$C$30*E200)*COS($C$27*E200+$C$32) -> -0.06749473009 | J200: 5.136809116 | K200: 0.8065224099 | L200: -0.06749853936 | N200: 0.0003998088464 | O200: -9.440877576e-06 | P200: -3.809270913e-06
... 308 more rows

Sheet 動摩擦
A1: 振動の運動方程式
A2: mx''+cx'+kx=-sign(x')μ'mg+fsinΩt | H2: マクロで計算 ➡ | J2: =exe("ルンゲ･クッタ･ギル法","ForcedOscillation",C8:C18,G8:I8) -> ルンゲ･クッタ･ギル法
A3: x''=-(c/m)x'-(k/m)x-sign(x')(μ'g)+(f/m)sinΩt | G3: マクロは標準モジュール-Module6 の中。 実行させるには =exe(･･･ と先頭に＝を付加する。
A4: ダンパ＋バネ＋動摩擦＋外力 | H4: 動摩擦力
F5: 時間 | G5: 加速度 | H5: 速度 | I5: 変位
F6: t | G6: x'' | H6: x' | I6: x
F7: [s] | G7: [m/s^2] | H7: [m/s] | I7: [m]
A8: 時間間隔 | B8: Δt | C8: =C9/500 -> 0.012 | D8: [s] | F8: 0 | G8: -100 | H8: 0 | I8: 1
A9: 終了時間 | B9: TL | C9: 6 | D9: [s] | F9: =F8+$C$8 -> 0.012 | G9: -94.404384 | H9: -1.14819056 | I9: 0.99304384
A10: 重力加速度 | B10: g | C10: 9.8 | D10: [m/s^2] | F10: 0.024 | G10: -92.35096621 | H10: -2.27006727 | I10: 0.9725096621
A11: 質量 | B11: m | C11: 10 | D11: [kg] | F11: 0.036 | G11: -88.96929423 | H11: -3.359294286 | I11: 0.9386929423
A12: 粘性係数 | B12: c | C12: 0 | D12: [Ns/m] | F12: 0.048 | G12: -84.30800563 | H12: -4.400205606 | I12: 0.8920800563
A13: バネ定数 | B13: k | C13: 1000 | D13: [N/m] | F13: 0.06 | G13: -78.43414228 | H13: -5.377830141 | I13: 0.8333414228
A14: 動摩擦係数 | B14: μ' | C14: 0.5 | D14: [ND] | F14: 0.072 | G14: -71.43218611 | H14: -6.278107032 | I14: 0.7633218611
A15: 強制力 | B15: f | C15: 0 | D15: [N] | F15: 0.084 | G15: -63.40284405 | H15: -7.088087891 | I15: 0.6830284405
A16: 強制力角速度 | B16: Ω | C16: 0 | D16: [rad/s] | F16: 0.096 | G16: -54.4615996 | H16: -7.796123026 | I16: 0.593615996
A17: 初期位置 | B17: x0 | C17: 1 | D17: [m] | F17: 0.108 | G17: -44.73705183 | H17: -8.392028999 | I17: 0.4963705183
A18: 初期速度 | B18: x'0 | C18: 0 | D18: [m/s] | F18: 0.12 | G18: -34.36906583 | H18: -8.867235093 | I18: 0.3926906583
F19: 0.132 | G19: -23.50676103 | H19: -9.214906574 | I19: 0.2840676103
B20: c/m | C20: =C12/C11 -> 0 | D20: [1/s] | F20: 0.144 | G20: -12.30636649 | H20: -9.430043001 | I20: 0.1720636649
B21: k/m | C21: =C13/C11 -> 100 | D21: [1/s^2] | F21: 0.156 | G21: -0.9289739037 | H21: -9.509550141 | I21: 0.05828973904
B22: μ'g | C22: =C14*C10 -> 4.9 | D22: [s^2/m] | F22: 0.168 | G22: 10.46177935 | H22: -9.452284475 | I22: -0.05561779347
B23: f/m | C23: =C15/C11 -> 0 | D23: [N/m] | F23: 0.18 | G23: 21.70206372 | H23: -9.259069642 | I23: -0.1680206372
A24: 振動中心 | B24: p＝mg/k | C24: =C11*C10/C13 -> 0.098 | D24: [m] | F24: 0.192 | G24: 32.63021381 | H24: -8.932684594 | I24: -0.2773021381
A25: 固有角振動数 | B25: ω＝√(k/m) | C25: =SQRT(C13/C11) -> 10 | D25: ［rad/s］ | F25: 0.204 | G25: 43.08905358 | H25: -8.477823627 | I25: -0.3818905358
A26: 〝 | B26: 〝 | C26: =DEGREES(C25) -> 572.9577951 | D26: [deg/s] | F26: 0.216 | G26: 52.9281569 | H26: -7.901028867 | I26: -0.480281569
A27: 減衰比 | B27: ζ＝c/{2√(mk)} | C27: =C12/(2*SQRT(C11*C13)) -> 0 | D27: [ND] | F27: 0.228 | G27: 62.00601115 | H27: -7.210596173 | I27: -0.5710601115
A28: 振幅 | B28: A＝x0 | C28: =SQRT(C17^2+C18^2/(C25*SQRT(1-C27^2)*(1+2*C27^2/(1-2*C27^2)))^2) -> 1 | D28: [m] | F28: 0.24 | G28: 70.19205249 | H28: -6.416455819 | I28: -0.6529205249
A29: 初期位相 | B29: α＝0 | C29: =ATAN2(C17,-C18/(C25*SQRT(1-C27^2)*(1+2*C27^2/(1-2*C27^2)))) -> 0 | D29: [rad] | F29: 0.252 | G29: 77.36854377 | H29: -5.530029676 | I29: -0.7246854377
A30: 〝 | B30: 〝 | C30: =DEGREES(C29) -> 0 | D30: [deg] | F30: 0.264 | G30: 83.43226784 | H30: -4.564066931 | I30: -0.7853226784
F31: 0.276 | G31: 88.29601217 | H31: -3.532460718 | I31: -0.8339601217
A32: 減衰振動理論値 | F32: 0.288 | G32: 91.88982314 | H32: -2.4500483 | I32: -0.8698982314
A33: x''+2ζωx'+ω^2=0 | C33: 運動方程式 | F33: 0.3 | G33: 94.16201216 | H33: -1.33239767 | I33: -0.8926201216
A34: x＝Ae^(－ζωt)cos{ω√(1－ζ^2)t＋α} | C34: 理論値 | F34: 0.312 | G34: 95.07989913 | H34: -0.195583639 | I34: -0.9017989913
A35: x'＝－Aζωe^(－ζωt)cos{ω√(1－ζ^2)t＋α} | F35: 0.324 | G35: 84.87732243 | H35: 0.8461844818 | I35: -0.8977732243
A36: －Aω√(1－ζ^2)e^(－ζωt)sin{ω√(1－ζ^2)t＋α} | F36: 0.336 | G36: 83.25395468 | H36: 1.856182667 | I36: -0.8815395468
A37: x''＝－Aω^2(1－2ζ^2)e^(－ζωt)cos{ω√(1－ζ^2)t＋α} | F37: 0.348 | G37: 80.43317213 | H37: 2.839483931 | I37: -0.8533317213
A38: ＋2Aζω^2√(1－ζ^2)e^(－ζωt)sin{ω√(1－ζ^2)t＋α} | F38: 0.36 | G38: 76.45554523 | H38: 3.78194577 | I38: -0.8135554523
F39: 0.372 | G39: 71.37828296 | H39: 4.67001306 | I39: -0.7627828296
A40: A^2＝{x0^2＋x'0^2/[ω√(1－ζ^2){1＋2ζ^2/(1－2ζ^2)}]^2 | F40: 0.384 | G40: 65.27441 | H40: 5.490913016 | I40: -0.7017441
A41: α＝atan2(x0,－x'0/[Aω√(1－ζ^2){1＋2ζ^2/(1－2ζ^2)}]) | F41: 0.396 | G41: 58.23171643 | H41: 6.232838901 | I41: -0.6313171643
F42: 0.408 | G42: 50.35149508 | H42: 6.885119836 | I42: -0.5525149508
A43: (ζω)^2-ω^2>0 | B43: 過減衰 | C43: ζ>1 | F43: 0.42 | G43: 41.7470847 | H43: 7.438374278 | I43: -0.466470847
A44: (ζω)^2-ω^2=0 | B44: 臨界減衰 | C44: ζ=1 | F44: 0.432 | G44: 32.54223977 | H44: 7.884644952 | I44: -0.3744223977
A45: (ζω)^2-ω^2<0 | B45: 減衰振動 | C45: 0<ζ<1 | F45: 0.444 | G45: 22.86935064 | H45: 8.217513292 | I45: -0.2776935064
B46: 単振動 | C46: ζ=0 | F46: 0.456 | G46: 12.8675394 | H46: 8.432191766 | I46: -0.177675394
F47: 0.468 | G47: 2.680658882 | H47: 8.525592727 | I47: -0.07580658882
F48: 0.48 | G48: -7.544776267 | H48: 8.496372824 | I48: 0.02644776267
F49: 0.492 | G49: -17.6616969 | H49: 8.344952323 | I49: 0.127616969
F50: 0.504 | G50: -27.5245946 | H50: 8.073509061 | I50: 0.226245946
F51: 0.516 | G51: -36.9916145 | H51: 7.685947124 | I51: 0.320916145
F52: 0.528 | G52: -45.92659551 | H52: 7.187840695 | I52: 0.4102659551
F53: 0.54 | G53: -54.20102868 | H53: 6.586353885 | I53: 0.4930102868
F54: 0.552 | G54: -61.69590553 | H54: 5.890137689 | I54: 0.5679590553
F55: 0.564 | G55: -68.30342969 | H55: 5.109205564 | I55: 0.6340342969
F56: 0.576 | G56: -73.92856731 | H56: 4.25478941 | I56: 0.6902856731
F57: 0.588 | G57: -78.49041386 | H57: 3.339178023 | I57: 0.7359041386
F58: 0.6 | G58: -81.92335783 | H58: 2.375540349 | I58: 0.7702335783
F59: 0.612 | G59: -84.17802434 | H59: 1.377736082 | I59: 0.7927802434
F60: 0.624 | G60: -85.22198528 | H60: 0.3601163206 | I60: 0.8032198528
F61: 0.636 | G61: -75.28726575 | H61: -0.5648239557 | I61: 0.8018726575
F62: 0.648 | G62: -74.06968587 | H62: -1.462041019 | I62: 0.7896968587
F63: 0.66 | G63: -71.78678555 | H63: -2.338229979 | I63: 0.7668678555
A64: x0＝Acos(α) | F64: 0.672 | G64: -68.47139906 | H64: -3.180788893 | I64: 0.7337139906
A65: x'0＝－Aω{ζcos(α)＋√(1－ζ^2)sin(α)} | F65: 0.684 | G65: -64.17121058 | H65: -3.977599507 | I65: 0.6907121058
A66: x''0＝－Aω^2{(1－2ζ^2)cos(α)－2ζ√(1－ζ^2)sin(α)}＝0 | F66: 0.696 | G66: -58.94806838 | H66: -4.717201553 | I66: 0.6384806838
A67: (1－2ζ^2)cos(α)－2ζ√(1－ζ^2)sin(α)＝0 | F67: 0.708 | G67: -52.87709527 | H67: -5.388957575 | I67: 0.5777709527
A68: cos(α)＝{2ζ√(1－ζ^2)/(1－2ζ^2)}sin(α) | F68: 0.72 | G68: -46.04560815 | H68: -5.983205924 | I68: 0.5094560815
A69: x'0＝－Aω√(1－ζ^2)sin(α){1＋2ζ^2/(1－2ζ^2)} | F69: 0.732 | G69: -38.55186213 | H69: -6.49139972 | I69: 0.4345186213
A70: sin(α)＝－x'0/[Aω√(1－ζ^2){1＋2ζ^2/(1－2ζ^2)}] | F70: 0.744 | G70: -30.50363738 | H70: -6.90622978 | I70: 0.3540363738
A71: cos(α)＝x0/A | F71: 0.756 | G71: -22.01668895 | H71: -7.221729739 | I71: 0.2691668895
A72: (x0/A)^2＋x'0^2/[Aω√(1－ζ^2){1＋2ζ^2/(1－2ζ^2)}]^2=1 | F72: 0.768 | G72: -13.21308191 | H72: -7.433361868 | I72: 0.1811308191
A73: A^2＝{x0^2＋x'0^2/[ω√(1－ζ^2){1＋2ζ^2/(1－2ζ^2)}]^2 | F73: =F72+$C$8 -> 0.78 | G73: -4.219435719 | H73: -7.538082332 | I73: 0.09119435719
A74: α＝atan2(x0,－x'0/[Aω√(1－ζ^2){1＋2ζ^2/(1－2ζ^2)}]) | F74: 0.792 | G74: 4.834896884 | H74: -7.534384978 | I74: 0.0006510311602
F75: 0.804 | G75: 13.81969034 | H75: -7.422322985 | I75: -0.08919690344
F76: 0.816 | G76: 22.60571927 | H76: -7.203508112 | I76: -0.1770571927
F77: 0.828 | G77: 31.06661703 | H77: -6.881087505 | I77: -0.2616661703
F78: 0.84 | G78: 39.08069328 | H78: -6.459698442 | I78: -0.3418069328
F79: 0.852 | G79: 46.53268414 | H79: -5.945401629 | I79: -0.4163268414
F80: 0.864 | G80: 53.31541006 | H80: -5.345594037 | I80: -0.4841541006
F81: 0.876 | G81: 59.33131729 | H81: -4.668902509 | I81: -0.5443131729
F82: 0.888 | G82: 64.493881 | H82: -3.925059685 | I82: -0.59593881
F83: 0.9 | G83: 68.72884973 | H83: -3.12476402 | I83: -0.6382884973
F84: 0.912 | G84: 71.97531333 | H84: -2.279525911 | I84: -0.6707531333
F85: 0.924 | G85: 74.186579 | H85: -1.401502148 | I85: -0.69286579
F86: 0.936 | G86: 75.33084286 | H86: -0.5033210674 | I86: -0.7043084286
F87: 0.948 | G87: 65.59164736 | H87: 0.3824990816 | I87: -0.7049164736
F88: 0.96 | G88: 64.66205691 | H88: 1.164959122 | I88: -0.6956205691
F89: 0.972 | G89: 62.80245292 | H89: 1.930663897 | I89: -0.6770245292
F90: 0.984 | G90: 60.03958151 | H90: 2.668600522 | I90: -0.6493958151
F91: 0.996 | G91: 56.41318021 | H91: 3.368155494 | I91: -0.6131318021
F92: 1.008 | G92: 51.97540641 | H92: 4.019267338 | I92: -0.5687540641
F93: 1.02 | G93: 46.79008724 | H93: 4.612571325 | I93: -0.5169008724
F94: 1.032 | G94: 40.93180149 | H94: 5.139534156 | I94: -0.4583180149
F95: 1.044 | G95: 34.48480704 | H95: 5.592576698 | I95: -0.3938480704
F96: 1.056 | G96: 27.54182897 | H96: 5.965182988 | I96: -0.3244182897
F97: 1.068 | G97: 20.2027259 | H97: 6.251993952 | I97: -0.251027259
F98: 1.08 | G98: 12.57305383 | H98: 6.448884485 | I98: -0.1747305383
F99: 1.092 | G99: 4.762547875 | H99: 6.553022777 | I99: -0.09662547875
F100: 1.104 | G100: -3.116455949 | H100: 6.562911044 | I100: -0.01783544051
F101: 1.116 | G101: -10.95063646 | H101: 6.478407071 | I101: 0.06050636462
F102: 1.128 | G102: -18.62731717 | H102: 6.300726254 | I102: 0.1372731717
F103: 1.14 | G103: -26.03608684 | H103: 6.032424124 | I103: 0.2113608684
F104: 1.152 | G104: -33.07038753 | H104: 5.677359588 | I104: 0.2817038753
F105: 1.164 | G105: -39.62904718 | H105: 5.240639428 | I105: 0.3472904718
F106: 1.176 | G106: -45.61773471 | H106: 4.728544854 | I106: 0.4071773471
F107: 1.188 | G107: -50.95031677 | H107: 4.14844116 | I107: 0.4605031677
F108: 1.2 | G108: -55.55009658 | H108: 3.508671794 | I108: 0.5065009658
F109: 1.212 | G109: -59.35091701 | H109: 2.818438356 | I109: 0.5445091701
F110: 1.224 | G110: -62.29811213 | H110: 2.087668253 | I110: 0.5739811213
F111: 1.236 | G111: -64.3492934 | H111: 1.326871919 | I111: 0.594492934
F112: 1.248 | G112: -65.47495937 | H112: 0.5469916445 | I112: 0.6057495937
F113: 1.26 | G113: -55.85892001 | H113: -0.221155803 | I113: 0.6075892001
F114: 1.272 | G114: -55.19246837 | H114: -0.8882636952 | I114: 0.6009246837
F115: 1.284 | G115: -53.73220123 | H115: -1.542595949 | I115: 0.5863220123
F116: 1.296 | G116: -51.49912116 | H116: -2.174741513 | I116: 0.5639912116
F117: 1.308 | G117: -48.52534588 | H117: -2.775608443 | I117: 0.5342534588
F118: 1.32 | G118: -44.85364627 | H118: -3.336554664 | I118: 0.4975364627
F119: 1.332 | G119: -40.53683123 | H119: -3.849512269 | I119: 0.4543683123
F120: 1.344 | G120: -35.63698816 | H120: -4.307103554 | I120: 0.4053698816
F121: 1.356 | G121: -30.22458994 | H121: -4.702747135 | I121: 0.3512458994
F122: 1.368 | G122: -24.37748138 | H122: -5.030752598 | I122: 0.2927748138
F123: 1.38 | G123: -18.17975959 | H123: -5.28640235 | I123: 0.2307975959
F124: 1.392 | G124: -11.72056441 | H124: -5.466019466 | I124: 0.1662056441
F125: 1.404 | G125: -5.092796391 | H125: -5.567020573 | I125: 0.09992796391
F126: 1.416 | G126: 1.608219409 | H126: -5.587953008 | I126: 0.03291780591
F127: 1.428 | G127: 8.286104429 | H127: -5.52851571 | I127: -0.03386104429
F128: 1.44 | G128: 14.8448128 | H128: -5.38956355 | I128: -0.09944812796
F129: 1.452 | G129: 21.19001272 | H129: -5.173095035 | I129: -0.1629001272
F130: 1.464 | G130: 27.23044324 | H130: -4.882223566 | I130: -0.2233044324
F131: 1.476 | G131: 32.87922679 | H131: -4.521132657 | I131: -0.2797922679
F132: 1.488 | G132: 38.05511876 | H132: -4.095015764 | I132: -0.3315511876
F133: 1.5 | G133: 42.68367598 | H133: -3.610001594 | I133: -0.3778367598
F134: 1.512 | G134: 46.69832741 | H134: -3.073065951 | I134: -0.4179832741
F135: 1.524 | G135: 50.04133163 | H135: -2.491931411 | I135: -0.4514133163
F136: 1.536 | G136: 52.66460733 | H136: -1.874956246 | I136: -0.4776460733
F137: =F136+$C$8 -> 1.548 | G137: 54.5304248 | H137: -1.231014213 | I137: -0.496304248
F138: 1.56 | G138: 55.61194862 | H138: -0.5693669252 | I138: -0.5071194862
F139: 1.572 | G139: 46.09362361 | H139: 0.08086935672 | I139: -0.5099362361
F140: 1.584 | G140: 45.66533745 | H140: 0.632083783 | I140: -0.5056533745
F141: 1.596 | G141: 44.58026143 | H141: 1.174207129 | I141: -0.4948026143
F142: 1.608 | G142: 42.85400188 | H142: 1.699442208 | I142: -0.4775400188
F143: 1.62 | G143: 40.51138707 | H143: 2.200234735 | I143: -0.4541138707
F144: 1.632 | G144: 37.5861101 | H144: 2.669381971 | I144: -0.424861101
F145: 1.644 | G145: 34.1202443 | H145: 3.100136326 | I145: -0.390202443
F146: 1.656 | G146: 30.16363814 | H146: 3.486302398 | I146: -0.3506363814
F147: 1.668 | G147: 25.77319823 | H147: 3.822326087 | I147: -0.3067319823
F148: 1.68 | G148: 21.01207088 | H148: 4.103374475 | I148: -0.2591207088
F149: 1.692 | G149: 15.94873386 | H149: 4.325405335 | I149: -0.2084873386
F150: 1.704 | G150: 10.65601154 | H150: 4.485225271 | I150: -0.1555601154
F151: 1.716 | G151: 5.210027451 | H151: 4.580535647 | I151: -0.1011002745
F152: 1.728 | G152: -0.3108905654 | H152: 4.609965647 | I152: -0.04589109435
F153: 1.74 | G153: -5.827336914 | H153: 4.573091991 | I153: 0.009273369143
F154: 1.752 | G154: -11.25997032 | H154: 4.470445024 | I154: 0.06359970321
F155: 1.764 | G155: -16.53065497 | H155: 4.303501088 | I155: 0.1163065497
F156: 1.776 | G156: -21.5635843 | H156: 4.074661286 | I156: 0.166635843
F157: 1.788 | G157: -26.28637132 | H157: 3.787216949 | I157: 0.2138637132
F158: 1.8 | G158: -30.63108972 | H158: 3.4453023 | I158: 0.2573108972
F159: 1.812 | G159: -34.53525081 | H159: 3.05383499 | I159: 0.2963525081
F160: 1.824 | G160: -37.94270233 | H160: 2.618445369 | I160: 0.3304270233
F161: 1.836 | G161: -40.80443602 | H161: 2.145395507 | I161: 0.3590443602
F162: 1.848 | G162: -43.0792925 | H162: 1.641489131 | I162: 0.381792925
F163: 1.86 | G163: -44.73455327 | H163: 1.113973766 | I163: 0.3983455327
F164: 1.872 | G164: -45.74641127 | H164: 0.5704364951 | I164: 0.4084641127
F165: 1.884 | G165: -46.10031329 | H165: 0.01869484237 | I165: 0.4120031329
F166: 1.896 | G166: -36.03820931 | H166: -0.4354567895 | I166: 0.4093820931
F167: 1.908 | G167: -35.25775155 | H167: -0.8637458743 | I167: 0.4015775155
F168: 1.92 | G168: -33.9701929 | H168: -1.279611962 | I168: 0.388701929
F169: 1.932 | G169: -32.19405194 | H169: -1.677073785 | I169: 0.3709405194
F170: 1.944 | G170: -29.95487436 | H170: -2.050414778 | I170: 0.3485487436
F171: 1.956 | G171: -27.28486553 | H171: -2.394265299 | I171: 0.3218486553
F172: 1.968 | G172: -24.22242736 | H172: -2.703679858 | I172: 0.2912242736
F173: 1.98 | G173: -20.81160594 | H173: -2.974208245 | I173: 0.2571160594
F174: 1.992 | G174: -17.10145801 | H174: -3.20195954 | I174: 0.2200145801
F175: 2.004 | G175: -13.14534547 | H175: -3.38365807 | I175: 0.1804534547
F176: 2.016 | G176: -9.000167807 | H176: -3.516690527 | I176: 0.1390016781
F177: 2.028 | G177: -4.725543796 | H177: -3.599143548 | I177: 0.09625543796
F178: 2.04 | G178: -0.3829539857 | H178: -3.629831241 | I178: 0.05282953986
F179: 2.052 | G179: 3.965143549 | H179: -3.608312237 | I179: 0.009348564505
F180: 2.064 | G180: 8.256211519 | H180: -3.534896038 | I180: -0.03356211519
F181: 2.076 | G181: 12.42853287 | H181: -3.410638568 | I181: -0.07528532875
F182: 2.088 | G182: 16.42209846 | H182: -3.237326986 | I182: -0.1152209846
F183: 2.1 | G183: 20.17947012 | H183: -3.017453977 | I183: -0.1527947012
F184: 2.112 | G184: 23.64660679 | H184: -2.754181906 | I184: -0.1874660679
F185: 2.124 | G185: 26.77364178 | H185: -2.451297334 | I185: -0.2187364178
F186: 2.136 | G186: 29.51559994 | H186: -2.113156552 | I186: -0.2461559994
F187: 2.148 | G187: 31.83304461 | H187: -1.744622932 | I187: -0.2693304461
F188: 2.16 | G188: 33.69264473 | H188: -1.350996977 | I188: -0.2879264473
F189: 2.172 | G189: 35.06765429 | H189: -0.9379400826 | I189: -0.3016765429
F190: 2.184 | G190: 35.938297 | H190: -0.5113931148 | I190: -0.31038297
F191: 2.196 | G191: 36.29205069 | H191: -0.07749096176 | I191: -0.3139205069
F192: 2.208 | G192: 26.37086747 | H192: 0.2596668209 | I192: -0.3127086747
F193: 2.22 | G193: 25.87037272 | H193: 0.573490392 | I193: -0.3077037272
F194: 2.232 | G194: 24.99779274 | H194: 0.8790656221 | I194: -0.2989779274
F195: 2.244 | G195: 23.76567758 | H195: 1.171997521 | I195: -0.2866567758
F196: 2.256 | G196: 22.19174836 | H196: 1.448072945 | I196: -0.2709174836
F197: 2.268 | G197: 20.29864243 | H197: 1.703321189 | I197: -0.2519864243
F198: 2.28 | G198: 18.11358772 | H198: 1.934071101 | I198: -0.2301358772
F199: 2.292 | G199: 15.66801119 | H199: 2.137003881 | I199: -0.2056801119
F200: 2.304 | G200: 12.9970868 | H200: 2.309200812 | I200: -0.178970868
... 308 more rows

Sheet 振動
A1: 振動の運動方程式
A2: mx''+cx'+kx=-sign(x')μ'mg+fsinΩt | O2: ルンゲ･クッタ法による数値積分計算式をシートに記述して実行 | AB2: マクロで計算 ➡ | AD2: exe("ルンゲ･クッタ法","ForcedOscillation_rk",C8:C18,AA8:AC8) | AN2: マクロで計算 ➡ | AP2: exe("ルンゲ･クッタ･ギル法","ForcedOscillation",C8:C18,AM8:AO8)
A3: x''=-(c/m)x'-(k/m)x-sign(x')(μ'g)+(f/m)sinΩt | AA3: マクロは標準モジュール-Module6 の中。 実行させるには =exe(･･･ と先頭に＝を付加する。 | AM3: マクロは標準モジュール-Module6 の中。 実行させるには =exe(･･･ と先頭に＝を付加する。
A4: ダンパ＋バネ＋動摩擦＋外力 | F4: 減衰振動 理論値 | O4: 数値解析（その1） | X4: 理論値との差 | AB4: 数値解析（その2） | AF4: 理論値との差 | AJ4: 数値解析（その1）との差 | AN4: 数値解析（その3） | AR4: 理論値との差 | AV4: 数値解析（その1）との差
E5: 加速度 | F5: 速度 | G5: 変位 | I5: 時間 | J5: 加速度 | K5: 加速度の途中評価 | N5: 速度 | O5: 速度の途中評価 | R5: 変位 | S5: 変位の途中評価 | W5: 加速度 | X5: 速度 | Y5: 変位 | AA5: 加速度 | AB5: 速度 | AC5: 変位 | AE5: 加速度 | AF5: 速度 | AG5: 変位 | AI5: 加速度 | AJ5: 速度 | AK5: 変位 | AM5: 加速度 | AN5: 速度 | AO5: 変位 | AQ5: 加速度 | AR5: 速度 | AS5: 変位 | AU5: 加速度 | AV5: 速度 | AW5: 変位
E6: 理論値x'' | F6: 理論値x' | G6: 理論値x | I6: t | J6: x'' | K6: x''2 | L6: x''3 | M6: x''4 | N6: x' | O6: x'2 | P6: x'3 | Q6: x'4 | R6: x | S6: x2 | T6: x3 | U6: x4 | W6: x'' | X6: x' | Y6: x | AA6: x'' | AB6: x' | AC6: x | AE6: x'' | AF6: x' | AG6: x | AI6: x'' | AJ6: x' | AK6: x | AM6: x'' | AN6: x' | AO6: x | AQ6: x'' | AR6: x' | AS6: x | AU6: x'' | AV6: x' | AW6: x
E7: [m/s^2] | F7: [m/s] | G7: [m] | I7: [s] | J7: [m/s^2] | N7: [m/s] | R7: [m] | W7: [m/s^2] | X7: [m/s] | Y7: [m] | AA7: [m/s^2] | AB7: [m/s] | AC7: [m] | AE7: [m/s^2] | AF7: [m/s] | AG7: [m] | AI7: [m/s^2] | AJ7: [m/s] | AK7: [m] | AM7: [m/s^2] | AN7: [m/s] | AO7: [m] | AQ7: [m/s^2] | AR7: [m/s] | AS7: [m] | AU7: [m/s^2] | AV7: [m/s] | AW7: [m]
A8: 時間間隔 | B8: Δt | C8: =C9/500 -> 0.012 | D8: [s] | E8: =-$C$28*$C$25^2*(1-2*$C$27^2)*EXP(-$C$27*$C$25*I8)*COS($C$25*SQRT(1-$C$27^2)*I8+$C$29)+2*$C$28*$C$27*$C$25^2*SQRT(1-$C$27^2)*EXP(-$C$27*$C$25*I8)*SIN($C$25*SQRT(1-$C$27^2)*I8+$C$29) -> -100 | F8: =-$C$28*$C$27*$C$25*EXP(-$C$27*$C$25*I8)*COS($C$25*SQRT(1-$C$27^2)*I8+$C$29)-$C$28*$C$25*SQRT(1-$C$27^2)*EXP(-$C$27*$C$25*I8)*SIN($C$25*SQRT(1-$C$27^2)*I8+$C$29) -> 0 | G8: =$C$28*EXP(-$C$27*$C$25*I8)*COS($C$25*SQRT(1-$C$27^2)*I8+$C$29) -> 1 | I8: 0 | J8: =-$C$20*N8-$C$21*R8-SIGN(N8)*$C$22+$C$23*SIN($C$16*$I8) -> -100 | K8: =-$C$20*O8-$C$21*S8-SIGN(O8)*$C$22+$C$23*SIN($C$16*$I8) -> -97.06 | L8: =-$C$20*P8-$C$21*T8-SIGN(P8)*$C$22+$C$23*SIN($C$16*$I8) -> -96.7 | M8: =-$C$20*Q8-$C$21*U8-SIGN(Q8)*$C$22+$C$23*SIN($C$16*$I8) -> -96.361168 | N8: =$C$18 -> 0 | O8: =$N8+J8*$C$8/2 -> -0.6 | P8: =$N8+K8*$C$8/2 -> -0.58236 | Q8: =$N8+L8*$C$8 -> -1.1604 | R8: =$C$17 -> 1 | S8: =$R8+N8*$C$8/2 -> 1 | T8: =$R8+O8*$C$8/2 -> 0.9964 | U8: =$R8+P8*$C$8 -> 0.99301168 | W8: =J8-E8 -> 0 | X8: =N8-F8 -> 0 | Y8: =R8-G8 -> 0 | AA8: -100 | AB8: 0 | AC8: 1 | AE8: =AA8-E8 -> 0 | AF8: =AB8-F8 -> 0 | AG8: =AC8-G8 -> 0 | AI8: =AA8-J8 -> 0 | AJ8: =AB8-N8 -> 0 | AK8: =AC8-R8 -> 0 | AM8: -100 | AN8: 0 | AO8: 1 | AQ8: =AM8-E8 -> 0 | AR8: =AN8-F8 -> 0 | AS8: 0 | AU8: =AM8-AA8 -> 0 | AV8: =AN8-AB8 -> 0 | AW8: 0
A9: 終了時間 | B9: TL | C9: 6 | D9: [s] | E9: -99.28086359 | F9: -1.197122073 | G9: 0.9928086359 | I9: =I8+$C$8 -> 0.012 | J9: -96.354976 | K9: -95.6543186 | L9: -95.30744068 | M9: -94.2649501 | N9: =N8+(J8+2*K8+2*L8+M8)*$C$8/6 -> -1.167762336 | O9: -1.745892192 | P9: -1.741688248 | Q9: -2.311451624 | R9: =R8+(N8+2*O8+2*P8+Q8)*$C$8/6 -> 0.99294976 | S9: 0.985943186 | T9: 0.9824744068 | U9: 0.972049501 | W9: 2.925887585 | X9: 0.02935973689 | Y9: 0.0001411241461 | AA9: -96.354976 | AB9: -1.167762336 | AC9: 0.99294976 | AE9: 2.925887585 | AF9: 0.02935973689 | AG9: 0.0001411241461 | AI9: 0 | AJ9: 0 | AK9: 0 | AM9: -96.354976 | AN9: -1.167762336 | AO9: 0.99294976 | AQ9: =AM9-E9 -> 2.925887585 | AR9: =AN9-F9 -> 0.02935973689 | AS9: =AO9-G9 -> 0.0001411241461 | AU9: =AM9-AA9 -> 0 | AV9: =AN9-AB9 -> 0 | AW9: =AO9-AC9 -> 0
A10: 重力加速度 | B10: g | C10: 9.8 | D10: [m/s^2] | E10: -97.13379749 | F10: -2.377026264 | G10: 0.9713379749 | I10: 0.024 | J10: =-$C$20*N10-$C$21*R10-SIGN(N10)*$C$22+$C$23*SIN($C$16*$I10) -> -94.26410103 | K10: =-$C$20*O10-$C$21*S10-SIGN(O10)*$C$22+$C$23*SIN($C$16*$I10) -> -92.8763915 | L10: =-$C$20*P10-$C$21*T10-SIGN(P10)*$C$22+$C$23*SIN($C$16*$I10) -> -92.53704073 | M10: =-$C$20*Q10-$C$21*U10-SIGN(Q10)*$C$22+$C$23*SIN($C$16*$I10) -> -90.81997194 | N10: =N9+(J9+2*K9+2*L9+M9)*$C$8/6 -> -2.312849225 | O10: =$N10+J10*$C$8/2 -> -2.878433832 | P10: =$N10+K10*$C$8/2 -> -2.870107574 | Q10: =$N10+L10*$C$8 -> -3.423293714 | R10: =R9+(N9+2*O9+2*P9+Q9)*$C$8/6 -> 0.9720410103 | S10: =$R10+N10*$C$8/2 -> 0.958163915 | T10: =$R10+O10*$C$8/2 -> 0.9547704073 | U10: =$R10+P10*$C$8 -> 0.9375997194 | W10: 2.869696453 | X10: 0.06417703893 | Y10: 0.0007030354692 | AA10: -94.26410103 | AB10: -2.312849225 | AC10: 0.9720410103 | AE10: 2.869696453 | AF10: 0.06417703893 | AG10: 0.0007030354692 | AI10: 0 | AJ10: 0 | AK10: 0 | AM10: -94.26410103 | AN10: -2.312849225 | AO10: 0.9720410103 | AQ10: =AM10-E10 -> 2.869696453 | AR10: =AN10-F10 -> 0.06417703893 | AS10: =AO10-G10 -> 0.0007030354692 | AU10: =AM10-AA10 -> 0 | AV10: =AN10-AB10 -> 0 | AW10: =AO10-AC10 -> 0
A11: 質量 | B11: m | C11: 10 | D11: [kg] | E11: -93.58968237 | F11: -3.522742333 | G11: 0.9358968237 | I11: 0.036 | J11: -90.81745588 | K11: -88.76265322 | L11: -88.43571038 | M11: -86.06875946 | N11: -3.4246711 | O11: -3.969575836 | P11: -3.95724702 | Q11: -4.485899625 | R11: 0.9375745588 | S11: 0.9170265322 | T11: 0.9137571038 | U11: 0.8900875946 | W11: 2.772226486 | X11: 0.09807123254 | Y11: 0.001677735141 | AA11: -90.81745588 | AB11: -3.4246711 | AC11: 0.9375745588 | AE11: 2.772226486 | AF11: 0.09807123254 | AG11: 0.001677735141 | AI11: 0 | AJ11: 0 | AK11: 0 | AM11: -90.81745588 | AN11: -3.4246711 | AO11: 0.9375745588 | AQ11: 2.772226486 | AR11: 0.09807123254 | AS11: 0.001677735141 | AU11: 0 | AV11: 0 | AW11: 0
A12: 粘性係数 | B12: c | C12: 0 | D12: [Ns/m] | E12: -88.69949228 | F12: -4.617791755 | G12: 0.8869949228 | I12: 0.048 | J12: -86.06461259 | K12: -83.3722704 | L12: -83.0624378 | M12: -80.07964787 | N12: -4.487236985 | O12: -5.003624661 | P12: -4.987470608 | Q12: -5.483986239 | R12: 0.8900461259 | S12: 0.863122704 | T12: 0.860024378 | U12: 0.8301964787 | W12: 2.634879683 | X12: 0.1305547701 | Y12: 0.003051203169 | AA12: -86.06461259 | AB12: -4.487236985 | AC12: 0.8900461259 | AE12: 2.634879683 | AF12: 0.1305547701 | AG12: 0.003051203169 | AI12: 0 | AJ12: 0 | AK12: 0 | AM12: -86.06461259 | AN12: -4.487236985 | AO12: 0.8900461259 | AQ12: 2.634879683 | AR12: 0.1305547701 | AS12: 0.003051203169 | AU12: 0 | AV12: 0 | AW12: 0
A13: バネ定数 | B13: k | C13: 1000 | D13: [N/m] | E13: -82.53356149 | F13: -5.646424734 | G13: 0.8253356149 | I13: 0.06 | J13: -80.07392984 | K13: -76.78277124 | L13: -76.49450509 | M13: -72.93877668 | N13: -5.485264339 | O13: -5.965707918 | P13: -5.945960966 | Q13: -6.4031984 | R13: 0.8301392984 | S13: 0.7972277124 | T13: 0.7943450509 | U13: 0.7587877668 | W13: 2.459631648 | X13: 0.1611603949 | Y13: 0.004803683516 | AA13: -80.07392984 | AB13: -5.485264339 | AC13: 0.8301392984 | AE13: 2.459631648 | AF13: 0.1611603949 | AG13: 0.004803683516 | AI13: 0 | AJ13: 0 | AK13: 0 | AM13: -80.07392984 | AN13: -5.485264339 | AO13: 0.8301392984 | AQ13: 2.459631648 | AR13: 0.1611603949 | AS13: 0.004803683516 | AU13: 0 | AV13: 0 | AW13: 0
A14: 動摩擦係数 | B14: μ' | C14: 0.3 | D14: [ND] | E14: -75.18057291 | F14: -6.59384672 | G14: 0.7518057291 | I14: 0.072 | J14: -72.93156974 | K14: -69.08893043 | L14: -68.82637678 | M14: -64.74885081 | N14: -6.404398857 | O14: -6.841988276 | P14: -6.81893244 | Q14: -7.230315379 | R14: 0.7587156974 | S14: 0.7202893043 | T14: 0.7176637678 | U14: 0.6768885081 | W14: 2.249003173 | X14: 0.1894478623 | Y14: 0.006909968269 | AA14: -72.93156974 | AB14: -6.404398857 | AC14: 0.7587156974 | AE14: 2.249003173 | AF14: 0.1894478623 | AG14: 0.006909968269 | AI14: 0 | AJ14: 0 | AK14: 0 | AM14: -72.93156974 | AN14: -6.404398857 | AO14: 0.7587156974 | AQ14: 2.249003173 | AR14: 0.1894478623 | AS14: 0.006909968269 | AU14: 0 | AV14: 0 | AW14: 0
A15: 強制力 | B15: f | C15: 0 | D15: [N] | E15: -66.74628258 | F15: -7.4464312 | G15: 0.6674628258 | I15: 0.084 | J15: -64.74025861 | K15: -60.40140605 | L15: -60.16834112 | M15: -55.62766337 | N15: -7.231420927 | O15: -7.619862479 | P15: -7.593829364 | Q15: -7.953441021 | R15: 0.6768025861 | S15: 0.6334140605 | T15: 0.6310834112 | U15: 0.5856766337 | W15: 2.006023977 | X15: 0.2150102724 | Y15: 0.009339760233 | AA15: -64.74025861 | AB15: -7.231420927 | AC15: 0.6768025861 | AE15: 2.006023977 | AF15: 0.2150102724 | AG15: 0.009339760233 | AI15: 0 | AJ15: 0 | AK15: 0 | AM15: -64.74025861 | AN15: -7.231420927 | AO15: 0.6768025861 | AQ15: 2.006023977 | AR15: 0.2150102724 | AS15: 0.009339760233 | AU15: 0 | AV15: 0 | AW15: 0
A16: 強制力角速度 | B16: Ω | C16: 0 | D16: [rad/s] | E16: -57.35199861 | F16: -8.191915683 | G16: 0.5735199861 | I16: 0.096 | J16: -55.61780948 | K16: -50.84514802 | L16: -50.64492391 | M16: -45.7064015 | N16: -7.95443576 | O16: -8.288142617 | P16: -8.259506648 | Q16: -8.562174847 | R16: 0.5855780948 | S16: 0.5378514802 | T16: 0.5358492391 | U16: 0.486464015 | W16: 1.734189126 | X16: 0.2374799231 | Y16: 0.01205810874 | AA16: -55.61780948 | AB16: -7.95443576 | AC16: 0.5855780948 | AE16: 1.734189126 | AF16: 0.2374799231 | AG16: 0.01205810874 | AI16: 0 | AJ16: 0 | AK16: 0 | AM16: -55.61780948 | AN16: -7.95443576 | AO16: 0.5855780948 | AQ16: 1.734189126 | AR16: 0.2374799231 | AS16: 0.01205810874 | AU16: 5.684341886e-14 | AV16: 0 | AW16: 0
A17: 初期位置 | B17: x0 | C17: 1 | D17: [m] | E17: -47.13283642 | F17: -8.819578069 | G17: 0.4713283642 | I17: 0.108 | J17: -45.69542765 | K17: -40.55760097 | L17: -40.39309743 | M17: -35.12775956 | N17: -8.56304447 | O17: -8.837217036 | P17: -8.806390075 | Q17: -9.047761639 | R17: 0.4863542765 | S17: 0.4349760097 | T17: 0.4333309743 | U17: 0.3806775956 | W17: 1.437408764 | X17: 0.2565335992 | Y17: 0.01502591236 | AA17: -45.69542765 | AB17: -8.56304447 | AC17: 0.4863542765 | AE17: 1.437408764 | AF17: 0.2565335992 | AG17: 0.01502591236 | AI17: 0 | AJ17: 0 | AK17: 0 | AM17: -45.69542765 | AN17: -8.56304447 | AO17: 0.4863542765 | AQ17: 1.437408764 | AR17: 0.2565335992 | AS17: 0.01502591236 | AU17: 6.394884622e-14 | AV17: 0 | AW17: -6.106226635e-16
A18: 初期速度 | B18: x'0 | C18: 0 | D18: [m/s] | E18: -36.23577545 | F18: -9.32039086 | G18: 0.3623577545 | I18: 0.12 | J18: -35.11582359 | K18: -29.6867274 | L18: -29.56031044 | M18: -24.04388678 | N18: -9.048493638 | O18: -9.259188579 | P18: -9.226614002 | Q18: -9.403217363 | R18: 0.3805582359 | S18: 0.326267274 | T18: 0.3250031044 | U18: 0.2698388678 | W18: 1.11995186 | X18: 0.271897222 | Y18: 0.0182004814 | AA18: -35.11582359 | AB18: -9.048493638 | AC18: 0.3805582359 | AE18: 1.11995186 | AF18: 0.271897222 | AG18: 0.0182004814 | AI18: 0 | AJ18: 0 | AK18: 0 | AM18: -35.11582359 | AN18: -9.048493638 | AO18: 0.3805582359 | AQ18: 1.11995186 | AR18: 0.271897222 | AS18: 0.0182004814 | AU18: 6.394884622e-14 | AV18: 0 | AW18: -6.661338148e-16
E19: -24.81754517 | F19: -9.687151001 | G19: 0.2481754517 | I19: 0.132 | J19: -24.03116035 | K19: -18.38887963 | L19: -18.30236745 | M19: -12.61419897 | N19: -9.40380121 | O19: -9.547988172 | P19: -9.514134488 | Q19: -9.623429619 | R19: 0.2697116035 | S19: 0.2132887963 | T19: 0.2124236745 | U19: 0.1555419897 | W19: 0.7863848107 | X19: 0.2833497913 | Y19: 0.02153615189 | AA19: -24.03116035 | AB19: -9.40380121 | AC19: 0.2697116035 | AE19: 0.7863848107 | AF19: 0.2833497913 | AG19: 0.02153615189 | AI19: 0 | AJ19: 0 | AK19: 0 | AM19: -24.03116035 | AN19: -9.40380121 | AO19: 0.2697116035 | AQ19: 0.7863848107 | AR19: 0.2833497913 | AS19: 0.02153615189 | AU19: 7.105427358e-14 | AV19: 0 | AW19: -7.21644966e-16
B20: c/m | C20: =C12/C11 -> 0 | D20: [1/s] | E20: -13.04237087 | F20: -9.914583482 | G20: 0.1304237087 | I20: 0.144 | J20: -12.60086512 | K20: -6.826550975 | L20: -6.78118786 | M20: -1.003085658 | N20: -9.623856917 | O20: -9.699462108 | P20: -9.664816223 | Q20: -9.705231171 | R20: 0.1554086512 | S20: 0.09766550975 | T20: 0.0972118786 | U20: 0.03943085658 | W20: 0.4415057489 | X20: 0.2907265651 | Y20: 0.02498494251 | AA20: -12.60086512 | AB20: -9.623856917 | AC20: 0.1554086512 | AE20: 0.4415057489 | AF20: 0.2907265651 | AG20: 0.02498494251 | AI20: 0 | AJ20: 0 | AK20: 0 | AM20: -12.60086512 | AN20: -9.623856917 | AO20: 0.1554086512 | AQ20: 0.4415057489 | AR20: 0.2907265651 | AS20: 0.02498494251 | AU20: 8.348877145e-14 | AV20: 0 | AW20: -8.326672685e-16
B21: k/m | C21: =C13/C11 -> 100 | D21: [1/s^2] | E21: -1.079611706 | F21: -9.999417202 | G21: 0.01079611706 | I21: 0.156 | J21: -0.9893361752 | K21: 4.833961289 | L21: 4.837522899 | M21: 10.62245423 | N21: -9.705495774 | O21: -9.711431791 | P21: -9.676492006 | Q21: -9.647445499 | R21: 0.03929336175 | S21: -0.01893961289 | T21: -0.01897522899 | U21: -0.07682454232 | W21: 0.09027553058 | X21: 0.2939214286 | Y21: 0.02849724469 | AA21: -0.9893361752 | AB21: -9.705495774 | AC21: 0.03929336175 | AE21: 0.09027553058 | AF21: 0.2939214286 | AG21: 0.02849724469 | AI21: 0 | AJ21: 0 | AK21: 0 | AM21: -0.9893361752 | AN21: -9.705495774 | AO21: 0.03929336175 | AQ21: 0.09027553058 | AR21: 0.2939214286 | AS21: 0.02849724469 | AU21: 8.970602039e-14 | AV21: 0 | AW21: -8.951173136e-16
B22: μ'g | C22: =C14*C10 -> 2.94 | D22: [s^2/m] | E22: 10.89867522 | F22: -9.940432022 | G22: -0.1089867522 | I22: 0.168 | J22: 10.6364216 | K22: 16.42494776 | L22: 16.38665664 | M22: 22.0952143 | N22: -9.647543601 | O22: -9.583725071 | P22: -9.548993914 | Q22: -9.450903721 | R22: -0.07696421598 | S22: -0.1348494776 | T22: -0.1344665664 | U22: -0.191552143 | W22: -0.262253626 | X22: 0.2928884211 | Y22: 0.03202253626 | AA22: 10.6364216 | AB22: -9.647543601 | AC22: -0.07696421598 | AE22: -0.262253626 | AF22: 0.2928884211 | AG22: 0.03202253626 | AI22: 0 | AJ22: 0 | AK22: 0 | AM22: 10.6364216 | AN22: -9.647543601 | AO22: -0.07696421598 | AQ22: -0.262253626 | AR22: 0.2928884211 | AS22: 0.03202253626 | AU22: 9.769962617e-14 | AV22: 0 | AW22: -9.714451465e-16
B23: f/m | C23: =C15/C11 -> 0 | D23: [N/m] | E23: 22.72020947 | F23: -9.738476309 | G23: -0.2272020947 | I23: 0.18 | J23: 22.10919866 | K23: 27.779699 | L23: 27.70010589 | M23: 33.25018552 | N23: -9.450833911 | O23: -9.31817872 | P23: -9.284155717 | Q23: -9.118432641 | R23: -0.1916919866 | S23: -0.24839699 | T23: -0.2476010589 | U23: -0.3031018552 | W23: -0.6110108127 | X23: 0.2876423973 | Y23: 0.03551010813 | AA23: 22.10919866 | AB23: -9.450833911 | AC23: -0.1916919866 | AE23: -0.6110108127 | AF23: 0.2876423973 | AG23: 0.03551010813 | AI23: 0 | AJ23: 0 | AK23: 0 | AM23: 22.10919866 | AN23: -9.450833911 | AO23: -0.1916919866 | AQ23: -0.6110108127 | AR23: 0.2876423973 | AS23: 0.03551010813 | AU23: 9.947598301e-14 | AV23: 0 | AW23: -1.026956298e-15
A24: 振動中心 | B24: p＝mg/k | C24: =C11*C10/C13 -> 0.098 | D24: [m] | E24: 34.21496512 | F24: -9.396454737 | G24: -0.3421496512 | I24: 0.192 | J24: 33.26398574 | K24: 38.7349033 | L24: 38.61515295 | M24: 43.92692955 | N24: -9.118195924 | O24: -8.918612009 | P24: -8.885786504 | Q24: -8.654814088 | R24: -0.3032398574 | S24: -0.357949033 | T24: -0.3567515295 | U24: -0.4098692955 | W24: -0.9509793733 | X24: 0.2782588133 | Y24: 0.03890979373 | AA24: 33.26398574 | AB24: -9.118195924 | AC24: -0.3032398574 | AE24: -0.9509793733 | AF24: 0.2782588133 | AG24: 0.03890979373 | AI24: 0 | AJ24: 0 | AK24: 0 | AM24: 33.26398574 | AN24: -9.118195924 | AO24: -0.3032398574 | AQ24: -0.9509793733 | AR24: 0.2782588133 | AS24: 0.03890979373 | AU24: 1.136868377e-13 | AV24: 0 | AW24: -1.110223025e-15
A25: 固有角振動数 | B25: ω＝√(k/m) | C25: =SQRT(C13/C11) -> 10 | D25: ［rad/s］ | E25: 45.21761621 | F25: -8.91928651 | G25: -0.4521761621 | I25: 0.204 | J25: 43.94034715 | K25: 49.13299547 | L25: 48.97481022 | M25: 53.97188622 | N25: -8.654413868 | O25: -8.390771785 | P25: -8.359615895 | Q25: -8.066716145 | R25: -0.4100034715 | S25: -0.4619299547 | T25: -0.4603481022 | U25: -0.5103188622 | W25: -1.277269065 | X25: 0.2648726415 | Y25: 0.04217269065 | AA25: 43.94034715 | AB25: -8.654413868 | AC25: -0.4100034715 | AE25: -1.277269065 | AF25: 0.2648726415 | AG25: 0.04217269065 | AI25: 0 | AJ25: 0 | AK25: 0 | AM25: 43.94034715 | AN25: -8.654413868 | AO25: -0.4100034715 | AQ25: -1.277269065 | AR25: 0.2648726415 | AS25: 0.04217269065 | AU25: 1.136868377e-13 | AV25: 0 | AW25: -1.165734176e-15
A26: 〝 | B26: 〝 | C26: =DEGREES(C25) -> 572.9577951 | D26: [deg/s] | E26: 55.56991463 | F26: -8.313834608 | G26: -0.5556991463 | I26: 0.216 | J26: 53.98472822 | K26: 58.82442313 | L26: 58.63007811 | M26: 63.24058219 | N26: -8.066158178 | O26: -7.742249809 | P26: -7.71321164 | Q26: -7.362597241 | R26: -0.5104472822 | S26: -0.5588442313 | T26: -0.5569007811 | U26: -0.6030058219 | W26: -1.585186401 | X26: 0.2476764293 | Y26: 0.04525186401 | AA26: 53.98472822 | AB26: -8.066158178 | AC26: -0.5104472822 | AE26: -1.585186401 | AF26: 0.2476764293 | AG26: 0.04525186401 | AI26: 0 | AJ26: 0 | AK26: 0 | AM26: 53.98472822 | AN26: -8.066158178 | AO26: -0.5104472822 | AQ26: -1.585186401 | AR26: 0.2476764293 | AS26: 0.04525186401 | AU26: 1.207922651e-13 | AV26: 0 | AW26: -1.221245327e-15
A27: 減衰比 | B27: ζ＝c/{2√(mk)} | C27: =C12/(2*SQRT(C11*C13)) -> 0 | D27: [ND] | E27: 65.12296605 | F27: -7.588807082 | G27: -0.6512296605 | I27: 0.228 | J27: 63.25266389 | K27: 67.66979762 | L27: 67.44208803 | M27: 71.59970881 | N27: -7.361889553 | O27: -6.982373569 | P27: -6.955870767 | Q27: -6.552584496 | R27: -0.6031266389 | S27: -0.6472979762 | T27: -0.6450208803 | U27: -0.6865970881 | W27: -1.870302165 | X27: 0.2269175291 | Y27: 0.04810302165 | AA27: 63.25266389 | AB27: -7.361889553 | AC27: -0.6031266389 | AE27: -1.870302165 | AF27: 0.2269175291 | AG27: 0.04810302165 | AI27: 0 | AJ27: 0 | AK27: 0 | AM27: 63.25266389 | AN27: -7.361889553 | AO27: -0.6031266389 | AQ27: -1.870302165 | AR27: 0.2269175291 | AS27: 0.04810302165 | AU27: 1.207922651e-13 | AV27: 8.881784197e-15 | AW27: -1.221245327e-15
A28: 振幅 | B28: A＝x0 | C28: =SQRT(C17^2+C18^2/(C25*SQRT(1-C27^2)*(1+2*C27^2/(1-2*C27^2)))^2) -> 1 | D28: [m] | E28: 73.73937155 | F28: -6.754631806 | G28: -0.7373937155 | I28: 0.24 | J28: 71.61085643 | K28: 75.54189879 | L28: 75.28409971 | M28: 78.92903948 | N28: -6.551737265 | O28: -6.122072126 | P28: -6.098485872 | Q28: -5.648328068 | R28: -0.6867085643 | S28: -0.7260189879 | T28: -0.7234409971 | U28: -0.7598903948 | W28: -2.128515122 | X28: 0.2028945408 | Y28: 0.05068515122 | AA28: 71.61085643 | AB28: -6.551737265 | AC28: -0.6867085643 | AE28: -2.128515122 | AF28: 0.2028945408 | AG28: 0.05068515122 | AI28: 0 | AJ28: 0 | AK28: 0 | AM28: 71.61085643 | AN28: -6.551737265 | AO28: -0.6867085643 | AQ28: -2.128515122 | AR28: 0.2028945408 | AS28: 0.05068515122 | AU28: 1.278976924e-13 | AV28: 1.065814104e-14 | AW28: -1.221245327e-15
A29: 初期位相 | B29: α＝0 | C29: =ATAN2(C17,-C18/(C25*SQRT(1-C27^2)*(1+2*C27^2/(1-2*C27^2)))) -> 0 | D29: [rad] | E29: 81.29520371 | F29: -5.823306495 | G29: -0.8129520371 | I29: 0.252 | J29: 78.9390927 | K29: 82.32750479 | L29: 82.04332405 | M29: 85.12315884 | N29: -5.647353479 | O29: -5.173718923 | P29: -5.15338845 | Q29: -4.66283359 | R29: -0.759990927 | S29: -0.7938750479 | T29: -0.7910332405 | U29: -0.8218315884 | W29: -2.356111012 | X29: 0.1759530163 | Y29: 0.05296111012 | AA29: 78.9390927 | AB29: -5.647353479 | AC29: -0.759990927 | AE29: -2.356111012 | AF29: 0.1759530163 | AG29: 0.05296111012 | AI29: 0 | AJ29: 0 | AK29: 0 | AM29: 78.9390927 | AN29: -5.647353479 | AO29: -0.759990927 | AQ29: -2.356111012 | AR29: 0.1759530163 | AS29: 0.05296111012 | AU29: 1.136868377e-13 | AV29: 1.154631946e-14 | AW29: -1.110223025e-15
A30: 〝 | B30: 〝 | C30: =DEGREES(C29) -> 0 | D30: [deg] | E30: 87.68178904 | F30: -4.80822615 | G30: -0.8768178904 | I30: 0.264 | J30: 85.13197306 | K30: 87.92902046 | L30: 87.62254535 | M30: 90.09297891 | N30: -4.66174566 | O30: -4.150953822 | P30: -4.134171538 | Q30: -3.610275116 | R30: -0.8219197306 | S30: -0.8498902046 | T30: -0.8468254535 | U30: -0.8715297891 | W30: -2.549815979 | X30: 0.1464804894 | Y30: 0.05489815979 | AA30: 85.13197306 | AB30: -4.66174566 | AC30: -0.8219197306 | AE30: -2.549815979 | AF30: 0.1464804894 | AG30: 0.05489815979 | AI30: 0 | AJ30: 0 | AK30: 0 | AM30: 85.13197306 | AN30: -4.66174566 | AO30: -0.8219197306 | AQ30: -2.549815979 | AR30: 0.1464804894 | AS30: 0.05489815979 | AU30: 1.136868377e-13 | AV30: 1.243449788e-14 | AW30: -1.110223025e-15
E31: 92.80727102 | F31: -3.723990394 | G31: -0.9280727102 | I31: 0.276 | J31: 90.10042736 | K31: 92.26588106 | L31: 91.94151952 | M31: 93.76702041 | N31: -3.609089493 | O31: -3.068486929 | P31: -3.055494207 | Q31: -2.505791259 | R31: -0.8716042736 | S31: -0.8932588106 | T31: -0.8900151952 | U31: -0.9082702041 | W31: -2.706843661 | X31: 0.1149009009 | Y31: 0.05646843661 | AA31: 90.10042736 | AB31: -3.609089493 | AC31: -0.8716042736 | AE31: -2.706843661 | AF31: 0.1149009009 | AG31: 0.05646843661 | AI31: 0 | AJ31: 0 | AK31: 0 | AM31: 90.10042736 | AN31: -3.609089493 | AO31: -0.8716042736 | AQ31: -2.706843661 | AR31: 0.1149009009 | AS31: 0.05646843661 | AU31: 0 | AV31: 1.465494393e-14 | AW31: -9.992007222e-16
A32: 減衰振動理論値 | E32: 96.59793124 | F32: -2.586193497 | G32: -0.9659793124 | I32: 0.288 | J32: 93.77299596 | K32: 95.27571096 | L32: 94.93812818 | M32: 96.09244084 | N32: -2.504524995 | O32: -1.94188702 | P32: -1.93287073 | Q32: -1.365267457 | R32: -0.9083299596 | S32: -0.9233571096 | T32: -0.9199812818 | U32: -0.9315244084 | W32: -2.824935275 | X32: 0.08166850114 | Y32: 0.05764935275 | AA32: 93.77299596 | AB32: -2.504524995 | AC32: -0.9083299596 | AE32: -2.824935275 | AF32: 0.08166850114 | AG32: 0.05764935275 | AI32: 0 | AJ32: 0 | AK32: 0 | AM32: 93.77299596 | AN32: -2.504524995 | AO32: -0.9083299596 | AQ32: -2.824935275 | AR32: 0.08166850114 | AS32: 0.05764935275 | AU32: 0 | AV32: 1.643130076e-14 | AW32: -8.881784197e-16
A33: x''+2ζωx'+ω^2=0 | C33: 運動方程式 | E33: 98.99924966 | F33: -1.411200081 | G33: -0.9899924966 | I33: 0.3 | J33: 96.09685756 | K33: 96.91522081 | L33: 96.56927213 | M33: 97.03579448 | N33: -1.363938765 | O33: -0.78735762 | P33: -0.7824474404 | Q33: -0.2051074998 | R33: -0.9315685756 | S33: -0.9397522081 | T33: -0.9362927213 | U33: -0.9409579448 | W33: -2.902392105 | X33: 0.0472613153 | Y33: 0.05842392105 | AA33: 96.09685756 | AB33: -1.363938765 | AC33: -0.9315685756 | AE33: -2.902392105 | AF33: 0.0472613153 | AG33: 0.05842392105 | AI33: 0 | AJ33: 0 | AK33: 0 | AM33: 96.09685756 | AN33: -1.363938765 | AO33: -0.9315685756 | AQ33: -2.902392105 | AR33: 0.0472613153 | AS33: 0.05842392105 | AU33: 0 | AV33: 1.7985613e-14 | AW33: 0
A34: x＝Ae^(－ζωt)cos{ω√(1－ζ^2)t＋α} | C34: 理論値 | E34: 99.97668877 | F34: -0.2159097573 | G34: -0.9997668877 | I34: 0.312 | J34: 97.03858883 | K34: 91.28083013 | L34: 90.93149121 | M34: 90.74584944 | N34: -0.2037354895 | O34: 0.3784960435 | P34: 0.3439494913 | Q34: 0.887442405 | R34: -0.9409858883 | S34: -0.9422083013 | T34: -0.9387149121 | U34: -0.9368584944 | W34: -2.938099939 | X34: 0.0121742678 | Y34: 0.05878099939 | AA34: 97.03858883 | AB34: -0.2037354895 | AC34: -0.9409858883 | AE34: -2.938099939 | AF34: 0.0121742678 | AG34: 0.05878099939 | AI34: 0 | AJ34: -6.661338148e-16 | AK34: 0 | AM34: 97.03858883 | AN34: -0.2037354895 | AO34: -0.9409858883 | AQ34: -2.938099939 | AR34: 0.0121742678 | AS34: 0.05878099939 | AU34: 0 | AV34: 1.967870311e-14 | AW34: 0
A35: x'＝－Aζωe^(－ζωt)cos{ω√(1－ζ^2)t＋α} | E35: 99.51619033 | F35: 0.9824859375 | G35: -0.9951619033 | I35: 0.324 | J35: 90.73286924 | K35: 90.19245963 | L35: 89.8658213 | M35: 89.00266432 | N35: 0.9006826724 | O35: 1.445079888 | P35: 1.44183743 | Q35: 1.979072528 | R35: -0.9367286924 | S35: -0.9313245963 | T35: -0.928058213 | U35: -0.9194266432 | W35: -8.783321097 | X35: -0.08180326503 | Y35: 0.05843321097 | AA35: 90.73286924 | AB35: 0.9006826724 | AC35: -0.9367286924 | AE35: -8.783321097 | AF35: -0.08180326503 | AG35: 0.05843321097 | AI35: 0 | AJ35: 0 | AK35: 0 | AM35: 90.73286924 | AN35: 0.9006826724 | AO35: -0.9367286924 | AQ35: -8.783321097 | AR35: -0.08180326503 | AS35: 0.05843321097 | AU35: 0 | AV35: 2.076117056e-14 | AW35: 0
A36: －Aω√(1－ζ^2)e^(－ζωt)sin{ω√(1－ζ^2)t＋α} | E36: 97.62437757 | F36: 2.166750804 | G36: -0.9762437757 | I36: 0.336 | J36: 89.00215127 | K36: 87.81391915 | L36: 87.49351141 | M36: 85.99342681 | N36: 1.980386863 | O36: 2.514399771 | P36: 2.507270378 | Q36: 3.030309 | R36: -0.9194215127 | S36: -0.9075391915 | T36: -0.9043351141 | U36: -0.8893342681 | W36: -8.622226299 | X36: -0.1863639406 | Y36: 0.05682226299 | AA36: 89.00215127 | AB36: 1.980386863 | AC36: -0.9194215127 | AE36: -8.622226299 | AF36: -0.1863639406 | AG36: 0.05682226299 | AI36: 0 | AJ36: 0 | AK36: 0 | AM36: 89.00215127 | AN36: 1.980386863 | AO36: -0.9194215127 | AQ36: -8.622226299 | AR36: -0.1863639406 | AS36: 0.05682226299 | AU36: 0 | AV36: 2.131628207e-14 | AW36: 0
A37: x''＝－Aω^2(1－2ζ^2)e^(－ζωt)cos{ω√(1－ζ^2)t＋α} | E37: 94.3284599 | F37: 3.319851882 | G37: -0.943284599 | I37: 0.348 | J37: 85.99134404 | K37: 84.17237939 | L37: 83.86281055 | M37: 81.74737361 | N37: 3.031607742 | O37: 3.547555806 | P37: 3.536642018 | Q37: 4.037961468 | R37: -0.8893134404 | S37: -0.8711237939 | T37: -0.8680281055 | U37: -0.8468737361 | W37: -8.337115869 | X37: -0.2882441406 | Y37: 0.05397115869 | AA37: 85.99134404 | AB37: 3.031607742 | AC37: -0.8893134404 | AE37: -8.337115869 | AF37: -0.2882441406 | AG37: 0.05397115869 | AI37: 0 | AJ37: 0 | AK37: 0 | AM37: 85.99134404 | AN37: 3.031607742 | AO37: -0.8893134404 | AQ37: -8.337115869 | AR37: -0.2882441406 | AS37: 0.05397115869 | AU37: 0 | AV37: 2.176037128e-14 | AW37: 0
A38: ＋2Aζω^2√(1－ζ^2)e^(－ζωt)sin{ω√(1－ζ^2)t＋α} | E38: 89.67584163 | F38: 4.425204433 | G38: -0.8967584163 | I38: 0.36 | J38: 81.74375106 | K38: 79.3202155 | L38: 79.025938 | M38: 76.32557439 | N38: 4.039225937 | O38: 4.529688443 | P38: 4.51514723 | Q38: 4.987537193 | R38: -0.8468375106 | S38: -0.822602155 | T38: -0.81965938 | U38: -0.7926557439 | W38: -7.932090569 | X38: -0.3859784962 | Y38: 0.04992090569 | AA38: 81.74375106 | AB38: 4.039225937 | AC38: -0.8468375106 | AE38: -7.932090569 | AF38: -0.3859784962 | AG38: 0.04992090569 | AI38: 0 | AJ38: 0 | AK38: 0 | AM38: 81.74375106 | AN38: 4.039225937 | AO38: -0.8468375106 | AQ38: -7.932090569 | AR38: -0.3859784962 | AS38: 0.04992090569 | AU38: 0 | AV38: 2.131628207e-14 | AW38: 0
E39: 83.7334401 | F39: 5.466910471 | G39: -0.837334401 | I39: 0.372 | J39: 76.32046417 | K39: 73.32721465 | L39: 73.05246098 | M39: 69.80600918 | N39: 4.988749202 | O39: 5.446671987 | P39: 5.42871249 | Q39: 5.865378733 | R39: -0.7926046417 | S39: -0.7626721465 | T39: -0.7599246098 | U39: -0.7274600918 | W39: -7.412975928 | X39: -0.4781612691 | Y39: 0.04472975928 | AA39: 76.32046417 | AB39: 4.988749202 | AC39: -0.7926046417 | AE39: -7.412975928 | AF39: -0.4781612691 | AG39: 0.04472975928 | AI39: 0 | AJ39: 0 | AK39: 0 | AM39: 76.32046417 | AN39: 4.988749202 | AO39: -0.7926046417 | AQ39: -7.412975928 | AR39: -0.4781612691 | AS39: 0.04472975928 | AU39: 0 | AV39: 2.131628207e-14 | AW39: 9.992007222e-16
A40: A^2＝{x0^2＋x'0^2/[ω√(1－ζ^2){1＋2ζ^2/(1－2ζ^2)}]^2 | E40: 76.58672324 | F40: 6.429987421 | G40: -0.7658672324 | I40: 0.384 | J40: 69.79948479 | K40: 66.27957228 | L40: 66.02829414 | M40: 62.28244685 | N40: 5.866520851 | O40: 6.28531776 | P40: 6.264198285 | Q40: 6.65886038 | R40: -0.7273948479 | S40: -0.6921957228 | T40: -0.6896829414 | U40: -0.6522244685 | W40: -6.787238452 | X40: -0.5634665697 | Y40: 0.03847238452 | AA40: 69.79948479 | AB40: 5.866520851 | AC40: -0.7273948479 | AE40: -6.787238452 | AF40: -0.5634665697 | AG40: 0.03847238452 | AI40: 0 | AJ40: 0 | AK40: 0 | AM40: 69.79948479 | AN40: 5.866520851 | AO40: -0.7273948479 | AQ40: -6.787238452 | AR40: -0.5634665697 | AS40: 0.03847238452 | AU40: -1.421085472e-13 | AV40: 2.042810365e-14 | AW40: 1.443289932e-15
A41: α＝atan2(x0,－x'0/[Aω√(1－ζ^2){1＋2ζ^2/(1－2ζ^2)}]) | E41: 68.33848036 | F41: 7.300583608 | G41: -0.6833848036 | I41: 0.396 | J41: 62.27460213 | K41: 58.27865242 | L41: 58.05446385 | M41: 53.86309641 | N41: 6.65991618 | O41: 7.033563793 | P41: 7.009588094 | Q41: 7.356569746 | R41: -0.6521460213 | S41: -0.6121865242 | T41: -0.6099446385 | U41: -0.5680309641 | W41: -6.063878231 | X41: -0.6406674286 | Y41: 0.03123878231 | AA41: 62.27460213 | AB41: 6.65991618 | AC41: -0.6521460213 | AE41: -6.063878231 | AF41: -0.6406674286 | AG41: 0.03123878231 | AI41: 0 | AJ41: 0 | AK41: 0 | AM41: 62.27460213 | AN41: 6.65991618 | AO41: -0.6521460213 | AQ41: -6.063878231 | AR41: -0.6406674286 | AS41: 0.03123878231 | AU41: -1.847411113e-13 | AV41: 1.865174681e-14 | AW41: 1.776356839e-15
E42: 59.10734368 | F42: 8.066177486 | G42: -0.5910734368 | I42: 0.408 | J42: 53.85404419 | K42: 49.43952976 | L42: 49.2456552 | M42: 44.66905072 | N42: 7.357524042 | O42: 7.680648307 | P42: 7.654161221 | Q42: 7.948471904 | R42: -0.5679404419 | S42: -0.5237952976 | T42: -0.521856552 | U42: -0.4760905072 | W42: -5.25329949 | X42: -0.7086534439 | Y42: 0.0231329949 | AA42: 53.85404419 | AB42: 7.357524042 | AC42: -0.5679404419 | AE42: -5.25329949 | AF42: -0.7086534439 | AG42: 0.0231329949 | AI42: 0 | AJ42: 0 | AK42: 0 | AM42: 53.85404419 | AN42: 7.357524042 | AO42: -0.5679404419 | AQ42: -5.25329949 | AR42: -0.7086534439 | AS42: 0.0231329949 | AU42: -1.98951966e-13 | AV42: 1.687538997e-14 | AW42: 1.998401444e-15
A43: (ζω)^2-ω^2>0 | B43: 過減衰 | C43: ζ>1 | E43: 49.02608213 | F43: 8.715757724 | G43: -0.4902608213 | I43: 0.42 | J43: 44.65892119 | K43: 39.8893346 | L43: 39.72856249 | M43: 34.83254481 | N43: 7.949310972 | O43: 8.217264499 | P43: 8.188646979 | Q43: 8.426053722 | R43: -0.4759892119 | S43: -0.428293346 | T43: -0.4266856249 | U43: -0.3777254481 | W43: -4.367160946 | X43: -0.7664467525 | Y43: 0.01427160946 | AA43: 44.65892119 | AB43: 7.949310972 | AC43: -0.4759892119 | AE43: -4.367160946 | AF43: -0.7664467525 | AG43: 0.01427160946 | AI43: 0 | AJ43: 0 | AK43: 0 | AM43: 44.65892119 | AN43: 7.949310972 | AO43: -0.4759892119 | AQ43: -4.367160946 | AR43: -0.7664467525 | AS43: 0.01427160946 | AU43: -2.273736754e-13 | AV43: 1.421085472e-14 | AW43: 2.2759572e-15
A44: (ζω)^2-ω^2=0 | B44: 臨界減衰 | C44: ζ=1 | E44: 38.23969177 | F44: 9.239981587 | G44: -0.3823969177 | I44: 0.432 | J44: 34.82148366 | K44: 29.76542436 | L44: 29.64006702 | M44: 24.49505401 | N44: 8.426765492 | O44: 8.635694394 | P44: 8.605358038 | Q44: 8.782446296 | R44: -0.3776148366 | S44: -0.3270542436 | T44: -0.3258006702 | U44: -0.2743505401 | W44: -3.418208114 | X44: -0.8132160952 | Y44: 0.004782081135 | AA44: 34.82148366 | AB44: 8.426765492 | AC44: -0.3776148366 | AE44: -3.418208114 | AF44: -0.8132160952 | AG44: 0.004782081135 | AI44: 0 | AJ44: 0 | AK44: 0 | AM44: 34.82148366 | AN44: 8.426765492 | AO44: -0.3776148366 | AQ44: -3.418208114 | AR44: -0.8132160952 | AS44: 0.004782081135 | AU44: -2.557953849e-13 | AV44: 0 | AW44: 2.498001805e-15
A45: (ζω)^2-ω^2<0 | B45: 減衰振動 | C45: 0<ζ<1 | E45: 26.90331031 | F45: 9.631309306 | G45: -0.2690331031 | I45: 0.444 | J45: 24.48322033 | K45: 19.21340801 | L45: 19.12526841 | M45: 13.80525915 | N45: 8.783020533 | O45: 8.929919855 | P45: 8.898300981 | Q45: 9.012523754 | R45: -0.2742322033 | S45: -0.2215340801 | T45: -0.2206526841 | U45: -0.1674525915 | W45: -2.420089985 | X45: -0.8482887728 | Y45: -0.005199100155 | AA45: 24.48322033 | AB45: 8.783020533 | AC45: -0.2742322033 | AE45: -2.420089985 | AF45: -0.8482887728 | AG45: -0.005199100155 | AI45: 0 | AJ45: 0 | AK45: 0 | AM45: 24.48322033 | AN45: 8.783020533 | AO45: -0.2742322033 | AQ45: -2.420089985 | AR45: -0.8482887728 | AS45: -0.005199100155 | AU45: -2.664535259e-13 | AV45: 0 | AW45: 2.664535259e-15
B46: 単振動 | C46: ζ=0 | E46: 15.17998585 | F46: 9.884112519 | G46: -0.1517998585 | I46: 0.456 | J46: 13.79282314 | K46: 8.385051817 | L46: 8.335397654 | M46: 2.916908125 | N46: 9.012952198 | O46: 9.095709136 | P46: 9.063262508 | Q46: 9.112976969 | R46: -0.1673282314 | S46: -0.1132505182 | T46: -0.1127539765 | U46: -0.05856908125 | W46: -1.387162714 | X46: -0.8711603218 | Y46: -0.01552837286 | AA46: 13.79282314 | AB46: 9.012952198 | AC46: -0.1673282314 | AE46: -1.387162714 | AF46: -0.8711603218 | AG46: -0.01552837286 | AI46: 0 | AJ46: 0 | AK46: 0 | AM46: 13.79282314 | AN46: 9.012952198 | AO46: -0.1673282314 | AQ46: -1.387162714 | AR46: -0.8711603218 | AS46: -0.01552837286 | AU46: -2.806643806e-13 | AV46: 0 | AW46: 2.803313137e-15
E47: 3.238331776 | F47: 9.994755228 | G47: -0.03238331776 | I47: 0.468 | J47: 2.904048644 | K47: -2.563903431 | L47: -2.574358006 | M47: -8.013395401 | N47: 9.113253458 | O47: 9.13067775 | P47: 9.097870037 | Q47: 9.082361162 | R47: -0.05844048644 | S47: -0.003760965694 | T47: -0.003656419943 | U47: 0.05073395401 | W47: -0.3342831318 | X47: -0.8815017703 | Y47: -0.02605716868 | AA47: 2.904048644 | AB47: 9.113253458 | AC47: -0.05844048644 | AE47: -0.3342831318 | AF47: -0.8815017703 | AG47: -0.02605716868 | AI47: -4.440892099e-15 | AJ47: 0 | AK47: 0 | AM47: 2.904048644 | AN47: 9.113253458 | AO47: -0.05844048644 | AQ47: -0.3342831318 | AR47: -0.8815017703 | AS47: -0.02605716868 | AU47: -2.904343432e-13 | AV47: 0 | AW47: 2.907396546e-15
E48: -8.749898344 | F48: 9.961646088 | G48: 0.08749898344 | I48: 0.48 | J48: -8.026493395 | K48: -13.47598243 | L48: -13.44708705 | M48: -18.82844438 | N48: 9.082481719 | O48: 9.034322758 | P48: 9.001625824 | Q48: 8.921116674 | R48: 0.05086493395 | S48: 0.1053598243 | T48: 0.1050708705 | U48: 0.1588844438 | W48: 0.7234049493 | X48: -0.8791643697 | Y48: -0.03663404949 | AA48: -8.026493395 | AB48: 9.082481719 | AC48: 0.05086493395 | AE48: 0.7234049493 | AF48: -0.8791643697 | AG48: -0.03663404949 | AI48: 0 | AJ48: 0 | AK48: 1.110223025e-16 | AM48: -8.026493395 | AN48: 9.082481719 | AO48: 0.05086493395 | AQ48: 0.7234049493 | AR48: -0.8791643697 | AS48: -0.03663404949 | AU48: -2.948752353e-13 | AV48: 0 | AW48: 2.942091015e-15
E49: -20.61228105 | F49: 9.785261299 | G49: 0.2061228105 | I49: 0.492 | J49: -18.84159251 | K49: -24.19424025 | L49: -24.12641051 | M49: -29.37268945 | N49: 8.921079565 | O49: 8.80803001 | P49: 8.775914124 | Q49: 8.631562639 | R49: 0.1590159251 | S49: 0.2125424025 | T49: 0.2118641051 | U49: 0.2643268945 | W49: 1.770688547 | X49: -0.8641817342 | Y49: -0.04710688547 | AA49: -18.84159251 | AB49: 8.921079565 | AC49: 0.1590159251 | AE49: 1.770688547 | AF49: -0.8641817342 | AG49: -0.04710688547 | AI49: 0 | AJ49: 0 | AK49: 0 | AM49: -18.84159251 | AN49: 8.921079565 | AO49: 0.1590159251 | AQ49: 1.770688547 | AR49: -0.8641817342 | AS49: -0.04710688547 | AU49: -2.913225217e-13 | AV49: 0 | AW49: 2.91433544e-15
E50: -32.17820292 | F50: 9.468137756 | G50: 0.3217820292 | I50: 0.504 | J50: -29.3856986 | K50: -34.56451964 | L50: -34.45873112 | M50: -39.49447614 | N50: 8.631368398 | O50: 8.455054207 | P50: 8.42398128 | Q50: 8.217863625 | R50: 0.264456986 | S50: 0.3162451964 | T50: 0.3151873112 | U50: 0.3655447614 | W50: 2.792504324 | X50: -0.8367693576 | Y50: -0.05732504324 | AA50: -29.3856986 | AB50: 8.631368398 | AC50: 0.264456986 | AE50: 2.792504324 | AF50: -0.8367693576 | AG50: -0.05732504324 | AI50: 0 | AJ50: 0 | AK50: 0 | AM50: -29.3856986 | AN50: 8.631368398 | AO50: 0.264456986 | AQ50: 2.792504324 | AR50: -0.8367693576 | AS50: -0.05732504324 | AU50: -2.87769808e-13 | AV50: 0 | AW50: 2.886579864e-15
E51: -43.28131445 | F51: 9.01483656 | G51: 0.4328131445 | I51: 0.516 | J51: -39.5071592 | K51: -44.43766823 | L51: -44.29544245 | M51: -49.04822604 | N51: 8.217515046 | O51: 7.980472091 | P51: 7.950889036 | Q51: 7.685969736 | R51: 0.365671592 | S51: 0.4149766823 | T51: 0.4135544245 | U51: 0.4610822604 | W51: 3.774155247 | X51: -0.7973215139 | Y51: -0.06714155247 | AA51: -39.5071592 | AB51: 8.217515046 | AC51: 0.365671592 | AE51: 3.774155247 | AF51: -0.7973215139 | AG51: -0.06714155247 | AI51: 0 | AJ51: 0 | AK51: 0 | AM51: -39.5071592 | AN51: 8.217515046 | AO51: 0.365671592 | AQ51: 3.774155247 | AR51: -0.7973215139 | AS51: -0.06714155247 | AU51: -2.842170943e-13 | AV51: -1.598721155e-14 | AW51: 2.831068713e-15
E52: -53.76192258 | F52: 8.431877419 | G52: 0.5376192258 | I52: 0.528 | J52: -49.06040061 | K52: -53.67168371 | L52: -53.49506626 | M52: -57.89653068 | N52: 7.685471833 | O52: 7.391109429 | P52: 7.36344173 | Q52: 7.043531037 | R52: 0.4612040061 | S52: 0.5073168371 | T52: 0.5055506626 | U52: 0.5495653068 | W52: 4.701521976 | X52: -0.746405586 | Y52: -0.07641521976 | AA52: -49.06040061 | AB52: 7.685471833 | AC52: 0.4612040061 | AE52: 4.701521976 | AF52: -0.746405586 | AG52: -0.07641521976 | AI52: 0 | AJ52: 0 | AK52: 0 | AM52: -49.06040061 | AN52: 7.685471833 | AO52: 0.4612040061 | AQ52: 4.701521976 | AR52: -0.746405586 | AS52: -0.07641521976 | AU52: -2.700062396e-13 | AV52: -2.042810365e-14 | AW52: 2.664535259e-15
E53: -63.46928759 | F53: 7.727644876 | G53: 0.6346928759 | I53: 0.54 | J53: -57.90802164 | K53: -62.13375623 | L53: -61.92528735 | M53: -65.91212776 | N53: 7.04289097 | O53: 6.69544284 | P53: 6.670088433 | Q53: 6.299787522 | R53: 0.5496802164 | S53: 0.5919375623 | T53: 0.5898528735 | U53: 0.6297212776 | W53: 5.561265949 | X53: -0.6847539055 | Y53: -0.08501265949 | AA53: -57.90802164 | AB53: 7.04289097 | AC53: 0.5496802164 | AE53: 5.561265949 | AF53: -0.6847539055 | AG53: -0.08501265949 | AI53: 0 | AJ53: 0 | AK53: 0 | AM53: -57.90802164 | AN53: 7.04289097 | AO53: 0.5496802164 | AQ53: 5.561265949 | AR53: -0.6847539055 | AS53: -0.08501265949 | AU53: -2.557953849e-13 | AV53: -2.309263891e-14 | AW53: 2.553512957e-15
E54: -72.26379109 | F54: 6.912267716 | G54: 0.7226379109 | I54: 0.552 | J54: -65.92276985 | K54: -69.70217855 | L54: -69.46485658 | M54: -72.97973156 | N54: 6.299014497 | O54: 5.903477878 | P54: 5.880801426 | Q54: 5.465436218 | R54: 0.6298276985 | S54: 0.6676217855 | T54: 0.6652485658 | U54: 0.7003973156 | W54: 6.341021235 | X54: -0.613253219 | Y54: -0.09281021235 | AA54: -65.92276985 | AB54: 6.299014497 | AC54: 0.6298276985 | AE54: 6.341021235 | AF54: -0.613253219 | AG54: -0.09281021235 | AI54: 0 | AJ54: 0 | AK54: 0 | AM54: -65.92276985 | AN54: 6.299014497 | AO54: 0.6298276985 | AQ54: 6.341021235 | AR54: -0.613253219 | AS54: -0.09281021235 | AU54: -2.273736754e-13 | AV54: -2.664535259e-14 | AW54: 2.331468352e-15
E55: -80.01894411 | F55: 5.997473288 | G55: 0.8001894411 | I55: 0.564 | J55: -72.98937172 | K55: -76.26809653 | L55: -76.00533479 | M55: -78.99769105 | N55: 5.464541354 | O55: 5.026605123 | P55: 5.006932774 | Q55: 4.552477336 | R55: 0.7004937172 | S55: 0.7332809653 | T55: 0.7306533479 | U55: 0.7605769105 | W55: 7.02957239 | X55: -0.5329319343 | Y55: -0.0996957239 | AA55: -72.98937172 | AB55: 5.464541354 | AC55: 0.7004937172 | AE55: 7.02957239 | AF55: -0.5329319343 | AG55: -0.0996957239 | AI55: 0 | AJ55: 0 | AK55: 0 | AM55: -72.98937172 | AN55: 5.464541354 | AO55: 0.7004937172 | AQ55: 7.02957239 | AR55: -0.5329319343 | AS55: -0.0996957239 | AU55: -2.131628207e-13 | AV55: -3.019806627e-14 | AW55: 1.998401444e-15
E56: -86.6232064 | F56: 4.996418831 | G56: 0.866232064 | I56: 0.576 | J56: -79.00619061 | K56: -81.73707472 | L56: -81.45265243 | M56: -83.87945188 | N56: 4.551473503 | O56: 4.077436359 | P56: 4.061051054 | Q56: 3.574041674 | R56: 0.7606619061 | S56: 0.7879707472 | T56: 0.7851265243 | U56: 0.8093945188 | W56: 7.617015782 | X56: -0.4449453284 | Y56: -0.1055701578 | AA56: -79.00619061 | AB56: 4.551473503 | AC56: 0.7606619061 | AE56: 7.617015782 | AF56: -0.4449453284 | AG56: -0.1055701578 | AI56: 0 | AJ56: 0 | AK56: 0 | AM56: -79.00619061 | AN56: 4.551473503 | AO56: 0.7606619061 | AQ56: 7.617015782 | AR56: -0.4449453284 | AS56: -0.1055701578 | AU56: -1.705302566e-13 | AV56: -3.286260153e-14 | AW56: 1.665334537e-15
E57: -91.98159064 | F57: 3.92350224 | G57: 0.9198159064 | I57: 0.588 | J57: -83.88668861 | K57: -86.0304546 | L57: -85.72846252 | M57: -87.55480131 | N57: 3.572943309 | O57: 3.069623178 | P57: 3.056760582 | Q57: 2.544201759 | R57: 0.8094668861 | S57: 0.830904546 | T57: 0.8278846252 | U57: 0.8461480131 | W57: 8.094902029 | X57: -0.3505589307 | Y57: -0.1103490203 | AA57: -83.88668861 | AB57: 3.572943309 | AC57: 0.8094668861 | AE57: 8.094902029 | AF57: -0.3505589307 | AG57: -0.1103490203 | AI57: 0 | AJ57: 3.552713679e-15 | AK57: 0 | AM57: -83.88668861 | AN57: 3.572943309 | AO57: 0.8094668861 | AQ57: 8.094902029 | AR57: -0.3505589307 | AS57: -0.1103490203 | AU57: -1.278976924e-13 | AV57: -3.552713679e-14 | AW57: 1.33226763e-15
E58: -96.01702867 | F58: 2.794154982 | G58: 0.9601702867 | I58: 0.6 | J58: -87.56067113 | K58: -89.08648593 | L58: -88.77126751 | M58: -89.97087803 | N58: 2.543024661 | O58: 2.017660634 | P58: 2.008505745 | Q58: 1.477769451 | R58: 0.8462067113 | S58: 0.8614648593 | T58: 0.8583126751 | U58: 0.8703087803 | W58: 8.456357533 | X58: -0.2511303211 | Y58: -0.1139635753 | AA58: -87.56067113 | AB58: 2.543024661 | AC58: 0.8462067113 | AE58: 8.456357533 | AF58: -0.2511303211 | AG58: -0.1139635753 | AI58: 0 | AJ58: 0 | AK58: 0 | AM58: -87.56067113 | AN58: 2.543024661 | AO58: 0.8462067113 | AQ58: 8.456357533 | AR58: -0.2511303211 | AS58: -0.1139635753 | AU58: 0 | AV58: -3.774758284e-14 | AW58: 8.881784197e-16
E59: -98.67147985 | F59: 1.624620152 | G59: 0.9867147985 | I59: 0.612 | J59: -89.97529651 | K59: -90.86121484 | L59: -90.53730377 | M59: -91.09293242 | N59: 1.476530549 | O59: 0.9366787698 | P59: 0.9313632598 | Q59: 0.3900829036 | R59: 0.8703529651 | S59: 0.8792121484 | T59: 0.8759730377 | U59: 0.8815293242 | W59: 8.696183346 | X59: -0.1480896033 | Y59: -0.1163618335 | AA59: -89.97529651 | AB59: 1.476530549 | AC59: 0.8703529651 | AE59: 8.696183346 | AF59: -0.1480896033 | AG59: -0.1163618335 | AI59: 0 | AJ59: 2.664535259e-15 | AK59: 0 | AM59: -89.97529651 | AN59: 1.476530549 | AO59: 0.8703529651 | AQ59: 8.696183346 | AR59: -0.1480896033 | AS59: -0.1163618335 | AU59: 0 | AV59: -3.885780586e-14 | AW59: 0
E60: -99.90676595 | F60: 0.4317188521 | G60: 0.9990676595 | I60: 0.624 | J60: -91.09583601 | K60: -85.44911602 | L60: -85.12117101 | M60: -85.06716239 | N60: 0.3888000165 | O60: -0.1577749995 | P60: -0.1238946796 | Q60: -0.6326540356 | R60: 0.8815583601 | S60: 0.8838911602 | T60: 0.8806117101 | U60: 0.8800716239 | W60: 8.810929945 | X60: -0.04291883554 | Y60: -0.1175092995 | AA60: -91.09583601 | AB60: 0.3888000165 | AC60: 0.8815583601 | AE60: 8.810929945 | AF60: -0.04291883554 | AG60: -0.1175092995 | AI60: 0 | AJ60: 2.220446049e-15 | AK60: 0 | AM60: -91.09583601 | AN60: 0.3888000165 | AO60: 0.8815583601 | AQ60: 8.810929945 | AR60: -0.04291883554 | AS60: -0.1175092995 | AU60: 0 | AV60: -3.980149543e-14 | AW60: 0
E61: -99.70512019 | F61: -0.7673917429 | G61: 0.9970512019 | I61: 0.636 | J61: -85.05439733 | K61: -84.66691306 | L61: -84.36071723 | M61: -83.669827 | N61: -0.6458071284 | O61: -1.156133512 | P61: -1.153808607 | Q61: -1.658135735 | R61: 0.8799439733 | S61: 0.8760691306 | T61: 0.8730071723 | U61: 0.86609827 | W61: 14.65072285 | X61: 0.1215846146 | Y61: -0.1171072285 | AA61: -85.05439733 | AB61: -0.6458071284 | AC61: 0.8799439733 | AE61: 14.65072285 | AF61: 0.1215846146 | AG61: -0.1171072285 | AI61: 0 | AJ61: 1.998401444e-15 | AK61: 0 | AM61: -85.05439733 | AN61: -0.6458071284 | AO61: 0.8799439733 | AQ61: 14.65072285 | AR61: 0.1215846146 | AS61: -0.1171072285 | AU61: 0 | AV61: -4.007905119e-14 | AW61: 0
E62: -98.06944277 | F62: -1.955465151 | G62: 0.9806944277 | I62: 0.648 | J62: -83.66963191 | K62: -82.67401225 | L62: -82.37280158 | M62: -81.08313971 | N62: -1.659366098 | O62: -2.16138389 | P62: -2.155410172 | Q62: -2.647839717 | R62: 0.8660963191 | S62: 0.8561401225 | T62: 0.8531280158 | U62: 0.8402313971 | W62: 14.39981085 | X62: 0.2960990528 | Y62: -0.1145981085 | AA62: -83.66963191 | AB62: -1.659366098 | AC62: 0.8660963191 | AE62: 14.39981085 | AF62: 0.2960990528 | AG62: -0.1145981085 | AI62: 0 | AJ62: 0 | AK62: 0 | AM62: -83.66963191 | AN62: -1.659366098 | AO62: 0.8660963191 | AQ62: 14.39981085 | AR62: 0.2960990528 | AS62: -0.1145981085 | AU62: 1.136868377e-13 | AV62: -3.974598428e-14 | AW62: -1.110223025e-15
E63: -95.0232592 | F63: -3.115413635 | G63: 0.950232592 | I63: 0.66 | J63: -81.08147312 | K63: -79.49203779 | L63: -79.20014448 | M63: -77.33025978 | N63: -2.649058897 | O63: -3.135547735 | P63: -3.126011123 | Q63: -3.599460631 | R63: 0.8402147312 | S63: 0.8243203779 | T63: 0.8214014448 | U63: 0.8027025978 | W63: 13.94178607 | X63: 0.4663547384 | Y63: -0.1100178607 | AA63: -81.08147312 | AB63: -2.649058897 | AC63: 0.8402147312 | AE63: 13.94178607 | AF63: 0.4663547384 | AG63: -0.1100178607 | AI63: 0 | AJ63: 0 | AK63: 0 | AM63: -81.08147312 | AN63: -2.649058897 | AO63: 0.8402147312 | AQ63: 13.94178607 | AR63: 0.4663547384 | AS63: -0.1100178607 | AU63: 1.563194019e-13 | AV63: -3.907985047e-14 | AW63: -1.554312234e-15
A64: x0＝Acos(α) | E64: -90.61038191 | F64: -4.230553971 | G64: 0.9061038191 | I64: 0.672 | J64: -77.32714568 | K64: -75.16675502 | L64: -74.8883773 | M64: -72.46516373 | N64: -3.600651092 | O64: -4.064613966 | P64: -4.051651622 | Q64: -4.499311619 | R64: 0.8026714568 | S64: 0.7810675502 | T64: 0.778283773 | U64: 0.7540516373 | W64: 13.28323623 | X64: 0.6299028798 | Y64: -0.1034323623 | AA64: -77.32714568 | AB64: -3.600651092 | AC64: 0.8026714568 | AE64: 13.28323623 | AF64: 0.6299028798 | AG64: -0.1034323623 | AI64: 0 | AJ64: 0 | AK64: 0 | AM64: -77.32714568 | AN64: -3.600651092 | AO64: 0.8026714568 | AQ64: 13.28323623 | AR64: 0.6299028798 | AS64: -0.1034323623 | AU64: 1.98951966e-13 | AV64: -3.730349363e-14 | AW64: -2.109423747e-15
A65: x'0＝－Aω{ζcos(α)＋√(1－ζ^2)sin(α)} | E65: -84.89428012 | F65: -5.284847399 | G65: 0.8489428012 | I65: 0.684 | J65: -72.4606469 | K65: -69.76037315 | L65: -69.49951483 | M65: -66.55782472 | N65: -4.50045624 | O65: -4.935220121 | P65: -4.919018479 | Q65: -5.334450418 | R65: 0.754006469 | S65: 0.7270037315 | T65: 0.7243951483 | U65: 0.6949782472 | W65: 12.43363322 | X65: 0.7843911597 | Y65: -0.09493633218 | AA65: -72.4606469 | AB65: -4.50045624 | AC65: 0.754006469 | AE65: 12.43363322 | AF65: 0.7843911597 | AG65: -0.09493633218 | AI65: 0 | AJ65: 0 | AK65: 0 | AM65: -72.4606469 | AN65: -4.50045624 | AO65: 0.754006469 | AQ65: 12.43363322 | AR65: 0.7843911597 | AS65: -0.09493633218 | AU65: 2.700062396e-13 | AV65: -3.552713679e-14 | AW65: -2.664535259e-15
A66: x''0＝－Aω^2{(1－2ζ^2)cos(α)－2ζ√(1－ζ^2)sin(α)}＝0 | E66: -77.95716696 | F66: -6.263130303 | G66: 0.7795716696 | I66: 0.696 | J66: -66.55197013 | K66: -63.35065049 | L66: -63.11106339 | M66: -59.69320616 | N66: -5.335532735 | O66: -5.734844556 | P66: -5.715636638 | Q66: -6.092865496 | R66: 0.6949197013 | S66: 0.6629065049 | T66: 0.6605106339 | U66: 0.6263320616 | W66: 11.40519683 | X66: 0.9275975683 | Y66: -0.08465196833 | AA66: -66.55197013 | AB66: -5.335532735 | AC66: 0.6949197013 | AE66: 11.40519683 | AF66: 0.9275975683 | AG66: -0.08465196833 | AI66: 0 | AJ66: 0 | AK66: 0 | AM66: -66.55197013 | AN66: -5.335532735 | AO66: 0.6949197013 | AQ66: 11.40519683 | AR66: 0.9275975683 | AS66: -0.08465196833 | AU66: 2.98427949e-13 | AV66: -3.286260153e-14 | AW66: -2.997602166e-15
A67: (1－2ζ^2)cos(α)－2ζ√(1－ζ^2)sin(α)＝0 | E67: -69.89881705 | F67: -7.151332306 | G67: 0.6989881705 | I67: 0.708 | J67: -59.686098 | K67: -56.02977604 | L67: -55.81490609 | M67: -51.97003968 | N67: -6.093869943 | O67: -6.451986531 | P67: -6.430048599 | Q67: -6.763648816 | R67: 0.62626098 | S67: 0.5896977604 | T67: 0.5875490609 | U67: 0.5491003968 | W67: 10.21271905 | X67: 1.057462363 | Y67: -0.0727271905 | AA67: -59.686098 | AB67: -6.093869943 | AC67: 0.62626098 | AE67: 10.21271905 | AF67: 1.057462363 | AG67: -0.0727271905 | AI67: 0 | AJ67: 0 | AK67: 0 | AM67: -59.686098 | AN67: -6.093869943 | AO67: 0.62626098 | AQ67: 10.21271905 | AR67: 1.057462363 | AS67: -0.0727271905 | AU67: 3.481659405e-13 | AV67: -3.019806627e-14 | AW67: -3.441691376e-15
A68: cos(α)＝{2ζ√(1－ζ^2)/(1－2ζ^2)}sin(α) | E68: -60.83513145 | F68: -7.936678638 | G68: 0.6083513145 | I68: 0.72 | J68: -51.9617802 | K68: -47.90304363 | L68: -47.71598122 | M68: -43.49940515 | N68: -6.764560947 | O68: -7.076331628 | P68: -7.051979209 | Q68: -7.337152722 | R68: 0.549017802 | S68: 0.5084304363 | T68: 0.5065598122 | U68: 0.4643940515 | W68: 8.873351253 | X68: 1.172117692 | Y68: -0.05933351253 | AA68: -51.9617802 | AB68: -6.764560947 | AC68: 0.549017802 | AE68: 8.873351253 | AF68: 1.172117692 | AG68: -0.05933351253 | AI68: 0 | AJ68: 0 | AK68: 0 | AM68: -51.9617802 | AN68: -6.764560947 | AO68: 0.549017802 | AQ68: 8.873351253 | AR68: 1.172117692 | AS68: -0.05933351253 | AU68: 3.907985047e-13 | AV68: -2.664535259e-14 | AW68: -3.885780586e-15
A69: x'0＝－Aω√(1－ζ^2)sin(α){1＋2ζ^2/(1－2ζ^2)} | E69: -50.89647069 | F69: -8.607873879 | G69: 0.5089647069 | I69: 0.732 | J69: -43.49011313 | K69: -39.08733748 | L69: -38.93077307 | M69: -34.403133 | N69: -7.337959417 | O69: -7.598900096 | P69: -7.572483442 | Q69: -7.805128694 | R69: 0.4643011313 | S69: 0.4202733748 | T69: 0.4187077307 | U69: 0.37343133 | W69: 7.406357555 | X69: 1.269914462 | Y69: -0.04466357555 | AA69: -43.49011313 | AB69: -7.337959417 | AC69: 0.4643011313 | AE69: 7.406357555 | AF69: 1.269914462 | AG69: -0.04466357555 | AI69: 0 | AJ69: 0 | AK69: 0 | AM69: -43.49011313 | AN69: -7.337959417 | AO69: 0.4643011313 | AQ69: 7.406357555 | AR69: 1.269914462 | AS69: -0.04466357555 | AU69: 4.263256415e-13 | AV69: -2.220446049e-14 | AW69: -4.274358645e-15
A70: sin(α)＝－x'0/[Aω√(1－ζ^2){1＋2ζ^2/(1－2ζ^2)}] | E70: -40.22577981 | F70: -9.155264408 | G70: 0.4022577981 | I70: 0.744 | J70: -34.39294209 | K70: -29.70945108 | L70: -29.58563649 | M70: -24.81205202 | N70: -7.805818351 | O70: -8.012176004 | P70: -7.984075058 | Q70: -8.160845989 | R70: 0.3733294209 | S70: 0.3264945108 | T70: 0.3252563649 | U70: 0.2775205202 | W70: 5.832837716 | X70: 1.349446057 | Y70: -0.02892837716 | AA70: -34.39294209 | AB70: -7.805818351 | AC70: 0.3733294209 | AE70: 5.832837716 | AF70: 1.349446057 | AG70: -0.02892837716 | AI70: 0 | AJ70: 0 | AK70: 0 | AM70: -34.39294209 | AN70: -7.805818351 | AO70: 0.3733294209 | AQ70: 5.832837716 | AR70: 1.349446057 | AS70: -0.02892837716 | AU70: 4.547473509e-13 | AV70: -1.865174681e-14 | AW70: -4.607425552e-15
A71: cos(α)＝x0/A | E71: -28.97653247 | F71: -9.570977257 | G71: 0.2897653247 | I71: 0.756 | J71: -24.8011088 | K71: -19.90426359 | L71: -19.8149796 | M71: -14.86410768 | N71: -8.16140869 | O71: -8.310215343 | P71: -8.280834272 | Q71: -8.399188445 | R71: 0.277411088 | S71: 0.2284426359 | T71: 0.227549796 | U71: 0.1780410768 | W71: 4.175423672 | X71: 1.409568567 | Y71: -0.01235423672 | AA71: -24.8011088 | AB71: -8.16140869 | AC71: 0.277411088 | AE71: 4.175423672 | AF71: 1.409568567 | AG71: -0.01235423672 | AI71: 0 | AJ71: 0 | AK71: 0 | AM71: -24.8011088 | AN71: -8.16140869 | AO71: 0.277411088 | AQ71: 4.175423672 | AR71: 1.409568567 | AS71: -0.01235423672 | AU71: 4.902744877e-13 | AV71: -1.421085472e-14 | AW71: -4.884981308e-15
A72: (x0/A)^2＋x'0^2/[Aω√(1－ζ^2){1＋2ζ^2/(1－2ζ^2)}]^2=1 | E72: =-$C$28*$C$25^2*(1-2*$C$27^2)*EXP(-$C$27*$C$25*I72)*COS($C$25*SQRT(1-$C$27^2)*I72+$C$29)+2*$C$28*$C$27*$C$25^2*SQRT(1-$C$27^2)*EXP(-$C$27*$C$25*I72)*SIN($C$25*SQRT(1-$C$27^2)*I72+$C$29) -> -17.31052354 | F72: =-$C$28*$C$27*$C$25*EXP(-$C$27*$C$25*I72)*COS($C$25*SQRT(1-$C$27^2)*I72+$C$29)-$C$28*$C$25*SQRT(1-$C$27^2)*EXP(-$C$27*$C$25*I72)*SIN($C$25*SQRT(1-$C$27^2)*I72+$C$29) -> -9.849033341 | G72: =$C$28*EXP(-$C$27*$C$25*I72)*COS($C$25*SQRT(1-$C$27^2)*I72+$C$29) -> 0.1731052354 | I72: 0.768 | J72: -14.85256953 | K72: -9.812799871 | L72: -9.759330621 | M72: -4.702378055 | N72: -8.399616096 | O72: -8.488731513 | P72: -8.458492895 | Q72: -8.516728063 | R72: 0.1779256953 | S72: 0.1275279987 | T72: 0.1269933062 | U72: 0.07642378055 | W72: =J72-E72 -> 2.457954015 | X72: =N72-F72 -> 1.449417245 | Y72: =R72-G72 -> 0.004820459854 | AA72: -14.85256953 | AB72: -8.399616096 | AC72: 0.1779256953 | AE72: =AA72-E72 -> 2.457954015 | AF72: =AB72-F72 -> 1.449417245 | AG72: =AC72-G72 -> 0.004820459854 | AI72: =AA72-J72 -> -1.776356839e-14 | AJ72: =AB72-N72 -> 0 | AK72: =AC72-R72 -> 0 | AM72: -14.85256953 | AN72: -8.399616096 | AO72: 0.1779256953 | AQ72: 2.457954015 | AR72: 1.449417245 | AS72: 0.004820459854 | AU72: 5.080380561e-13 | AV72: 0 | AW72: -5.079270338e-15
A73: A^2＝{x0^2＋x'0^2/[ω√(1－ζ^2){1＋2ζ^2/(1－2ζ^2)}]^2 | E73: -5.395542056 | F73: -9.985433454 | G73: 0.05395542056 | I73: =I72+$C$8 -> 0.78 | J73: -4.690410934 | K73: 0.4197977737 | L73: 0.4366832531 | M73: 5.526983937 | N73: -8.517014513 | O73: -8.545156978 | P73: -8.514495726 | Q73: -8.511774314 | R73: 0.07630410934 | S73: 0.02520202226 | T73: 0.02503316747 | U73: -0.02586983937 | W73: 0.7051311223 | X73: 1.468418941 | Y73: 0.02234868878 | AA73: -4.690410934 | AB73: -8.517014513 | AC73: 0.07630410934 | AE73: 0.7051311223 | AF73: 1.468418941 | AG73: 0.02234868878 | AI73: -1.065814104e-14 | AJ73: 0 | AK73: 1.110223025e-16 | AM73: -4.690410934 | AN73: -8.517014513 | AO73: 0.07630410934 | AQ73: 0.7051311223 | AR73: 1.468418941 | AS73: 0.02234868878 | AU73: 5.222489108e-13 | AV73: 0 | AW73: -5.218048216e-15
A74: α＝atan2(x0,－x'0/[Aω√(1－ζ^2){1＋2ζ^2/(1－2ζ^2)}]) | E74: 6.597042046 | F74: -9.978215791 | G74: -0.06597042046 | I74: 0.792 | J74: =-$C$20*N74-$C$21*R74-SIGN(N74)*$C$22+$C$23*SIN($C$16*$I74) -> 5.539207913 | K74: =-$C$20*O74-$C$21*S74-SIGN(O74)*$C$22+$C$23*SIN($C$16*$I74) -> 10.64635718 | L74: =-$C$20*P74-$C$21*T74-SIGN(P74)*$C$22+$C$23*SIN($C$16*$I74) -> 10.62641603 | M74: =-$C$20*Q74-$C$21*U74-SIGN(Q74)*$C$22+$C$23*SIN($C$16*$I74) -> 15.67685267 | N74: =N73+(J73+2*K73+2*L73+M73)*$C$8/6 -> -8.511915443 | O74: =$N74+J74*$C$8/2 -> -8.478680195 | P74: =$N74+K74*$C$8/2 -> -8.4480373 | Q74: =$N74+L74*$C$8 -> -8.38439845 | R74: =R73+(N73+2*O73+2*P73+Q73)*$C$8/6 -> -0.02599207913 | S74: =$R74+N74*$C$8/2 -> -0.07706357179 | T74: =$R74+O74*$C$8/2 -> -0.0768641603 | U74: =$R74+P74*$C$8 -> -0.1273685267 | W74: -1.057834133 | X74: 1.466300348 | Y74: 0.03997834133 | AA74: 5.539207913 | AB74: -8.511915443 | AC74: -0.02599207913 | AE74: -1.057834133 | AF74: 1.466300348 | AG74: 0.03997834133 | AI74: 0 | AJ74: 0 | AK74: 5.551115123e-17 | AM74: 5.539207913 | AN74: -8.511915443 | AO74: -0.02599207913 | AQ74: =AM74-E74 -> -1.057834133 | AR74: =AN74-F74 -> 1.466300348 | AS74: =AO74-G74 -> 0.03997834133 | AU74: =AM74-AA74 -> 5.266898029e-13 | AV74: =AN74-AB74 -> 0 | AW74: =AO74-AC74 -> -5.266620473e-15
E75: 18.49474269 | F75: -9.827484161 | G75: -0.1849474269 | I75: 0.804 | J75: 15.68915769 | K75: 20.71979303 | L75: 20.66331206 | M75: 25.60124585 | N75: -8.384392229 | O75: -8.290257283 | P75: -8.260073471 | Q75: -8.136432484 | R75: -0.1274915769 | S75: -0.1777979303 | T75: -0.1772331206 | U75: -0.2266124585 | W75: -2.805584996 | X75: 1.443091932 | Y75: 0.05745584996 | AA75: 15.68915769 | AB75: -8.384392229 | AC75: -0.1274915769 | AE75: -2.805584996 | AF75: 1.443091932 | AG75: 0.05745584996 | AI75: 0 | AJ75: 0 | AK75: 0 | AM75: 15.68915769 | AN75: -8.384392229 | AO75: -0.1274915769 | AQ75: -2.805584996 | AR75: 1.443091932 | AS75: 0.05745584996 | AU75: 5.275779813e-13 | AV75: 0 | AW75: -5.273559367e-15
E76: 30.12643847 | F76: -9.535406497 | G76: -0.3012643847 | I76: 0.816 | J76: 25.61345493 | K76: 30.49522233 | L76: 30.4030139 | M76: 35.15742413 | N76: -8.136279001 | O76: -7.982598272 | P76: -7.953307667 | Q76: -7.771442835 | R76: -0.2267345493 | S76: -0.2755522233 | T76: -0.274630139 | U76: -0.3221742413 | W76: -4.512983532 | X76: 1.399127495 | Y76: 0.07452983532 | AA76: 25.61345493 | AB76: -8.136279001 | AC76: -0.2267345493 | AE76: -4.512983532 | AF76: 1.399127495 | AG76: 0.07452983532 | AI76: 0 | AJ76: 0 | AK76: 0 | AM76: 25.61345493 | AN76: -8.136279001 | AO76: -0.2267345493 | AQ76: -4.512983532 | AR76: 1.399127495 | AS76: 0.07452983532 | AU76: 5.186961971e-13 | AV76: 1.598721155e-14 | AW76: -5.19029264e-15
E77: 41.32483387 | F77: -9.106183671 | G77: -0.4132483387 | I77: 0.828 | J77: 35.16936168 | K77: 39.83204826 | L77: 39.70543855 | M77: 44.20794409 | N77: -7.771144298 | O77: -7.560128128 | P77: -7.532152009 | Q77: -7.294679036 | R77: -0.3222936168 | S77: -0.3689204826 | T77: -0.3676543855 | U77: -0.4126794409 | W77: -6.155472191 | X77: 1.335039373 | Y77: 0.09095472191 | AA77: 35.16936168 | AB77: -7.771144298 | AC77: -0.3222936168 | AE77: -6.155472191 | AF77: 1.335039373 | AG77: 0.09095472191 | AI77: 0 | AJ77: 0 | AK77: 0 | AM77: 35.16936168 | AN77: -7.771144298 | AO77: -0.3222936168 | AQ77: -6.155472191 | AR77: 1.335039373 | AS77: 0.09095472191 | AU77: 5.044853424e-13 | AV77: 2.131628207e-14 | AW77: -5.051514762e-15
E78: 51.92886541 | F78: -8.545989081 | G78: -0.5192886541 | I78: 0.84 | J78: 44.2194384 | K78: 48.59598224 | L78: 48.43679226 | M78: 52.62263501 | N78: -7.294239739 | O78: -7.028923109 | P78: -7.002663846 | Q78: -6.712998232 | R78: -0.412794384 | S78: -0.4565598224 | T78: -0.4549679226 | U78: -0.4968263501 | W78: -7.709427014 | X78: 1.251749341 | Y78: 0.1064942701 | AA78: 44.2194384 | AB78: -7.294239739 | AC78: -0.412794384 | AE78: -7.709427014 | AF78: 1.251749341 | AG78: 0.1064942701 | AI78: 0 | AJ78: 0 | AK78: 0 | AM78: 44.2194384 | AN78: -7.294239739 | AO78: -0.412794384 | AQ78: -7.709427014 | AR78: 1.251749341 | AS78: 0.1064942701 | AU78: 4.831690603e-13 | AV78: 2.753353101e-14 | AW78: -4.829470157e-15
E79: 61.78601819 | F79: -7.862879851 | G79: -0.6178601819 | I79: 0.852 | J79: 52.63352077 | K79: 56.66097547 | L79: 56.4714948 | M79: 60.28047114 | N79: -6.712424495 | O79: -6.39662337 | P79: -6.372458642 | Q79: -6.034766557 | R79: -0.4969352077 | S79: -0.5372097547 | T79: -0.535314948 | U79: -0.5734047114 | W79: -9.15249742 | X79: 1.150455357 | Y79: 0.1209249742 | AA79: 52.63352077 | AB79: -6.712424495 | AC79: -0.4969352077 | AE79: -9.15249742 | AF79: 1.150455357 | AG79: 0.1209249742 | AI79: 0 | AJ79: 0 | AK79: 0 | AM79: 52.63352077 | AN79: -6.712424495 | AO79: -0.4969352077 | AQ79: -9.15249742 | AR79: 1.150455357 | AS79: 0.1209249742 | AU79: 4.547473509e-13 | AV79: 3.286260153e-14 | AW79: -4.551914401e-15
E80: 70.75451946 | F80: -7.066680957 | G80: -0.7075451946 | I80: 0.864 | J80: 60.29059179 | K80: 63.91103177 | L80: 63.69398564 | M80: 67.07131232 | N80: -6.03406663 | O80: -5.672323079 | P80: -5.650600439 | Q80: -5.269738802 | R80: -0.5735059179 | S80: -0.6097103177 | T80: -0.6075398564 | U80: -0.6413131232 | W80: -10.46392768 | X80: 1.032614328 | Y80: 0.1340392768 | AA80: 60.29059179 | AB80: -6.03406663 | AC80: -0.5735059179 | AE80: -10.46392768 | AF80: 1.032614328 | AG80: 0.1340392768 | AI80: 0 | AJ80: 0 | AK80: 0 | AM80: 60.29059179 | AN80: -6.03406663 | AO80: -0.5735059179 | AQ80: -10.46392768 | AR80: 1.032614328 | AS80: 0.1340392768 | AU80: 4.192202141e-13 | AV80: 3.819167205e-14 | AW80: -4.218847494e-15
E81: 78.70537771 | F81: -6.168843911 | G81: -0.7870537771 | I81: 0.876 | J81: 67.08052228 | K81: 70.24187593 | L81: 70.00038605 | M81: 72.89748808 | N81: -5.268922752 | O81: -4.866439618 | P81: -4.847471496 | Q81: -4.428918119 | R81: -0.6414052228 | S81: -0.6730187593 | T81: -0.6706038605 | U81: -0.6995748808 | W81: -11.62485542 | X81: 0.8999211593 | Y81: 0.1456485542 | AA81: 67.08052228 | AB81: -5.268922752 | AC81: -0.6414052228 | AE81: -11.62485542 | AF81: 0.8999211593 | AG81: 0.1456485542 | AI81: 0 | AJ81: 0 | AK81: 0 | AM81: 67.08052228 | AN81: -5.268922752 | AO81: -0.6414052228 | AQ81: -11.62485542 | AR81: 0.8999211593 | AS81: 0.1456485542 | AU81: 3.836930773e-13 | AV81: 4.352074257e-14 | AW81: -3.774758284e-15
E82: 85.52423789 | F82: -5.182282059 | G82: -0.8552423789 | I82: 0.888 | J82: 72.9056549 | K82: 75.56245351 | L82: 75.29999316 | M82: 77.67520246 | N82: -4.427997683 | O82: -3.990563754 | P82: -3.974622962 | Q82: -3.524397765 | R82: -0.699656549 | S82: -0.7262245351 | T82: -0.7235999316 | U82: -0.7473520246 | W82: -12.61858298 | X82: 0.754284376 | Y82: 0.1555858298 | AA82: 72.9056549 | AB82: -4.427997683 | AC82: -0.699656549 | AE82: -12.61858298 | AF82: 0.754284376 | AG82: 0.1555858298 | AI82: 0 | AJ82: 0 | AK82: 0 | AM82: 72.9056549 | AN82: -4.427997683 | AO82: -0.699656549 | AQ82: -12.61858298 | AR82: 0.754284376 | AS82: 0.1555858298 | AU82: 3.268496584e-13 | AV82: 4.796163466e-14 | AW82: -3.219646771e-15
E83: 91.11302619 | F83: -4.121184852 | G83: -0.9111302619 | I83: 0.9 | J83: 77.68220868 | K83: 79.79624039 | L83: 79.51658444 | M83: 81.33573917 | N83: -3.523386182 | O83: -3.05729293 | P83: -3.044608739 | Q83: -2.569187169 | R83: -0.7474220868 | S83: -0.7685624039 | T83: -0.7657658444 | U83: -0.7839573917 | W83: -13.43081751 | X83: 0.5977986706 | Y83: 0.1637081751 | AA83: 77.68220868 | AB83: -3.523386182 | AC83: -0.7474220868 | AE83: -13.43081751 | AF83: 0.5977986706 | AG83: 0.1637081751 | AI83: 0 | AJ83: 0 | AK83: 0 | AM83: 77.68220868 | AN83: -3.523386182 | AO83: -0.7474220868 | AQ83: -13.43081751 | AR83: 0.5977986706 | AS83: 0.1637081751 | AU83: 2.700062396e-13 | AV83: 5.195843755e-14 | AW83: -2.664535259e-15
E84: 95.39136059 | F84: -3.000813764 | G84: -0.9539136059 | I84: 0.912 | J84: 81.34148402 | K84: 82.88234341 | L84: 82.58951407 | M84: 83.82644993 | N84: -2.568098987 | O84: -2.080050083 | P84: -2.070804926 | Q84: -1.577024818 | R84: -0.7840148402 | S84: -0.7994234341 | T84: -0.7964951407 | U84: -0.8088644993 | W84: -14.04987658 | X84: 0.4327147768 | Y84: 0.1698987658 | AA84: 81.34148402 | AB84: -2.568098987 | AC84: -0.7840148402 | AE84: -14.04987658 | AF84: 0.4327147768 | AG84: 0.1698987658 | AI84: 0 | AJ84: 0 | AK84: 0 | AM84: 81.34148402 | AN84: -2.568098987 | AO84: -0.7840148402 | AQ84: -14.04987658 | AR84: 0.4327147768 | AS84: 0.1698987658 | AU84: 1.98951966e-13 | AV84: 5.551115123e-14 | AW84: -1.998401444e-15
E85: 98.29770697 | F85: -1.837282786 | G85: -0.9829770697 | I85: 0.924 | J85: 83.83085078 | K85: 84.77637619 | L85: 84.47458513 | M85: 85.1115117 | N85: -1.575875689 | O85: -1.072890584 | P85: -1.067217432 | Q85: -0.5621806675 | R85: -0.8089085078 | S85: -0.8183637619 | T85: -0.8153458513 | U85: -0.821715117 | W85: -14.46685619 | X85: 0.2614070968 | Y85: 0.1740685619 | AA85: 83.83085078 | AB85: -1.575875689 | AC85: -0.8089085078 | AE85: -14.46685619 | AF85: 0.2614070968 | AG85: 0.1740685619 | AI85: 0 | AJ85: 0 | AK85: 0 | AM85: 83.83085078 | AN85: -1.575875689 | AO85: -0.8089085078 | AQ85: -14.46685619 | AR85: 0.2614070968 | AS85: 0.1740685619 | AU85: 1.278976924e-13 | AV85: 5.817568649e-14 | AW85: -1.33226763e-15
E86: 99.79026415 | F86: -0.647326669 | G86: -0.9979026415 | I86: 0.936 | J86: 85.11450526 | K86: 85.45109753 | L86: 85.14468531 | M86: 79.2924419 | N86: -0.5609871188 | O86: -0.05030008722 | P86: -0.04828053359 | Q86: 0.460749105 | R86: -0.8217450526 | S86: -0.8251109753 | T86: -0.8220468531 | U86: -0.822324419 | W86: -14.67575889 | X86: 0.0863395502 | Y86: 0.1761575889 | AA86: 85.11450526 | AB86: -0.5609871188 | AC86: -0.8217450526 | AE86: -14.67575889 | AF86: 0.0863395502 | AG86: 0.1761575889 | AI86: 0 | AJ86: 0 | AK86: 0 | AM86: 85.11450526 | AN86: -0.5609871188 | AO86: -0.8217450526 | AQ86: -14.67575889 | AR86: 0.0863395502 | AS86: 0.1761575889 | AU86: 0 | AV86: 6.006306563e-14 | AW86: 0
E87: 99.84756506 | F87: 0.5519397715 | G87: -0.9984756506 | I87: 0.948 | J87: 79.29398511 | K87: 79.02385917 | L87: 78.73840082 | M87: 78.18476144 | N87: 0.4502099069 | O87: 0.9259738176 | P87: 0.9243530619 | Q87: 1.395070717 | R87: -0.8223398511 | S87: -0.8196385917 | T87: -0.8167840082 | U87: -0.8112476144 | W87: -20.55357995 | X87: -0.1017298646 | Y87: 0.1761357995 | AA87: 79.29398511 | AB87: 0.4502099069 | AC87: -0.8223398511 | AE87: -20.55357995 | AF87: -0.1017298646 | AG87: 0.1761357995 | AI87: 0 | AJ87: 0 | AK87: 0 | AM87: 79.29398511 | AN87: 0.4502099069 | AO87: -0.8223398511 | AQ87: -20.55357995 | AR87: -0.1017298646 | AS87: 0.1761357995 | AU87: 0 | AV87: 6.106226635e-14 | AW87: 0
E88: 98.46878558 | F88: 1.743267812 | G88: -0.9846878558 | I88: 0.96 | J88: 78.18479823 | K88: 77.34706837 | L88: 77.0656031 | M88: 75.95243961 | N88: 1.39621644 | O88: 1.865325229 | P88: 1.86029885 | Q88: 2.321003677 | R88: -0.8112479823 | S88: -0.8028706837 | T88: -0.800056031 | U88: -0.7889243961 | W88: -20.28398735 | X88: -0.3470513723 | Y88: 0.1734398735 | AA88: 78.18479823 | AB88: 1.39621644 | AC88: -0.8112479823 | AE88: -20.28398735 | AF88: -0.3470513723 | AG88: 0.1734398735 | AI88: 0 | AJ88: 0 | AK88: 0 | AM88: 78.18479823 | AN88: 1.39621644 | AO88: -0.8112479823 | AQ88: -20.28398735 | AR88: -0.3470513723 | AS88: 0.1734398735 | AU88: 0 | AV88: 6.128431096e-14 | AW88: 0
E89: 95.67375631 | F89: 2.909522906 | G89: -0.9567375631 | I89: 0.972 | J89: 75.95110458 | K89: 74.55781962 | L89: 74.28439564 | M89: 72.62771836 | N89: 2.322141602 | O89: 2.777848229 | P89: 2.769488519 | Q89: 3.213554349 | R89: -0.7889110458 | S89: -0.7749781962 | T89: -0.7722439564 | U89: -0.7556771836 | W89: -19.72265173 | X89: -0.5873813042 | Y89: 0.1678265173 | AA89: 75.95110458 | AB89: 2.322141602 | AC89: -0.7889110458 | AE89: -19.72265173 | AF89: -0.5873813042 | AG89: 0.1678265173 | AI89: 0 | AJ89: 0 | AK89: 0 | AM89: 75.95110458 | AN89: 2.322141602 | AO89: -0.7889110458 | AQ89: -19.72265173 | AR89: -0.5873813042 | AS89: 0.1678265173 | AU89: -1.563194019e-13 | AV89: 6.084022175e-14 | AW89: 1.554312234e-15
E90: 91.5026774 | F90: 4.033931122 | G90: -0.915026774 | I90: 0.984 | J90: 72.62503069 | K90: 70.69622982 | L90: 70.43477971 | M90: 68.2584161 | N90: 3.214668108 | O90: 3.650418293 | P90: 3.638845487 | Q90: 4.059885465 | R90: -0.7556503069 | S90: -0.7363622982 | T90: -0.7337477971 | U90: -0.711984161 | W90: -18.87764671 | X90: -0.8192630133 | Y90: 0.1593764671 | AA90: 72.62503069 | AB90: 3.214668108 | AC90: -0.7556503069 | AE90: -18.87764671 | AF90: -0.8192630133 | AG90: 0.1593764671 | AI90: 0 | AJ90: 0 | AK90: 0 | AM90: 72.62503069 | AN90: 3.214668108 | AO90: -0.7556503069 | AQ90: -18.87764671 | AR90: -0.8192630133 | AS90: 0.1593764671 | AU90: -2.415845302e-13 | AV90: 5.86197757e-14 | AW90: 2.331468352e-15
E91: 86.01554034 | F91: 5.100320402 | G91: -0.8601554034 | I91: 0.996 | J91: 68.25441446 | K91: 65.81783904 | L91: 65.57212315 | M91: 62.90737517 | N91: 4.06095904 | O91: 4.470485527 | P91: 4.455866074 | Q91: 4.847824518 | R91: -0.7119441446 | S91: -0.6875783904 | T91: -0.6851212315 | U91: -0.6584737517 | W91: -17.76112587 | X91: -1.039361362 | Y91: 0.1482112587 | AA91: 68.25441446 | AB91: 4.06095904 | AC91: -0.7119441446 | AE91: -17.76112587 | AF91: -1.039361362 | AG91: 0.1482112587 | AI91: 0 | AJ91: 0 | AK91: 0 | AM91: 68.25441446 | AN91: 4.06095904 | AO91: -0.7119441446 | AQ91: -17.76112587 | AR91: -1.039361362 | AS91: 0.1482112587 | AU91: -3.126388037e-13 | AV91: 5.595524044e-14 | AW91: 3.108624469e-15
E92: 79.29126513 | F92: 6.093353161 | G92: -0.7929126513 | I92: 1.008 | J92: 62.90211711 | K92: 59.99281163 | L92: 59.76636401 | M92: 56.6515579 | N92: 4.848842468 | O92: 5.226255171 | P92: 5.208799338 | Q92: 5.566038836 | R92: -0.6584211711 | S92: -0.6293281163 | T92: -0.6270636401 | U92: -0.595915579 | W92: -16.38914802 | X92: -1.244510692 | Y92: 0.1344914802 | AA92: 62.90211711 | AB92: 4.848842468 | AC92: -0.6584211711 | AE92: -16.38914802 | AF92: -1.244510692 | AG92: 0.1344914802 | AI92: 0 | AJ92: 0 | AK92: 0 | AM92: 62.90211711 | AN92: 4.848842468 | AO92: -0.6584211711 | AQ92: -16.38914802 | AR92: -1.244510692 | AS92: 0.1344914802 | AU92: -3.694822226e-13 | AV92: 5.240252676e-14 | AW92: 3.774758284e-15
E93: 71.4265652 | F93: 6.998746876 | G93: -0.714265652 | I93: 1.02 | J93: 56.64511905 | K93: 53.30492713 | L93: 53.1010047 | M93: 49.58093975 | N93: 5.566986521 | O93: 5.906857235 | P93: 5.886816084 | Q93: 6.204198577 | R93: -0.5958511905 | S93: -0.5624492713 | T93: -0.560410047 | U93: -0.5252093975 | W93: -14.78144616 | X93: -1.431760355 | Y93: 0.1184144616 | AA93: 56.64511905 | AB93: 5.566986521 | AC93: -0.5958511905 | AE93: -14.78144616 | AF93: -1.431760355 | AG93: 0.1184144616 | AI93: 0 | AJ93: 0 | AK93: 0 | AM93: 56.64511905 | AN93: 5.566986521 | AO93: -0.5958511905 | AQ93: -14.78144616 | AR93: -1.431760355 | AS93: 0.1184144616 | AU93: -4.547473509e-13 | AV93: 4.796163466e-14 | AW93: 4.551914401e-15
E94: 62.53455639 | F94: 7.803479517 | G94: -0.6253455639 | I94: 1.032 | J94: 49.5734127 | K94: 45.85037528 | L94: 45.67191099 | M94: 41.79721516 | N94: 6.205062366 | O94: 6.502502842 | P94: 6.480164617 | Q94: 6.753125298 | R94: -0.525134127 | S94: -0.4879037528 | T94: -0.4861191099 | U94: -0.4473721516 | W94: -12.9611437 | X94: -1.598417151 | Y94: 0.100211437 | AA94: 49.5734127 | AB94: 6.205062366 | AC94: -0.525134127 | AE94: -12.9611437 | AF94: -1.598417151 | AG94: 0.100211437 | AI94: 0 | AJ94: 0 | AK94: 0 | AM94: 49.5734127 | AN94: 6.205062366 | AO94: -0.525134127 | AQ94: -12.9611437 | AR94: -1.598417151 | AS94: 0.100211437 | AU94: -5.186961971e-13 | AV94: 4.352074257e-14 | AW94: 5.218048216e-15
E95: 52.74313005 | F95: 8.495976832 | G95: -0.5274313005 | I95: 1.044 | J95: 41.78870818 | K95: 37.73637252 | L95: 37.58593317 | M95: 33.41233498 | N95: 6.753892766 | O95: 7.004625016 | P95: 6.980311002 | Q95: 7.204923965 | R95: -0.4472870818 | S95: -0.4067637252 | T95: -0.4052593317 | U95: -0.3635233498 | W95: -10.95442187 | X95: -1.742084065 | Y95: 0.08014421871 | AA95: 41.78870818 | AB95: 6.753892766 | AC95: -0.4472870818 | AE95: -10.95442187 | AF95: -1.742084065 | AG95: 0.08014421871 | AI95: 0 | AJ95: 0 | AK95: 0 | AM95: 41.78870818 | AN95: 6.753892766 | AO95: -0.4472870818 | AQ95: -10.95442187 | AR95: -1.742084065 | AS95: 0.08014421871 | AU95: -5.75539616e-13 | AV95: 3.641531521e-14 | AW95: 5.773159728e-15
E96: 42.1931136 | F96: 9.06627882 | G96: -0.421931136 | I96: 1.056 | J96: 33.40297043 | K96: 29.07961998 | L96: 28.95936929 | M96: 24.54689627 | N96: 7.205584076 | O96: 7.406001898 | P96: 7.380061795 | Q96: 7.553096507 | R96: -0.3634297043 | S96: -0.3201961998 | T96: -0.3189936929 | U96: -0.2748689627 | W96: -8.790143174 | X96: -1.860694745 | Y96: 0.05850143174 | AA96: 33.40297043 | AB96: 7.205584076 | AC96: -0.3634297043 | AE96: -8.790143174 | AF96: -1.860694745 | AG96: 0.05850143174 | AI96: 0 | AJ96: 0 | AK96: 0 | AM96: 33.40297043 | AN96: 7.205584076 | AO96: -0.3634297043 | AQ96: -8.790143174 | AR96: -1.860694745 | AS96: 0.05850143174 | AU96: -6.181721801e-13 | AV96: 2.930988785e-14 | AW96: 6.217248938e-15
E97: 31.03624506 | F97: 9.506182984 | G97: -0.3103624506 | I97: 1.068 | J97: 24.53680884 | K97: 20.00462498 | L97: 19.91629246 | M97: 15.32840782 | N97: 7.553639766 | O97: 7.700860619 | P97: 7.673667516 | Q97: 7.792635276 | R97: -0.2747680884 | S97: -0.2294462498 | T97: -0.2285629246 | U97: -0.1826840782 | W97: -6.499436229 | X97: -1.952543218 | Y97: 0.03559436229 | AA97: 24.53680884 | AB97: 7.553639766 | AC97: -0.2747680884 | AE97: -6.499436229 | AF97: -1.952543218 | AG97: 0.03559436229 | AI97: 0 | AJ97: 0 | AK97: 0 | AM97: 24.53680884 | AN97: 7.553639766 | AO97: -0.2747680884 | AQ97: -6.499436229 | AR97: -1.952543218 | AS97: 0.03559436229 | AU97: -6.572520306e-13 | AV97: 2.131628207e-14 | AW97: 6.550315845e-15
E98: 19.43299065 | F98: 9.809362301 | G98: -0.1943299065 | I98: 1.08 | J98: 15.31774257 | K98: 10.64191025 | L98: 10.58676638 | M98: 5.889456176 | N98: 7.793053869 | O98: 7.884960325 | P98: 7.856905331 | Q98: 7.920095066 | R98: -0.1825774257 | S98: -0.1358191025 | T98: -0.1352676638 | U98: -0.08829456176 | W98: -4.115248072 | X98: -2.016308432 | Y98: 0.01175248072 | AA98: 15.31774257 | AB98: 7.793053869 | AC98: -0.1825774257 | AE98: -4.115248072 | AF98: -2.016308432 | AG98: 0.01175248072 | AI98: 0 | AJ98: 0 | AK98: 0 | AM98: 15.31774257 | AN98: 7.793053869 | AO98: -0.1825774257 | AQ98: -4.115248072 | AR98: -2.016308432 | AS98: 0.01175248072 | AU98: -6.785683127e-13 | AV98: 1.243449788e-14 | AW98: 6.77236045e-15
E99: 7.550236802 | F99: 9.971456225 | G99: -0.07550236802 | I99: 1.092 | J99: 5.878366524 | K99: 1.12613674 | L99: 1.104974621 | M99: -3.634201228 | N99: 7.920382973 | O99: 7.955653172 | P99: 7.927139794 | Q99: 7.933642669 | R99: -0.08818366524 | S99: -0.0406613674 | T99: -0.04044974621 | U99: 0.006942012283 | W99: -1.671870278 | X99: -2.051073252 | Y99: -0.01268129722 | AA99: 5.878366524 | AB99: 7.920382973 | AC99: -0.08818366524 | AE99: -1.671870278 | AF99: -2.051073252 | AG99: -0.01268129722 | AI99: 1.065814104e-14 | AJ99: 0 | AK99: -1.110223025e-16 | AM99: 5.878366524 | AN99: 7.920382973 | AO99: -0.08818366524 | AQ99: -1.671870278 | AR99: -2.051073252 | AS99: -0.01268129722 | AU99: -6.910028105e-13 | AV99: 0 | AW99: 6.925016116e-15
E100: -4.441110045 | F100: 9.990133403 | G100: 0.04441110045 | I100: 1.104 | J100: -3.645555791 | K100: -8.40583324 | L100: -8.392709239 | M100: -13.10558869 | N100: 7.933795749 | O100: 7.911922414 | P100: 7.88336075 | Q100: 7.833083238 | R100: 0.007055557907 | S100: 0.0546583324 | T100: 0.05452709239 | U100: 0.1016558869 | W100: 0.7955542548 | X100: -2.056337654 | Y100: -0.03735554255 | AA100: -3.645555791 | AB100: 7.933795749 | AC100: 0.007055557907 | AE100: 0.7955542548 | AF100: -2.056337654 | AG100: -0.03735554255 | AI100: 9.769962617e-15 | AJ100: 0 | AK100: -9.714451465e-17 | AM100: -3.645555791 | AN100: 7.933795749 | AO100: 0.007055557907 | AQ100: 0.7955542548 | AR100: -2.056337654 | AS100: -0.03735554255 | AU100: -6.998845947e-13 | AV100: 0 | AW100: 6.99700714e-15
E101: -16.36858161 | F101: 9.865125207 | G101: 0.1636858161 | I101: 1.116 | J101: -13.11704485 | K101: -17.81690443 | L101: -17.76968307 | M101: -22.38848229 | N101: 7.83309929 | O101: 7.754397021 | P101: 7.726197864 | Q101: 7.619863094 | R101: 0.1017704485 | S101: 0.1487690443 | T101: 0.1482968307 | U101: 0.1944848229 | W101: 3.25153676 | X101: -2.032025917 | Y101: -0.0619153676 | AA101: -13.11704485 | AB101: 7.83309929 | AC101: 0.1017704485 | AE101: 3.25153676 | AF101: -2.032025917 | AG101: -0.0619153676 | AI101: 0 | AJ101: 0 | AK101: 0 | AM101: -13.11704485 | AN101: 7.83309929 | AO101: 0.1017704485 | AQ101: 3.25153676 | AR101: -2.032025917 | AS101: -0.0619153676 | AU101: -6.96331881e-13 | AV101: -1.154631946e-14 | AW101: 6.96664948e-15
E102: -28.06062832 | F102: 9.598229596 | G102: 0.2806062832 | I102: 1.128 | J102: -22.39987528 | K102: -26.97172042 | L102: -26.89108087 | M102: -31.34936916 | N102: 7.619741886 | O102: 7.485342634 | P102: 7.457911564 | Q102: 7.297048916 | R102: 0.1945987528 | S102: 0.2403172042 | T102: 0.2395108087 | U102: 0.2840936916 | W102: 5.660753036 | X102: -1.97848771 | Y102: -0.08600753036 | AA102: -22.39987528 | AB102: 7.619741886 | AC102: 0.1945987528 | AE102: 5.660753036 | AF102: -1.97848771 | AG102: -0.08600753036 | AI102: 0 | AJ102: 0 | AK102: 0 | AM102: -22.39987528 | AN102: 7.619741886 | AO102: 0.1945987528 | AQ102: 5.660753036 | AR102: -1.97848771 | AS102: -0.08600753036 | AU102: -6.821210263e-13 | AV102: -2.042810365e-14 | AW102: 6.827871601e-15
E103: -39.34908663 | F103: 9.193285257 | G103: 0.3934908663 | I103: 1.14 | J103: -31.36053512 | K103: -35.73861044 | L103: -35.62571251 | M103: -39.85936776 | N103: 7.296792192 | O103: 7.108628981 | P103: 7.082360529 | Q103: 6.869283642 | R103: 0.2842053512 | S103: 0.3279861044 | T103: 0.3268571251 | U103: 0.3691936776 | W103: 7.988551511 | X103: -1.896493065 | Y103: -0.1092855151 | AA103: -31.36053512 | AB103: 7.296792192 | AC103: 0.2842053512 | AE103: 7.988551511 | AF103: -1.896493065 | AG103: -0.1092855151 | AI103: 0 | AJ103: 0 | AK103: 0 | AM103: -31.36053512 | AN103: 7.296792192 | AO103: 0.2842053512 | AQ103: 7.988551511 | AR103: -1.896493065 | AS103: -0.1092855151 | AU103: -6.608047443e-13 | AV103: -2.930988785e-14 | AW103: 6.605826997e-15
E104: -50.07159773 | F104: 8.656116393 | G104: 0.5007159773 | I104: 1.152 | J104: -39.8701461 | K104: -43.99148315 | L104: -43.84795063 | M104: -47.79608153 | N104: 6.868895094 | O104: 6.629674218 | P104: 6.604946196 | Q104: 6.342719687 | R104: 0.369301461 | S104: 0.4105148315 | T104: 0.4090795063 | U104: 0.4485608153 | W104: 10.20145163 | X104: -1.787221299 | Y104: -0.1314145163 | AA104: -39.8701461 | AB104: 6.868895094 | AC104: 0.369301461 | AE104: 10.20145163 | AF104: -1.787221299 | AG104: -0.1314145163 | AI104: 0 | AJ104: 0 | AK104: 0 | AM104: -39.8701461 | AN104: 6.868895094 | AO104: 0.369301461 | AQ104: 10.20145163 | AR104: -1.787221299 | AS104: -0.1314145163 | AU104: -6.323830348e-13 | AV104: -3.730349363e-14 | AW104: 6.32827124e-15
E105: -60.07394263 | F105: 7.994448959 | G105: 0.6007394263 | I105: 1.164 | J105: -47.80631722 | K105: -51.61164016 | L105: -51.43953742 | M105: -55.04535929 | N105: 6.342204904 | O105: 6.055367001 | P105: 6.032535063 | Q105: 5.724930455 | R105: 0.4486631722 | S105: 0.4867164016 | T105: 0.4849953742 | U105: 0.5210535929 | W105: 12.26762542 | X105: -1.652244055 | Y105: -0.1520762542 | AA105: -47.80631722 | AB105: 6.342204904 | AC105: 0.4486631722 | AE105: 12.26762542 | AF105: -1.652244055 | AG105: -0.1520762542 | AI105: 0 | AJ105: 0 | AK105: 0 | AM105: -47.80631722 | AN105: 6.342204904 | AO105: 0.4486631722 | AQ105: 12.26762542 | AR105: -1.652244055 | AS105: -0.1520762542 | AU105: -5.826450433e-13 | AV105: -4.440892099e-14 | AW105: 5.828670879e-15
E106: -69.21226035 | F106: 7.217799538 | G106: 0.6921226035 | I106: 1.176 | J106: -55.05490511 | K106: -58.48948322 | L106: -58.29128556 | M106: -61.50293704 | N106: 5.724296841 | O106: 5.39396741 | P106: 5.373359941 | Q106: 5.024801414 | R106: 0.5211490511 | S106: 0.5554948322 | T106: 0.5535128556 | U106: 0.5856293704 | W106: 14.15735523 | X106: -1.493502698 | Y106: -0.1709735523 | AA106: -55.05490511 | AB106: 5.724296841 | AC106: 0.5211490511 | AE106: 14.15735523 | AF106: -1.493502698 | AG106: -0.1709735523 | AI106: 0 | AJ106: 0 | AK106: 0 | AM106: -55.05490511 | AN106: 5.724296841 | AO106: 0.5211490511 | AQ106: 14.15735523 | AR106: -1.493502698 | AS106: -0.1709735523 | AU106: -5.329070518e-13 | AV106: -5.151434834e-14 | AW106: 5.329070518e-15
E107: -77.35511692 | F107: 6.337338468 | G107: 0.7735511692 | I107: 1.188 | J107: -61.51165571 | K107: -64.52609055 | L107: -64.30464859 | M107: -67.07593755 | N107: 5.024058081 | O107: 4.654988147 | P107: 4.636901538 | Q107: 4.252402298 | R107: 0.5857165571 | S107: 0.6158609055 | T107: 0.6136464859 | U107: 0.6413593755 | W107: 15.84346122 | X107: -1.313280387 | Y107: -0.1878346122 | AA107: -61.51165571 | AB107: 5.024058081 | AC107: 0.5857165571 | AE107: 15.84346122 | AF107: -1.313280387 | AG107: -0.1878346122 | AI107: 0 | AJ107: 0 | AK107: 0 | AM107: -61.51165571 | AN107: 5.024058081 | AO107: 0.5857165571 | AQ107: 15.84346122 | AR107: -1.313280387 | AS107: -0.1878346122 | AU107: -4.689582056e-13 | AV107: -5.684341886e-14 | AW107: 4.662936703e-15
E108: -84.38539587 | F108: 5.36572918 | G108: 0.8438539587 | I108: 1.2 | J108: -67.08370366 | K108: -69.63463962 | L108: -69.39313829 | M108: -71.68420618 | N108: 4.251559938 | O108: 3.849057716 | P108: 3.833752101 | Q108: 3.418842279 | R108: 0.6414370366 | S108: 0.6669463962 | T108: 0.6645313829 | U108: 0.6874420618 | W108: 17.30169222 | X108: -1.114169242 | Y108: -0.2024169222 | AA108: -67.08370366 | AB108: 4.251559938 | AC108: 0.6414370366 | AE108: 17.30169222 | AF108: -1.114169242 | AG108: -0.2024169222 | AI108: 0 | AJ108: 0 | AK108: 0 | AM108: -67.08370366 | AN108: 4.251559938 | AO108: 0.6414370366 | AQ108: 17.30169222 | AR108: -1.114169242 | AS108: -0.2024169222 | AU108: -3.97903932e-13 | AV108: -6.394884622e-14 | AW108: 3.996802889e-15
E109: -90.2019826 | F109: 4.316946067 | G109: 0.902019826 | I109: 1.212 | J109: -71.69090803 | K109: -73.74165583 | L109: -73.48356856 | M109: -75.26146371 | N109: 3.417913007 | O109: 2.987767559 | P109: 2.975463072 | Q109: 2.536110184 | R109: 0.6875090803 | S109: 0.7080165583 | T109: 0.7054356856 | U109: 0.7232146371 | W109: 18.51107458 | X109: -0.8990330603 | Y109: -0.2145107458 | AA109: -71.69090803 | AB109: 3.417913007 | AC109: 0.6875090803 | AE109: 18.51107458 | AF109: -0.8990330603 | AG109: -0.2145107458 | AI109: 0 | AJ109: 0 | AK109: 0 | AM109: -71.69090803 | AN109: 3.417913007 | AO109: 0.6875090803 | AQ109: 18.51107458 | AR109: -0.8990330603 | AS109: -0.2145107458 | AU109: -3.268496584e-13 | AV109: -6.838973832e-14 | AW109: 3.219646771e-15
E110: -94.72121872 | F110: 3.206073492 | G110: 0.9472121872 | I110: 1.224 | J110: -75.26700492 | K110: -76.78806934 | L110: -76.51710812 | M110: -77.75625966 | N110: 2.535107366 | O110: 2.083505336 | P110: 2.07437895 | Q110: 1.616902068 | R110: 0.7232700492 | S110: 0.7384806934 | T110: 0.7357710812 | U110: 0.7481625966 | W110: 19.45421381 | X110: -0.6709661263 | Y110: -0.2239421381 | AA110: -75.26700492 | AB110: 2.535107366 | AC110: 0.7232700492 | AE110: 19.45421381 | AF110: -0.6709661263 | AG110: -0.2239421381 | AI110: 0 | AJ110: 0 | AK110: 0 | AM110: -75.26700492 | AN110: 2.535107366 | AO110: 0.7232700492 | AQ110: 19.45421381 | AR110: -0.6709661263 | AS110: -0.2239421381 | AU110: -2.415845302e-13 | AV110: -7.238654121e-14 | AW110: 2.442490654e-15
E111: -97.87810529 | F111: 2.049088833 | G111: 0.9787810529 | I111: 1.236 | J111: -77.76056052 | K111: -78.73006459 | L111: -78.45012658 | M111: -79.13271221 | N111: 1.615840127 | O111: 1.149276764 | P111: 1.143459739 | Q111: 0.674438608 | R111: 0.7482056052 | S111: 0.7579006459 | T111: 0.7551012658 | U111: 0.7619271221 | W111: 20.11754477 | X111: -0.4332487063 | Y111: -0.2305754477 | AA111: -77.76056052 | AB111: 1.615840127 | AC111: 0.7482056052 | AE111: 20.11754477 | AF111: -0.4332487063 | AG111: -0.2305754477 | AI111: 0 | AJ111: 1.776356839e-15 | AK111: 0 | AM111: -77.76056052 | AN111: 1.615840127 | AO111: 0.7482056052 | AQ111: 20.11754477 | AR111: -0.4332487063 | AS111: -0.2305754477 | AU111: -1.563194019e-13 | AV111: -7.527312107e-14 | AW111: 1.554312234e-15
E112: -99.62723767 | F112: 0.8626326863 | G112: 0.9962723767 | I112: 1.248 | J112: -79.13571087 | K112: -79.53971056 | L112: -79.254822 | M112: -73.49102433 | N112: 0.6733328168 | O112: 0.1985185516 | P112: 0.1960945535 | Q112: -0.2777250471 | R112: 0.7619571087 | S112: 0.7659971056 | T112: 0.76314822 | U112: 0.7643102433 | W112: 20.4915268 | X112: -0.1892998694 | Y112: -0.234315268 | AA112: -79.13571087 | AB112: 0.6733328168 | AC112: 0.7619571087 | AE112: 20.4915268 | AF112: -0.1892998694 | AG112: -0.234315268 | AI112: 0 | AJ112: 1.665334537e-15 | AK112: 0 | AM112: -79.13571087 | AN112: 0.6733328168 | AO112: 0.7619571087 | AQ112: 20.4915268 | AR112: -0.1892998694 | AS112: -0.234315268 | AU112: 0 | AV112: -7.749356712e-14 | AW112: 0
E113: -99.94345855 | F113: -0.3362304722 | G113: 0.9994345855 | I113: 1.26 | J113: -73.49267766 | K113: -73.33241839 | L113: -73.06784475 | M113: -72.64416571 | N113: -0.2670987838 | O113: -0.7080548498 | P113: -0.7070932941 | Q113: -1.143912921 | R113: 0.7643267766 | S113: 0.7627241839 | T113: 0.7600784475 | U113: 0.7558416571 | W113: 26.45078089 | X113: 0.06913168842 | Y113: -0.2351078089 | AA113: -73.49267766 | AB113: -0.2670987838 | AC113: 0.7643267766 | AE113: 26.45078089 | AF113: 0.06913168842 | AG113: -0.2351078089 | AI113: 0 | AJ113: 1.443289932e-15 | AK113: 0 | AM113: -73.49267766 | AN113: -0.2670987838 | AO113: 0.7643267766 | AQ113: 26.45078089 | AR113: 0.06913168842 | AS113: -0.2351078089 | AU113: 0 | AV113: -7.827072324e-14 | AW113: 0
E114: -98.82221983 | F114: -1.530257719 | G114: 0.9882221983 | I114: 1.272 | J114: -72.64441606 | K114: -71.95743195 | L114: -71.69591205 | M114: -70.75235433 | N114: -1.144973523 | O114: -1.580840019 | P114: -1.576718115 | Q114: -2.005324468 | R114: 0.7558441606 | S114: 0.7489743195 | T114: 0.7463591205 | U114: 0.7369235433 | W114: 26.17780376 | X114: 0.3852841961 | Y114: -0.2323780376 | AA114: -72.64441606 | AB114: -1.144973523 | AC114: 0.7558441606 | AE114: 26.17780376 | AF114: 0.3852841961 | AG114: -0.2323780376 | AI114: 0 | AJ114: 0 | AK114: 0 | AM114: -72.64441606 | AN114: -1.144973523 | AO114: 0.7558441606 | AQ114: 26.17780376 | AR114: 0.3852841961 | AS114: -0.2323780376 | AU114: 1.421085472e-13 | AV114: -7.793765633e-14 | AW114: -1.33226763e-15
E115: -96.27964796 | F115: -2.702275685 | G115: 0.9627964796 | I115: 1.284 | J115: -70.75133321 | K115: -69.54750495 | L115: -69.29280015 | M115: -67.84293465 | N115: -2.00638044 | O115: -2.430888439 | P115: -2.42366547 | Q115: -2.837894042 | R115: 0.7369133321 | S115: 0.7248750495 | T115: 0.7223280015 | U115: 0.7078293465 | W115: 25.52831475 | X115: 0.6958952452 | Y115: -0.2258831475 | AA115: -70.75133321 | AB115: -2.00638044 | AC115: 0.7369133321 | AE115: 25.52831475 | AF115: 0.6958952452 | AG115: -0.2258831475 | AI115: 0 | AJ115: 0 | AK115: 0 | AM115: -70.75133321 | AN115: -2.00638044 | AO115: 0.7369133321 | AQ115: 25.52831475 | AR115: 0.6958952452 | AS115: -0.2258831475 | AU115: 2.273736754e-13 | AV115: -7.638334409e-14 | AW115: -2.220446049e-15
E116: -92.35231209 | F116: -3.835427554 | G116: 0.9235231209 | I116: 1.296 | J116: -67.84065675 | K116: -66.13729863 | L116: -65.89307227 | M116: -63.95775197 | N116: -2.838930196 | O116: -3.245974137 | P116: -3.235753988 | Q116: -3.629647063 | R116: 0.7078065675 | S116: 0.6907729863 | T116: 0.6883307227 | U116: 0.6689775197 | W116: 24.51165533 | X116: 0.9964973581 | Y116: -0.2157165533 | AA116: -67.84065675 | AB116: -2.838930196 | AC116: 0.7078065675 | AE116: 24.51165533 | AF116: 0.9964973581 | AG116: -0.2157165533 | AI116: 0 | AJ116: 0 | AK116: 0 | AM116: -67.84065675 | AN116: -2.838930196 | AO116: 0.7078065675 | AQ116: 24.51165533 | AR116: 0.9964973581 | AS116: -0.2157165533 | AU116: 3.268496584e-13 | AV116: -7.416289804e-14 | AW116: -3.219646771e-15
E117: -87.096698 | F117: -4.913415511 | G117: 0.87096698 | I117: 1.308 | J117: -63.95425005 | K117: -61.77586095 | L117: -61.54562565 | M117: -59.15268566 | N117: -3.630648497 | O117: -4.014373997 | P117: -4.001303663 | Q117: -4.369196005 | R117: 0.6689425005 | S117: 0.6471586095 | T117: 0.6448562565 | U117: 0.6209268566 | W117: 23.14244795 | X117: 1.282767014 | Y117: -0.2020244795 | AA117: -63.95425005 | AB117: -3.630648497 | AC117: 0.6689425005 | AE117: 23.14244795 | AF117: 1.282767014 | AG117: -0.2020244795 | AI117: 0 | AJ117: 0 | AK117: 0 | AM117: -63.95425005 | AN117: -3.630648497 | AO117: 0.6689425005 | AQ117: 23.14244795 | AR117: 1.282767014 | AS117: -0.2020244795 | AU117: 4.121147867e-13 | AV117: -7.016609516e-14 | AW117: -4.107825191e-15
E118: -80.58839576 | F118: -5.920735147 | G118: 0.8058839576 | I118: 1.32 | J118: -59.14801009 | K118: -56.5259211 | L118: -56.31298826 | M118: -53.49684548 | N118: -4.370148315 | O118: -4.725036375 | P118: -4.709303841 | Q118: -5.045904174 | R118: 0.6208801009 | S118: 0.594659211 | T118: 0.5925298826 | U118: 0.5643684548 | W118: 21.44038568 | X118: 1.550586832 | Y118: -0.1850038568 | AA118: -59.14801009 | AB118: -4.370148315 | AC118: 0.6208801009 | AE118: 21.44038568 | AF118: 1.550586832 | AG118: -0.1850038568 | AI118: 0 | AJ118: 0 | AK118: 0 | AM118: -59.14801009 | AN118: -4.370148315 | AO118: 0.6208801009 | AQ118: 21.44038568 | AR118: 1.550586832 | AS118: -0.1850038568 | AU118: 4.831690603e-13 | AV118: -6.394884622e-14 | AW118: -4.884981308e-15
E119: -72.92101253 | F119: -6.842898458 | G119: 0.7292101253 | I119: 1.332 | J119: -53.4910635 | K119: -50.4629873 | L119: -50.27041947 | M119: -47.0715776 | N119: -5.046793663 | O119: -5.367740044 | P119: -5.349571587 | Q119: -5.650038697 | R119: 0.564310635 | S119: 0.534029873 | T119: 0.5321041947 | U119: 0.500115776 | W119: 19.42994903 | X119: 1.796104795 | Y119: -0.1648994903 | AA119: -53.4910635 | AB119: -5.046793663 | AC119: 0.564310635 | AE119: 19.42994903 | AF119: 1.796104795 | AG119: -0.1648994903 | AI119: 0 | AJ119: 0 | AK119: 0 | AM119: -53.4910635 | AN119: -5.046793663 | AO119: 0.564310635 | AQ119: 19.42994903 | AR119: 1.796104795 | AS119: -0.1648994903 | AU119: 5.542233339e-13 | AV119: -5.86197757e-14 | AW119: -5.551115123e-15
E120: -64.20482619 | F120: -7.666642221 | G120: 0.6420482619 | I120: 1.344 | J120: -47.06477238 | K120: -43.67426083 | L120: -43.50482765 | M120: -39.96929461 | N120: -5.650852573 | O120: -5.933241207 | P120: -5.912898138 | Q120: -6.172910505 | R120: 0.5000477238 | S120: 0.4661426083 | T120: 0.4644482765 | U120: 0.4290929461 | W120: 17.14005381 | X120: 2.015789648 | Y120: -0.1420005381 | AA120: -47.06477238 | AB120: -5.650852573 | AC120: 0.5000477238 | AE120: 17.14005381 | AF120: 2.015789648 | AG120: -0.1420005381 | AI120: 0 | AJ120: 0 | AK120: 0 | AM120: -47.06477238 | AN120: -5.650852573 | AO120: 0.5000477238 | AQ120: 17.14005381 | AR120: 2.015789648 | AS120: -0.1420005381 | AU120: 6.252776075e-13 | AV120: -5.240252676e-14 | AW120: -6.217248938e-15
E121: -54.56519928 | F121: -8.380118751 | G121: 0.5456519928 | I121: 1.356 | J121: -39.96156402 | K121: -36.25738179 | L121: -36.11352016 | M121: -32.2921464 | N121: -6.173637061 | O121: -6.413406445 | P121: -6.391181351 | Q121: -6.606999303 | R121: 0.4290156402 | S121: 0.3919738179 | T121: 0.3905352016 | U121: 0.352321464 | W121: 14.60363525 | X121: 2.20648169 | Y121: -0.1166363525 | AA121: -39.96156402 | AB121: -6.173637061 | AC121: 0.4290156402 | AE121: 14.60363525 | AF121: 2.20648169 | AG121: -0.1166363525 | AI121: 0 | AJ121: 0 | AK121: 0 | AM121: -39.96156402 | AN121: -6.173637061 | AO121: 0.4290156402 | AQ121: 14.60363525 | AR121: 2.20648169 | AS121: -0.1166363525 | AU121: 6.892264537e-13 | AV121: -4.440892099e-14 | AW121: -6.883382753e-15
E122: -44.14077593 | F122: -8.97306631 | G122: 0.4414077593 | I122: 1.368 | J122: -32.28360163 | K122: -28.31902478 | L122: -28.20280381 | M122: -24.15055095 | N122: -6.607628089 | O122: -6.801329699 | P122: -6.777542238 | Q122: -6.946061735 | R122: 0.3522360163 | S122: 0.3125902478 | T122: 0.3114280381 | U122: 0.2709055095 | W122: 11.8571743 | X122: 2.365438221 | Y122: -0.08917174297 | AA122: -32.28360163 | AB122: -6.607628089 | AC122: 0.3522360163 | AE122: 11.8571743 | AF122: 2.365438221 | AG122: -0.08917174297 | AI122: 0 | AJ122: 0 | AK122: 0 | AM122: -32.28360163 | AN122: -6.607628089 | AO122: 0.3522360163 | AQ122: 11.8571743 | AR122: 2.365438221 | AS122: -0.08917174297 | AU122: 7.460698725e-13 | AV122: -3.552713679e-14 | AW122: -7.438494265e-15
E123: -33.08148779 | F123: -9.436956694 | G123: 0.3308148779 | I123: 1.38 | J123: -24.14131489 | K123: -19.97336467 | L123: -19.88645593 | M123: -15.66160622 | N123: -6.946583709 | O123: -7.091431598 | P123: -7.066423897 | Q123: -7.18522118 | R123: 0.2708131489 | S123: 0.2291336467 | T123: 0.2282645593 | U123: 0.1860160622 | W123: 8.940172902 | X123: 2.490372986 | Y123: -0.06000172902 | AA123: -24.14131489 | AB123: -6.946583709 | AC123: 0.2708131489 | AE123: 8.940172902 | AF123: 2.490372986 | AG123: -0.06000172902 | AI123: 0 | AJ123: 0 | AK123: 0 | AM123: -24.14131489 | AN123: -6.946583709 | AO123: 0.2708131489 | AQ123: 8.940172902 | AR123: 2.490372986 | AS123: -0.06000172902 | AU123: 7.887024367e-13 | AV123: -2.575717417e-14 | AW123: -7.882583475e-15
E124: -21.54639761 | F124: -9.765117895 | G124: 0.2154639761 | I124: 1.392 | J124: -15.65181172 | K124: -11.34043442 | L124: -11.28408789 | M124: -6.947405989 | N124: -7.185628833 | O124: -7.279539704 | P124: -7.25367144 | Q124: -7.321037888 | R124: 0.1859181172 | S124: 0.1428043442 | T124: 0.1422408789 | U124: 0.09887405989 | W124: 5.894585893 | X124: 2.579489061 | Y124: -0.02954585893 | AA124: -15.65181172 | AB124: -7.185628833 | AC124: 0.1859181172 | AE124: 5.894585893 | AF124: 2.579489061 | AG124: -0.02954585893 | AI124: -2.131628207e-14 | AJ124: 0 | AK124: 0 | AM124: -15.65181172 | AN124: -7.185628833 | AO124: 0.1859181172 | AQ124: 5.894585893 | AR124: 2.579489061 | AS124: -0.02954585893 | AU124: 8.242295735e-13 | AV124: -1.598721155e-14 | AW124: -8.215650382e-15
E125: -9.701411442 | F125: -9.952830058 | G125: 0.09701411442 | I125: 1.404 | J125: -6.937193915 | K125: -2.5443987 | L125: -2.519424802 | M125: 1.866716185 | N125: -7.321325358 | O125: -7.362948522 | P125: -7.33659175 | Q125: -7.351558456 | R125: 0.09877193915 | S125: 0.054843987 | T125: 0.05459424802 | U125: 0.01073283815 | W125: 2.764217527 | X125: 2.6315047 | Y125: 0.001757824726 | AA125: -6.937193915 | AB125: -7.321325358 | AC125: 0.09877193915 | AE125: 2.764217527 | AF125: 2.6315047 | AG125: 0.001757824726 | AI125: -1.953992523e-14 | AJ125: 0 | AK125: 1.942890293e-16 | AM125: -6.937193915 | AN125: -7.321325358 | AO125: 0.09877193915 | AQ125: 2.764217527 | AR125: 2.6315047 | AS125: 0.001757824726 | AU125: 8.40216785e-13 | AV125: 0 | AW125: -8.396061624e-15
E126: 2.28310749 | F126: -9.99739337 | G126: -0.0228310749 | I126: 1.416 | J126: 1.877198957 | K126: 6.288231921 | L126: 6.281474005 | M126: 10.65398962 | N126: -7.351721608 | O126: -7.340458414 | P126: -7.313992216 | Q126: -7.276343919 | R126: 0.01062801043 | S126: -0.03348231921 | T126: -0.03341474005 | U126: -0.07713989616 | W126: -0.4059085335 | X126: 2.645671763 | Y126: 0.03345908534 | AA126: 1.877198957 | AB126: -7.351721608 | AC126: 0.01062801043 | AE126: -0.4059085335 | AF126: 2.645671763 | AG126: 0.03345908534 | AI126: -1.665334537e-14 | AJ126: 0 | AK126: 1.665334537e-16 | AM126: 1.877198957 | AN126: -7.351721608 | AO126: 0.01062801043 | AQ126: -0.4059085335 | AR126: 2.645671763 | AS126: 0.03345908534 | AU126: 8.473222124e-13 | AV126: 0 | AW126: -8.47412418e-15
E127: 14.23478911 | F127: -9.89816689 | G127: -0.1423478911 | I127: 1.428 | J127: 10.66459231 | K127: 15.03042056 | L127: 14.99202803 | M127: 19.28802977 | N127: -7.276380407 | O127: -7.212392853 | P127: -7.186197883 | Q127: -7.09647607 | R127: -0.07724592314 | S127: -0.1209042056 | T127: -0.1205202803 | U127: -0.1634802977 | W127: -3.570196794 | X127: 2.621786484 | Y127: 0.06510196794 | AA127: 10.66459231 | AB127: -7.276380407 | AC127: -0.07724592314 | AE127: -3.570196794 | AF127: 2.621786484 | AG127: 0.06510196794 | AI127: -1.421085472e-14 | AJ127: 0 | AK127: 1.526556659e-16 | AM127: 10.66459231 | AN127: -7.276380407 | AO127: -0.07724592314 | AQ127: -3.570196794 | AR127: 2.621786484 | AS127: 0.06510196794 | AU127: 8.419931419e-13 | AV127: 1.421085472e-14 | AW127: -8.423817199e-15
E128: 25.98173562 | F128: -9.656577765 | G128: -0.2598173562 | I128: 1.44 | J128: 19.2985999 | K128: 23.55643112 | L128: 23.48695617 | M128: 27.64465604 | N128: -7.096385368 | O128: -6.980593769 | P128: -6.955046781 | Q128: -6.814541894 | R128: -0.163585999 | S128: -0.2061643112 | T128: -0.2054695617 | U128: -0.2470465604 | W128: -6.683135718 | X128: 2.560192397 | Y128: 0.09623135718 | AA128: 19.2985999 | AB128: -7.096385368 | AC128: -0.163585999 | AE128: -6.683135718 | AF128: 2.560192397 | AG128: 0.09623135718 | AI128: 0 | AJ128: 0 | AK128: 0 | AM128: 19.2985999 | AN128: -7.096385368 | AO128: -0.163585999 | AQ128: -6.683135718 | AR128: 2.560192397 | AS128: 0.09623135718 | AU128: 8.242295735e-13 | AV128: 2.486899575e-14 | AW128: -8.243405958e-15
E129: 37.35499389 | F129: -9.276100706 | G129: -0.3735499389 | I129: 1.452 | J129: 27.65504158 | K129: 31.74363676 | L129: 31.64407861 | M129: 35.60367776 | N129: -6.814325307 | O129: -6.648395058 | P129: -6.623863487 | Q129: -6.434596364 | R129: -0.2471504158 | S129: -0.2880363676 | T129: -0.2870407861 | U129: -0.3266367776 | W129: -9.699952315 | X129: 2.461775399 | Y129: 0.1263995231 | AA129: 27.65504158 | AB129: -6.814325307 | AC129: -0.2471504158 | AE129: -9.699952315 | AF129: 2.461775399 | AG129: 0.1263995231 | AI129: 0 | AJ129: 0 | AK129: 0 | AM129: 27.65504158 | AN129: -6.814325307 | AO129: -0.2471504158 | AQ129: -9.699952315 | AR129: 2.461775399 | AS129: 0.1263995231 | AU129: 7.922551504e-13 | AV129: 3.463895837e-14 | AW129: -7.938094626e-15
E130: 48.19098543 | F130: -8.762208011 | G130: -0.4819098543 | I130: 1.464 | J130: 35.61372933 | K130: 39.47428353 | L130: 39.34607411 | M130: 43.0506229 | N130: -6.434257007 | O130: -6.220574631 | P130: -6.197411306 | Q130: -5.962104118 | R130: -0.3267372933 | S130: -0.3653428353 | T130: -0.3640607411 | U130: -0.401106229 | W130: -12.5772561 | X130: 2.327951004 | Y130: 0.155172561 | AA130: 35.61372933 | AB130: -6.434257007 | AC130: -0.3267372933 | AE130: -12.5772561 | AF130: 2.327951004 | AG130: 0.155172561 | AI130: 0 | AJ130: 0 | AK130: 0 | AM130: 35.61372933 | AN130: -6.434257007 | AO130: -0.3267372933 | AQ130: -12.5772561 | AR130: 2.327951004 | AS130: 0.155172561 | AU130: 7.460698725e-13 | AV130: 4.352074257e-14 | AW130: -7.494005416e-15
E131: 58.33385913 | F131: -8.122290859 | G131: -0.5833385913 | I131: 1.476 | J131: 43.06019593 | K131: 46.63718405 | L131: 46.48216735 | M131: 49.87838445 | N131: -5.961646872 | O131: -5.703285696 | P131: -5.681823768 | Q131: -5.403860864 | R131: -0.4012019593 | S131: -0.4369718405 | T131: -0.4354216735 | U131: -0.4693838445 | W131: -15.2736632 | X131: 2.160643987 | Y131: 0.182136632 | AA131: 43.06019593 | AB131: -5.961646872 | AC131: -0.4012019593 | AE131: -15.2736632 | AF131: 2.160643987 | AG131: 0.182136632 | AI131: 0 | AJ131: 0 | AK131: 0 | AM131: 43.06019593 | AN131: -5.961646872 | AO131: -0.4012019593 | AQ131: -15.2736632 | AR131: 2.160643987 | AS131: 0.182136632 | AU131: 6.96331881e-13 | AV131: 5.240252676e-14 | AW131: -6.938893904e-15
E132: 67.63773277 | F132: -7.365553004 | G132: -0.6763773277 | I132: 1.488 | J132: 49.88734126 | K132: 53.12931664 | L132: 52.94972222 | M132: 55.98876095 | N132: -5.403292306 | O132: -5.103968258 | P132: -5.084516406 | Q132: -4.767895639 | R132: -0.4694734126 | S132: -0.5018931664 | T132: -0.5000972222 | U132: -0.5304876095 | W132: -17.75039151 | X132: 1.962260698 | Y132: 0.2069039151 | AA132: 49.88734126 | AB132: -5.403292306 | AC132: -0.4694734126 | AE132: -17.75039151 | AF132: 1.962260698 | AG132: 0.2069039151 | AI132: 0 | AJ132: 0 | AK132: 0 | AM132: 49.88734126 | AN132: -5.403292306 | AO132: -0.4694734126 | AQ132: -17.75039151 | AR132: 1.962260698 | AS132: 0.2069039151 | AU132: 6.323830348e-13 | AV132: 6.039613254e-14 | AW132: -6.32827124e-15
E133: 75.96879129 | F133: -6.502878402 | G133: -0.7596879129 | I133: 1.5 | J133: 55.99697272 | K133: 58.85730708 | L133: 58.65571798 | M133: 61.29386884 | N133: -4.767223946 | O133: -4.431242109 | P133: -4.414080103 | Q133: -4.06335533 | R133: -0.5305697272 | S133: -0.5591730708 | T133: -0.5571571798 | U133: -0.5835386884 | W133: -19.97181857 | X133: 1.735654456 | Y133: 0.2291181857 | AA133: 55.99697272 | AB133: -4.767223946 | AC133: -0.5305697272 | AE133: -19.97181857 | AF133: 1.735654456 | AG133: 0.2291181857 | AI133: 0 | AJ133: 0 | AK133: 0 | AM133: 55.99697272 | AN133: -4.767223946 | AO133: -0.5305697272 | AQ133: -19.97181857 | AR133: 1.735654456 | AS133: 0.2291181857 | AU133: 5.613287613e-13 | AV133: 6.838973832e-14 | AW133: -5.551115123e-15
E134: 83.20721132 | F134: -5.546674666 | G134: -0.8320721132 | I134: 1.512 | J134: 61.30121746 | K134: 63.73877155 | L134: 63.51808717 | M134: 65.7174065 | N134: -4.062590162 | O134: -3.694782858 | P134: -3.680157533 | Q134: -3.300373116 | R134: -0.5836121746 | S134: -0.6079877155 | T134: -0.6057808717 | U134: -0.627774065 | W134: -21.90599386 | X134: 1.484084504 | Y134: 0.2484599386 | AA134: 61.30121746 | AB134: -4.062590162 | AC134: -0.5836121746 | AE134: -21.90599386 | AF134: 1.484084504 | AG134: 0.2484599386 | AI134: 0 | AJ134: 0 | AK134: 0 | AM134: 61.30121746 | AN134: -4.062590162 | AO134: -0.5836121746 | AQ134: -21.90599386 | AR134: 1.484084504 | AS134: 0.2484599386 | AU134: 4.689582056e-13 | AV134: 7.549516567e-14 | AW134: -4.662936703e-15
E135: 89.24888463 | F135: -4.510694616 | G135: -0.8924888463 | I135: 1.524 | J135: 65.72378627 | K135: 67.70350156 | L135: 67.46689592 | M135: 69.19575163 | N135: -3.29952548 | O135: -2.905182762 | P135: -2.89330447 | Q135: -2.489922729 | R135: -0.6278378627 | S135: -0.6476350156 | T135: -0.6452689592 | U135: -0.6625575163 | W135: -23.52509837 | X135: 1.211169136 | Y135: 0.2646509837 | AA135: 65.72378627 | AB135: -3.29952548 | AC135: -0.6278378627 | AE135: -23.52509837 | AF135: 1.211169136 | AG135: 0.2646509837 | AI135: 0 | AJ135: -3.552713679e-15 | AK135: 0 | AM135: 65.72378627 | AN135: -3.29952548 | AO135: -0.6278378627 | AQ135: -23.52509837 | AR135: 1.211169136 | AS135: 0.2646509837 | AU135: 3.694822226e-13 | AV135: 8.12683254e-14 | AW135: -3.774758284e-15
E136: =-$C$28*$C$25^2*(1-2*$C$27^2)*EXP(-$C$27*$C$25*I136)*COS($C$25*SQRT(1-$C$27^2)*I136+$C$29)+2*$C$28*$C$27*$C$25^2*SQRT(1-$C$27^2)*EXP(-$C$27*$C$25*I136)*SIN($C$25*SQRT(1-$C$27^2)*I136+$C$29) -> 94.00691549 | F136: =-$C$28*$C$27*$C$25*EXP(-$C$27*$C$25*I136)*COS($C$25*SQRT(1-$C$27^2)*I136+$C$29)-$C$28*$C$25*SQRT(1-$C$27^2)*EXP(-$C$27*$C$25*I136)*SIN($C$25*SQRT(1-$C$27^2)*I136+$C$29) -> -3.40983847 | G136: =$C$28*EXP(-$C$27*$C$25*I136)*COS($C$25*SQRT(1-$C$27^2)*I136+$C$29) -> -0.9400691549 | I136: 1.536 | J136: 69.2010708 | K136: 70.69447369 | L136: 70.44534984 | M136: 71.67887637 | N136: -2.489004814 | O136: -2.073798389 | P136: -2.064837972 | Q136: -1.643660616 | R136: -0.662610708 | S136: -0.6775447369 | T136: -0.6750534984 | U136: -0.6873887637 | W136: =J136-E136 -> -24.80584469 | X136: =N136-F136 -> 0.9208336566 | Y136: =R136-G136 -> 0.2774584469 | AA136: 69.2010708 | AB136: -2.489004814 | AC136: -0.662610708 | AE136: =AA136-E136 -> -24.80584469 | AF136: =AB136-F136 -> 0.9208336566 | AG136: =AC136-G136 -> 0.2774584469 | AI136: =AA136-J136 -> 0 | AJ136: =AB136-N136 -> -3.552713679e-15 | AK136: =AC136-R136 -> 0 | AM136: 69.2010708 | AN136: -2.489004814 | AO136: -0.662610708 | AQ136: -24.80584469 | AR136: 0.9208336566 | AS136: 0.2774584469 | AU136: 2.842170943e-13 | AV136: 8.57092175e-14 | AW136: -2.886579864e-15
E137: 97.41287043 | F137: -2.259939545 | G137: -0.9741287043 | I137: =I136+$C$8 -> 1.548 | J137: 71.68305843 | K137: 72.66866981 | L137: 72.4106108 | M137: 73.13106676 | N137: -1.642685625 | O137: -1.212587275 | P137: -1.206673607 | Q137: -0.7737582959 | R137: -0.6874305843 | S137: -0.6972866981 | T137: -0.694706108 | U137: -0.7019106676 | W137: -25.729812 | X137: 0.6172539195 | Y137: 0.28669812 | AA137: 71.68305843 | AB137: -1.642685625 | AC137: -0.6874305843 | AE137: -25.729812 | AF137: 0.6172539195 | AG137: 0.28669812 | AI137: 0 | AJ137: -3.330669074e-15 | AK137: 0 | AM137: 71.68305843 | AN137: -1.642685625 | AO137: -0.6874305843 | AQ137: -25.729812 | AR137: 0.6172539195 | AS137: 0.28669812 | AU137: 1.847411113e-13 | AV137: 8.903988657e-14 | AW137: -1.887379142e-15
E138: 99.41776252 | F138: -1.077536523 | G138: -0.9941776252 | I138: 1.56 | J138: =-$C$20*N138-$C$21*R138-SIGN(N138)*$C$22+$C$23*SIN($C$16*$I138) -> 73.13405157 | K138: =-$C$20*O138-$C$21*S138-SIGN(O138)*$C$22+$C$23*SIN($C$16*$I138) -> 73.59769572 | L138: =-$C$20*P138-$C$21*T138-SIGN(P138)*$C$22+$C$23*SIN($C$16*$I138) -> 73.33441314 | M138: =-$C$20*Q138-$C$21*U138-SIGN(Q138)*$C$22+$C$23*SIN($C$16*$I138) -> 67.65143646 | N138: =N137+(J137+2*K137+2*L137+M137)*$C$8/6 -> -0.7727402527 | O138: =$N138+J138*$C$8/2 -> -0.3339359432 | P138: =$N138+K138*$C$8/2 -> -0.3311540783 | Q138: =$N138+L138*$C$8 -> 0.107272705 | R138: =R137+(N137+2*O137+2*P137+Q137)*$C$8/6 -> -0.7019405157 | S138: =$R138+N138*$C$8/2 -> -0.7065769572 | T138: =$R138+O138*$C$8/2 -> -0.7039441314 | U138: =$R138+P138*$C$8 -> -0.7059143646 | W138: -26.28371095 | X138: 0.3047962703 | Y138: 0.2922371095 | AA138: 73.13405157 | AB138: -0.7727402527 | AC138: -0.7019405157 | AE138: -26.28371095 | AF138: 0.3047962703 | AG138: 0.2922371095 | AI138: 0 | AJ138: -3.108624469e-15 | AK138: 0 | AM138: 73.13405157 | AN138: -0.7727402527 | AO138: -0.7019405157 | AQ138: =AM138-E138 -> -26.28371095 | AR138: =AN138-F138 -> 0.3047962703 | AS138: =AO138-G138 -> 0.2922371095 | AU138: =AM138-AA138 -> 0 | AV138: =AN138-AB138 -> 9.137135493e-14 | AW138: =AO138-AC138 -> 0
E139: 99.99275594 | F139: 0.120364414 | G139: -0.9999275594 | I139: 1.572 | J139: 67.65318109 | K139: 67.59524559 | L139: 67.35169414 | M139: 67.05062433 | N139: 0.09655915883 | O139: 0.5024782454 | P139: 0.5021306324 | Q139: 0.9047794885 | R139: -0.7059318109 | S139: -0.7053524559 | T139: -0.7029169414 | U139: -0.6999062433 | W139: -32.33957485 | X139: -0.02380525517 | Y139: 0.2939957485 | AA139: 67.65318109 | AB139: 0.09655915883 | AC139: -0.7059318109 | AE139: -32.33957485 | AF139: -0.02380525517 | AG139: 0.2939957485 | AI139: 0 | AJ139: -3.108624469e-15 | AK139: 0 | AM139: 67.65318109 | AN139: 0.09655915883 | AO139: -0.7059318109 | AQ139: -32.33957485 | AR139: -0.02380525517 | AS139: 0.2939957485 | AU139: 0 | AV139: 9.225953335e-14 | AW139: 0
E140: 99.12958072 | F140: 1.316534182 | G140: -0.9912958072 | I140: 1.584 | J140: 67.05106981 | K140: 66.50761709 | L140: 66.26623324 | M140: 65.48530953 | N140: 0.9057545286 | O140: 1.308060947 | P140: 1.304800231 | Q140: 1.700949327 | R140: -0.6999106981 | S140: -0.6944761709 | T140: -0.6920623324 | U140: -0.6842530953 | W140: -32.07851092 | X140: -0.4107796537 | Y140: 0.2913851092 | AA140: 67.05106981 | AB140: 0.9057545286 | AC140: -0.6999106981 | AE140: -32.07851092 | AF140: -0.4107796537 | AG140: 0.2913851092 | AI140: 0 | AJ140: -2.886579864e-15 | AK140: 0 | AM140: 67.05106981 | AN140: 0.9057545286 | AO140: -0.6999106981 | AQ140: -32.07851092 | AR140: -0.4107796537 | AS140: 0.2913851092 | AU140: -1.421085472e-13 | AV140: 9.170442183e-14 | AW140: 1.33226763e-15
E141: 96.84065168 | F141: 2.493768597 | G141: -0.9684065168 | I141: 1.596 | J141: 65.48458456 | K141: 64.46343095 | L141: 64.22768645 | M141: 62.97814064 | N141: 1.701922689 | O141: 2.094830196 | P141: 2.088703274 | Q141: 2.472654926 | R141: -0.6842458456 | S141: -0.6740343095 | T141: -0.6716768645 | U141: -0.6591814064 | W141: -31.35606712 | X141: -0.7918459087 | Y141: 0.2841606712 | AA141: 65.48458456 | AB141: 1.701922689 | AC141: -0.6842458456 | AE141: -31.35606712 | AF141: -0.7918459087 | AG141: 0.2841606712 | AI141: 0 | AJ141: -3.108624469e-15 | AK141: 0 | AM141: 65.48458456 | AN141: 1.701922689 | AO141: -0.6842458456 | AQ141: -31.35606712 | AR141: -0.7918459087 | AS141: 0.2841606712 | AU141: -2.415845302e-13 | AV141: 9.01501096e-14 | AW141: 2.331468352e-15
E142: 93.15888986 | F142: 3.635135816 | G142: -0.9315888986 | I142: 1.608 | J142: 62.97625565 | K142: 61.49208809 | L142: 61.26537357 | M142: 59.56517749 | N142: 2.473612609 | O142: 2.851470142 | P142: 2.842565137 | Q142: 3.208797091 | R142: -0.6591625565 | S142: -0.6443208809 | T142: -0.6420537357 | U142: -0.6250517749 | W142: -30.18263421 | X142: -1.161523207 | Y142: 0.2724263421 | AA142: 62.97625565 | AB142: 2.473612609 | AC142: -0.6591625565 | AE142: -30.18263421 | AF142: -1.161523207 | AG142: 0.2724263421 | AI142: 0 | AJ142: 0 | AK142: 0 | AM142: 62.97625565 | AN142: 2.473612609 | AO142: -0.6591625565 | AQ142: -30.18263421 | AR142: -1.161523207 | AS142: 0.2724263421 | AU142: -3.410605132e-13 | AV142: 8.704148513e-14 | AW142: 3.330669074e-15
E143: 88.13724904 | F143: 4.724219864 | G143: -0.8813724904 | I143: 1.62 | J143: 59.5621596 | K143: 57.63632441 | L143: 57.42190063 | M143: 55.29550768 | N143: 3.209725321 | O143: 3.567098279 | P143: 3.555543268 | Q143: 3.898788129 | R143: -0.625021596 | S143: -0.6057632441 | T143: -0.6036190063 | U143: -0.5823550768 | W143: -28.57508943 | X143: -1.514494543 | Y143: 0.2563508943 | AA143: 59.5621596 | AB143: 3.209725321 | AC143: -0.625021596 | AE143: -28.57508943 | AF143: -1.514494543 | AG143: 0.2563508943 | AI143: 0 | AJ143: 0 | AK143: 0 | AM143: 59.5621596 | AN143: 3.209725321 | AO143: -0.625021596 | AQ143: -28.57508943 | AR143: -1.514494543 | AS143: 0.2563508943 | AU143: -4.334310688e-13 | AV143: 8.215650382e-14 | AW143: 4.329869796e-15
E144: 81.84795411 | F144: 5.745356741 | G144: -0.8184795411 | I144: 1.632 | J144: 55.29140029 | K144: 52.95159616 | L144: 52.75254712 | M144: 50.23054053 | N144: 3.899673556 | O144: 4.231421958 | P144: 4.217383133 | Q144: 4.532704122 | R144: -0.5823140029 | S144: -0.5589159616 | T144: -0.5569254712 | U144: -0.5317054053 | W144: -26.55655381 | X144: -1.845683185 | Y144: 0.2361655381 | AA144: 55.29140029 | AB144: 3.899673556 | AC144: -0.5823140029 | AE144: -26.55655381 | AF144: -1.845683185 | AG144: 0.2361655381 | AI144: 0 | AJ144: 0 | AK144: 0 | AM144: 55.29140029 | AN144: 3.899673556 | AO144: -0.5823140029 | AQ144: -26.55655381 | AR144: -1.845683185 | AS144: 0.2361655381 | AU144: -5.329070518e-13 | AV144: 7.638334409e-14 | AW144: 5.329070518e-15
E145: 74.38146229 | F145: 6.683859714 | G145: -0.7438146229 | I145: 1.644 | J145: 50.22540272 | K145: 47.50528231 | L145: 47.32447086 | M145: 44.44312387 | N145: 4.533534011 | O145: 4.834886427 | P145: 4.818565705 | Q145: 5.101427661 | R145: -0.5316540272 | S145: -0.5044528231 | T145: -0.5026447086 | U145: -0.4738312387 | W145: -24.15605957 | X145: -2.150325703 | Y145: 0.2121605957 | AA145: 50.22540272 | AB145: 4.533534011 | AC145: -0.5316540272 | AE145: -24.15605957 | AF145: -2.150325703 | AG145: 0.2121605957 | AI145: 0 | AJ145: 0 | AK145: 0 | AM145: 50.22540272 | AN145: 4.533534011 | AO145: -0.5316540272 | AQ145: -24.15605957 | AR145: -2.150325703 | AS145: 0.2121605957 | AU145: -6.252776075e-13 | AV145: 7.105427358e-14 | AW145: 6.217248938e-15
E146: 65.84516212 | F146: 7.526230548 | G146: -0.6584516212 | I146: 1.656 | J146: 44.43702953 | K146: 41.37571549 | L146: 41.21574218 | M146: 38.01649629 | N146: 5.102190077 | O146: 5.368812254 | P146: 5.35044437 | Q146: 5.596778983 | R146: -0.4737702953 | S146: -0.4431571549 | T146: -0.4415574218 | U146: -0.4095649629 | W146: -21.40813258 | X146: -2.424040471 | Y146: 0.1846813258 | AA146: 44.43702953 | AB146: 5.102190077 | AC146: -0.4737702953 | AE146: -21.40813258 | AF146: -2.424040471 | AG146: 0.1846813258 | AI146: 0 | AJ146: 0 | AK146: 0 | AM146: 44.43702953 | AN146: 5.102190077 | AO146: -0.4737702953 | AQ146: -21.40813258 | AR146: -2.424040471 | AS146: 0.1846813258 | AU146: -7.105427358e-13 | AV146: 6.394884622e-14 | AW146: 7.105427358e-15
E147: 56.36182886 | F147: 8.260353653 | G147: -0.5636182886 | I147: 1.668 | J147: 38.00953307 | K147: 34.6510553 | L147: 34.51422098 | M147: 31.04308992 | N147: 5.597462959 | O147: 5.825520158 | P147: 5.805369291 | Q147: 6.011633611 | R147: -0.4094953307 | S147: -0.375910553 | T147: -0.3745422098 | U147: -0.3398308992 | W147: -18.35229579 | X147: -2.662890694 | Y147: 0.1541229579 | AA147: 38.00953307 | AB147: 5.597462959 | AC147: -0.4094953307 | AE147: -18.35229579 | AF147: -2.662890694 | AG147: 0.1541229579 | AI147: 0 | AJ147: 0 | AK147: 0 | AM147: 38.00953307 | AN147: 5.597462959 | AO147: -0.4094953307 | AQ147: -18.35229579 | AR147: -2.662890694 | AS147: 0.1541229579 | AU147: -7.887024367e-13 | AV147: 5.506706202e-14 | AW147: 7.882583475e-15
E148: 46.06785874 | F148: 8.875670336 | G148: -0.4606785874 | I148: 1.68 | J148: 31.03535798 | K148: 27.42802039 | L148: 27.3162931 | M148: 23.62320106 | N148: 6.01222931 | O148: 6.198441458 | P148: 6.176797433 | Q148: 6.340024827 | R148: -0.3397535798 | S148: -0.3036802039 | T148: -0.302562931 | U148: -0.2656320106 | W148: -15.03250076 | X148: -2.863441026 | Y148: 0.1209250076 | AA148: 31.03535798 | AB148: 6.01222931 | AC148: -0.3397535798 | AE148: -15.03250076 | AF148: -2.863441026 | AG148: 0.1209250076 | AI148: 2.842170943e-14 | AJ148: 0 | AK148: 0 | AM148: 31.03535798 | AN148: 6.01222931 | AO148: -0.3397535798 | AQ148: -15.03250076 | AR148: -2.863441026 | AS148: 0.1209250076 | AU148: -8.384404282e-13 | AV148: 4.618527782e-14 | AW148: 8.437694987e-15
E149: 35.11130712 | F149: 9.363330664 | G149: -0.3511130712 | I149: 1.692 | J149: 23.61481159 | K149: 19.81049738 | L149: 19.72548406 | M149: 15.86354759 | N149: 6.340523682 | O149: 6.482212552 | P149: 6.459386667 | Q149: 6.577229491 | R149: -0.2655481159 | S149: -0.2275049738 | T149: -0.2266548406 | U149: -0.1880354759 | W149: -11.49649553 | X149: -3.022806982 | Y149: 0.08556495528 | AA149: 23.61481159 | AB149: 6.340523682 | AC149: -0.2655481159 | AE149: -11.49649553 | AF149: -3.022806982 | AG149: 0.08556495528 | AI149: 3.197442311e-14 | AJ149: 0 | AK149: 0 | AM149: 23.61481159 | AN149: 6.340523682 | AO149: -0.2655481159 | AQ149: -11.49649553 | AR149: -3.022806982 | AS149: 0.08556495528 | AU149: -8.988365607e-13 | AV149: 3.641531521e-14 | AW149: 8.992806499e-15
E150: 23.64975911 | F150: 9.716320751 | G150: -0.2364975911 | I150: 1.704 | J150: 15.85462127 | K150: 11.90804668 | L150: 11.85097004 | M150: 7.875734144 | N150: 6.577624326 | O150: 6.672752054 | P150: 6.649072607 | Q150: 6.719835967 | R150: -0.1879462127 | S150: -0.1484804668 | T150: -0.1479097004 | U150: -0.1081573414 | W150: -7.795137842 | X150: -3.138696425 | Y150: 0.04855137842 | AA150: 15.85462127 | AB150: 6.577624326 | AC150: -0.1879462127 | AE150: -7.795137842 | AF150: -3.138696425 | AG150: 0.04855137842 | AI150: 3.197442311e-14 | AJ150: 0 | AK150: -3.330669074e-16 | AM150: 15.85462127 | AN150: 6.577624326 | AO150: -0.1879462127 | AQ150: -7.795137842 | AR150: -3.138696425 | AS150: 0.04855137842 | AU150: -9.414691249e-13 | AV150: 2.575717417e-14 | AW150: 9.436895709e-15
E151: 11.84806305 | F151: 9.929563637 | G151: -0.1184806305 | I151: 1.716 | J151: 7.866399349 | K151: 3.834326687 | L151: 3.806007649 | M151: -0.2253531279 | N151: 6.720121104 | O151: 6.7673195 | P151: 6.743127064 | Q151: 6.765793196 | R151: -0.1080639935 | S151: -0.06774326687 | T151: -0.06746007649 | U151: -0.02714646872 | W151: -3.981663697 | X151: -3.209442533 | Y151: 0.01041663697 | AA151: 7.866399349 | AB151: 6.720121104 | AC151: -0.1080639935 | AE151: -3.981663697 | AF151: -3.209442533 | AG151: 0.01041663697 | AI151: 3.197442311e-14 | AJ151: 0 | AK151: -3.053113318e-16 | AM151: 7.866399349 | AN151: 6.720121104 | AO151: -0.1080639935 | AQ151: -3.981663697 | AR151: -3.209442533 | AS151: 0.01041663697 | AU151: -9.752199048e-13 | AV151: 1.509903313e-14 | AW151: 9.742207041e-15
E152: -0.1240404938 | F152: 9.999992307 | G152: 0.001240404938 | I152: 1.728 | J152: -0.2349621366 | K152: -4.294540857 | L152: -4.293694993 | M152: -8.323198883 | N152: 6.765964534 | O152: 6.764554761 | P152: 6.740197289 | Q152: 6.714440194 | R152: -0.02705037863 | S152: 0.01354540857 | T152: 0.01353694993 | U152: 0.05383198883 | W152: -0.1109216428 | X152: -3.234027773 | Y152: -0.02829078357 | AA152: -0.2349621366 | AB152: 6.765964534 | AC152: -0.02705037863 | AE152: -0.1109216428 | AF152: -3.234027773 | AG152: -0.02829078357 | AI152: 3.064215548e-14 | AJ152: 0 | AK152: -3.053113318e-16 | AM152: -0.2349621366 | AN152: 6.765964534 | AO152: -0.02705037863 | AQ152: -0.1109216428 | AR152: -3.234027773 | AS152: -0.02829078357 | AU152: -9.920952948e-13 | AV152: 0 | AW152: 9.919148836e-15
E153: -12.09435999 | F153: 9.926593805 | G153: 0.1209435999 | I153: 1.74 | J153: -8.332943902 | K153: -12.36164106 | L153: -12.33164247 | M153: -16.30133441 | N153: 6.714495269 | O153: 6.664497605 | P153: 6.640325422 | Q153: 6.566515559 | R153: 0.05392943902 | S153: 0.09421641063 | T153: 0.09391642465 | U153: 0.1336133441 | W153: 3.761416091 | X153: -3.212098536 | Y153: -0.06701416091 | AA153: -8.332943902 | AB153: 6.714495269 | AC153: 0.05392943902 | AE153: 3.761416091 | AF153: -3.212098536 | AG153: -0.06701416091 | AI153: 2.486899575e-14 | AJ153: 0 | AK153: -2.636779683e-16 | AM153: -8.332943902 | AN153: 6.714495269 | AO153: 0.05392943902 | AQ153: 3.761416091 | AR153: -3.212098536 | AS153: -0.06701416091 | AU153: -9.929834732e-13 | AV153: -9.769962617e-15 | AW153: 9.93649607e-15
E154: -23.8907296 | F154: 9.710423801 | G154: 0.238907296 | I154: 1.752 | J154: -16.31107528 | K154: -20.25094743 | L154: -20.19222755 | M154: -24.04501275 | N154: 6.566453578 | O154: 6.468587126 | P154: 6.444947893 | Q154: 6.324146847 | R154: 0.1337107528 | S154: 0.1731094743 | T154: 0.1725222755 | U154: 0.2110501275 | W154: 7.57965432 | X154: -3.143970223 | Y154: -0.1051965432 | AA154: -16.31107528 | AB154: 6.566453578 | AC154: 0.1337107528 | AE154: 7.57965432 | AF154: -3.143970223 | AG154: -0.1051965432 | AI154: 0 | AJ154: 0 | AK154: -2.220446049e-16 | AM154: -16.31107528 | AN154: 6.566453578 | AO154: 0.1337107528 | AQ154: 7.57965432 | AR154: -3.143970223 | AS154: -0.1051965432 | AU154: -9.805489753e-13 | AV154: -2.220446049e-14 | AW154: 9.797718192e-15
